Workbook

Sheet Principal (hidden)
B2: PANEL DE DECISIONES DATA-DRIVEN
B4: Usuario: Raid Pimentel Garcia | D4: Producto: | E4: Hipotecario | H4: Zona de Riesgo: | I4: =IFERROR(VLOOKUP(Principal!C14,Resolucion!$R$4:$S$9,2,FALSE),"") -> ZONA 1 | J4: =_xlfn.IFS( I4="ZONA 3","ZONA RESTRINGIDA", AND(E5="Ahorro Casa",I4="ZONA 2"),"ZONA RESTRINGIDA PARA AHORRO CASA", AND(E5="Ahorro Casa",I4="NO BANC",F9<>"Dependiente"),"ZONA RESTRINGIDA PARA AHORRO CASA", TRUE,"" ) -> 
D5: Tipo Evaluacion: | E5: Tradicional | H5: Zona de Recorte: | I5: =IFERROR(IF(matriz_recorte!H9=1,"ATENCIÓN","RESTRINGIDA"),"") -> ATENCIÓN
I6: =IF(F12="Anticampaña","Alerta anticampaña, sujeto a revisión de base gestionable","") -> 
B7: DATOS DE TITULAR | H7: DATOS DEL CÓNYUGE | O7: Hipotecario
B8: Ingrese DNI: | C8: 46046330 | H8: Ingrese DNI: | O8: MiVivienda
B9: Estado Civil: | C9: Soltero(a) | E9: Situación Laboral: | F9: Dependiente | O9: TechoPropio
B10: =IF(LEN(C8)>8,"Para Carnet de Extranjeria se revisarán deudas y alertas de manera manual","") ->  | K10: =IFERROR(VLOOKUP(Principal!I14,Resolucion!$R$4:$S$9,2,FALSE),"") ->  | L10: =IF(K10="ZONA 3","RESTRINGIDA","") ->  | O10: Personal con Garantía
B11: Segmento | C11: RENTA ALTA | E11: Flujo Campaña | F11: CAMPAÑA | H11: Segmento | K11: Flag Campaña
B12: Score Hipotecario | C12: ALTO | D12: 20040729 | E12: Flujo Anticampaña | F12: NO DATA | H12: Score Hipotecario | K12: Flag Anticampaña | O12: Tradicional
B13: Score Buró Hipo | C13: ALTO | E13: SUNEDU | F13: CON SUNEDU | H13: Score Buró Hipo | K13: Flag Sunedu | O13: Ahorro Casa
B14: Color de Riesgo | C14: VERDE CLARO | E14: Tipo Institución | F14: UNIVERSIDAD | H14: Color de Riesgo | K14: Tipo Institución
B15: Abono planilla | C15: CON PLANILLA | E15: Flag Sin Saldo Ult12m | F15: NO DATA | H15: Abono planilla | K15: Flag Sin Saldo Ult12m | O15: Soltero(a)
O16: Casado(a)
B17: Evaluación con codeudor | D17: No | E17: =IF(AND(D17="si",OR(Deudas!C21>0,Deudas!F21>0,Deudas!I21>0,Deudas!L21>0)),"Evaluación codeudor solo aplica para primera vivienda","") ->  | O17: Conviviente
B18: DATOS DE CODEUDOR | H18: DATOS DE CÓNYUGE DEL CODEUDOR
B19: Ingrese DNI: | H19: Ingrese DNI:
B20: Estado Civil: | C20: Soltero(a)
E21: =IFERROR(VLOOKUP(Principal!C25,Resolucion!$R$4:$S$9,2,FALSE),"") ->  | F21: =IF(E21="ZONA 3","RESTRINGIDA","") ->  | K21: =IFERROR(VLOOKUP(Principal!I25,Resolucion!$R$4:$S$9,2,FALSE),"") ->  | L21: =IF(K21="ZONA 3","RESTRINGIDA","") -> 
B22: Segmento | E22: Flag Campaña | H22: Segmento | K22: Flag Campaña
B23: Score Hipotecario | E23: Flag Anticampaña | H23: Score Hipotecario | K23: Flag Anticampaña
B24: Score Buró Hipo | E24: Flag Sunedu | H24: Score Buró Hipo | K24: Flag Sunedu
B25: Color de Riesgo | E25: Tipo Institución | H25: Color de Riesgo | K25: Tipo Institución
B26: Abono planilla | E26: Flag Sin Saldo Ult12m | H26: Abono planilla | K26: Flag Sin Saldo Ult12m
B29: Leyenda:
C30: NO DATA
B31: Flag Campaña | C31: No se encuentra en bases campaña
B32: Flag Anticampaña | C32: No se encuentra en bases anticampaña
B33: Flag Sunedu | C33: No cuenta con información en SUNEDU
B34: Flag Sin Saldo Ult12m | C34: Cuenta con movimientos en los últimos 12 meses

Sheet Deudas (hidden)
B2: RCC | C2: =TODAY()-30*2 -> 2025-02-14 | D2: BALANCE DE SITUACION FINANCIERA
B4: Usuario: Tom Davye Agurto Alban | C4: =TODAY() -> 2025-04-15 | L4: C/Y : | M4: =Resolucion!J30 -> 0.2627680501 | N4: =Resolucion!K30 -> 0.5
L5: D/Y : | M5: =Resolucion!J31 -> 0.4733997227 | N5: =Resolucion!K31 -> 0.59
L6: CEM : | M6: =Resolucion!J28 -> 3411.28
B8: Deudas Actuales en el SSFF | I8: Codeudor | J8: =Principal!D17 -> No
C9: Titular | E9: =CONCATENATE("DNI ",Principal!C8) -> DNI 46046330 | F9: Cónyuge | H9: =CONCATENATE("DNI ",Principal!I8) -> DNI | I9: Codeudor | K9: =CONCATENATE("DNI ",Principal!C19) -> DNI | L9: Cónyuge Codeudor | N9: =CONCATENATE("DNI ",Principal!I19) -> DNI
B10: Nombre
B11: Estado Civil | C11: =Principal!C9 -> Soltero(a) | I11: =Principal!C20 -> Soltero(a)
B12: Fecha de Nacimiento | C12: 27/07/1989 | D12: Edad | E12: =IF(C12="",0,YEAR($C$4-C12)-1900) ->  | G12: Edad | H12: =IF(F12="",0,YEAR($C$4-F12)-1900) -> 0 | J12: Edad | K12: =IF(I12="",0,YEAR($C$4-I12)-1900) -> 0 | M12: Edad | N12: =IF(L12="",0,YEAR($C$4-L12)-1900) -> 0
B13: Score Buro Hipotecario | C13: =IF(Principal!C13="no data","SIN SCORE",Principal!C13) -> ALTO | F13: =IF(Principal!I13="no data","SIN SCORE",Principal!I13) -> 0 | I13: =IF(OR(Principal!C24=0,Principal!C24="no data"),"SIN SCORE",Principal!C24) -> SIN SCORE | L13: =IF(OR(Principal!I24=0,Principal!I24="no data"),"SIN SCORE",Principal!I24) -> SIN SCORE
B14: Deudas del Cliente (*) | C14: Saldo | D14: Cuota Inferida | E14: Cuota Real | F14: Saldo | G14: Cuota Inferida | H14: Cuota Real | I14: Saldo | J14: Cuota Inferida | K14: Cuota Real | L14: Saldo | M14: Cuota Inferida | N14: Cuota Real | P14: Cta_final_tit | Q14: Cta_final_cony | R14: Cta_final_cod1 | S14: Cta_final_cod2
B15: Línea usada TC | C15: 0 | D15: =IF(C15>0,Deudas_fx!G14,0) -> 0 | F15: 0 | G15: =IF(F15>0,Deudas_fx!K14,0) -> 0 | I15: 0 | J15: =IF(I15>0,Deudas_fx!P14,0) -> 0 | L15: 0 | M15: =IF(L15>0,Deudas_fx!U14,0) -> 0 | P15: =IF(E15<>0,E15,D15) -> 0 | Q15: =IF(H15<>0,H15,G15) -> 0 | R15: =IF(K15<>0,K15,J15) -> 0 | S15: =IF(N15<>0,N15,M15) -> 0
B16: Linea no usadaTC | C16: 5000 | D16: =IF(C16>0,Deudas_fx!G15,0) -> 55 | F16: 0 | G16: =IF(F16>0,Deudas_fx!K15,0) -> 0 | I16: 0 | J16: =IF(I16>0,Deudas_fx!P15,0) -> 0 | L16: 0 | M16: =IF(L16>0,Deudas_fx!U15,0) -> 0 | P16: =IF(E16<>0,E16,D16) -> 55 | Q16: =IF(H16<>0,H16,G16) -> 0 | R16: =IF(K16<>0,K16,J16) -> 0 | S16: =IF(N16<>0,N16,M16) -> 0
B17: Linea Paralela | C17: 0 | D17: 0 | F17: 0 | G17: 0 | I17: 0 | J17: 0 | L17: 0 | M17: 0 | P17: 0 | Q17: 0 | R17: 0 | S17: 0
B18: Préstamo Fácil | C18: 0 | D18: 0 | F18: 0 | G18: 0 | I18: 0 | J18: 0 | L18: 0 | M18: 0 | P18: 0 | Q18: 0 | R18: 0 | S18: 0
B19: Vehicular | C19: 0 | D19: 0 | F19: 0 | G19: 0 | I19: 0 | J19: 0 | L19: 0 | M19: 0 | P19: 0 | Q19: 0 | R19: 0 | S19: 0
B20: Convenio | C20: 0 | D20: 0 | F20: 0 | G20: 0 | I20: 0 | J20: 0 | L20: 0 | M20: 0 | P20: 0 | Q20: 0 | R20: 0 | S20: 0
B21: Hipotecario 1 | C21: 177272.37 | D21: 1839 | F21: 0 | G21: 0 | I21: 0 | J21: 0 | L21: 0 | M21: 0 | P21: 1839 | Q21: 0 | R21: 0 | S21: 0
B22: Hipotecario 2 o más | C22: 0 | D22: =IF(C22>0,Deudas_fx!G20,0) -> 0 | F22: 0 | G22: =IF(F22>0,Deudas_fx!K20,0) -> 0 | I22: 0 | J22: =IF(I22>0,Deudas_fx!P20,0) -> 0 | L22: 0 | M22: =IF(L22>0,Deudas_fx!U20,0) -> 0 | P22: 0 | Q22: 0 | R22: 0 | S22: 0
B23: Respos. PeMe | C23: 0 | D23: =IF(C23>0,Deudas_fx!G21,0) -> 0 | F23: 0 | G23: =IF(F23>0,Deudas_fx!K21,0) -> 0 | I23: 0 | J23: =IF(I23>0,Deudas_fx!P21,0) -> 0 | L23: 0 | M23: =IF(L23>0,Deudas_fx!U21,0) -> 0 | P23: 0 | Q23: 0 | R23: 0 | S23: 0
B24: Saldo PeMe_Sin Revol | C24: 0 | D24: =IF(C24>0,Deudas_fx!G22,0) -> 0 | F24: 0 | G24: =IF(F24>0,Deudas_fx!K22,0) -> 0 | I24: 0 | J24: =IF(I24>0,Deudas_fx!P22,0) -> 0 | L24: 0 | M24: =IF(L24>0,Deudas_fx!U22,0) -> 0 | P24: 0 | Q24: 0 | R24: 0 | S24: 0
B25: Saldo PeMe_Revol | C25: 0 | D25: =IF(C25>0,Deudas_fx!G23,0) -> 0 | F25: 0 | G25: =IF(F25>0,Deudas_fx!K23,0) -> 0 | I25: 0 | J25: =IF(I25>0,Deudas_fx!P23,0) -> 0 | L25: 0 | M25: =IF(L25>0,Deudas_fx!U23,0) -> 0 | P25: 0 | Q25: 0 | R25: 0 | S25: 0
B26: Aval | C26: 0 | D26: =IF(C26>0,Deudas_fx!G24,0) -> 0 | F26: 0 | G26: =IF(F26>0,Deudas_fx!K24,0) -> 0 | I26: 0 | J26: =IF(I26>0,Deudas_fx!P24,0) -> 0 | L26: 0 | M26: =IF(L26>0,Deudas_fx!U24,0) -> 0 | P26: 0 | Q26: 0 | R26: 0 | S26: 0
D27: Cuota SSFF | E27: =SUM(P15:P26) -> 1894 | G27: Cuota total SSFF | H27: =SUM(Q15:Q26) -> 0 | J27: Cuota total SSFF | K27: =SUM(R15:R26) -> 0 | M27: Cuota total SSFF | N27: =SUM(S15:S26) -> 0
B28: Deudas en IBK
C29: Titular | E29: Cónyuge | G29: Codeudor | I29: Cónyuge Codeudor
C30: Saldo | D30: Cuota | E30: Saldo | F30: Cuota | G30: Saldo | H30: Cuota | I30: Saldo | J30: Cuota
B31: Línea usada TC | D31: =IF(C31>0,Deudas_fx!G26,0) -> 0 | F31: =IF(E31>0,Deudas_fx!K26,0) -> 0 | H31: =IF(G31>0,Deudas_fx!P26,0) -> 0 | J31: =IF(I31>0,Deudas_fx!U26,0) -> 0
B32: Linea no usadaTC | D32: =IF(C32>0,Deudas_fx!G27,0) -> 0 | F32: =IF(E32>0,Deudas_fx!K27,0) -> 0 | H32: =IF(G32>0,Deudas_fx!P27,0) -> 0 | J32: =IF(I32>0,Deudas_fx!U27,0) -> 0
B33: Extracash / CD
B34: PPE
B35: Credito por Convenio
B36: Credito Hipotecario
B37: Cuota final IBK | D37: =SUM(D31:D36) -> 0 | F37: 0 | H37: 0 | J37: 0
B39: Resultado Deudas Actuales
C40: Deudas en S/
B41: Deuda Total en el Sistema Financiero a la fecha | C41: =IFERROR(Deudas_fx!F55,0) -> 178522.37
B42: Cuota SBS | C42: =SUM(Q15:Q26)+SUM(R15:R26)+SUM(S15:S26)+SUM(P15:P26)+SUM(F31:F36)+SUM(H31:H36)+SUM(J31:J36)+SUM(D31:D36) -> 1894

Sheet matriz_recorte (hidden)
H1: 1 | I1: 2 | J1: 3 | K1: 4 | L1: 5 | M1: 6
B2: 1 SI, 0 NO | H2: VERDE CLARO | I2: VERDE | J2: AMARILLO | K2: GRIS | L2: ROJO | M2: NO DATA
A3: OK SUNEDU | B3: =IF(OR(Principal!F13="NO DATA",Principal!F13=""),0,1) -> 1 | F3: 1 | G3: Tradicional | H3: 1 | I3: 1 | J3: =B5 -> 1 | K3: =B5 -> 1 | L3: 0 | M3: 1
A4: OK RCC | B4: =IF(Principal!F15="NO DATA",1,0) -> 1 | F4: 2 | G4: Ahorro Casa | H4: 1 | I4: =B5 -> 1 | J4: =B5 -> 1 | K4: 0 | L4: 0 | M4: =B5 -> 1
A5: OK FLAG RCC O SUNEDU | B5: =IF(OR(B3<>0,B4<>0),1,0) -> 1
A7: FLAG DEPENDIENTE | B7: =IF(Principal!F9="DEPENDIENTE",1,0) -> 1 | G7: tipo de evaluacion | H7: =MATCH(Principal!E5,G3:G4,0) -> 1
G8: color | H8: =MATCH(Principal!C14,matriz_recorte!H2:M2,0) -> 1
G9: ZONA DE RECORTE | H9: =INDEX(H3:M4,MATCH(Principal!E5,G3:G4,0),MATCH(Principal!C14,matriz_recorte!H2:M2,0)) -> 1

Sheet Ah_casa (hidden)
D2: Dependiente | E2: Profesional Independiente | F2: Microempresario | G2: Informal
C3: Verde Claro | D3: 4 Meses + CI 10% | E3: 4 Meses + CI 20% // 6 Meses + CI 10% | F3: 4 Meses + CI 20% // 6 Meses + CI 10% | G3: 6 Meses + CI 20% // 9 Meses + CI 15%
C4: Verde | D4: 4 Meses + CI 10% | E4: 4 Meses + CI 20% // 6 Meses + CI 10% | F4: 4 Meses + CI 20% // 6 Meses + CI 10% | G4: 6 Meses + CI 20% // 9 Meses + CI 15%
C5: Amarillo | D5: 4 Meses + CI 10% | E5: 4 Meses + CI 20% // 6 Meses + CI 10% | F5: 4 Meses + CI 20% // 6 Meses + CI 10% | G5: 6 Meses + CI 20% // 9 Meses + CI 15%
C6: Gris | D6: APAGADA | E6: APAGADA | F6: APAGADA | G6: APAGADA
C7: Rojo | D7: ZONA RESTRINGIDA | E7: ZONA RESTRINGIDA | F7: ZONA RESTRINGIDA | G7: ZONA RESTRINGIDA
C8: NO DATA | D8: 6 Meses + CI 20% // 9 Meses + CI 15% | E8: APAGADA | F8: APAGADA | G8: APAGADA
C13: =MATCH(Principal!F9,D2:G2,0) -> 1
C14: =MATCH(Principal!C14,C3:C8,0) -> 1
C15: =INDEX(D3:G8,C14,C13) -> 4 Meses + CI 10%

Sheet Ingreso_Titular (hidden)
C2: Crédito Hipotecario - Formato de Cálculo de Ingreso Neto Mensual del Titular | O2: Fecha | P2: =TODAY() -> 2025-04-15
O3: TC US$ | P3: =Resolucion!C11 -> 3.85
B4: Usuario: Raid Pimentel Garcia | C4: Cliente: | D4: =Deudas!C10 -> 0 | G4: =Principal!E5 -> Tradicional | M4: Observaciones:
C5: DNI: | D5: =Principal!C8 -> 46046330 | G5: Depósito Ahorro Casa
C6: Tipo de Evaluación: | D6: =Principal!E5 -> Tradicional | G6: Ingreso Inferido | H6: =IF(G4="Ahorro casa",H5/0.4,"") -> 
G7: Ingreso Declaración Jurada
C8: Ingreso Neto | D8: =IFERROR(IF(D6="Ahorro Casa",MIN(H6,(D35+E62+F62+G62+N43+N58+T35+H7)),(D35+E62+F62+G62+N43+N58+T35)),0) -> 8992 | G8: Informalidad | H8: =IFERROR(IF(1-((D35+E62+F62+G62+N43+N58+T35)/D8)>0,1-((D35+E62+F62+G62+N43+N58+T35)/D8),0),0) -> 0
G9: =IF(H8>0.8,"Si la informalidad es mayor al 80% se considerará como INFORMAL","") -> 
C10: Renta de 5ta. Categoría | M10: Renta de 3era Categoría | O10: Reg. General | S10: Renta de 5ta. Categoría | AC10: Hipotecario
E11: Boleta | F11: Experian | G11: CTS en IBK | M11: Empresa | U11: Boleta | V11: Experian | W11: CTS en IBK | AC11: Mi vivienda
C12: Fecha de ingreso | G12: Ingreso bruto | M12: RUC | S12: Fecha de ingreso | W12: Ingreso bruto
C13: Empleador | F13: SI | G13: =IF(G12="Ingreso bruto","Último depósito CTS",IF(G12="Último depósito CTS","Ingreso bruto","")) -> Último depósito CTS | H13: =IF(G12="Ingreso bruto",E25*14/24,H12*24/14) -> 0 | M13: Fecha de Inicio | S13: Empleador | W13: =IF(W12="Ingreso bruto","Último depósito CTS",IF(W12="Último depósito CTS","Ingreso bruto","")) -> Último depósito CTS | X13: =IF(W12="Ingreso bruto",U25*14/24,X12*24/14) -> 0 | AC13: Normal
C14: RUC | F14: 20606089024 | G14: (correspondiente a 6 meses de trabajo) | M14: Giro del Negocio | S14: RUC | W14: (correspondiente a 6 meses de trabajo) | AC14: Ahorro Casa
C15: Antigüedad | E15: =IF(E12="","",DATEDIF(E12,TODAY(),"Y")&" años, "&DATEDIF(E12,TODAY(),"YM")&" meses") ->  | F15: SI | S15: Antigüedad | U15: =IF(U12="","",DATEDIF(U12,TODAY(),"Y")&" años, "&DATEDIF(U12,TODAY(),"YM")&" meses") -> 
C16: Mes referencia - ult. boleta | F16: 202502 | M16: Margen Comercial | N16: =IFERROR(MIN(P26:P27),"") -> 0 | S16: Mes referencia - ult. boleta | AC16: Reg. General
C17: Utilidades | M17: % Participación | N17: 0 | S17: Utilidades | AC17: Reg. Especial
C18: CTS IBK | M18: Campaña | S18: CTS IBK | AC18: RUS
AC19: Microempresario
C20: Ingreso Bruto | E20: Ing. Promedio | F20: Ing.Prom.Ajust * | G20: Año | H20: Uti. Bruta | I20: Nro. Veces | M20: Información DD JJ: Ventas | S20: Ingreso Bruto | U20: Ing. Promedio | V20: Ing.Prom.Ajust * | W20: Año | X20: Uti. Bruta | Y20: Nro. Veces
C21: Ingreso Fijo | E21: 0 | F21: =E21 -> 0 | G21: =YEAR(TODAY())-2 -> 2023 | H21: 0 | I21: =IFERROR(H21/$E$25,) -> 0 | M21: Año | N21: Ingreso Anual | O21: Ingreso Mensual | S21: Ingreso Fijo | U21: 0 | V21: =U21 -> 0 | W21: =YEAR(TODAY())-2 -> 2023 | X21: 0 | Y21: =IFERROR(X21/$E$25,) -> 0 | AC21: Local Comercial
C22: Comisión | E22: 0 | F22: =E22*0.85 -> 0 | G22: =YEAR(TODAY())-1 -> 2024 | H22: 0 | I22: =IFERROR(H22/$E$25,) -> 0 | M22: =YEAR(TODAY())-2 -> 2023 | N22: 0 | O22: =+N22/12 -> 0 | P22: Variación | S22: Comisión | U22: 0 | V22: =U22*0.85 -> 0 | W22: =YEAR(TODAY())-1 -> 2024 | X22: 0 | Y22: =IFERROR(X22/$E$25,) -> 0 | AC22: Vivienda
C23: Horas Extras | E23: 0 | F23: =E23*0.85 -> 0 | G23: Variabilidad | H23: =IFERROR(ABS((H21/H22)-1), "0") -> 0 | I23: =IF(H23<=30%,IF(AVERAGE(I21,I22)>5,5,IF(AVERAGE(I21,I22)>=2,AVERAGE(I21,I22),0)),IF(OR(I21<2,I22<2),0,MIN(I21,I22))) -> 0 | M23: =YEAR(TODAY())-1 -> 2024 | N23: 0 | O23: =+N23/12 -> 0 | P23: =IF(O23<>0,(O23-O22)/O22,0) -> 0 | S23: Horas Extras | U23: 0 | V23: =U23*0.85 -> 0 | W23: Variabilidad | X23: =IFERROR(ABS((X21/X22)-1), "0") -> 0 | Y23: =IF(X23<=30%,IF(AVERAGE(Y21,Y22)>5,5,IF(AVERAGE(Y21,Y22)>=2,AVERAGE(Y21,Y22),0)),IF(OR(Y21<2,Y22<2),0,MIN(Y21,Y22))) -> 0 | AC23: Local Comercial + Vivienda
C24: Bonos | E24: 0 | F24: =E24*0.85 -> 0 | G24: Ing. Utilidades | H24: =IFERROR(+(I24*I23)/12,) -> 0 | I24: =IF(OR(E31="",E31=0),F25*(1-VLOOKUP(F25,Cuadros!$B$49:$D$54,3,1))-E32,F25-E33) -> 0 | M24: Información DD JJ: Utilidad Neta | S24: Bonos | U24: 0 | V24: =U24*0.85 -> 0 | W24: Ing. Utilidades | X24: =IFERROR(+(Y24*Y23)/12,) -> 0 | Y24: =IF(OR(U31="",U31=0),V25*(1-VLOOKUP(V25,Cuadros!$B$49:$D$54,3,1))-U32,V25-U33) -> 0
C25: Total | E25: =SUM(E21:E24) -> 0 | F25: =SUM(F21:F24) -> 0 | G25: =IF(E17="si",IF(E35<7000,"Para utilidades: el ingreso neto deberá ser mayor a S/ 7,000",""),"") ->  | M25: Año | N25: UN Anual | O25: UN Mensual | S25: Total | U25: =SUM(U21:U24) -> 0 | V25: =SUM(V21:V24) -> 0 | AC25: Con RT
C26: * Aplica solo para Comisiones y Horas Extras (85%) | G26: =IF(E17="si",IF(OR(Principal!C14="verde claro",Principal!C14="verde",Principal!C14="amarillo"),"","Para utilidades: solo colores de riesgo Verde Claro, Verde y Amarillo"),"") ->  | M26: =YEAR(TODAY())-2 -> 2023 | N26: 0 | O26: =IF(I2="ahorro casa","",N26/12) -> 0 | P26: =IF(O10="Reg. General",IFERROR((N26/N22),""),"") ->  | S26: * Aplica solo para Comisiones y Horas Extras (85%) | AC26: Sin RT
M27: =YEAR(TODAY())-1 -> 2024 | N27: 0 | O27: =+N27/12 -> 0 | P27: =IF(OR(O10="RUS",O10="Reg. Especial"),"",IFERROR((N27/N23),"")) -> 
C28: Descuentos | E28: Monto | S28: Descuentos | U28: Monto | AC28: Con EPS
C29: Renta 5ta. | E29: =IF(D29="",0,DL_tit!F22) -> 0 | H29: Ley | I29: Boleta | J29: Var. | M29: Información de Ventas Mensual | S29: Renta 5ta. | U29: =IF(T29="",0,DL_tit!V22) -> 0 | X29: Ley | Y29: Boleta | Z29: Var. | AC29: Sin EPS
E30: =IFERROR(SUM(H30:H32),) -> 0 | G30: APORTE OBLIGATORIO | H30: =IFERROR(DL_tit!$F$24,) -> 0 | J30: =IFERROR(I30/H30-1,) -> 0 | M30: Mes | N30: Venta Mensual | U30: =IFERROR(SUM(X30:X32),) -> 0 | W30: APORTE OBLIGATORIO | X30: =IFERROR(DL_tit!F48,) -> 0 | Z30: =IFERROR(Y30/X30-1,) -> 0
C31: Según Boleta | E31: 0 | G31: SEGURO INVALIDEZ | H31: =IFERROR(DL_tit!F25,) -> 0 | J31: =IFERROR(I31/H31-1,) -> 0 | M31: =DATE(YEAR(TODAY()),MONTH(TODAY())-6,1) -> 2024-10-01 | N31: 0 | S31: Según Boleta | U31: 0 | W31: SEGURO INVALIDEZ | X31: =IFERROR(DL_tit!F49,) -> 0 | Z31: =IFERROR(Y31/X31-1,) -> 0 | AC31: Con Metodizado IBK
C32: Otros Descuentos | E32: 0 | G32: COMISION | H32: =IFERROR(DL_tit!F26,) -> 0 | J32: =IFERROR(I32/H32-1,) -> 0 | M32: =DATE(YEAR(TODAY()),MONTH(TODAY())-5,1) -> 2024-11-01 | N32: 0 | S32: Otros Descuentos | U32: 0 | W32: COMISION | X32: =IFERROR(DL_tit!F50,) -> 0 | Z32: =IFERROR(Y32/X32-1,) -> 0 | AC32: Sin Metodizado IBK
C33: Descuento | E33: =IF(SUM(E29:E31)=0,E25-E35,IF(E31>0,E31+E32,IF(AND(SUM(E22:E24)=0,E30=0),E31,E29+E30+E32))) -> -8992 | M33: =DATE(YEAR(TODAY()),MONTH(TODAY())-4,1) -> 2024-12-01 | N33: 0 | S33: Descuento | U33: =IF(SUM(U29:U31)=0,U25-U35,IF(U31>0,U31+U32,IF(AND(SUM(U22:U24)=0,U30=0),U31,U29+U30+U32))) -> 0
G34: Para registrar en el Power Apps | M34: =DATE(YEAR(TODAY()),MONTH(TODAY())-3,1) -> 2025-01-01 | N34: 0 | W34: Para registrar en el Power Apps | AC34: AFP HABITAT
C35: Ingreso Neto | D35: =IF(E17="Si",E36,E35) -> 8992 | E35: 8992 | G35: =IF(G4="ahorro casa","YN Formal","YN Principal") -> YN Principal | H35: =IF(G4="ahorro casa",D8-H36,IFERROR(E35*F21/F25,0)) -> 0 | M35: =DATE(YEAR(TODAY()),MONTH(TODAY())-2,1) -> 2025-02-01 | N35: 0 | S35: Ingreso Neto | T35: =IF(U17="Si",U36,U35) -> 0 | U35: =IF(U31=0, IF(OR(T29="", S30=""), V25-DL_tit!Q47-U32, V25-U29-U30 ), V25-U31-U32 ) -> 0 | W35: YN Principal | X35: =IFERROR(U35*V21/V25,0) -> 0 | AC35: AFP INTEGRA
C36: Ing Neto c/utilidades | E36: =IFERROR(E35+H24,E35) -> 8992 | G36: =IF(G4="ahorro casa","YN Informal","Ingreso Extraordinario") -> Ingreso Extraordinario | H36: =IF(G4="ahorro casa",D8*H8,IFERROR(((E35*SUM(F22:F24)/F25)+H24),0)) -> 0 | M36: =DATE(YEAR(TODAY()),MONTH(TODAY())-1,1) -> 2025-03-01 | N36: 0 | S36: Ing Neto c/utilidades | U36: =IFERROR(U35+X24,U35) -> 0 | W36: Ingreso Extraordinario | X36: =IFERROR(((U35*SUM(V22:V24)/V25)+X24),0) -> 0 | AC36: AFP PRIMA
M37: Promedio Mensual | N37: =IF(AVERAGE(N31:N33)=0,AVERAGE(N34:N36),AVERAGE(N31:N36)) -> 0 | AC37: AFP PROFUTURO
AC38: ONP
C39: Ingresos independiente | M39: Venta Prom Mens | N39: =(IF(O10=AC16,AVERAGE(O22,O23,N37),IF(O10=AC19,AVERAGE(O23,N37),N37))) -> 0 | O39: =IFERROR((N39*N16*N17)*0.8,0) -> 0 | P39: neto scamp
E40: 1ra | F40: 2da | G40: 4ta | M40: Venta Informal Mens | N40: 0 | O40: =IF(N42<=15%,N41*N16*N17,((N39+(N40*0.8))*N16*N17)) -> 0 | P40: neto ccamp
C41: RUC | M41: Total venta evaluada | N41: =N39+N40 -> 0
C42: Tipo de Actividad | M42: % de informalidad | N42: =IF(AND(N40<>0,N39<>0),N40/N39,0) -> 0 | O42: Para campaña
C43: Fecha de inicio | E43: =DATE(YEAR(TODAY())-1, 1, 1) -> 2024-01-01 | M43: Ingreso Neto | N43: =IF(N18="si",O40,O39) -> 0 | O43: =N41*N16*N17 -> 0
D45: Alquileres | F45: 2da | G45: Prof. Independiente
C46: Ingreso Mensual | D46: Vivienda | E46: =IF(OR(E42="Vivienda",E42="")," ","Local Comercial") ->  | M46: Metodizado
C47: =DATE(YEAR(TODAY()),MONTH(TODAY())-3,1) -> 2025-01-01 | O47: TC
C48: =DATE(YEAR(TODAY()),MONTH(TODAY())-2,1) -> 2025-02-01 | O48: Participación
C49: =DATE(YEAR(TODAY()),MONTH(TODAY())-1,1) -> 2025-03-01
C50: Promedio Mensual | D50: =IFERROR(AVERAGE(D47:D49),) -> 0 | E50: =IFERROR(AVERAGE(E47:E49),) -> 0 | F50: =IFERROR((SUM(F47:F49)/12),) -> 0 | G50: =IFERROR(AVERAGE(G47:G49),) -> 0 | M50: Año | N50: =+O50-1 -> 2023 | O50: =+P50-1 -> 2024 | P50: =YEAR(TODAY()) -> 2025
D51: =E59*E51*0.15 -> 0 | E51: =IF(D50=0,0,D50/(E50+D50)) -> 0 | M51: Periodos | N51: 12 | O51: 12 | P51: =MONTH(TODAY())-1 -> 3
D52: =YEAR(TODAY())-1 -> 2024 | M52: Resultado del ejercicio
C53: =CONCATENATE("Ingreso Anual del ",D52) -> Ingreso Anual del 2024 | M53: Mensual | N53: =N52*1000*$P$47*$P$48/N51 -> 0 | O53: =O52*1000*$P$47*$P$48/O51 -> 0 | P53: =IFERROR(P52*1000*$P$47*$P$48/P51,0) -> 0
C54: =CONCATENATE("Ingreso Mensual del ",D52) -> Ingreso Mensual del 2024 | E54: =E53/12 -> 0 | F54: =F53/12 -> 0 | G54: =G53/12 -> 0
C56: =CONCATENATE("Ingreso Anual del ",D52-1) -> Ingreso Anual del 2023 | M56: Promedio Mensual | N56: =AVERAGE(N53:P53) -> 0
C57: =CONCATENATE("Ingreso Mensual del ",D52-1) -> Ingreso Mensual del 2023 | F57: =F56/12 -> 0
M58: Ingreso Neto | N58: =N56*0.85 -> 0
C59: Ingreso Promedio Mensual | E59: =(IF(E39=AC25,AVERAGE(E54,E50+D50),E50+D50)) -> 0 | F59: =IF(F39=AC25,AVERAGE(F54,F50),F50) -> 0 | G59: =IF(G39=AC25,AVERAGE(G54,G50),G50) -> 0
E61: 1ra | F61: 2da | G61: 4ta
C62: Ingreso Neto | E62: =IF(E42="",0,(E59-D51)*0.95) -> 0 | F62: =F59*(1-0.05)*(1-0.3) -> 0 | G62: =(IF(G39=AC25,(G59*(1-0.08)),IF(G59>2807.33,(G59*(1-0.08)),(G59)))) -> 0

Sheet DL_tit (hidden)
B4: Usuario: Tom Davye Agurto Alban
B5: CÁLCULO DE RENTA BRUTA ANUAL
B6: Bruto total mensual | C6: =+C22+C23 -> 0 | L6: SI
B7: REMUNERACION 12 MESES | C7: =(C6)*12 -> 0 | L7: NO
B8: GRATIF JULIO/DICIEMBRE | C8: =(C6)*2 -> 0
B9: BONIF EXT TEMPORAL | C9: =IF(C24="SI",C8*0.0675,C8*0.09) -> 0
B10: GRATIF EXTRAORDINARIA (casos como BBVA)
B11: OTROS INGRESOS
B12: RENTA BRUTA ANUAL | C12: =SUM(C7:C11) -> 0 | E12: CÁLCULO RANGOS 5TA | N12: CÁLCULO AFP
B13: DEDUCCION | C13: =7*$C$25 -> 36050 | E13: APLICABLE | F13: DESDE | G13: HASTA | H13: TASA | I13: IMPUESTO | J13: EXCEDENTE | N13: REGIMEN PENSION | O13: COMISION | P13: PRIMA DE SEGURO | Q13: APORTE OBLIGATORIO
B14: APLICABLE | C14: =IF(C12-C13>0,C12-C13,0) -> 0 | E14: =IF(C14>0,C14,0) -> 0 | F14: 0 | G14: =5*C25 -> 25750 | H14: 0.08 | I14: =IF(J14>0,G14*H14,E14*H14) -> 0 | J14: =IF(E14-G14>0,E14-G14,0) -> 0 | N14: AFP HABITAT | O14: =(1.47)% -> 0.0147 | P14: 0.0137 | Q14: 0.1
B15: IMPUESTO ANUAL PROYECTADO | C15: =SUM(I14:I18) -> 0 | E15: =IF(J14>0,J14,0) -> 0 | F15: =+G14 -> 25750 | G15: =20*C25 -> 103000 | H15: 0.14 | I15: =IF(J15>0,G15*H15,E15*H15) -> 0 | J15: =IF(E15-G15>0,E15-G15,0) -> 0 | N15: AFP INTEGRA | O15: =(1.55)% -> 0.0155 | P15: 0.0137 | Q15: 0.1
E16: =IF(J15>0,J15,0) -> 0 | F16: =+G15 -> 103000 | G16: =35*C25 -> 180250 | H16: 0.17 | I16: =IF(J16>0,G16*H16,E16*H16) -> 0 | J16: =IF(E16-G16>0,E16-G16,0) -> 0 | N16: AFP PRIMA | O16: 0.016 | P16: 0.0137 | Q16: 0.1
E17: =IF(J16>0,J16,0) -> 0 | F17: =+G16 -> 180250 | G17: =45*C25 -> 231750 | H17: 0.2 | I17: =IF(J17>0,G17*H17,E17*H17) -> 0 | J17: =IF(E17-G17>0,E17-G17,0) -> 0 | N17: AFP PROFUTURO | O17: 0.0169 | P17: 0.0137 | Q17: 0.1
E18: =IF(J17>0,J17,0) -> 0 | F18: =+G17 -> 231750 | H18: 0.3 | I18: =IF(J18>0,E18*H18,0) -> 0 | J18: =IF(E18-G18>0,E18-G18,0) -> 0 | N18: ONP | Q18: 0.13
N20: Tabla 1.3. Factores de descuentos de Ley, según Rangos de Ingreso Bruto
E21: A VALIDAR | N21: 0 | O21: 0.13 | P21: =MATCH(Ingreso_Titular!F25,N21:N26,1) -> 1
B22: Ingreso bruto fijo | C22: =Ingreso_Titular!E21 -> 0 | E22: 5TA CATEGORIA | F22: =IF(C15/12>0,C15/12,0) -> 0 | N22: 1901 | O22: 0.15 | P22: =INDEX(N21:O26,P21,2) -> 0.13
B23: Ingreso bruto variable | C23: =SUM(Ingreso_Titular!E22:E24) -> 0 | E23: REGIMEN PENSION | F23: =Ingreso_Titular!C30 -> 0 | N23: 3301 | O23: 0.2 | P23: DL | Q23: =Ingreso_Titular!F25*P22 -> 0
B24: EPS | C24: =IF(Ingreso_Titular!$D$29="Con EPS","SI","NO") -> NO | E24: APORTE OBLIGATORIO | F24: =VLOOKUP(F23,N14:Q18,4,FALSE)*IF(C26=0,C22,C26) ->  | N24: 7401 | O24: 0.25
B25: UIT 2024 | C25: 5150 | E25: SEGURO INVALIDEZ | F25: =VLOOKUP(F23,N14:Q18,3,FALSE)*IF(C26=0,C22,C26) ->  | N25: 11401 | O25: 0.27
B26: Ingreso bruto del mes | E26: COMISION | F26: =VLOOKUP(F23,N14:Q18,2,FALSE)*IF(C26=0,C22,C26) ->  | N26: 14001 | O26: 0.3
B29: CÁLCULO DE RENTA BRUTA ANUAL
B30: Bruto total mensual | C30: =+C46+C47 -> 0 | L30: SI
B31: REMUNERACION 12 MESES | C31: =(C30)*12 -> 0 | L31: NO
B32: GRATIF JULIO/DICIEMBRE | C32: =(C30)*2 -> 0
B33: BONIF EXT TEMPORAL | C33: =IF(C48="SI",C32*0.0675,C32*0.09) -> 0
B34: GRATIF EXTRAORDINARIA (casos como BBVA)
B35: OTROS INGRESOS
B36: RENTA BRUTA ANUAL | C36: =SUM(C31:C35) -> 0 | E36: CÁLCULO RANGOS 5TA | N36: CÁLCULO AFP
B37: DEDUCCION | C37: =7*$C$49 -> 36050 | E37: APLICABLE | F37: DESDE | G37: HASTA | H37: TASA | I37: IMPUESTO | J37: EXCEDENTE | N37: REGIMEN PENSION | O37: COMISION | P37: PRIMA DE SEGURO | Q37: APORTE OBLIGATORIO
B38: APLICABLE | C38: =IF(C36-C37>0,C36-C37,0) -> 0 | E38: =IF(C38>0,C38,0) -> 0 | F38: 0 | G38: =5*C49 -> 25750 | H38: 0.08 | I38: =IF(J38>0,G38*H38,E38*H38) -> 0 | J38: =IF(E38-G38>0,E38-G38,0) -> 0 | N38: AFP HABITAT | O38: =(1.47)% -> 0.0147 | P38: 0.0137 | Q38: 0.1
B39: IMPUESTO ANUAL PROYECTADO | C39: =SUM(I38:I42) -> 0 | E39: =IF(J38>0,J38,0) -> 0 | F39: =+G38 -> 25750 | G39: =20*C49 -> 103000 | H39: 0.14 | I39: =IF(J39>0,G39*H39,E39*H39) -> 0 | J39: =IF(E39-G39>0,E39-G39,0) -> 0 | N39: AFP INTEGRA | O39: =(1.55)% -> 0.0155 | P39: 0.0137 | Q39: 0.1
E40: =IF(J39>0,J39,0) -> 0 | F40: =+G39 -> 103000 | G40: =35*C49 -> 180250 | H40: 0.17 | I40: =IF(J40>0,G40*H40,E40*H40) -> 0 | J40: =IF(E40-G40>0,E40-G40,0) -> 0 | N40: AFP PRIMA | O40: 0.016 | P40: 0.0137 | Q40: 0.1
E41: =IF(J40>0,J40,0) -> 0 | F41: =+G40 -> 180250 | G41: =45*C49 -> 231750 | H41: 0.2 | I41: =IF(J41>0,G41*H41,E41*H41) -> 0 | J41: =IF(E41-G41>0,E41-G41,0) -> 0 | N41: AFP PROFUTURO | O41: 0.0169 | P41: 0.0137 | Q41: 0.1
E42: =IF(J41>0,J41,0) -> 0 | F42: =+G41 -> 231750 | H42: 0.3 | I42: =IF(J42>0,E42*H42,0) -> 0 | J42: =IF(E42-G42>0,E42-G42,0) -> 0 | N42: ONP | Q42: 0.13
N44: Tabla 1.3. Factores de descuentos de Ley, según Rangos de Ingreso Bruto
E45: A VALIDAR | N45: 0 | O45: 0.13 | P45: =MATCH(Ingreso_Titular!V25,N45:N50,1) -> 1
B46: Ingreso bruto fijo | C46: =Ingreso_Titular!U21 -> 0 | E46: 5TA CATEGORIA | F46: =IF(C39/12>0,C39/12,0) -> 0 | N46: 1901 | O46: 0.15 | P46: =INDEX(N45:O50,P45,2) -> 0.13
B47: Ingreso bruto variable | C47: =SUM(Ingreso_Titular!U22:U24) -> 0 | E47: REGIMEN PENSION | F47: =Ingreso_Titular!S30 -> 0 | N47: 3301 | O47: 0.2 | P47: DL | Q47: =Ingreso_Titular!V25*P46 -> 0
B48: EPS | C48: =IF(Ingreso_Titular!$S$30="Con EPS","SI","NO") -> NO | E48: APORTE OBLIGATORIO | F48: =VLOOKUP(F47,N38:Q42,4,FALSE)*IF(C50=0,C46,C50) ->  | N48: 7401 | O48: 0.25
B49: UIT 2024 | C49: 5150 | E49: SEGURO INVALIDEZ | F49: =VLOOKUP(F47,N38:Q42,3,FALSE)*IF(C50=0,C46,C50) ->  | N49: 11401 | O49: 0.27
B50: Ingreso bruto del mes | E50: COMISION | F50: =VLOOKUP(F47,N38:Q42,2,FALSE)*IF(C50=0,C46,C50) ->  | N50: 14001 | O50: 0.3

Sheet Ingreso_Cony (hidden)
C1: =IF(Principal!C19<>"","Codeudor","Cónyuge") -> Cónyuge
C2: =CONCATENATE("Crédito Hipotecario - Formato de Cálculo de Ingreso Neto Mensual del ",C1) -> Crédito Hipotecario - Formato de Cálculo de Ingreso Neto Mensual del Cónyuge | O2: Fecha | P2: =TODAY() -> 2025-04-15
O3: TC US$ | P3: =Resolucion!C11 -> 3.85
C4: Cliente: | D4: =IF(Principal!C19<>"",Deudas!I10,Deudas!F10) -> 0 | G4: =Principal!E5 -> Tradicional | M4: Observaciones:
C5: DNI: | D5: =IF(Principal!C19<>"",Principal!C19,Principal!I8) -> 0 | G5: Depósito Ahorro Casa
C6: Tipo de Evaluación: | D6: =Principal!E5 -> Tradicional | G6: Ingreso Inferido | H6: =IF(G4="Ahorro casa",H5/0.4,"") -> 
G7: Ingreso Declaración Jurada
C8: Ingreso Neto | D8: =IFERROR( IF(D6="Ahorro Casa",MIN(H6,(D35+E62+F62+G62+N43+N58+T35+H7)),(D35+E62+F62+G62+N43+N58+T35)),0) -> 0 | G8: Informalidad | H8: =IFERROR(IF(1-((D35+E62+F62+G62+N43+N58+T35)/D8)>0,1-((D35+E62+F62+G62+N43+N58+T35)/D8),0),0) -> 0
C10: Renta de 5ta. Categoría | M10: Renta de 3era Categoría | O10: Reg. General | S10: Renta de 5ta. Categoría | AC10: Hipotecario
E11: Boleta | F11: Experian | G11: CTS en IBK | M11: Empresa | U11: Boleta | V11: Experian | W11: CTS en IBK | AC11: Mi vivienda
C12: Fecha de ingreso | G12: Ingreso bruto | M12: RUC | S12: Fecha de ingreso | W12: Ingreso bruto
C13: Empleador | G13: =IF(G12="Ingreso bruto","Último depósito CTS",IF(G12="Último depósito CTS","Ingreso bruto","")) -> Último depósito CTS | H13: =IF(G12="Ingreso bruto",E25*14/24,H12*24/14) -> 0 | M13: Fecha de Inicio | S13: Empleador | W13: =IF(W12="Ingreso bruto","Último depósito CTS",IF(W12="Último depósito CTS","Ingreso bruto","")) -> Último depósito CTS | X13: =IF(W12="Ingreso bruto",U25*14/24,X12*24/14) -> 0 | AC13: Normal
C14: RUC | G14: (correspondiente a 6 meses de trabajo) | M14: Giro del Negocio | S14: RUC | W14: (correspondiente a 6 meses de trabajo) | AC14: Ahorro Casa
C15: Antigüedad | E15: =IF(E12="","",DATEDIF(E12,TODAY(),"Y")&" años, "&DATEDIF(E12,TODAY(),"YM")&" meses") ->  | S15: Antigüedad | U15: =IF(U12="","",DATEDIF(U12,TODAY(),"Y")&" años, "&DATEDIF(U12,TODAY(),"YM")&" meses") -> 
C16: Mes referencia - ult. boleta | M16: Margen Comercial | N16: =IFERROR(MIN(P26:P27),"") -> 0 | S16: Mes referencia - ult. boleta | AC16: Reg. General
C17: Utilidades | M17: % Participación | N17: 0 | S17: Utilidades | AC17: Reg. Especial
C18: CTS IBK | S18: CTS IBK | AC18: RUS
AC19: Microempresario
C20: Ingreso Bruto | E20: Ing. Promedio | F20: Ing.Prom.Ajust * | G20: Año | H20: Uti. Bruta | I20: Nro. Veces | M20: Información DD JJ: Ventas | S20: Ingreso Bruto | U20: Ing. Promedio | V20: Ing.Prom.Ajust * | W20: Año | X20: Uti. Bruta | Y20: Nro. Veces
C21: Ingreso Fijo | E21: 0 | F21: =E21 -> 0 | G21: =YEAR(TODAY())-2 -> 2023 | H21: 0 | I21: =IFERROR(H21/$E$25,) -> 0 | M21: Año | N21: Ingreso Anual | O21: Ingreso Mensual | S21: Ingreso Fijo | U21: 0 | V21: =U21 -> 0 | W21: =YEAR(TODAY())-2 -> 2023 | X21: 0 | Y21: =IFERROR(X21/$E$25,) -> 0 | AC21: Local Comercial
C22: Comisión | E22: 0 | F22: =E22*0.85 -> 0 | G22: =YEAR(TODAY())-1 -> 2024 | H22: 0 | I22: =IFERROR(H22/$E$25,) -> 0 | M22: =YEAR(TODAY())-2 -> 2023 | N22: 0 | O22: =+N22/12 -> 0 | S22: Comisión | U22: 0 | V22: =U22*0.85 -> 0 | W22: =YEAR(TODAY())-1 -> 2024 | X22: 0 | Y22: =IFERROR(X22/$E$25,) -> 0 | AC22: Vivienda
C23: Horas Extras | E23: 0 | F23: =E23*0.85 -> 0 | G23: Variabilidad | H23: =IFERROR(ABS((H21/H22)-1), "0") -> 0 | I23: =IF(H23<=30%,IF(AVERAGE(I21,I22)>5,5,IF(AVERAGE(I21,I22)>=2,AVERAGE(I21,I22),0)),IF(OR(I21<2,I22<2),0,MIN(I21,I22))) -> 0 | M23: =YEAR(TODAY())-1 -> 2024 | N23: 0 | O23: =+N23/12 -> 0 | S23: Horas Extras | U23: 0 | V23: =U23*0.85 -> 0 | W23: Variabilidad | X23: =IFERROR(ABS((X21/X22)-1), "0") -> 0 | Y23: =IF(X23<=30%,IF(AVERAGE(Y21,Y22)>5,5,IF(AVERAGE(Y21,Y22)>=2,AVERAGE(Y21,Y22),0)),IF(OR(Y21<2,Y22<2),0,MIN(Y21,Y22))) -> 0 | AC23: Local Comercial + Vivienda
C24: Bonos | E24: 0 | F24: =E24*0.85 -> 0 | G24: Ing. Utilidades | H24: =IFERROR(+(I24*I23)/12,) -> 0 | I24: =IF(OR(E31="",E31=0),F25*(1-VLOOKUP(F25,Cuadros!$B$49:$D$54,3,1))-E32,F25-E33) -> 0 | M24: Información DD JJ: Utilidad Neta | S24: Bonos | U24: 0 | V24: =U24*0.85 -> 0 | W24: Ing. Utilidades | X24: =IFERROR(+(Y24*Y23)/12,) -> 0 | Y24: =IF(OR(U31="",U31=0),V25*(1-VLOOKUP(V25,Cuadros!$B$49:$D$54,3,1))-U32,V25-U33) -> 0
C25: Total | E25: =SUM(E21:E24) -> 0 | F25: =SUM(F21:F24) -> 0 | G25: =IF(E17="si",IF(E35<7000,"Para utilidades: el ingreso neto deberá ser mayor a S/ 7,000",""),"") ->  | M25: Año | N25: UN Anual | O25: UN Mensual | S25: Total | U25: =SUM(U21:U24) -> 0 | V25: =SUM(V21:V24) -> 0 | AC25: Con RT
C26: * Aplica solo para Comisiones y Horas Extras (85%) | G26: =IF(E17="si",IF(OR(Principal!C14="verde claro",Principal!C14="verde",Principal!C14="amarillo"),"","Para utilidades: solo colores de riesgo Verde Claro, Verde y Amarillo"),"") ->  | M26: =YEAR(TODAY())-2 -> 2023 | N26: 0 | O26: =IF(I2="ahorro casa","",N26/12) -> 0 | P26: =IF(O10="Reg. General",IFERROR((N26/N22),""),"") ->  | S26: * Aplica solo para Comisiones y Horas Extras (85%) | AC26: Sin RT
M27: =YEAR(TODAY())-1 -> 2024 | N27: 0 | O27: =+N27/12 -> 0 | P27: =IF(OR(O10="RUS",O10="Reg. Especial"),"",IFERROR((N27/N23),"")) -> 
C28: Descuentos | E28: Monto | S28: Descuentos | U28: Monto | AC28: Con EPS
C29: Renta 5ta. | E29: =IF(D29="",0,DL_Cony!F22) -> 0 | H29: Ley | I29: Boleta | J29: Var. | M29: Información de Ventas Mensual | S29: Renta 5ta. | X29: Ley | Y29: Boleta | Z29: Var. | AC29: Sin EPS
E30: =IFERROR(SUM(DL_Cony!F24:F26),) -> 0 | G30: APORTE OBLIGATORIO | H30: =DL_Cony!F24 ->  | I30: 1000 | J30: =IFERROR(I30/H30-1,) -> 0 | M30: Mes | N30: Venta Mensual | U30: =SUM(Y30:Y32) -> 0 | W30: APORTE OBLIGATORIO | X30: =DL_Cony!F48 ->  | Z30: =IFERROR(Y30/X30-1,) -> 0
C31: Según Boleta | E31: 0 | G31: SEGURO INVALIDEZ | H31: =DL_Cony!F25 ->  | I31: 120 | J31: =IFERROR(I31/H31-1,) -> 0 | M31: =DATE(YEAR(TODAY()),MONTH(TODAY())-6,1) -> 2024-10-01 | N31: 0 | S31: Según Boleta | U31: 0 | W31: SEGURO INVALIDEZ | X31: =DL_Cony!F49 ->  | Z31: =IFERROR(Y31/X31-1,) -> 0 | AC31: Con Metodizado IBK
C32: Otros Descuentos | E32: 0 | G32: COMISION | H32: =DL_Cony!F26 ->  | I32: 160 | J32: =IFERROR(I32/H32-1,) -> 0 | M32: =DATE(YEAR(TODAY()),MONTH(TODAY())-5,1) -> 2024-11-01 | N32: 0 | S32: Otros Descuentos | U32: 0 | W32: COMISION | X32: =DL_Cony!F50 ->  | Z32: =IFERROR(Y32/X32-1,) -> 0 | AC32: Sin Metodizado IBK
C33: Descuento | E33: =IF(SUM(E29:E31)=0,E25-E35,IF(E31>0,E31+E32,IF(AND(SUM(E22:E24)=0,E30=0),E31,E29+E30+E32))) -> 0 | M33: =DATE(YEAR(TODAY()),MONTH(TODAY())-4,1) -> 2024-12-01 | N33: 0 | S33: Descuento | U33: =IF(SUM(U29:U31)=0,U25-U35,IF(U31>0,U31+U32,IF(AND(SUM(U22:U24)=0,U30=0),U31,U29+U30+U32))) -> 0
G34: Para registrar en el Power Apps | M34: =DATE(YEAR(TODAY()),MONTH(TODAY())-3,1) -> 2025-01-01 | N34: 0 | W34: Para registrar en el Power Apps | AC34: AFP HABITAT
C35: Ingreso Neto | D35: =IF(E17="Si",E36,E35) -> 0 | E35: =IF(E31=0, IF(OR(D29="", C30=""), F25-DL_Cony!Q23-E32, F25-E29-E30 ), F25-E31-E32 ) -> 0 | G35: YN Principal | H35: =IFERROR(E35*F21/F25,0) -> 0 | M35: =DATE(YEAR(TODAY()),MONTH(TODAY())-2,1) -> 2025-02-01 | N35: 0 | S35: Ingreso Neto | T35: =IF(U17="Si",U36,U35) -> 0 | U35: =IF(U31=0, IF(OR(T29="", S30=""), V25-DL_Cony!Q47-U32, V25-U29-U30 ), V25-U31-U32 ) -> 0 | W35: YN Principal | X35: =IFERROR(U35*V21/V25,0) -> 0 | AC35: AFP INTEGRA
C36: Ing Neto c/utilidades | E36: =IFERROR(E35+H24,E35) -> 0 | G36: Ingreso Extraordinario | H36: =IFERROR(((E35*SUM(F22:F24)/F25)+H24),0) -> 0 | M36: =DATE(YEAR(TODAY()),MONTH(TODAY())-1,1) -> 2025-03-01 | N36: 0 | S36: Ing Neto c/utilidades | U36: =IFERROR(U35+X24,U35) -> 0 | W36: Ingreso Extraordinario | X36: =IFERROR(((U35*SUM(V22:V24)/V25)+X24),0) -> 0 | AC36: AFP PRIMA
M37: Promedio Mensual | N37: =IF(AVERAGE(N31:N33)=0,AVERAGE(N34:N36),AVERAGE(N31:N36)) -> 0 | AC37: AFP PROFUTURO
AC38: ONP
C39: Ingresos independiente | M39: Venta Prom Mens | N39: =(IF(O10=AC16,AVERAGE(O22,O23,N37),IF(O10=AC19,AVERAGE(O23,N37),N37))) -> 0 | O39: =IFERROR((N39*N16*N17)*0.8,0) -> 0
E40: 1ra | F40: 2da | G40: 4ta | M40: Venta Informal Mens | N40: 0 | O40: =IF(N42<=15%,N41*N16*N17,((N39+(N40*0.8))*N16*N17)) -> 0
C41: RUC | M41: Total venta evaluada | N41: =N39+N40 -> 0
C42: Tipo de Actividad | M42: % de informalidad | N42: =IF(AND(N40<>0,N39<>0),N40/N39,0) -> 0 | O42: Con Factor Ajuste
C43: Fecha de inicio | E43: =DATE(YEAR(TODAY())-1, 1, 1) -> 2024-01-01 | M43: Ingreso Neto | N43: =IF(N18="si",O40,O39) -> 0 | O43: =N41*N16*N17 -> 0
D45: Alquileres | F45: 2da | G45: Prof. Independiente
C46: Ingreso Mensual | D46: Vivienda | E46: =IF(OR(E42="Vivienda",E42="")," ","Local Comercial") ->  | M46: Metodizado
C47: =DATE(YEAR(TODAY()),MONTH(TODAY())-3,1) -> 2025-01-01 | O47: TC
C48: =DATE(YEAR(TODAY()),MONTH(TODAY())-2,1) -> 2025-02-01 | O48: Participación
C49: =DATE(YEAR(TODAY()),MONTH(TODAY())-1,1) -> 2025-03-01
C50: Promedio Mensual | D50: =IFERROR(AVERAGE(D47:D49),) -> 0 | E50: =IFERROR(AVERAGE(E47:E49),) -> 0 | F50: =IFERROR((SUM(F47:F49)/12),) -> 0 | G50: =IFERROR(AVERAGE(G47:G49),) -> 0 | M50: Año | N50: =+O50-1 -> 2023 | O50: =+P50-1 -> 2024 | P50: =YEAR(TODAY()) -> 2025
D51: =E59*E51*0.15 -> 0 | E51: =IF(D50=0,0,D50/(E50+D50)) -> 0 | M51: Periodos | N51: 12 | O51: 12 | P51: =MONTH(TODAY())-1 -> 3
D52: =YEAR(TODAY())-1 -> 2024 | M52: Resultado del ejercicio
C53: =CONCATENATE("Ingreso Anual del ",D52) -> Ingreso Anual del 2024 | M53: Mensual | N53: =N52*1000*$P$47*$P$48/N51 -> 0 | O53: =O52*1000*$P$47*$P$48/O51 -> 0 | P53: =IFERROR(P52*1000*$P$47*$P$48/P51,0) -> 0
C54: =CONCATENATE("Ingreso Mensual del ",D52) -> Ingreso Mensual del 2024 | E54: =E53/12 -> 0 | F54: =F53/12 -> 0 | G54: =G53/12 -> 0
C56: =CONCATENATE("Ingreso Anual del ",D52-1) -> Ingreso Anual del 2023 | M56: Promedio Mensual | N56: =AVERAGE(N53:P53) -> 0
C57: =CONCATENATE("Ingreso Mensual del ",D52-1) -> Ingreso Mensual del 2023 | F57: =F56/12 -> 0
M58: Ingreso Neto | N58: =N56*0.85 -> 0
C59: Ingreso Promedio Mensual | E59: =(IF(E39=AC25,AVERAGE(E54,E50+D50),E50+D50)) -> 0 | F59: =IF(F39=AC25,AVERAGE(F54,F50),F50) -> 0 | G59: =IF(G39=AC25,AVERAGE(G54,G50),G50) -> 0
E61: 1ra | F61: 2da | G61: 4ta
C62: Ingreso Neto | E62: =IF(E42="",0,(E59-D51)*0.95) -> 0 | F62: =F59*(1-0.05)*(1-0.3) -> 0 | G62: =(IF(G39=AC25,(G59*(1-0.08)),IF(G59>2807.33,(G59*(1-0.08)),(G59)))) -> 0

Sheet Ing_Titular (hidden)
C2: Crédito Hipotecario - Formato de Cálculo de Ingreso Neto Mensual del Titular | N2: Fecha | O2: =TODAY() -> 2025-04-15
J3: Tipo de Evaluación
B4: Usuario: Augusto Samillan Pisfil | C4: Cliente Titular: | N4: TC US$ | O4: =HIPO!J25 -> 3.85
C5: DNI | D5: =+#REF! -> 
R6: Hipotecario
K7: Observaciones | R7: Mi vivienda
F8: Ahorro Casa
B9: Ingreso Neto S/. | D9: =IF(J5="ahorro casa",MIN(I10,(D32+D56+I32+I56+N45+N50)),(+D32+D56+I32+I56+N45)) -> 0 | F9: Depósito Ahorro Casa S/. | I9: 0 | R9: Normal
B10: =IF(AND(J4="Mi Vivienda",J5="Ahorro Casa"),"Mínimo entre el ingreso inferido y los ingresos netos por las rentas y DDJJ","") ->  | F10: Ingreso Inferido S/. | I10: =IF(J5="Ahorro casa",IF(J4="Hipotecario",I9/0.4,IF(J5="Ahorro casa",IF(J4="Mi vivienda",I9/0.4,"")))) -> FALSE | R10: Ahorro Casa
C11: Moneda Nacional S/.
C12: Renta de 1era. Categoría | E12: Con DD JJ | H12: Renta de 4ta. Categoría | J12: Con DD JJ | M12: Renta de 3era Categoría | O12: Reg. General | R12: Con DD JJ | X12: =IF(O12="Reg. General","","Esta Renta es Referencial pues dependerá de la Evaluación de Riesgos con sus Analistas de Campo") -> 
C13: RUC | H13: RUC | M13: Empresa | R13: Sin DD JJ
C14: Tipo de Actividad | H14: Tipo de Actividad | M14: RUC
C15: Fecha de Inicio | H15: Fecha de Inicio | M15: Fecha de Inicio | R15: Reg. General
M16: Giro del Negocio | R16: Reg. Especial
C17: Año | D17: Ingreso Anual | E17: Ingreso Mensual | H17: Año | I17: Ingreso Anual | J17: Ingreso Mensual | R17: RUS
C18: =YEAR(TODAY())-1 -> 2024 | D18: 0 | E18: =+D18/12 -> 0 | H18: =YEAR(TODAY())-1 -> 2024 | I18: 0 | J18: =+I18/12 -> 0 | M18: Margen Comercial | N18: =IFERROR(MIN(P28:P29),"") -> 0 | R18: Microempresario
M19: % Participación | N19: 0
C20: Mes | D20: Ingreso Mensual | H20: Mes | I20: Ingreso Mensual
C21: =DATE(YEAR(TODAY()),MONTH(TODAY())-3,1) -> 2025-01-01 | D21: 0 | H21: =DATE(YEAR(TODAY()),MONTH(TODAY())-3,1) -> 2025-01-01 | I21: 0
C22: =DATE(YEAR(TODAY()),MONTH(TODAY())-2,1) -> 2025-02-01 | D22: 0 | H22: =DATE(YEAR(TODAY()),MONTH(TODAY())-2,1) -> 2025-02-01 | I22: 0 | M22: Información DD JJ: Ventas
C23: =DATE(YEAR(TODAY()),MONTH(TODAY())-1,1) -> 2025-03-01 | D23: 0 | H23: =DATE(YEAR(TODAY()),MONTH(TODAY())-1,1) -> 2025-03-01 | I23: 0 | M23: Año | N23: Ingreso Anual | O23: Ingreso Mensual
C24: Promedio Mensual | D24: =(AVERAGE(D21:D23)) -> 0 | H24: Promedio Mensual | I24: =(AVERAGE(I21:I23)) -> 0 | M24: =YEAR(TODAY())-2 -> 2023 | N24: 0 | O24: =IF(J5="ahorro casa","",N24/12) -> 0
M25: =YEAR(TODAY())-1 -> 2024 | N25: 0 | O25: =+N25/12 -> 0
C26: Ingreso Prom Mens | D26: =(IF(E12=R12,AVERAGE(E18,D24),D24)) -> 0 | H26: Ingreso Prom Mens | I26: =(IF(J12=R12,AVERAGE(J18,I24),I24)) -> 0 | M26: Información DD JJ: Utilidad Neta
M27: Año | N27: UN Anual | O27: UN Mensual
C28: INM= Ingreso Promedio Mensual *(1-DL)*(1-FRDG) | H28: INM= Ingreso Promedio Mensual *(1-DL)*(1-FAVI) | M28: =YEAR(TODAY())-2 -> 2023 | N28: 0 | O28: =IF(J9="ahorro casa","",N28/12) -> 0 | P28: =IF(O12="Reg. General",IFERROR((N28/N24),""),"") -> 
C29: DL= Descuento de Ley (5%) | H29: DL= Descuento de Ley (8%) | M29: =YEAR(TODAY())-1 -> 2024 | N29: 0 | O29: =+N29/12 -> 0 | P29: =IF(OR(O12="RUS",O12="Reg. Especial"),"",IFERROR((N29/N25),"")) -> 
M31: Información de Ventas Mensual
C32: Ingreso Neto | D32: =(D26*(1-0.05)) -> 0 | H32: Ingreso Neto | I32: =(IF(J12=R12,(I26*(1-0.08)),IF(I26>2807.33,(I26*(1-0.08)),(I26)))) -> 0 | M32: Mes | N32: Venta Mensual
M33: =DATE(YEAR(TODAY()),MONTH(TODAY())-6,1) -> 2024-10-01 | N33: 0
E34: Con DD JJ | M34: =DATE(YEAR(TODAY()),MONTH(TODAY())-5,1) -> 2024-11-01 | N34: 0
C35: Renta de 2da Categoría | H35: Renta de 5ta. Categoría | M35: =DATE(YEAR(TODAY()),MONTH(TODAY())-4,1) -> 2024-12-01 | N35: 0
C36: RUC | H36: Empleador | M36: =DATE(YEAR(TODAY()),MONTH(TODAY())-3,1) -> 2025-01-01 | N36: 0
C37: Tipo de Actividad | H37: Fecha de Ingreso | M37: =DATE(YEAR(TODAY()),MONTH(TODAY())-2,1) -> 2025-02-01 | N37: 0
C38: Fecha de Inicio | M38: =DATE(YEAR(TODAY()),MONTH(TODAY())-1,1) -> 2025-03-01 | N38: 0
H39: Ingreso Bruto | I39: Ingr. Promedio | J39: Ing.Prom.Ajust * | M39: Promedio Mensual | N39: =IF(AVERAGE(N33:N35)=0,AVERAGE(N36:N38),AVERAGE(N33:N38)) -> 0
C40: Año | D40: Ingreso Anual | E40: Ingreso Mensual | H40: Ingreso Fijo | I40: 0 | J40: =I40 -> 0
C41: =YEAR(TODAY())-2 -> 2023 | D41: 0 | E41: =IF(J5="ahorro casa","",D41/12) -> 0 | H41: Comisión | I41: 0 | J41: =+I41*0.85 -> 0 | M41: Venta Prom Mens | N41: =(IF(O12=R15,AVERAGE(O24,O25,N39),IF(O12=R18,AVERAGE(O25,N39),N39))) -> 0
C42: =YEAR(TODAY())-1 -> 2024 | D42: 0 | E42: =+D42/12 -> 0 | H42: Horas Extras | I42: 0 | J42: =+I42*0.85 -> 0
H43: Bonos | I43: 0 | J43: =I43*0.85 -> 0 | M43: INM= Venta Promedio Mensual * MC * % Participación Acc.
C44: Mes | D44: Ingreso Mensual | H44: Total | I44: =SUM(I40:I43) -> 0 | J44: =SUM(J40:J43) -> 0
C45: =DATE(YEAR(TODAY()),MONTH(TODAY())-3,1) -> 2025-01-01 | D45: 0 | H45: * Aplica solo para Comisiones y Horas Extras (85%) | M45: Ingreso Neto | N45: =IFERROR((N41*N18*N19)*0.8,0) -> 0
C46: =DATE(YEAR(TODAY()),MONTH(TODAY())-2,1) -> 2025-02-01 | D46: 0
C47: =DATE(YEAR(TODAY()),MONTH(TODAY())-1,1) -> 2025-03-01 | D47: 0 | H47: Descuentos | I47: Monto
C48: Promedio Mensual | D48: =IFERROR(AVERAGE(D45:D47),0) -> 0 | H48: Descuentos Ley * | I48: =IF(SUM(I41:I43)=0,0,VLOOKUP(J44,Cuadros!$B$49:$D$54,3,1)*J44) -> 0 | M48: Declaración Jurada de Ingresos - Ahorro Casa
H49: Según Boleta | I49: 0
C50: Ingreso Prom Mens | D50: =(IF(E34=R12,AVERAGE(E41,E42,D48),D48)) -> 0 | H50: Otros Descuentos | I50: 0 | M50: Ingreso Neto | N50: 1000
H51: Descuento | I51: =(IF(SUM(I41:I43)=0,I49,I48+I50)) -> 0
C52: INM= Ingreso Promedio Mensual *(1-DL)*(1-FRDG) | H52: * Estimación de Dctos de Ley en caso presente Comisiones y HE
C53: DL= Descuento de Ley (5%) | H53: Factor DL según Manual de Sobreendeudameinto RBP
C54: FRDG: Factor de rentabilidad después de gastos (30%) | H54: INM= Ingreso Promedio Ajustado - Descuentos
C56: Ingreso Neto | D56: =D50*(1-0.05)*(1-0.3) -> 0 | H56: Ingreso Neto | I56: =IF(OR(I49="",I49=0),J44*(1-VLOOKUP(J44,Cuadros!$B$49:$D$54,3,1))-I50,J44-I51) -> 0 | M56: Firma y Sello del Analista

Sheet Ing_Cónyuge (hidden)
C2: Crédito Hipotecario - Formato de Cálculo de Ingreso Neto Mensual del Cónyuge | N2: Fecha | O2: =HIPO!C3 -> 2025-04-15
J3: Tipo de Evaluación
B4: Usuario: Augusto Samillan Pisfil | C4: Cliente Cónyuge: | J4: Hipotecario | N4: TC US$ | O4: =HIPO!J25 -> 3.85
C5: DNI | D5: =+#REF! ->  | J5: Normal
R6: Hipotecario
K7: Observaciones | R7: Mi vivienda
F8: Ahorro Casa
B9: Ingreso Neto S/. | D9: =IF(J5="ahorro casa",MIN(I10,(D32+D56+I32+I56+N45+N50)),(+D32+D56+I32+I56+N45)) -> 0 | F9: Depósito Ahorro Casa S/. | I9: 3000 | R9: Normal
B10: =IF(AND(J4="Mi Vivienda",J5="Ahorro Casa"),"Mínimo entre el ingreso inferido y los ingresos netos por las rentas y DDJJ","") ->  | F10: Ingreso Inferido S/. | I10: =IF(J5="Ahorro casa",IF(J4="Hipotecario",I9/0.3,IF(J5="Ahorro casa",IF(J4="Mi vivienda",I9/0.4,"")))) -> FALSE | R10: Ahorro Casa
C11: Moneda Nacional S/.
C12: Renta de 1era. Categoría | E12: Con DD JJ | H12: Renta de 4ta. Categoría | J12: Con DD JJ | M12: Renta de 3era Categoría | O12: Reg. General | R12: Con DD JJ | X12: =IF(O12="Reg. General","","Esta Renta es Referencial pues dependerá de la Evaluación de Riesgos con sus Analistas de Campo") -> 
C13: RUC | H13: RUC | M13: Empresa | R13: Sin DD JJ
C14: Tipo de Actividad | H14: Tipo de Actividad | M14: RUC
C15: Fecha de Inicio | H15: Fecha de Inicio | M15: Fecha de Inicio | R15: Reg. General
M16: Giro del Negocio | R16: Reg. Especial
C17: Año | D17: Ingreso Anual | E17: Ingreso Mensual | H17: Año | I17: Ingreso Anual | J17: Ingreso Mensual | R17: RUS
C18: =YEAR(TODAY())-1 -> 2024 | D18: 0 | E18: =+D18/12 -> 0 | H18: =YEAR(TODAY())-1 -> 2024 | I18: 0 | J18: =+I18/12 -> 0 | M18: Margen Comercial | N18: =IFERROR(MIN(P28:P29),"") -> 0 | O18: =IF(OR(O12="Reg. Especial",O12="RUS"),"Ver hoja Cuadros","") ->  | R18: Microempresario
M19: % Participación | N19: 0
C20: Mes | D20: Ingreso Mensual | H20: Mes | I20: Ingreso Mensual
C21: =DATE(YEAR(TODAY()),MONTH(TODAY())-3,1) -> 2025-01-01 | D21: 0 | H21: =DATE(YEAR(TODAY()),MONTH(TODAY())-3,1) -> 2025-01-01 | I21: 0
C22: =DATE(YEAR(TODAY()),MONTH(TODAY())-2,1) -> 2025-02-01 | D22: 0 | H22: =DATE(YEAR(TODAY()),MONTH(TODAY())-2,1) -> 2025-02-01 | I22: 0 | M22: Información DD JJ: Ventas
C23: =DATE(YEAR(TODAY()),MONTH(TODAY())-1,1) -> 2025-03-01 | D23: 0 | H23: =DATE(YEAR(TODAY()),MONTH(TODAY())-1,1) -> 2025-03-01 | I23: 0 | M23: Año | N23: Ingreso Anual | O23: Ingreso Mensual
C24: Promedio Mensual | D24: =(AVERAGE(D21:D23)) -> 0 | H24: Promedio Mensual | I24: =(AVERAGE(I21:I23)) -> 0 | M24: =YEAR(TODAY())-2 -> 2023 | N24: 0 | O24: =IF(J5="ahorro casa","",N24/12) -> 0
M25: =YEAR(TODAY())-1 -> 2024 | N25: 0 | O25: =+N25/12 -> 0
C26: Ingreso Prom Mens | D26: =(IF(E12=R12,AVERAGE(E18,D24),D24)) -> 0 | H26: Ingreso Prom Mens | I26: =(IF(J12=R12,AVERAGE(J18,I24),I24)) -> 0 | M26: Información DD JJ: Utilidad Neta
M27: Año | N27: UN Anual | O27: UN Mensual
C28: INM= Ingreso Promedio Mensual *(1-DL)*(1-FRDG) | H28: INM= Ingreso Promedio Mensual *(1-DL)*(1-FAVI) | M28: =YEAR(TODAY())-2 -> 2023 | N28: 0 | O28: =IF(J9="ahorro casa","",N28/12) -> 0 | P28: =IF(O12="Reg. General",IFERROR((N28/N24),""),"") -> 
C29: DL= Descuento de Ley (5%) | H29: DL= Descuento de Ley (8%) | M29: =YEAR(TODAY())-1 -> 2024 | N29: 0 | O29: =+N29/12 -> 0 | P29: =IF(OR(O12="RUS",O12="Reg. Especial"),"",IFERROR((N29/N25),"")) -> 
M31: Información de Ventas Mensual
C32: Ingreso Neto | D32: =(D26*(1-0.05)) -> 0 | H32: Ingreso Neto | I32: =(IF(J12=R12,(I26*(1-0.08)),IF(I26>2807.33,(I26*(1-0.08)),(I26)))) -> 0 | M32: Mes | N32: Venta Mensual
M33: =DATE(YEAR(TODAY()),MONTH(TODAY())-6,1) -> 2024-10-01 | N33: 0
E34: Con DD JJ | M34: =DATE(YEAR(TODAY()),MONTH(TODAY())-5,1) -> 2024-11-01 | N34: 0
C35: Renta de 2da Categoría | H35: Renta de 5ta. Categoría | M35: =DATE(YEAR(TODAY()),MONTH(TODAY())-4,1) -> 2024-12-01 | N35: 0
C36: RUC | H36: Empleador | M36: =DATE(YEAR(TODAY()),MONTH(TODAY())-3,1) -> 2025-01-01 | N36: 0
C37: Tipo de Actividad | H37: Fecha de Ingreso | M37: =DATE(YEAR(TODAY()),MONTH(TODAY())-2,1) -> 2025-02-01 | N37: 0
C38: Fecha de Inicio | M38: =DATE(YEAR(TODAY()),MONTH(TODAY())-1,1) -> 2025-03-01 | N38: 0
H39: Ingreso Bruto | I39: Ingr. Promedio | J39: Ing.Prom.Ajust * | M39: Promedio Mensual | N39: =IF(AVERAGE(N33:N35)=0,AVERAGE(N36:N38),AVERAGE(N33:N38)) -> 0
C40: Año | D40: Ingreso Anual | E40: Ingreso Mensual | H40: Ingreso Fijo | I40: 0 | J40: =I40 -> 0
C41: =YEAR(TODAY())-2 -> 2023 | E41: =IF(J5="ahorro casa","",D41/12) -> 0 | H41: Comisión | I41: 0 | J41: =+I41*0.85 -> 0 | M41: Venta Prom Mens | N41: =(IF(O12=R15,AVERAGE(O24,O25,N39),IF(O12=R18,AVERAGE(O25,N39),N39))) -> 0
C42: =YEAR(TODAY())-1 -> 2024 | E42: =+D42/12 -> 0 | H42: Horas Extras | I42: 0 | J42: =+I42*0.85 -> 0
H43: Bonos | I43: 0 | J43: =I43*0.85 -> 0 | M43: INM= Venta Promedio Mensual * MC * % Participación Acc.
C44: Mes | D44: Ingreso Mensual | H44: Total | I44: =SUM(I40:I43) -> 0 | J44: =SUM(J40:J43) -> 0
C45: =DATE(YEAR(TODAY()),MONTH(TODAY())-3,1) -> 2025-01-01 | D45: 0 | H45: * Aplica solo para Comisiones y Horas Extras (85%) | M45: Ingreso Neto | N45: =IFERROR((N41*N18*N19)*0.8,0) -> 0
C46: =DATE(YEAR(TODAY()),MONTH(TODAY())-2,1) -> 2025-02-01 | D46: 0
C47: =DATE(YEAR(TODAY()),MONTH(TODAY())-1,1) -> 2025-03-01 | D47: 0 | H47: Descuentos | I47: Monto
C48: Promedio Mensual | D48: =IFERROR(AVERAGE(D45:D47),0) -> 0 | H48: Descuentos Ley * | I48: =IF(SUM(I41:I43)=0,0,VLOOKUP(J44,Cuadros!$B$49:$D$54,3,1)*J44) -> 0 | M48: Declaración Jurada de Ingresos - Ahorro Casa
H49: Según Boleta | I49: 0
C50: Ingreso Prom Mens | D50: =(IF(E34=R12,AVERAGE(E41,E42,D48),D48)) -> 0 | H50: Otros Descuentos | I50: 0 | M50: Ingreso Neto | N50: 4000
H51: Descuento | I51: =(IF(SUM(I41:I43)=0,I49,I48+I50)) -> 0
C52: INM= Ingreso Promedio Mensual *(1-DL)*(1-FRDG) | H52: * Estimación de Dctos de Ley en caso presente Comisiones y HE
C53: DL= Descuento de Ley (5%) | H53: Factor DL según Manual de Sobreendeudameinto RBP
C54: FRDG: Factor de rentabilidad después de gastos (30%) | H54: INM= Ingreso Promedio Ajustado - Descuentos
C56: Ingreso Neto | D56: =D50*(1-0.05)*(1-0.3) -> 0 | H56: Ingreso Neto | I56: =IF(OR(I49="",I49=0),J44*(1-VLOOKUP(J44,Cuadros!$B$49:$D$54,3,1))-I50,J44-I51) -> 0 | M56: Firma y Sello del Analista

Sheet DL_Cony (hidden)
B4: Usuario: Tom Davye Agurto Alban
B5: CÁLCULO DE RENTA BRUTA ANUAL
B6: Bruto total mensual | C6: =+C22+C23 -> 0 | L6: SI
B7: REMUNERACION 12 MESES | C7: =(C6)*12 -> 0 | L7: NO
B8: GRATIF JULIO/DICIEMBRE | C8: =(C6)*2 -> 0
B9: BONIF EXT TEMPORAL | C9: =IF(C24="SI",C8*0.0675,C8*0.09) -> 0
B10: GRATIF EXTRAORDINARIA (casos como BBVA)
B11: OTROS INGRESOS
B12: RENTA BRUTA ANUAL | C12: =SUM(C7:C11) -> 0 | E12: CÁLCULO RANGOS 5TA | N12: CÁLCULO AFP
B13: DEDUCCION | C13: =7*$C$25 -> 36050 | E13: APLICABLE | F13: DESDE | G13: HASTA | H13: TASA | I13: IMPUESTO | J13: EXCEDENTE | N13: REGIMEN PENSION | O13: COMISION | P13: PRIMA DE SEGURO | Q13: APORTE OBLIGATORIO
B14: APLICABLE | C14: =IF(C12-C13>0,C12-C13,0) -> 0 | E14: =IF(C14>0,C14,0) -> 0 | F14: 0 | G14: =5*C25 -> 25750 | H14: 0.08 | I14: =IF(J14>0,G14*H14,E14*H14) -> 0 | J14: =IF(E14-G14>0,E14-G14,0) -> 0 | N14: AFP HABITAT | O14: =(1.47)% -> 0.0147 | P14: 0.0137 | Q14: 0.1
B15: IMPUESTO ANUAL PROYECTADO | C15: =SUM(I14:I18) -> 0 | E15: =IF(J14>0,J14,0) -> 0 | F15: =+G14 -> 25750 | G15: =20*C25 -> 103000 | H15: 0.14 | I15: =IF(J15>0,G15*H15,E15*H15) -> 0 | J15: =IF(E15-G15>0,E15-G15,0) -> 0 | N15: AFP INTEGRA | O15: =(1.55)% -> 0.0155 | P15: 0.0137 | Q15: 0.1
E16: =IF(J15>0,J15,0) -> 0 | F16: =+G15 -> 103000 | G16: =35*C25 -> 180250 | H16: 0.17 | I16: =IF(J16>0,G16*H16,E16*H16) -> 0 | J16: =IF(E16-G16>0,E16-G16,0) -> 0 | N16: AFP PRIMA | O16: 0.016 | P16: 0.0137 | Q16: 0.1
E17: =IF(J16>0,J16,0) -> 0 | F17: =+G16 -> 180250 | G17: =45*C25 -> 231750 | H17: 0.2 | I17: =IF(J17>0,G17*H17,E17*H17) -> 0 | J17: =IF(E17-G17>0,E17-G17,0) -> 0 | N17: AFP PROFUTURO | O17: 0.0169 | P17: 0.0137 | Q17: 0.1
E18: =IF(J17>0,J17,0) -> 0 | F18: =+G17 -> 231750 | H18: 0.3 | I18: =IF(J18>0,E18*H18,0) -> 0 | J18: =IF(E18-G18>0,E18-G18,0) -> 0 | N18: ONP | Q18: 0.13
N20: Tabla 1.3. Factores de descuentos de Ley, según Rangos de Ingreso Bruto
E21: A VALIDAR | N21: 0 | O21: 0.13 | P21: =MATCH(Ingreso_Cony!F25,N21:N26,1) -> 1
B22: Ingreso bruto fijo | C22: =Ingreso_Cony!E21 -> 0 | E22: 5TA CATEGORIA | F22: =IF(C15/12>0,C15/12,0) -> 0 | N22: 1901 | O22: 0.15 | P22: =INDEX(N21:O26,P21,2) -> 0.13
B23: Ingreso bruto variable | C23: =SUM(Ingreso_Cony!E22:E24) -> 0 | E23: REGIMEN PENSION | F23: =Ingreso_Cony!C30 -> 0 | N23: 3301 | O23: 0.2 | P23: DL | Q23: =Ingreso_Cony!F25*P22 -> 0
B24: EPS | C24: =IF(Ingreso_Cony!D29="Con EPS","SI","NO") -> NO | E24: APORTE OBLIGATORIO | F24: =VLOOKUP(F23,N14:Q18,4,FALSE)*IF(C26=0,C22,C26) ->  | N24: 7401 | O24: 0.25
B25: UIT 2024 | C25: 5150 | E25: SEGURO INVALIDEZ | F25: =VLOOKUP(F23,N14:Q18,3,FALSE)*IF(C26=0,C22,C26) ->  | N25: 11401 | O25: 0.27
B26: Ingreso bruto del mes | E26: COMISION | F26: =VLOOKUP(F23,N14:Q18,2,FALSE)*IF(C26=0,C22,C26) ->  | N26: 14001 | O26: 0.3
B29: CÁLCULO DE RENTA BRUTA ANUAL
B30: Bruto total mensual | C30: =+C46+C47 -> 0 | L30: SI
B31: REMUNERACION 12 MESES | C31: =(C30)*12 -> 0 | L31: NO
B32: GRATIF JULIO/DICIEMBRE | C32: =(C30)*2 -> 0
B33: BONIF EXT TEMPORAL | C33: =IF(C48="SI",C32*0.0675,C32*0.09) -> 0
B34: GRATIF EXTRAORDINARIA (casos como BBVA)
B35: OTROS INGRESOS
B36: RENTA BRUTA ANUAL | C36: =SUM(C31:C35) -> 0 | E36: CÁLCULO RANGOS 5TA | N36: CÁLCULO AFP
B37: DEDUCCION | C37: =7*$C$49 -> 36050 | E37: APLICABLE | F37: DESDE | G37: HASTA | H37: TASA | I37: IMPUESTO | J37: EXCEDENTE | N37: REGIMEN PENSION | O37: COMISION | P37: PRIMA DE SEGURO | Q37: APORTE OBLIGATORIO
B38: APLICABLE | C38: =IF(C36-C37>0,C36-C37,0) -> 0 | E38: =IF(C38>0,C38,0) -> 0 | F38: 0 | G38: =5*C49 -> 25750 | H38: 0.08 | I38: =IF(J38>0,G38*H38,E38*H38) -> 0 | J38: =IF(E38-G38>0,E38-G38,0) -> 0 | N38: AFP HABITAT | O38: =(1.47)% -> 0.0147 | P38: 0.0137 | Q38: 0.1
B39: IMPUESTO ANUAL PROYECTADO | C39: =SUM(I38:I42) -> 0 | E39: =IF(J38>0,J38,0) -> 0 | F39: =+G38 -> 25750 | G39: =20*C49 -> 103000 | H39: 0.14 | I39: =IF(J39>0,G39*H39,E39*H39) -> 0 | J39: =IF(E39-G39>0,E39-G39,0) -> 0 | N39: AFP INTEGRA | O39: =(1.55)% -> 0.0155 | P39: 0.0137 | Q39: 0.1
E40: =IF(J39>0,J39,0) -> 0 | F40: =+G39 -> 103000 | G40: =35*C49 -> 180250 | H40: 0.17 | I40: =IF(J40>0,G40*H40,E40*H40) -> 0 | J40: =IF(E40-G40>0,E40-G40,0) -> 0 | N40: AFP PRIMA | O40: 0.016 | P40: 0.0137 | Q40: 0.1
E41: =IF(J40>0,J40,0) -> 0 | F41: =+G40 -> 180250 | G41: =45*C49 -> 231750 | H41: 0.2 | I41: =IF(J41>0,G41*H41,E41*H41) -> 0 | J41: =IF(E41-G41>0,E41-G41,0) -> 0 | N41: AFP PROFUTURO | O41: 0.0169 | P41: 0.0137 | Q41: 0.1
E42: =IF(J41>0,J41,0) -> 0 | F42: =+G41 -> 231750 | H42: 0.3 | I42: =IF(J42>0,E42*H42,0) -> 0 | J42: =IF(E42-G42>0,E42-G42,0) -> 0 | N42: ONP | Q42: 0.13
N44: Tabla 1.3. Factores de descuentos de Ley, según Rangos de Ingreso Bruto
E45: A VALIDAR | N45: 0 | O45: 0.13 | P45: =MATCH(Ingreso_Cony!V25,N45:N50,1) -> 1
B46: Ingreso bruto fijo | C46: =Ingreso_Cony!U21 -> 0 | E46: 5TA CATEGORIA | F46: =IF(C39/12>0,C39/12,0) -> 0 | N46: 1901 | O46: 0.15 | P46: =INDEX(N45:O50,P45,2) -> 0.13
B47: Ingreso bruto variable | C47: =SUM(Ingreso_Cony!U22:U24) -> 0 | E47: REGIMEN PENSION | F47: =Ingreso_Cony!S30 -> 0 | N47: 3301 | O47: 0.2 | P47: DL | Q47: =Ingreso_Cony!V25*P46 -> 0
B48: EPS | C48: =IF(Ingreso_Cony!T29="Con EPS","SI","NO") -> NO | E48: APORTE OBLIGATORIO | F48: =VLOOKUP(F47,N38:Q42,4,FALSE)*IF(C50=0,C46,C50) ->  | N48: 7401 | O48: 0.25
B49: UIT 2024 | C49: 5150 | E49: SEGURO INVALIDEZ | F49: =VLOOKUP(F47,N38:Q42,3,FALSE)*IF(C50=0,C46,C50) ->  | N49: 11401 | O49: 0.27
B50: Ingreso bruto del mes | E50: COMISION | F50: =VLOOKUP(F47,N38:Q42,2,FALSE)*IF(C50=0,C46,C50) ->  | N50: 14001 | O50: 0.3

Sheet Cuadros (hidden)
AA1: Departamento | AB1: Zona
AA2: Lima | AB2: Zona1
B3: Ratio de Sobre-Endeudamiento Máximo por Zona Geográfica e Ingresos Netos | L3: % Máximo de Financiamiento para Créditos Hipotecarios | AA3: Callao | AB3: Zona1
B4: Usuario: Melody Yadira Villanueva Villanueva | C4: Zona 1 | D4: Zona 2 | E4: Zona 3 | F4: Zona 4 | G4: Zona 5 | L4: Destino del Crédito | M4: Ocupación | N4: % Máximo de financiamiento | O4: % Cuota Inicial Mínima | AA4: Amazonas | AB4: Zona2
B5: [0 - 1,000> | C5: 0.25 | D5: 0.25 | E5: 0.25 | F5: 0.22 | G5: 0.25 | L5: Compra de casa o deparamento como primera vivienda | M5: Dependiente(1) | N5: 0.9 | O5: =1-N5 -> 0.1 | AA5: Ancash | AB5: Zona4
B6: [1,000 - 1,500> | C6: 0.26 | D6: 0.38 | E6: 0.34 | F6: 0.26 | G6: 0.3 | M6: Independiente | N6: 0.8 | O6: =1-N6 -> 0.2 | AA6: Apurímac | AB6: Zona2
B7: [1,500 - 2,000> | C7: 0.33 | D7: 0.43 | E7: 0.4 | F7: 0.33 | G7: 0.33 | L7: Construcción de casa o departamento en terreno propio como primera vivienda | N7: 0.8 | O7: 0.2 | AA7: Arequipa | AB7: Zona3
B8: [2,000 - 3,000> | C8: 0.39 | D8: 0.48 | E8: 0.48 | F8: 0.4 | G8: 0.43 | L8: La compra de un terreno como primera vivienda | N8: 0.8 | O8: 0.2 | AA8: Ayacucho | AB8: Zona2
B9: [3,000 - 4,000> | C9: 0.47 | D9: 0.51 | E9: 0.54 | F9: 0.46 | G9: 0.49 | L9: Compra de segunda vivienda si ya cancelaste en su totalidad la primera vivienda | M9: Dependiente(1) | N9: 0.9 | O9: 0.1 | AA9: Cajamarca | AB9: Zona2
B10: [4,000 - 5,000> | C10: 0.53 | D10: 0.53 | E10: 0.57 | F10: 0.52 | G10: 0.54 | M10: Independiente | N10: 0.8 | O10: 0.2 | AA10: Cusco | AB10: Zona2
B11: [5,000 - 7,000> | C11: 0.58 | D11: 0.58 | E11: 0.59 | F11: 0.53 | G11: 0.57 | L11: Compra de segunda vivienda si aún no has cancelado en su totalidad la primera | N11: 0.8 | O11: 0.2 | AA11: Huancavelica | AB11: Zona2
B12: [7,000 - más> | C12: 0.59 | D12: 0.6 | E12: 0.6 | F12: 0.6 | G12: 0.6 | L12: Compra de casa de campo o playa | N12: 0.7 | O12: 0.3 | AA12: Huánuco | AB12: Zona3
L13: Crédito en efectivo con garantía hipotecaria | N13: 0.6 | O13: 0.4 | AA13: Ica | AB13: Zona4
B14: Zona Geográfica | L14: Ampliación de vivienda | N14: 0.3 | O14: 0.7 | AA14: Junin | AB14: Zona2
B15: Zona 1: Lima y Callao | L15: Remodelación de vivienda | N15: 0.3 | O15: 0.7 | AA15: La Libertad | AB15: Zona4
B16: Zona 2: Amazonas, Apurímac, Ayacucho, Cajamarca, Cusco, Huancavelica, Junin, Pasco y Puno | AA16: Lambayeque | AB16: Zona4
B17: Zona 3: Arequipa, Huánuco, Moquegua y Tacna | L17: (1) Ahorro Casa condicionado al periodo de ahorro | AA17: Loreto | AB17: Zona5
B18: Zona 4: Ica, La Libertad, Lambayeque, Piura, Tumbes y Ancash | AA18: Madre de Dios | AB18: Zona5
B19: Zona 5: Loreto, Madre de Dios, San Martin y Ucayali | AA19: Moquegua | AB19: Zona3
AA20: Pasco | AB20: Zona2
B21: Fondos Mi Vivienda, Rangos del Bono del Buen Pagador (BBP) | L21: Márgenes Comerciales | AA21: Piura | AB21: Zona4
B22: Valor Bien Inmueble | D22: BBP | E22: Cuota Inicial | G22: CI + BBP | I22: Préstamo | AA22: Puno | AB22: Zona2
B23: Desde | C23: Hasta | E23: Desde | F23: Hasta | G23: Desde | H23: Hasta | I23: Desde | J23: Hasta | AA23: San Martrin | AB23: Zona5
B24: 67400 | C24: 96200 | D24: 26900 | E24: =B24*0.075 -> 5055 | F24: =C24*0.075 -> 7215 | G24: =$D24+E24 -> 31955 | H24: 34115 | I24: 20000 | J24: =C24-H24 -> 62085 | AA24: Tacna | AB24: Zona3
B25: 96200 | C25: 144000 | D25: 22400 | E25: 7215 | F25: 10800 | G25: 29615 | H25: 33200 | I25: 66585 | J25: 110800 | AA25: Tumbes | AB25: Zona4
B26: 144000 | C26: 239800 | D26: 20500 | E26: 10800 | F26: 17985 | G26: 31300 | H26: 38485 | I26: 112700 | J26: 201315 | AA26: Ucayali | AB26: Zona5
B27: 239800 | C27: 355100 | D27: 7600 | E27: 17985 | F27: 26632.5 | G27: =$D27+E27 -> 25585 | H27: =$D27+F27 -> 34232.5 | I27: =B27-G27 -> 214215 | J27: =C27-H27 -> 320867.5
B28: 355100 | C28: 479300 | D28: 0 | E28: =B28*0.1 -> 35510 | F28: =C28*0.1 -> 47930 | G28: 35510 | H28: 47930 | I28: 319590 | J28: 431370
B31: Fondos Techo Propio, Rangos del Bono Habitacional Familiar (BFH)
B32: Valor Bien Inmueble | D32: BBP | E32: Cuota Inicial | G32: CI + BBP | I32: Préstamo
B33: Desde | C33: Hasta | E33: Desde | F33: Hasta | G33: Desde | H33: Hasta | I33: Desde | J33: Hasta
B34: 63500 | C34: 102800 | D34: 44805 | E34: =B34*0.05 -> 3175 | F34: =C34*0.05 -> 5140 | G34: =$D34+E34 -> 47980 | H34: =$D34+F34 -> 49945 | I34: 20000 | J34: =C34-H34 -> 52855
B35: 102800 | C35: 128400 | D35: 44805 | E35: =B35*0.05 -> 5140 | F35: =C35*0.05 -> 6420 | G35: =$D35+E35 -> 49945 | H35: =$D35+F35 -> 51225 | I35: =B35-G35 -> 52855 | J35: =C35-H35 -> 77175
B37: Seguros de Desgravamen por tipo de Crédito y Seguro
B38: Tipo Crédito | C38: Tipo Seguro | D38: Valor
B39: Hipot/MV/TP/PPGH | C39: Individual | D39: 0.00028
B40: Hipotecario | C40: Mancomunado | D40: 0.00052
B41: MiVivienda | C41: Individual | D41: 0.00035
B42: MiVivienda | C42: Mancomunado | D42: 0.00065
B43: Hipotecario | C43: Individual/Devolución | D43: 0.000323
B44: Hipotecario | C44: Mancomunado/Devolución | D44: 0.000605
B46: Tasas de Impuesto a la Renta de 5ta Categoría (Manual Sobre-Endeudamiento Banca Persona)
B47: Ingreso Bruto | D47: Valor
B48: Desde | C48: Hasta
B49: 0 | C49: 1900 | D49: 0.13
B50: 1901 | C50: 3300 | D50: 0.15
B51: 3301 | C51: =B52-1 -> 7400 | D51: 0.2
B52: 7401 | C52: =B53-1 -> 11400 | D52: 0.25
B53: 11401 | C53: =B54-1 -> 14000 | D53: 0.27
B54: 14001 | C54: Más | D54: 0.3
B57: Con Bono Integrador | C57: 3400
B58: Sin Bono Integrador | C58: 0
B59: Con Bono Verde | C59: 6000
B60: Sin Bono Verde | C60: 0
B63: Bono integrador | C63: 1 si, 0 no
B64: YN | C64: =IF(AND(Resolucion!K13>1000,Resolucion!K13<=4172),1,0) -> 0 | D64: Por YN
B65: Edad | C65: =IF(Deudas!E12>60,1,0) ->  | D65: Por edad

Sheet Ficha_Resumen (hidden)
B3: INFORME DE CREDITO POR AUTONOMIA
B5: =Principal!C11 -> RENTA ALTA
B6: DATOS GENERALES
B8: TITULAR: | C8: =Ingreso_Titular!D4 -> 0 | E8: DNI: | F8: =Principal!C8 -> 46046330 | H8: CONYUGE/CODEUDOR: | I8: =Ingreso_Cony!D4 -> 0 | K8: DNI | L8: =Ingreso_Cony!D5 -> 0 | N8: Deudas en el SSFF
B10: Situacion laboral: | C10: =Principal!F9 -> Dependiente | D10: Ing. Neto: | E10: =Resolucion!K15 -> 8992 | H10: Mancomuna ingresos: | J10: Situacion laboral: | N10: Producto | O10: Saldo | P10: Cuota
B11: Centro Laboral: | C11: =Ingreso_Titular!E13 -> 0 | D11: Cargo: | H11: Centro Laboral: | I11: =Ingreso_Cony!E13 -> 0 | J11: Cargo: | N11: Lineas de TC utilizadas | O11: =Deudas!C15+Deudas!F15+Deudas!I15+Deudas!L15 -> 0 | P11: =+Deudas!D15+Deudas!G15+Deudas!J15+Deudas!M15 -> 0
B12: Fecha de Ingreso: | C12: =Ingreso_Titular!E12 -> 00:00:00 | D12: Validaciones: | H12: Fecha de Ingreso: | I12: =Ingreso_Cony!E12 -> 00:00:00 | J12: Validaciones: | N12: Lineas de TC por usar | O12: =Deudas!C16+Deudas!F16+Deudas!I16+Deudas!L16 -> 5000 | P12: =Deudas!D16+Deudas!G16+Deudas!J16+Deudas!M16 -> 55
B13: Estado Civil | C13: =Principal!C9 -> Soltero(a) | D13: Edad: | E13: =Deudas!E12 ->  | H13: Edad: | J13: Ing. Neto: | K13: =Ingreso_Cony!D8 -> 0 | N13: PPE | O13: =Deudas!C18+Deudas!F18+Deudas!I18+Deudas!L18 -> 0 | P13: =+Deudas!D18+Deudas!G18+Deudas!J18+Deudas!M18 -> 0
B14: Color de Riesgos: | C14: =Principal!C14 -> VERDE CLARO | D14: Score Buro: | E14: =Principal!C13 -> ALTO | H14: Color de Riesgos: | J14: Score: | N14: Vehicular | O14: =Deudas!C19+Deudas!F19+Deudas!I19+Deudas!L19 -> 0 | P14: =Deudas!D19+Deudas!G19+Deudas!J19+Deudas!M19 -> 0
B15: Zona: | C15: =IFERROR(VLOOKUP(Principal!C14,Resolucion!$R$4:$S$9,2,FALSE),"") -> ZONA 1 | D15: Cumplimiento: | J15: Zona: | N15: Convenio | O15: =Deudas!C20+Deudas!F20+Deudas!I20+Deudas!L20 -> 0 | P15: =Deudas!D20+Deudas!G20+Deudas!J20+Deudas!M20 -> 0
N16: Hipotecario | O16: =Deudas!C21+Deudas!F21+Deudas!I21+Deudas!L21 -> 177272.37 | P16: =+Deudas!D21+Deudas!G21+Deudas!J21+Deudas!M21 -> 1839
B25: DATOS DEL CREDITO
B27: Monto a financiar: | C27: =Resolucion!D17 -> 240000 | H27: Producto: | I27: =Principal!E4 -> Hipotecario | N27: Ratios | P27: Maximos
B28: Cuota Inicial: | C28: =Resolucion!D12 -> 0 | E28: =IFERROR(C28/C30,"") -> 0 | H28: Destino: | N28: C/Y: | O28: =Resolucion!J30 -> 0.2627680501 | P28: =Resolucion!K30 -> 0.5
B29: Plazo: | C29: =Resolucion!D19 -> 240 | H29: Ubicación: | N29: D/Y: | O29: =Resolucion!J31 -> 0.4733997227 | P29: =Resolucion!K31 -> 0.59
B30: Valor del Inmueble: | C30: =Resolucion!D9 -> 300000 | H30: Nro. De vivienda: | N30: CEM: | O30: =Resolucion!J28 -> 3411.28
N31: Cuota HPC: | O31: =Resolucion!D33 -> 2362.810307
B32: Hipotecario en Interbank | C32: Si
B33: Saldo Inicial S/ | C33: Saldo Actual S/ | D33: Fecha Desembolso | E33: Fecha de termino | F33: Cuotas pagadas | H33: Cuota mes
B36: El nivel de exposición sería de | D36: =IFERROR((C27+C34)/Resolucion!C11,0) -> 62337.66234
B39: COMENTARIOS DEL CREDITO
B41: MOTIVOS DE RECHAZO | I41: EXCEPCION POR RECHAZO ADQ
B46: SUSTENTO DE RESOLUCION
B48: Autonomia | C48: Nombre | D48: COMENTARIO | L48: EXCEPCION ANALISTA
B49: Analista
B50: Jefatura
B51: Sub Gerencia
B52: CONDICIONES:

Sheet Vision_Cliente (hidden)
T1: Sí
T2: No
B3: Calculadora para Préstamo Visión Cliente | K3: Calculadora para TC Visión Cliente | T3: Excepción No Califica para Oferta
B4: Usuario: Jean Alexander Purizaca Moran
B5: Usuario: Jean Alexander Purizaca Moran
C6: Información Admisión | L6: Información Admisión | T6: Hipotecario
C7: Excep por CY o Inicial | L7: Excep por CY o Inicial | M7: =+D7 -> 0 | T7: Normal
C8: Ingreso Neto | D8: =IF(Resolucion!J20<>"Hipotecario","",Resolucion!K15) -> 8992 | L8: Ingreso Neto | M8: =IF(Resolucion!J20<>"Hipotecario","",Resolucion!K15) -> 8992 | T8: No aplica para producto MV ni AC
C9: DY Actual | D9: =IF(Resolucion!J20<>"Hipotecario","",Resolucion!J31) -> 0.4733997227 | L9: DY Actual | M9: =IF(Resolucion!J20<>"Hipotecario","",Resolucion!J31) -> 0.4733997227
C10: DY Máxima | D10: =IF(Resolucion!J20<>"Hipotecario","",Resolucion!K31) -> 0.59 | L10: DY Máxima | M10: =IF(Resolucion!J20<>"Hipotecario","",Resolucion!K31) -> 0.59 | T10: SELECT
C11: CEM Disponible | D11: =IFERROR(IF(OR(D7="Sí",D7=""),"",(D10-D9)*D8),"") ->  | L11: CEM Disponible | M11: =IFERROR(IF(OR(M7="Sí",M7=""),"",(M10-M9)*M8),"") -> 1048.469693 | T11: PREMIUM
T12: Segmento o Zona no aplica para Oferta
C13: Estructura de Préstamo | L13: Estructura de TC | T13: No califica a Oferta Mínima
C14: TEA | D14: 0.1199 | L14: Nro Tarjetas IBK | M14: 0
C15: TEM | D15: =((1+D14)^(1/12))-1 -> 0.00948128155 | T15: VERDE CLARO
C16: PLAZO | D16: 60 | E16: Meses | T16: VERDE
C17: Ajuste Oferta | D17: =IF(Resolucion!J20<>"Hipotecario","","80%") -> 80% | L17: Ajuste Oferta | M17: 1 | T17: AMARILLO
C18: Oferta Máxima | D18: =IF(Resolucion!J20<>"Hipotecario","",300000) -> 300000 | L18: Oferta Máxima | M18: =IF(Resolucion!J20<>"Hipotecario","",100000) -> 100000
C20: Oferta PPE | D20: =IFERROR(IF(Principal!C8="","",IF(D7="Sí","Excepción No Califica para Oferta",IF(OR(Resolucion!J20<>"Hipotecario",Ingreso_Titular!D6<>"Tradicional"),"No aplica para producto MV ni AC",IF(Principal!C11<>"Renta Alta","Segmento no aplica para Oferta",IF(Principal!I4<>"ZONA 1", "Zona No Aplica para Oferta",IF((($D$11/(($D$15*(1+$D$15)^$D$16)/(((1+$D$15)^$D$16)-1)))*$D$17)>300000,$D$18,IF(($D$11/(($D$15*(1+$D$15)^$D$16)/(((1+$D$15)^$D$16)-1)))*$D$17<3000,"No califica a Oferta Mínima",(($D$11/(($D$15*(1+$D$15)^$D$16)/(((1+$D$15)^$D$16)-1)))*$D$17)))))))),"") ->  | L20: Oferta TC | M20: =IF(M7="Sí","Excepción No Califica para Oferta",IF(OR(Resolucion!J20<>"Hipotecario",Ingreso_Titular!D6<>"Tradicional"),"No aplica para producto MV ni AC",IF(Principal!C11<>"Renta Alta","Segmento no aplica para Oferta",IF(Principal!I4<>"ZONA 1", "Zona No Aplica para Oferta",IF(M14>=2,"No aplica oferta, ofrecer solo PP VC",IF(MIN($U$31,$U$32)*M17>100000,$M$18,IF(MIN($U$31,$U$32)*M17<1000,"No califica a Oferta Mínima",MIN($U$31,$U$32)*M17))))))) -> 35968 | T20: MATRIZ BURO
T21: FACTORES BURO
T22: Alto | U22: 0.011
C23: Campos Editables: | D23: Excep por CY o Inicial / TEA / PLAZO | L23: Campos Editables: | M23: Nro Tarjetas IBK | T23: Medio | U23: 0.01672
C24: *No Aplica para "Mi Vivienda" ni "Ahorro Casa" *Solo aplica para "Renta Alta" | L24: *No Aplica para "Mi Vivienda" ni "Ahorro Casa" *Solo aplica para "Renta Alta" | T24: Bajo | U24: 0.02024
T25: Muy Bajo | U25: 0.02244
T26: Rechazo | U26: 0.02244
T27: Sin Buro | U27: 0.0176
A29: * Se muestra las ofertas de ambos productos consumo ofrecidos
A30: * Equipo comercial debera indicar la oferta que se le ofrecerá a cliente. | U30: =VLOOKUP(Principal!C13,$T$22:$U$27,2,0) -> 0.011
T31: LC TC1 | U31: =+M11/U30 -> 95315.42668
T32: LC TC 2 | U32: =+M8*4 -> 35968
T34: 0
T35: 1
T36: 2

Sheet Saldos (hidden)
A1: SOLO USAR ESTA HOJA CUANDO CARGUEN LAS DEUDAS INCOMPLETAS O NO CARGUEN LAS DEUDAS DEL RCC LA FORMATO DE SOBRE-ENDEUDAMIENTO
B2: TITULAR | H2: CONYUGE
A3: EXTRACASH
C4: Cuota Inferida | D4: =#REF! ->  | E4: Nueva Cuota Inferida | F4: =IF(ISERROR(E6/C6)=TRUE,0,E6/C6)*D4 ->  | I4: Cuota Inferida | J4: =#REF! ->  | K4: Nueva Cuota Inferida | L4: =IF(ISERROR(K6/I6)=TRUE,0,K6/I6)*J4 -> 
C5: Deudas RCC | E5: Saldo RCC | I5: Deudas RCC | K5: Saldo RCC
C6: 0 | E6: 0 | I6: 0 | K6: 0
A8: PRESTAMO PERSONAL
C9: Cuota Inferida | D9: =#REF! ->  | E9: Nueva Cuota Inferida | F9: =IF(ISERROR(E11/C11)=TRUE,0,E11/C11)*D9 ->  | I9: Cuota Inferida | J9: =#REF! ->  | K9: Nueva Cuota Inferida | L9: =IF(ISERROR(K11/I11)=TRUE,0,K11/I11)*J9 -> 
C10: Deudas RCC | E10: Saldo RCC | I10: Deudas RCC | K10: Saldo RCC
C11: 0 | E11: 0 | I11: 0 | K11: 0
A13: CREDITO VEHICULAR
C14: Cuota Inferida | D14: =#REF! ->  | E14: Nueva Cuota Inferida | F14: =IF(ISERROR(E16/C16)=TRUE,0,E16/C16)*D14 ->  | I14: Cuota Inferida | J14: =#REF! ->  | K14: Nueva Cuota Inferida | L14: =IF(ISERROR(K16/I16)=TRUE,0,K16/I16)*J14 -> 
C15: Deudas RCC | E15: Saldo RCC | I15: Deudas RCC | K15: Saldo RCC
C16: 0 | E16: 0 | I16: 0 | K16: 0
A18: CREDITO POR CONVENIO
C19: Cuota Inferida | D19: =#REF! ->  | E19: Nueva Cuota Inferida | F19: =IF(ISERROR(E21/C21)=TRUE,0,E21/C21)*D19 ->  | I19: Cuota Inferida | J19: =#REF! ->  | K19: Nueva Cuota Inferida | L19: =IF(ISERROR(K21/I21)=TRUE,0,K21/I21)*J19 -> 
C20: Deudas RCC | E20: Saldo RCC | I20: Deudas RCC | K20: Saldo RCC
C21: 0 | E21: 0 | I21: 0 | K21: 0
A23: CREDITO HIPOTECARIO
C24: Cuota Inferida | D24: =#REF! ->  | E24: Nueva Cuota Inferida | F24: =IF(ISERROR(E26/C26)=TRUE,0,E26/C26)*D24 ->  | I24: Cuota Inferida | J24: =#REF! ->  | K24: Nueva Cuota Inferida | L24: =IF(ISERROR(K26/I26)=TRUE,0,K26/I26)*J24 -> 
C25: Deudas RCC | E25: Saldo RCC | I25: Deudas RCC | K25: Saldo RCC
C26: 0 | E26: 0 | I26: 0 | K26: 0

Sheet Constancia (hidden)
A6: =IF(HIPO!K54="CALIFICA","CONSTANCIA DE SIMULACIÓN DE CRÉDITO HIPOTECARIO","") -> 
H9: =HIPO!C3 -> 2025-04-15
A10: Estimado(a):
A11: =IF(HIPO!K54="CALIFICA",UPPER(HIPO!C6),"") -> 
A13: Presente.-
A15: =IF(HIPO!K54="CALIFICA",IF(LEN(HIPO!C8)<2,"Se deja constancia que en base a la información porporcionada por el(la) Sr(a). "&HIPO!C6&", identificado con DNI N° "&HIPO!E6&", podría calificar a un crédito hipotecario con las siguientes características:","Se deja constancia que en base a la información porporcionada por el(la) Sr(a). "&HIPO!C6&", identificado con DNI N° "&HIPO!E6&", y el(la) Sr(a). "&HIPO!C8&", identificado con DNI N° "&HIPO!E8&", podrían calificar a un crédito hipotecario con las siguientes características:"),"") -> 
A17: Características del Crédito:
B19: Producto: | E19: =IF(HIPO!K54="CALIFICA",HIPO!J14,"") -> 
B20: Monto de Crédito: | E20: =IF(HIPO!K54="CALIFICA",IF(HIPO!K30="Soles","S/ "&TEXT(HIPO!J30,"#,##0"),TEXT(HIPO!J30,"#,##0")&" USD"),"") -> 
B21: Plazo: | E21: =IF(HIPO!K54="CALIFICA",HIPO!J33,"") -> 
B22: Tipo de Cuota(1): | E22: =IF(HIPO!K54="CALIFICA",HIPO!J38,"") -> 
B23: Periodo de Gracia: | E23: =IF(HIPO!K54="CALIFICA",HIPO!J42,"") -> 
B24: Cuota Mensual(2): | E24: =IF(HIPO!K54="CALIFICA",IF(HIPO!K44="Soles","S/ "&TEXT(HIPO!J44,"#,##0"),TEXT(HIPO!J44,"#,##0")&" USD"),"") -> 
B25: Cuota Extraordinaria: | E25: =IF(HIPO!K54="CALIFICA",IF(HIPO!K45="Soles","S/ "&TEXT(HIPO!J45,"#,##0"),TEXT(HIPO!J45,"#,##0")&" USD"),"") -> 
A28: Para acceder al Crédito Hipotecario, usted deberá pasar por la evaluación crediticia correspondiente en INTERBANK, en la que se solicitará la documentación necesaria para sustentar sus ingresos, esta documentación varía según renta percibida. Esta constancia es sólo de orden informativo, no debe ser considerada como cotización o aprobación final. Para conocer más acerca de nuestros productos e inmuebles, ingresa a www.interbank.pe/credito-hipotecario.
A33: Atentamente,
A34: INTERBANK
A36: (1) Las cuotas ordinarias en las que se pagan 12 cuotas al año y la extraordinaria en la que se pagan 14 cuotas al año, pagando una adicional en los meses de julio y diciembre. (2) La Tasa Efectiva Anual (TEA) aplicada es referencial y fija, la cual podrá variar por el periodo de evaluación, condiciones del crédito y/o calificación financiera; y la Cuota mensual a pagar se compone de amortización, intereses, seguro de desgravamen y seguro del inmueble. (3) El cliente tiene derecho a contratar directamente el seguro de desgravamen o del bien, y endosarlos a favor de Interbank hasta por el monto adeudado. (4) La tasa de costo efectiva anual (TCEA) del crédito, la fecha de desembolso, la fecha de primer pago y los montos totales a pagar se informarán posteriormente a la aprobación y firma de documentos contractuales. (5) INTERBANK no asumirá ninguna responsabilidad por los adelantos o contratos de arras que pudiesen haber celebrado con anterioridad o luego de la emisión de esta constancia de simulación. (6) INTERBANK se reserva el derecho de suspender o dejar sin efecto la presente constancia, si se verifica algún cambio en la situación financiera del solicitante o co-deudor o condiciones tomadas en cuenta (7) La presente comunicación ha sido elaborada de conformidad con la información proporcionada por el solicitante y se emite a su solicitud. De no presentarse los documentos sustento necesarios o si estos no concuerdan con los datos declarados, la presente Constancia quedará sin efecto e Interbank no tendrá responsabilidad alguna. (8) Para mayor información sobre tasas de interés, comisiones, gastos y penalidades en el tarifario, en Tiendas Interbank o en www.interbank.pe conforme a la normativa vigente.

Sheet VISTA CLIENTE
T1: ME FALTA REVISAR
T2: amortización negativa en cuota extraordinaria
E3: SIMULADOR DE CRÉDITO HIPOTECARIO INTERBANK
B4: Usuario: Diana Iris Granda Sanchez
C7: DATOS DE SOLICITUD | K7: DEL HIPOTECARIO
E9: MONEDA | G9: SOLES | M9: MONTO A FINANCIAR | O9: =+G51 -> 251498.9872
E11: FECHA DE DESEMBOLSO | G11: 2025-04-14 | M11: TCEA | O11: ='Cronograma HIPO'!AA32 -> 0.1014131651
E13: PRECIO DE INMUEBLE | G13: 300000 | M13: CUOTA | O13: =+MIN(O51:P52) -> 2362.810307
E15: CUOTA INICIAL | G15: 50000 | H15: *misma moneda de inmueble | M15: PRIMERA FECHA DE PAGO | O15: =+F51 -> 2025-05-07
E17: MONTO A DESEMBOLSAR | G17: =IF(G9="DOLARES",'Cronograma HIPO'!$I$13*(G13-G15),(G13-G15)) -> 250000 | M17: TOTAL AMORTIZACIÓN | O17: ='Cronograma HIPO'!Q395 -> 251502.6409
E19: PLAZO (MESES) (6) | G19: 240 | M19: TOTAL INTERESES | O19: ='Cronograma HIPO'!R395 -> 295171.8327
E21: TEA (2) | G21: 0.09 | M21: TOTAL DESGRAVAMEN | O21: ='Cronograma HIPO'!T395 -> 11037.86205
E23: FECHA DE PAGO AL MES | G23: 7 | M23: TOTAL SEGURO BIEN | O23: ='Cronograma HIPO'!U395 -> 20400
I24: =+IF((G17>300000)*(G9="DÓLARES")*(G30<>"SIN SEGURO (ENDOSO)"),"Corregir conforme a (3)","") -> 
I25: =+IF((G19<24)*(G30="CON DEVOLUC."),"Corregir conforme a (4)","") -> 
E26: TIPO DE CUOTA | G26: ORDINARIA | K26: LEYENDA:
E28: PERIODO DE GRACIA (MESES) | G28: 0 | M28: Dato a ingresar y/o elegir de lista desplegable
E30: TIPO DE SEGURO DE DESG (3)(4)(5) | G30: INDIVIDUAL | M30: Dato formulado, no modificar
E32: TASA SEGURO DESG. | G32: =+IF(G30="INDIVIDUAL",0.028%,IF(G30="MANCOMUNADO",0.052%,IF(G30="INDIVIDUAL/DEVOLUCIÓN",0.0323%,IF(G30="MANCOMUNADO/DEVOLUCIÓN",0.0605%,0)))) -> 0.00028
E34: SEGURO DE BIEN (4) | G34: NORMAL
E36: PRIMA DE SEGURO DE BIEN | G36: =+IF(G34="NORMAL",0.34%,0) -> 0.0034
D39: NOTA:
D40: (1) | E40: Esta simulación NO constituye una garantía de calificación para la aprobación de un Crédito Hipotecario.
D41: (2) | E41: La TEA es fija durante todo el crédito. Tasa referencial y sujeto a modificaciones. Consulta tu tasa aplicable ingresando a Interbank.pe, por nuestra App, visitando nuestras Tiendas o llamando al (01)3119000
D43: (3) | E43: Se calcula sobre el saldo de capital del crédito hipotecario. El cliente puede elegir contratar el seguro de desgravamen tradicional sin devolución o seguro de desgravamen con devolución. Consultar condiciones y requisitos en www.Interbank.pe
D45: (4) | E45: El cliente no tiene la obligación de tomar el seguro de Interbank, puede endosar el suyo (ya existente) a favor de Interbank y/o uno similar provisto por otra compañía. (cambiarlo como punto 3)
D47: (5) | E47: Este seguro es a solicitud del cliente. El importe de la prima será incluida en el capital y financiada según las condiciones del crédito. Sujeto a evaluación y condiciónes
D48: (6) | E48: Plazo mínimo 60 y máximo de 360 meses.
D50: CUOTA | F50: VENCIMIENTO | G50: SALDO CAPITAL | H50: AMORTIZACIÓN | J50: INTERÉS | L50: DESGRAVAMEN | N50: SEGURO BIEN | O50: CUOTA
D51: 1 | F51: ='Cronograma HIPO'!O1 -> 2025-05-07 | G51: =+IFERROR(VLOOKUP(F51,'Cronograma HIPO'!$I$35:$K$394,3,0),"") -> 251498.9872 | H51: =+IFERROR(VLOOKUP(F51,'Cronograma HIPO'!$I$35:$Q$394,9,0),"") -> 835.3004714 | J51: =+IFERROR(VLOOKUP(F51,'Cronograma HIPO'!$I$35:$S$394,11,0),"") -> 1388.521386 | L51: =+IFERROR(VLOOKUP(F51,'Cronograma HIPO'!$I$35:$T$394,12,0),"") -> 53.98844926 | N51: =+IFERROR(VLOOKUP(F51,'Cronograma HIPO'!$I$35:$U$394,13,0),"") -> 85 | O51: =+IFERROR(VLOOKUP(F51,'Cronograma HIPO'!$I$35:$X$394,16,0),"") -> 2362.810307
D52: =+IF(D51="", "", IF((D51+1)>$G$19,"", D51+1)) -> 2 | F52: =INDEX('Cronograma HIPO'!$I$35:$I$394,MATCH(F51,'Cronograma HIPO'!$I$35:$I$394,0)+1,1) -> 2025-06-07 | G52: =+IFERROR(VLOOKUP(F52,'Cronograma HIPO'!$I$35:$K$394,3,0),"") -> 250663.6868 | H52: =+IFERROR(VLOOKUP(F52,'Cronograma HIPO'!$I$35:$Q$394,9,0),"") -> 338.2265087 | J52: =+IFERROR(VLOOKUP(F52,'Cronograma HIPO'!$I$35:$S$394,11,0),"") -> 1867.058438 | L52: =+IFERROR(VLOOKUP(F52,'Cronograma HIPO'!$I$35:$T$394,12,0),"") -> 72.52536004 | N52: =+IFERROR(VLOOKUP(F52,'Cronograma HIPO'!$I$35:$U$394,13,0),"") -> 85 | O52: =+IFERROR(VLOOKUP(F52,'Cronograma HIPO'!$I$35:$X$394,16,0),"") -> 2362.810307
D53: =+IF(D52="", "", IF((D52+1)>$G$19,"", D52+1)) -> 3 | F53: =INDEX('Cronograma HIPO'!$I$35:$I$394,MATCH(F52,'Cronograma HIPO'!$I$35:$I$394,0)+1,1) -> 2025-07-07 | G53: =+IFERROR(VLOOKUP(F53,'Cronograma HIPO'!$I$35:$K$394,3,0),"") -> 250325.4603 | H53: =+IFERROR(VLOOKUP(F53,'Cronograma HIPO'!$I$35:$Q$394,9,0),"") -> 403.5426512 | J53: =+IFERROR(VLOOKUP(F53,'Cronograma HIPO'!$I$35:$S$394,11,0),"") -> 1804.176526 | L53: =+IFERROR(VLOOKUP(F53,'Cronograma HIPO'!$I$35:$T$394,12,0),"") -> 70.09112887 | N53: =+IFERROR(VLOOKUP(F53,'Cronograma HIPO'!$I$35:$U$394,13,0),"") -> 85 | O53: =+IFERROR(VLOOKUP(F53,'Cronograma HIPO'!$I$35:$X$394,16,0),"") -> 2362.810307
D54: 4 | F54: =INDEX('Cronograma HIPO'!$I$35:$I$394,MATCH(F53,'Cronograma HIPO'!$I$35:$I$394,0)+1,1) -> 2025-08-07 | G54: =+IFERROR(VLOOKUP(F54,'Cronograma HIPO'!$I$35:$K$394,3,0),"") -> 249921.9176 | H54: =+IFERROR(VLOOKUP(F54,'Cronograma HIPO'!$I$35:$Q$394,9,0),"") -> 343.9661652 | J54: =+IFERROR(VLOOKUP(F54,'Cronograma HIPO'!$I$35:$S$394,11,0),"") -> 1861.5334 | L54: =+IFERROR(VLOOKUP(F54,'Cronograma HIPO'!$I$35:$T$394,12,0),"") -> 72.3107415 | N54: =+IFERROR(VLOOKUP(F54,'Cronograma HIPO'!$I$35:$U$394,13,0),"") -> 85 | O54: =+IFERROR(VLOOKUP(F54,'Cronograma HIPO'!$I$35:$X$394,16,0),"") -> 2362.810307
D55: 5 | F55: =INDEX('Cronograma HIPO'!$I$35:$I$394,MATCH(F54,'Cronograma HIPO'!$I$35:$I$394,0)+1,1) -> 2025-09-07 | G55: =+IFERROR(VLOOKUP(F55,'Cronograma HIPO'!$I$35:$K$394,3,0),"") -> 249577.9515 | H55: =+IFERROR(VLOOKUP(F55,'Cronograma HIPO'!$I$35:$Q$394,9,0),"") -> 346.6277043 | J55: =+IFERROR(VLOOKUP(F55,'Cronograma HIPO'!$I$35:$S$394,11,0),"") -> 1858.971382 | L55: =+IFERROR(VLOOKUP(F55,'Cronograma HIPO'!$I$35:$T$394,12,0),"") -> 72.21122062 | N55: =+IFERROR(VLOOKUP(F55,'Cronograma HIPO'!$I$35:$U$394,13,0),"") -> 85 | O55: =+IFERROR(VLOOKUP(F55,'Cronograma HIPO'!$I$35:$X$394,16,0),"") -> 2362.810307
D56: 6 | F56: =INDEX('Cronograma HIPO'!$I$35:$I$394,MATCH(F55,'Cronograma HIPO'!$I$35:$I$394,0)+1,1) -> 2025-10-07 | G56: =+IFERROR(VLOOKUP(F56,'Cronograma HIPO'!$I$35:$K$394,3,0),"") -> 249231.3237 | H56: =+IFERROR(VLOOKUP(F56,'Cronograma HIPO'!$I$35:$Q$394,9,0),"") -> 411.7348051 | J56: =+IFERROR(VLOOKUP(F56,'Cronograma HIPO'!$I$35:$S$394,11,0),"") -> 1796.290731 | L56: =+IFERROR(VLOOKUP(F56,'Cronograma HIPO'!$I$35:$T$394,12,0),"") -> 69.78477065 | N56: =+IFERROR(VLOOKUP(F56,'Cronograma HIPO'!$I$35:$U$394,13,0),"") -> 85 | O56: =+IFERROR(VLOOKUP(F56,'Cronograma HIPO'!$I$35:$X$394,16,0),"") -> 2362.810307
D57: 7 | F57: =INDEX('Cronograma HIPO'!$I$35:$I$394,MATCH(F56,'Cronograma HIPO'!$I$35:$I$394,0)+1,1) -> 2025-11-07 | G57: =+IFERROR(VLOOKUP(F57,'Cronograma HIPO'!$I$35:$K$394,3,0),"") -> 248819.5889 | H57: =+IFERROR(VLOOKUP(F57,'Cronograma HIPO'!$I$35:$Q$394,9,0),"") -> 352.4957566 | J57: =+IFERROR(VLOOKUP(F57,'Cronograma HIPO'!$I$35:$S$394,11,0),"") -> 1853.322749 | L57: =+IFERROR(VLOOKUP(F57,'Cronograma HIPO'!$I$35:$T$394,12,0),"") -> 71.99180107 | N57: =+IFERROR(VLOOKUP(F57,'Cronograma HIPO'!$I$35:$U$394,13,0),"") -> 85 | O57: =+IFERROR(VLOOKUP(F57,'Cronograma HIPO'!$I$35:$X$394,16,0),"") -> 2362.810307
D58: 8 | F58: =INDEX('Cronograma HIPO'!$I$35:$I$394,MATCH(F57,'Cronograma HIPO'!$I$35:$I$394,0)+1,1) -> 2025-12-07 | G58: =+IFERROR(VLOOKUP(F58,'Cronograma HIPO'!$I$35:$K$394,3,0),"") -> 248467.0932 | H58: =+IFERROR(VLOOKUP(F58,'Cronograma HIPO'!$I$35:$Q$394,9,0),"") -> 417.4568464 | J58: =+IFERROR(VLOOKUP(F58,'Cronograma HIPO'!$I$35:$S$394,11,0),"") -> 1790.782674 | L58: =+IFERROR(VLOOKUP(F58,'Cronograma HIPO'!$I$35:$T$394,12,0),"") -> 69.57078609 | N58: =+IFERROR(VLOOKUP(F58,'Cronograma HIPO'!$I$35:$U$394,13,0),"") -> 85 | O58: =+IFERROR(VLOOKUP(F58,'Cronograma HIPO'!$I$35:$X$394,16,0),"") -> 2362.810307
D59: 9 | F59: =INDEX('Cronograma HIPO'!$I$35:$I$394,MATCH(F58,'Cronograma HIPO'!$I$35:$I$394,0)+1,1) -> 2026-01-07 | G59: =+IFERROR(VLOOKUP(F59,'Cronograma HIPO'!$I$35:$K$394,3,0),"") -> 248049.6363 | H59: =+IFERROR(VLOOKUP(F59,'Cronograma HIPO'!$I$35:$Q$394,9,0),"") -> 358.4534907 | J59: =+IFERROR(VLOOKUP(F59,'Cronograma HIPO'!$I$35:$S$394,11,0),"") -> 1847.587788 | L59: =+IFERROR(VLOOKUP(F59,'Cronograma HIPO'!$I$35:$T$394,12,0),"") -> 71.76902811 | N59: =+IFERROR(VLOOKUP(F59,'Cronograma HIPO'!$I$35:$U$394,13,0),"") -> 85 | O59: =+IFERROR(VLOOKUP(F59,'Cronograma HIPO'!$I$35:$X$394,16,0),"") -> 2362.810307
D60: 10 | F60: =INDEX('Cronograma HIPO'!$I$35:$I$394,MATCH(F59,'Cronograma HIPO'!$I$35:$I$394,0)+1,1) -> 2026-02-07 | G60: =+IFERROR(VLOOKUP(F60,'Cronograma HIPO'!$I$35:$K$394,3,0),"") -> 247691.1828 | H60: =+IFERROR(VLOOKUP(F60,'Cronograma HIPO'!$I$35:$Q$394,9,0),"") -> 361.2271297 | J60: =+IFERROR(VLOOKUP(F60,'Cronograma HIPO'!$I$35:$S$394,11,0),"") -> 1844.917861 | L60: =+IFERROR(VLOOKUP(F60,'Cronograma HIPO'!$I$35:$T$394,12,0),"") -> 71.66531557 | N60: =+IFERROR(VLOOKUP(F60,'Cronograma HIPO'!$I$35:$U$394,13,0),"") -> 85 | O60: =+IFERROR(VLOOKUP(F60,'Cronograma HIPO'!$I$35:$X$394,16,0),"") -> 2362.810307
D61: 11 | F61: =+IFERROR(VLOOKUP(D61,'Cronograma HIPO'!$C$35:$I$394,7,0),"") -> 2026-03-07 | G61: =+IFERROR(VLOOKUP(D61,'Cronograma HIPO'!$C$35:$K$394,9,0),"") -> 247329.9557 | H61: =+IFERROR(VLOOKUP(D61,'Cronograma HIPO'!$C$35:$Q$394,15,0),"") -> 549.8256037 | J61: =+IFERROR(VLOOKUP(D61,'Cronograma HIPO'!$C$35:$R$394,16,0),"") -> 1727.984703 | L61: =+IFERROR(VLOOKUP(D61,'Cronograma HIPO'!$C$35:$T$394,18,0),"") -> 64.63556176 | N61: =+IFERROR(VLOOKUP(D61,'Cronograma HIPO'!$C$35:$U$394,19,0),"") -> 85 | O61: =+IFERROR(VLOOKUP(D61,'Cronograma HIPO'!$C$35:$X$394,22,0),"") -> 2362.810307
D62: 12 | F62: =+IFERROR(VLOOKUP(D62,'Cronograma HIPO'!$C$35:$I$394,7,0),"") -> 2026-04-07 | G62: =+IFERROR(VLOOKUP(D62,'Cronograma HIPO'!$C$35:$K$394,9,0),"") -> 246780.1301 | H62: =+IFERROR(VLOOKUP(D62,'Cronograma HIPO'!$C$35:$Q$394,15,0),"") -> 368.2766675 | J62: =+IFERROR(VLOOKUP(D62,'Cronograma HIPO'!$C$35:$R$394,16,0),"") -> 1909.533639 | L62: =+IFERROR(VLOOKUP(D62,'Cronograma HIPO'!$C$35:$T$394,18,0),"") -> 71.40171765 | N62: =+IFERROR(VLOOKUP(D62,'Cronograma HIPO'!$C$35:$U$394,19,0),"") -> 85 | O62: =+IFERROR(VLOOKUP(D62,'Cronograma HIPO'!$C$35:$X$394,22,0),"") -> 2362.810307
D63: 13 | F63: =+IFERROR(VLOOKUP(D63,'Cronograma HIPO'!$C$35:$I$394,7,0),"") -> 2026-05-07 | G63: =+IFERROR(VLOOKUP(D63,'Cronograma HIPO'!$C$35:$K$394,9,0),"") -> 246411.8534 | H63: =+IFERROR(VLOOKUP(D63,'Cronograma HIPO'!$C$35:$Q$394,15,0),"") -> 432.8450908 | J63: =+IFERROR(VLOOKUP(D63,'Cronograma HIPO'!$C$35:$R$394,16,0),"") -> 1844.965216 | L63: =+IFERROR(VLOOKUP(D63,'Cronograma HIPO'!$C$35:$T$394,18,0),"") -> 68.99531896 | N63: =+IFERROR(VLOOKUP(D63,'Cronograma HIPO'!$C$35:$U$394,19,0),"") -> 85 | O63: =+IFERROR(VLOOKUP(D63,'Cronograma HIPO'!$C$35:$X$394,22,0),"") -> 2362.810307
D64: 14 | F64: =+IFERROR(VLOOKUP(D64,'Cronograma HIPO'!$C$35:$I$394,7,0),"") -> 2026-06-07 | G64: =+IFERROR(VLOOKUP(D64,'Cronograma HIPO'!$C$35:$K$394,9,0),"") -> 245979.0084 | H64: =+IFERROR(VLOOKUP(D64,'Cronograma HIPO'!$C$35:$Q$394,15,0),"") -> 374.475582 | J64: =+IFERROR(VLOOKUP(D64,'Cronograma HIPO'!$C$35:$R$394,16,0),"") -> 1903.334724 | L64: =+IFERROR(VLOOKUP(D64,'Cronograma HIPO'!$C$35:$T$394,18,0),"") -> 71.16992642 | N64: =+IFERROR(VLOOKUP(D64,'Cronograma HIPO'!$C$35:$U$394,19,0),"") -> 85 | O64: =+IFERROR(VLOOKUP(D64,'Cronograma HIPO'!$C$35:$X$394,22,0),"") -> 2362.810307
D65: 15 | F65: =+IFERROR(VLOOKUP(D65,'Cronograma HIPO'!$C$35:$I$394,7,0),"") -> 2026-07-07 | G65: =+IFERROR(VLOOKUP(D65,'Cronograma HIPO'!$C$35:$K$394,9,0),"") -> 245604.5328 | H65: =+IFERROR(VLOOKUP(D65,'Cronograma HIPO'!$C$35:$Q$394,15,0),"") -> 438.8897617 | J65: =+IFERROR(VLOOKUP(D65,'Cronograma HIPO'!$C$35:$R$394,16,0),"") -> 1838.920545 | L65: =+IFERROR(VLOOKUP(D65,'Cronograma HIPO'!$C$35:$T$394,18,0),"") -> 68.76926918 | N65: =+IFERROR(VLOOKUP(D65,'Cronograma HIPO'!$C$35:$U$394,19,0),"") -> 85 | O65: =+IFERROR(VLOOKUP(D65,'Cronograma HIPO'!$C$35:$X$394,22,0),"") -> 2362.810307
D66: 16 | F66: =+IFERROR(VLOOKUP(D66,'Cronograma HIPO'!$C$35:$I$394,7,0),"") -> 2026-08-07 | G66: =+IFERROR(VLOOKUP(D66,'Cronograma HIPO'!$C$35:$K$394,9,0),"") -> 245165.643 | H66: =+IFERROR(VLOOKUP(D66,'Cronograma HIPO'!$C$35:$Q$394,15,0),"") -> 380.769235 | J66: =+IFERROR(VLOOKUP(D66,'Cronograma HIPO'!$C$35:$R$394,16,0),"") -> 1897.041072 | L66: =+IFERROR(VLOOKUP(D66,'Cronograma HIPO'!$C$35:$T$394,18,0),"") -> 70.93459271 | N66: =+IFERROR(VLOOKUP(D66,'Cronograma HIPO'!$C$35:$U$394,19,0),"") -> 85 | O66: =+IFERROR(VLOOKUP(D66,'Cronograma HIPO'!$C$35:$X$394,22,0),"") -> 2362.810307
D67: 17 | F67: =+IFERROR(VLOOKUP(D67,'Cronograma HIPO'!$C$35:$I$394,7,0),"") -> 2026-09-07 | G67: =+IFERROR(VLOOKUP(D67,'Cronograma HIPO'!$C$35:$K$394,9,0),"") -> 244784.8738 | H67: =+IFERROR(VLOOKUP(D67,'Cronograma HIPO'!$C$35:$Q$394,15,0),"") -> 383.7155486 | J67: =+IFERROR(VLOOKUP(D67,'Cronograma HIPO'!$C$35:$R$394,16,0),"") -> 1894.094758 | L67: =+IFERROR(VLOOKUP(D67,'Cronograma HIPO'!$C$35:$T$394,18,0),"") -> 70.82442348 | N67: =+IFERROR(VLOOKUP(D67,'Cronograma HIPO'!$C$35:$U$394,19,0),"") -> 85 | O67: =+IFERROR(VLOOKUP(D67,'Cronograma HIPO'!$C$35:$X$394,22,0),"") -> 2362.810307
D68: 18 | F68: =+IFERROR(VLOOKUP(D68,'Cronograma HIPO'!$C$35:$I$394,7,0),"") -> 2026-10-07 | G68: =+IFERROR(VLOOKUP(D68,'Cronograma HIPO'!$C$35:$K$394,9,0),"") -> 244401.1582 | H68: =+IFERROR(VLOOKUP(D68,'Cronograma HIPO'!$C$35:$Q$394,15,0),"") -> 447.899816 | J68: =+IFERROR(VLOOKUP(D68,'Cronograma HIPO'!$C$35:$R$394,16,0),"") -> 1829.91049 | L68: =+IFERROR(VLOOKUP(D68,'Cronograma HIPO'!$C$35:$T$394,18,0),"") -> 68.4323243 | N68: =+IFERROR(VLOOKUP(D68,'Cronograma HIPO'!$C$35:$U$394,19,0),"") -> 85 | O68: =+IFERROR(VLOOKUP(D68,'Cronograma HIPO'!$C$35:$X$394,22,0),"") -> 2362.810307
D69: 19 | F69: =+IFERROR(VLOOKUP(D69,'Cronograma HIPO'!$C$35:$I$394,7,0),"") -> 2026-11-07 | G69: =+IFERROR(VLOOKUP(D69,'Cronograma HIPO'!$C$35:$K$394,9,0),"") -> 243953.2584 | H69: =+IFERROR(VLOOKUP(D69,'Cronograma HIPO'!$C$35:$Q$394,15,0),"") -> 390.1504164 | J69: =+IFERROR(VLOOKUP(D69,'Cronograma HIPO'!$C$35:$R$394,16,0),"") -> 1887.65989 | L69: =+IFERROR(VLOOKUP(D69,'Cronograma HIPO'!$C$35:$T$394,18,0),"") -> 70.58380943 | N69: =+IFERROR(VLOOKUP(D69,'Cronograma HIPO'!$C$35:$U$394,19,0),"") -> 85 | O69: =+IFERROR(VLOOKUP(D69,'Cronograma HIPO'!$C$35:$X$394,22,0),"") -> 2362.810307
D70: 20 | F70: =+IFERROR(VLOOKUP(D70,'Cronograma HIPO'!$C$35:$I$394,7,0),"") -> 2026-12-07 | G70: =+IFERROR(VLOOKUP(D70,'Cronograma HIPO'!$C$35:$K$394,9,0),"") -> 243563.108 | H70: =+IFERROR(VLOOKUP(D70,'Cronograma HIPO'!$C$35:$Q$394,15,0),"") -> 454.1745691 | J70: =+IFERROR(VLOOKUP(D70,'Cronograma HIPO'!$C$35:$R$394,16,0),"") -> 1823.635737 | L70: =+IFERROR(VLOOKUP(D70,'Cronograma HIPO'!$C$35:$T$394,18,0),"") -> 68.19767024 | N70: =+IFERROR(VLOOKUP(D70,'Cronograma HIPO'!$C$35:$U$394,19,0),"") -> 85 | O70: =+IFERROR(VLOOKUP(D70,'Cronograma HIPO'!$C$35:$X$394,22,0),"") -> 2362.810307
D71: 21 | F71: =+IFERROR(VLOOKUP(D71,'Cronograma HIPO'!$C$35:$I$394,7,0),"") -> 2027-01-07 | G71: =+IFERROR(VLOOKUP(D71,'Cronograma HIPO'!$C$35:$K$394,9,0),"") -> 243108.9334 | H71: =+IFERROR(VLOOKUP(D71,'Cronograma HIPO'!$C$35:$Q$394,15,0),"") -> 396.6836286 | J71: =+IFERROR(VLOOKUP(D71,'Cronograma HIPO'!$C$35:$R$394,16,0),"") -> 1881.126678 | L71: =+IFERROR(VLOOKUP(D71,'Cronograma HIPO'!$C$35:$T$394,18,0),"") -> 70.33951807 | N71: =+IFERROR(VLOOKUP(D71,'Cronograma HIPO'!$C$35:$U$394,19,0),"") -> 85 | O71: =+IFERROR(VLOOKUP(D71,'Cronograma HIPO'!$C$35:$X$394,22,0),"") -> 2362.810307
D72: 22 | F72: =+IFERROR(VLOOKUP(D72,'Cronograma HIPO'!$C$35:$I$394,7,0),"") -> 2027-02-07 | G72: =+IFERROR(VLOOKUP(D72,'Cronograma HIPO'!$C$35:$K$394,9,0),"") -> 242712.2498 | H72: =+IFERROR(VLOOKUP(D72,'Cronograma HIPO'!$C$35:$Q$394,15,0),"") -> 399.7530845 | J72: =+IFERROR(VLOOKUP(D72,'Cronograma HIPO'!$C$35:$R$394,16,0),"") -> 1878.057222 | L72: =+IFERROR(VLOOKUP(D72,'Cronograma HIPO'!$C$35:$T$394,18,0),"") -> 70.22474427 | N72: =+IFERROR(VLOOKUP(D72,'Cronograma HIPO'!$C$35:$U$394,19,0),"") -> 85 | O72: =+IFERROR(VLOOKUP(D72,'Cronograma HIPO'!$C$35:$X$394,22,0),"") -> 2362.810307
D73: 23 | F73: =+IFERROR(VLOOKUP(D73,'Cronograma HIPO'!$C$35:$I$394,7,0),"") -> 2027-03-07 | G73: =+IFERROR(VLOOKUP(D73,'Cronograma HIPO'!$C$35:$K$394,9,0),"") -> 242312.4967 | H73: =+IFERROR(VLOOKUP(D73,'Cronograma HIPO'!$C$35:$Q$394,15,0),"") -> 584.8803644 | J73: =+IFERROR(VLOOKUP(D73,'Cronograma HIPO'!$C$35:$R$394,16,0),"") -> 1692.929942 | L73: =+IFERROR(VLOOKUP(D73,'Cronograma HIPO'!$C$35:$T$394,18,0),"") -> 63.32433247 | N73: =+IFERROR(VLOOKUP(D73,'Cronograma HIPO'!$C$35:$U$394,19,0),"") -> 85 | O73: =+IFERROR(VLOOKUP(D73,'Cronograma HIPO'!$C$35:$X$394,22,0),"") -> 2362.810307
D74: 24 | F74: =+IFERROR(VLOOKUP(D74,'Cronograma HIPO'!$C$35:$I$394,7,0),"") -> 2027-04-07 | G74: =+IFERROR(VLOOKUP(D74,'Cronograma HIPO'!$C$35:$K$394,9,0),"") -> 241727.6163 | H74: =+IFERROR(VLOOKUP(D74,'Cronograma HIPO'!$C$35:$Q$394,15,0),"") -> 407.3719747 | J74: =+IFERROR(VLOOKUP(D74,'Cronograma HIPO'!$C$35:$R$394,16,0),"") -> 1870.438332 | L74: =+IFERROR(VLOOKUP(D74,'Cronograma HIPO'!$C$35:$T$394,18,0),"") -> 69.939857 | N74: =+IFERROR(VLOOKUP(D74,'Cronograma HIPO'!$C$35:$U$394,19,0),"") -> 85 | O74: =+IFERROR(VLOOKUP(D74,'Cronograma HIPO'!$C$35:$X$394,22,0),"") -> 2362.810307
D75: 25 | F75: =+IFERROR(VLOOKUP(D75,'Cronograma HIPO'!$C$35:$I$394,7,0),"") -> 2027-05-07 | G75: =+IFERROR(VLOOKUP(D75,'Cronograma HIPO'!$C$35:$K$394,9,0),"") -> 241320.2444 | H75: =+IFERROR(VLOOKUP(D75,'Cronograma HIPO'!$C$35:$Q$394,15,0),"") -> 470.9676142 | J75: =+IFERROR(VLOOKUP(D75,'Cronograma HIPO'!$C$35:$R$394,16,0),"") -> 1806.842692 | L75: =+IFERROR(VLOOKUP(D75,'Cronograma HIPO'!$C$35:$T$394,18,0),"") -> 67.56966842 | N75: =+IFERROR(VLOOKUP(D75,'Cronograma HIPO'!$C$35:$U$394,19,0),"") -> 85 | O75: =+IFERROR(VLOOKUP(D75,'Cronograma HIPO'!$C$35:$X$394,22,0),"") -> 2362.810307
D76: 26 | F76: =+IFERROR(VLOOKUP(D76,'Cronograma HIPO'!$C$35:$I$394,7,0),"") -> 2027-06-07 | G76: =+IFERROR(VLOOKUP(D76,'Cronograma HIPO'!$C$35:$K$394,9,0),"") -> 240849.2768 | H76: =+IFERROR(VLOOKUP(D76,'Cronograma HIPO'!$C$35:$Q$394,15,0),"") -> 414.1683848 | J76: =+IFERROR(VLOOKUP(D76,'Cronograma HIPO'!$C$35:$R$394,16,0),"") -> 1863.641922 | L76: =+IFERROR(VLOOKUP(D76,'Cronograma HIPO'!$C$35:$T$394,18,0),"") -> 69.68572408 | N76: =+IFERROR(VLOOKUP(D76,'Cronograma HIPO'!$C$35:$U$394,19,0),"") -> 85 | O76: =+IFERROR(VLOOKUP(D76,'Cronograma HIPO'!$C$35:$X$394,22,0),"") -> 2362.810307
D77: 27 | F77: =+IFERROR(VLOOKUP(D77,'Cronograma HIPO'!$C$35:$I$394,7,0),"") -> 2027-07-07 | G77: =+IFERROR(VLOOKUP(D77,'Cronograma HIPO'!$C$35:$K$394,9,0),"") -> 240435.1084 | H77: =+IFERROR(VLOOKUP(D77,'Cronograma HIPO'!$C$35:$Q$394,15,0),"") -> 477.5949136 | J77: =+IFERROR(VLOOKUP(D77,'Cronograma HIPO'!$C$35:$R$394,16,0),"") -> 1800.215393 | L77: =+IFERROR(VLOOKUP(D77,'Cronograma HIPO'!$C$35:$T$394,18,0),"") -> 67.32183034 | N77: =+IFERROR(VLOOKUP(D77,'Cronograma HIPO'!$C$35:$U$394,19,0),"") -> 85 | O77: =+IFERROR(VLOOKUP(D77,'Cronograma HIPO'!$C$35:$X$394,22,0),"") -> 2362.810307
D78: 28 | F78: =+IFERROR(VLOOKUP(D78,'Cronograma HIPO'!$C$35:$I$394,7,0),"") -> 2027-08-07 | G78: =+IFERROR(VLOOKUP(D78,'Cronograma HIPO'!$C$35:$K$394,9,0),"") -> 239957.5135 | H78: =+IFERROR(VLOOKUP(D78,'Cronograma HIPO'!$C$35:$Q$394,15,0),"") -> 421.0686649 | J78: =+IFERROR(VLOOKUP(D78,'Cronograma HIPO'!$C$35:$R$394,16,0),"") -> 1856.741642 | L78: =+IFERROR(VLOOKUP(D78,'Cronograma HIPO'!$C$35:$T$394,18,0),"") -> 69.42770723 | N78: =+IFERROR(VLOOKUP(D78,'Cronograma HIPO'!$C$35:$U$394,19,0),"") -> 85 | O78: =+IFERROR(VLOOKUP(D78,'Cronograma HIPO'!$C$35:$X$394,22,0),"") -> 2362.810307
D79: 29 | F79: =+IFERROR(VLOOKUP(D79,'Cronograma HIPO'!$C$35:$I$394,7,0),"") -> 2027-09-07 | G79: =+IFERROR(VLOOKUP(D79,'Cronograma HIPO'!$C$35:$K$394,9,0),"") -> 239536.4448 | H79: =+IFERROR(VLOOKUP(D79,'Cronograma HIPO'!$C$35:$Q$394,15,0),"") -> 424.3268072 | J79: =+IFERROR(VLOOKUP(D79,'Cronograma HIPO'!$C$35:$R$394,16,0),"") -> 1853.483499 | L79: =+IFERROR(VLOOKUP(D79,'Cronograma HIPO'!$C$35:$T$394,18,0),"") -> 69.30587803 | N79: =+IFERROR(VLOOKUP(D79,'Cronograma HIPO'!$C$35:$U$394,19,0),"") -> 85 | O79: =+IFERROR(VLOOKUP(D79,'Cronograma HIPO'!$C$35:$X$394,22,0),"") -> 2362.810307
D80: 30 | F80: =+IFERROR(VLOOKUP(D80,'Cronograma HIPO'!$C$35:$I$394,7,0),"") -> 2027-10-07 | G80: =+IFERROR(VLOOKUP(D80,'Cronograma HIPO'!$C$35:$K$394,9,0),"") -> 239112.118 | H80: =+IFERROR(VLOOKUP(D80,'Cronograma HIPO'!$C$35:$Q$394,15,0),"") -> 487.5005703 | J80: =+IFERROR(VLOOKUP(D80,'Cronograma HIPO'!$C$35:$R$394,16,0),"") -> 1790.309736 | L80: =+IFERROR(VLOOKUP(D80,'Cronograma HIPO'!$C$35:$T$394,18,0),"") -> 66.95139304 | N80: =+IFERROR(VLOOKUP(D80,'Cronograma HIPO'!$C$35:$U$394,19,0),"") -> 85 | O80: =+IFERROR(VLOOKUP(D80,'Cronograma HIPO'!$C$35:$X$394,22,0),"") -> 2362.810307
D81: 31 | F81: =+IFERROR(VLOOKUP(D81,'Cronograma HIPO'!$C$35:$I$394,7,0),"") -> 2027-11-07 | G81: =+IFERROR(VLOOKUP(D81,'Cronograma HIPO'!$C$35:$K$394,9,0),"") -> 238624.6174 | H81: =+IFERROR(VLOOKUP(D81,'Cronograma HIPO'!$C$35:$Q$394,15,0),"") -> 431.382339 | J81: =+IFERROR(VLOOKUP(D81,'Cronograma HIPO'!$C$35:$R$394,16,0),"") -> 1846.427968 | L81: =+IFERROR(VLOOKUP(D81,'Cronograma HIPO'!$C$35:$T$394,18,0),"") -> 69.04205597 | N81: =+IFERROR(VLOOKUP(D81,'Cronograma HIPO'!$C$35:$U$394,19,0),"") -> 85 | O81: =+IFERROR(VLOOKUP(D81,'Cronograma HIPO'!$C$35:$X$394,22,0),"") -> 2362.810307
D82: 32 | F82: =+IFERROR(VLOOKUP(D82,'Cronograma HIPO'!$C$35:$I$394,7,0),"") -> 2027-12-07 | G82: =+IFERROR(VLOOKUP(D82,'Cronograma HIPO'!$C$35:$K$394,9,0),"") -> 238193.2351 | H82: =+IFERROR(VLOOKUP(D82,'Cronograma HIPO'!$C$35:$Q$394,15,0),"") -> 494.3805438 | J82: =+IFERROR(VLOOKUP(D82,'Cronograma HIPO'!$C$35:$R$394,16,0),"") -> 1783.429763 | L82: =+IFERROR(VLOOKUP(D82,'Cronograma HIPO'!$C$35:$T$394,18,0),"") -> 66.69410582 | N82: =+IFERROR(VLOOKUP(D82,'Cronograma HIPO'!$C$35:$U$394,19,0),"") -> 85 | O82: =+IFERROR(VLOOKUP(D82,'Cronograma HIPO'!$C$35:$X$394,22,0),"") -> 2362.810307
D83: 33 | F83: =+IFERROR(VLOOKUP(D83,'Cronograma HIPO'!$C$35:$I$394,7,0),"") -> 2028-01-07 | G83: =+IFERROR(VLOOKUP(D83,'Cronograma HIPO'!$C$35:$K$394,9,0),"") -> 237698.8545 | H83: =+IFERROR(VLOOKUP(D83,'Cronograma HIPO'!$C$35:$Q$394,15,0),"") -> 438.5457008 | J83: =+IFERROR(VLOOKUP(D83,'Cronograma HIPO'!$C$35:$R$394,16,0),"") -> 1839.264606 | L83: =+IFERROR(VLOOKUP(D83,'Cronograma HIPO'!$C$35:$T$394,18,0),"") -> 68.77420191 | N83: =+IFERROR(VLOOKUP(D83,'Cronograma HIPO'!$C$35:$U$394,19,0),"") -> 85 | O83: =+IFERROR(VLOOKUP(D83,'Cronograma HIPO'!$C$35:$X$394,22,0),"") -> 2362.810307
D84: 34 | F84: =+IFERROR(VLOOKUP(D84,'Cronograma HIPO'!$C$35:$I$394,7,0),"") -> 2028-02-07 | G84: =+IFERROR(VLOOKUP(D84,'Cronograma HIPO'!$C$35:$K$394,9,0),"") -> 237260.3088 | H84: =+IFERROR(VLOOKUP(D84,'Cronograma HIPO'!$C$35:$Q$394,15,0),"") -> 441.9390768 | J84: =+IFERROR(VLOOKUP(D84,'Cronograma HIPO'!$C$35:$R$394,16,0),"") -> 1835.87123 | L84: =+IFERROR(VLOOKUP(D84,'Cronograma HIPO'!$C$35:$T$394,18,0),"") -> 68.64731602 | N84: =+IFERROR(VLOOKUP(D84,'Cronograma HIPO'!$C$35:$U$394,19,0),"") -> 85 | O84: =+IFERROR(VLOOKUP(D84,'Cronograma HIPO'!$C$35:$X$394,22,0),"") -> 2362.810307
D85: 35 | F85: =+IFERROR(VLOOKUP(D85,'Cronograma HIPO'!$C$35:$I$394,7,0),"") -> 2028-03-07 | G85: =+IFERROR(VLOOKUP(D85,'Cronograma HIPO'!$C$35:$K$394,9,0),"") -> 236818.3698 | H85: =+IFERROR(VLOOKUP(D85,'Cronograma HIPO'!$C$35:$Q$394,15,0),"") -> 563.9768314 | J85: =+IFERROR(VLOOKUP(D85,'Cronograma HIPO'!$C$35:$R$394,16,0),"") -> 1713.833475 | L85: =+IFERROR(VLOOKUP(D85,'Cronograma HIPO'!$C$35:$T$394,18,0),"") -> 64.09883875 | N85: =+IFERROR(VLOOKUP(D85,'Cronograma HIPO'!$C$35:$U$394,19,0),"") -> 85 | O85: =+IFERROR(VLOOKUP(D85,'Cronograma HIPO'!$C$35:$X$394,22,0),"") -> 2362.810307
D86: 36 | F86: =+IFERROR(VLOOKUP(D86,'Cronograma HIPO'!$C$35:$I$394,7,0),"") -> 2028-04-07 | G86: =+IFERROR(VLOOKUP(D86,'Cronograma HIPO'!$C$35:$K$394,9,0),"") -> 236254.3929 | H86: =+IFERROR(VLOOKUP(D86,'Cronograma HIPO'!$C$35:$Q$394,15,0),"") -> 449.7226462 | J86: =+IFERROR(VLOOKUP(D86,'Cronograma HIPO'!$C$35:$R$394,16,0),"") -> 1828.08766 | L86: =+IFERROR(VLOOKUP(D86,'Cronograma HIPO'!$C$35:$T$394,18,0),"") -> 68.35627102 | N86: =+IFERROR(VLOOKUP(D86,'Cronograma HIPO'!$C$35:$U$394,19,0),"") -> 85 | O86: =+IFERROR(VLOOKUP(D86,'Cronograma HIPO'!$C$35:$X$394,22,0),"") -> 2362.810307
D87: 37 | F87: =+IFERROR(VLOOKUP(D87,'Cronograma HIPO'!$C$35:$I$394,7,0),"") -> 2028-05-07 | G87: =+IFERROR(VLOOKUP(D87,'Cronograma HIPO'!$C$35:$K$394,9,0),"") -> 235804.6703 | H87: =+IFERROR(VLOOKUP(D87,'Cronograma HIPO'!$C$35:$Q$394,15,0),"") -> 512.2645007 | J87: =+IFERROR(VLOOKUP(D87,'Cronograma HIPO'!$C$35:$R$394,16,0),"") -> 1765.545806 | L87: =+IFERROR(VLOOKUP(D87,'Cronograma HIPO'!$C$35:$T$394,18,0),"") -> 66.02530768 | N87: =+IFERROR(VLOOKUP(D87,'Cronograma HIPO'!$C$35:$U$394,19,0),"") -> 85 | O87: =+IFERROR(VLOOKUP(D87,'Cronograma HIPO'!$C$35:$X$394,22,0),"") -> 2362.810307
D88: 38 | F88: =+IFERROR(VLOOKUP(D88,'Cronograma HIPO'!$C$35:$I$394,7,0),"") -> 2028-06-07 | G88: =+IFERROR(VLOOKUP(D88,'Cronograma HIPO'!$C$35:$K$394,9,0),"") -> 235292.4058 | H88: =+IFERROR(VLOOKUP(D88,'Cronograma HIPO'!$C$35:$Q$394,15,0),"") -> 457.1663039 | J88: =+IFERROR(VLOOKUP(D88,'Cronograma HIPO'!$C$35:$R$394,16,0),"") -> 1820.644003 | L88: =+IFERROR(VLOOKUP(D88,'Cronograma HIPO'!$C$35:$T$394,18,0),"") -> 68.07793607 | N88: =+IFERROR(VLOOKUP(D88,'Cronograma HIPO'!$C$35:$U$394,19,0),"") -> 85 | O88: =+IFERROR(VLOOKUP(D88,'Cronograma HIPO'!$C$35:$X$394,22,0),"") -> 2362.810307
D89: 39 | F89: =+IFERROR(VLOOKUP(D89,'Cronograma HIPO'!$C$35:$I$394,7,0),"") -> 2028-07-07 | G89: =+IFERROR(VLOOKUP(D89,'Cronograma HIPO'!$C$35:$K$394,9,0),"") -> 234835.2395 | H89: =+IFERROR(VLOOKUP(D89,'Cronograma HIPO'!$C$35:$Q$394,15,0),"") -> 519.5229425 | J89: =+IFERROR(VLOOKUP(D89,'Cronograma HIPO'!$C$35:$R$394,16,0),"") -> 1758.287364 | L89: =+IFERROR(VLOOKUP(D89,'Cronograma HIPO'!$C$35:$T$394,18,0),"") -> 65.75386705 | N89: =+IFERROR(VLOOKUP(D89,'Cronograma HIPO'!$C$35:$U$394,19,0),"") -> 85 | O89: =+IFERROR(VLOOKUP(D89,'Cronograma HIPO'!$C$35:$X$394,22,0),"") -> 2362.810307
D90: 40 | F90: =+IFERROR(VLOOKUP(D90,'Cronograma HIPO'!$C$35:$I$394,7,0),"") -> 2028-08-07 | G90: =+IFERROR(VLOOKUP(D90,'Cronograma HIPO'!$C$35:$K$394,9,0),"") -> 234315.7165 | H90: =+IFERROR(VLOOKUP(D90,'Cronograma HIPO'!$C$35:$Q$394,15,0),"") -> 464.7237234 | J90: =+IFERROR(VLOOKUP(D90,'Cronograma HIPO'!$C$35:$R$394,16,0),"") -> 1813.086583 | L90: =+IFERROR(VLOOKUP(D90,'Cronograma HIPO'!$C$35:$T$394,18,0),"") -> 67.79534732 | N90: =+IFERROR(VLOOKUP(D90,'Cronograma HIPO'!$C$35:$U$394,19,0),"") -> 85 | O90: =+IFERROR(VLOOKUP(D90,'Cronograma HIPO'!$C$35:$X$394,22,0),"") -> 2362.810307
D91: 41 | F91: =+IFERROR(VLOOKUP(D91,'Cronograma HIPO'!$C$35:$I$394,7,0),"") -> 2028-09-07 | G91: =+IFERROR(VLOOKUP(D91,'Cronograma HIPO'!$C$35:$K$394,9,0),"") -> 233850.9928 | H91: =+IFERROR(VLOOKUP(D91,'Cronograma HIPO'!$C$35:$Q$394,15,0),"") -> 468.3196596 | J91: =+IFERROR(VLOOKUP(D91,'Cronograma HIPO'!$C$35:$R$394,16,0),"") -> 1809.490647 | L91: =+IFERROR(VLOOKUP(D91,'Cronograma HIPO'!$C$35:$T$394,18,0),"") -> 67.66088725 | N91: =+IFERROR(VLOOKUP(D91,'Cronograma HIPO'!$C$35:$U$394,19,0),"") -> 85 | O91: =+IFERROR(VLOOKUP(D91,'Cronograma HIPO'!$C$35:$X$394,22,0),"") -> 2362.810307
D92: 42 | F92: =+IFERROR(VLOOKUP(D92,'Cronograma HIPO'!$C$35:$I$394,7,0),"") -> 2028-10-07 | G92: =+IFERROR(VLOOKUP(D92,'Cronograma HIPO'!$C$35:$K$394,9,0),"") -> 233382.6732 | H92: =+IFERROR(VLOOKUP(D92,'Cronograma HIPO'!$C$35:$Q$394,15,0),"") -> 530.3987762 | J92: =+IFERROR(VLOOKUP(D92,'Cronograma HIPO'!$C$35:$R$394,16,0),"") -> 1747.41153 | L92: =+IFERROR(VLOOKUP(D92,'Cronograma HIPO'!$C$35:$T$394,18,0),"") -> 65.34714848 | N92: =+IFERROR(VLOOKUP(D92,'Cronograma HIPO'!$C$35:$U$394,19,0),"") -> 85 | O92: =+IFERROR(VLOOKUP(D92,'Cronograma HIPO'!$C$35:$X$394,22,0),"") -> 2362.810307
D93: 43 | F93: =+IFERROR(VLOOKUP(D93,'Cronograma HIPO'!$C$35:$I$394,7,0),"") -> 2028-11-07 | G93: =+IFERROR(VLOOKUP(D93,'Cronograma HIPO'!$C$35:$K$394,9,0),"") -> 232852.2744 | H93: =+IFERROR(VLOOKUP(D93,'Cronograma HIPO'!$C$35:$Q$394,15,0),"") -> 476.0475364 | J93: =+IFERROR(VLOOKUP(D93,'Cronograma HIPO'!$C$35:$R$394,16,0),"") -> 1801.76277 | L93: =+IFERROR(VLOOKUP(D93,'Cronograma HIPO'!$C$35:$T$394,18,0),"") -> 67.37192472 | N93: =+IFERROR(VLOOKUP(D93,'Cronograma HIPO'!$C$35:$U$394,19,0),"") -> 85 | O93: =+IFERROR(VLOOKUP(D93,'Cronograma HIPO'!$C$35:$X$394,22,0),"") -> 2362.810307
D94: 44 | F94: =+IFERROR(VLOOKUP(D94,'Cronograma HIPO'!$C$35:$I$394,7,0),"") -> 2028-12-07 | G94: =+IFERROR(VLOOKUP(D94,'Cronograma HIPO'!$C$35:$K$394,9,0),"") -> 232376.2268 | H94: =+IFERROR(VLOOKUP(D94,'Cronograma HIPO'!$C$35:$Q$394,15,0),"") -> 537.9343652 | J94: =+IFERROR(VLOOKUP(D94,'Cronograma HIPO'!$C$35:$R$394,16,0),"") -> 1739.875941 | L94: =+IFERROR(VLOOKUP(D94,'Cronograma HIPO'!$C$35:$T$394,18,0),"") -> 65.06534351 | N94: =+IFERROR(VLOOKUP(D94,'Cronograma HIPO'!$C$35:$U$394,19,0),"") -> 85 | O94: =+IFERROR(VLOOKUP(D94,'Cronograma HIPO'!$C$35:$X$394,22,0),"") -> 2362.810307
D95: 45 | F95: =+IFERROR(VLOOKUP(D95,'Cronograma HIPO'!$C$35:$I$394,7,0),"") -> 2029-01-07 | G95: =+IFERROR(VLOOKUP(D95,'Cronograma HIPO'!$C$35:$K$394,9,0),"") -> 231838.2925 | H95: =+IFERROR(VLOOKUP(D95,'Cronograma HIPO'!$C$35:$Q$394,15,0),"") -> 483.8935188 | J95: =+IFERROR(VLOOKUP(D95,'Cronograma HIPO'!$C$35:$R$394,16,0),"") -> 1793.916788 | L95: =+IFERROR(VLOOKUP(D95,'Cronograma HIPO'!$C$35:$T$394,18,0),"") -> 67.07854595 | N95: =+IFERROR(VLOOKUP(D95,'Cronograma HIPO'!$C$35:$U$394,19,0),"") -> 85 | O95: =+IFERROR(VLOOKUP(D95,'Cronograma HIPO'!$C$35:$X$394,22,0),"") -> 2362.810307
D96: 46 | F96: =+IFERROR(VLOOKUP(D96,'Cronograma HIPO'!$C$35:$I$394,7,0),"") -> 2029-02-07 | G96: =+IFERROR(VLOOKUP(D96,'Cronograma HIPO'!$C$35:$K$394,9,0),"") -> 231354.399 | H96: =+IFERROR(VLOOKUP(D96,'Cronograma HIPO'!$C$35:$Q$394,15,0),"") -> 487.6377868 | J96: =+IFERROR(VLOOKUP(D96,'Cronograma HIPO'!$C$35:$R$394,16,0),"") -> 1790.17252 | L96: =+IFERROR(VLOOKUP(D96,'Cronograma HIPO'!$C$35:$T$394,18,0),"") -> 66.93853943 | N96: =+IFERROR(VLOOKUP(D96,'Cronograma HIPO'!$C$35:$U$394,19,0),"") -> 85 | O96: =+IFERROR(VLOOKUP(D96,'Cronograma HIPO'!$C$35:$X$394,22,0),"") -> 2362.810307
D97: 47 | F97: =+IFERROR(VLOOKUP(D97,'Cronograma HIPO'!$C$35:$I$394,7,0),"") -> 2029-03-07 | G97: =+IFERROR(VLOOKUP(D97,'Cronograma HIPO'!$C$35:$K$394,9,0),"") -> 230866.7612 | H97: =+IFERROR(VLOOKUP(D97,'Cronograma HIPO'!$C$35:$Q$394,15,0),"") -> 664.8466421 | J97: =+IFERROR(VLOOKUP(D97,'Cronograma HIPO'!$C$35:$R$394,16,0),"") -> 1612.963664 | L97: =+IFERROR(VLOOKUP(D97,'Cronograma HIPO'!$C$35:$T$394,18,0),"") -> 60.33318025 | N97: =+IFERROR(VLOOKUP(D97,'Cronograma HIPO'!$C$35:$U$394,19,0),"") -> 85 | O97: =+IFERROR(VLOOKUP(D97,'Cronograma HIPO'!$C$35:$X$394,22,0),"") -> 2362.810307
D98: 48 | F98: =+IFERROR(VLOOKUP(D98,'Cronograma HIPO'!$C$35:$I$394,7,0),"") -> 2029-04-07 | G98: =+IFERROR(VLOOKUP(D98,'Cronograma HIPO'!$C$35:$K$394,9,0),"") -> 230201.9145 | H98: =+IFERROR(VLOOKUP(D98,'Cronograma HIPO'!$C$35:$Q$394,15,0),"") -> 496.5554731 | J98: =+IFERROR(VLOOKUP(D98,'Cronograma HIPO'!$C$35:$R$394,16,0),"") -> 1781.254833 | L98: =+IFERROR(VLOOKUP(D98,'Cronograma HIPO'!$C$35:$T$394,18,0),"") -> 66.60508727 | N98: =+IFERROR(VLOOKUP(D98,'Cronograma HIPO'!$C$35:$U$394,19,0),"") -> 85 | O98: =+IFERROR(VLOOKUP(D98,'Cronograma HIPO'!$C$35:$X$394,22,0),"") -> 2362.810307
D99: 49 | F99: =+IFERROR(VLOOKUP(D99,'Cronograma HIPO'!$C$35:$I$394,7,0),"") -> 2029-05-07 | G99: =+IFERROR(VLOOKUP(D99,'Cronograma HIPO'!$C$35:$K$394,9,0),"") -> 229705.3591 | H99: =+IFERROR(VLOOKUP(D99,'Cronograma HIPO'!$C$35:$Q$394,15,0),"") -> 557.9320158 | J99: =+IFERROR(VLOOKUP(D99,'Cronograma HIPO'!$C$35:$R$394,16,0),"") -> 1719.878291 | L99: =+IFERROR(VLOOKUP(D99,'Cronograma HIPO'!$C$35:$T$394,18,0),"") -> 64.31750053 | N99: =+IFERROR(VLOOKUP(D99,'Cronograma HIPO'!$C$35:$U$394,19,0),"") -> 85 | O99: =+IFERROR(VLOOKUP(D99,'Cronograma HIPO'!$C$35:$X$394,22,0),"") -> 2362.810307
D100: 50 | F100: =+IFERROR(VLOOKUP(D100,'Cronograma HIPO'!$C$35:$I$394,7,0),"") -> 2029-06-07 | G100: =+IFERROR(VLOOKUP(D100,'Cronograma HIPO'!$C$35:$K$394,9,0),"") -> 229147.427 | H100: =+IFERROR(VLOOKUP(D100,'Cronograma HIPO'!$C$35:$Q$394,15,0),"") -> 504.7148793 | J100: =+IFERROR(VLOOKUP(D100,'Cronograma HIPO'!$C$35:$R$394,16,0),"") -> 1773.095427 | L100: =+IFERROR(VLOOKUP(D100,'Cronograma HIPO'!$C$35:$T$394,18,0),"") -> 66.29998889 | N100: =+IFERROR(VLOOKUP(D100,'Cronograma HIPO'!$C$35:$U$394,19,0),"") -> 85 | O100: =+IFERROR(VLOOKUP(D100,'Cronograma HIPO'!$C$35:$X$394,22,0),"") -> 2362.810307
D101: 51 | F101: =+IFERROR(VLOOKUP(D101,'Cronograma HIPO'!$C$35:$I$394,7,0),"") -> 2029-07-07 | G101: =+IFERROR(VLOOKUP(D101,'Cronograma HIPO'!$C$35:$K$394,9,0),"") -> 228642.7122 | H101: =+IFERROR(VLOOKUP(D101,'Cronograma HIPO'!$C$35:$Q$394,15,0),"") -> 565.8883967 | J101: =+IFERROR(VLOOKUP(D101,'Cronograma HIPO'!$C$35:$R$394,16,0),"") -> 1711.92191 | L101: =+IFERROR(VLOOKUP(D101,'Cronograma HIPO'!$C$35:$T$394,18,0),"") -> 64.0199594 | N101: =+IFERROR(VLOOKUP(D101,'Cronograma HIPO'!$C$35:$U$394,19,0),"") -> 85 | O101: =+IFERROR(VLOOKUP(D101,'Cronograma HIPO'!$C$35:$X$394,22,0),"") -> 2362.810307
D102: 52 | F102: =+IFERROR(VLOOKUP(D102,'Cronograma HIPO'!$C$35:$I$394,7,0),"") -> 2029-08-07 | G102: =+IFERROR(VLOOKUP(D102,'Cronograma HIPO'!$C$35:$K$394,9,0),"") -> 228076.8238 | H102: =+IFERROR(VLOOKUP(D102,'Cronograma HIPO'!$C$35:$Q$394,15,0),"") -> 512.9989862 | J102: =+IFERROR(VLOOKUP(D102,'Cronograma HIPO'!$C$35:$R$394,16,0),"") -> 1764.81132 | L102: =+IFERROR(VLOOKUP(D102,'Cronograma HIPO'!$C$35:$T$394,18,0),"") -> 65.99022767 | N102: =+IFERROR(VLOOKUP(D102,'Cronograma HIPO'!$C$35:$U$394,19,0),"") -> 85 | O102: =+IFERROR(VLOOKUP(D102,'Cronograma HIPO'!$C$35:$X$394,22,0),"") -> 2362.810307
D103: 53 | F103: =+IFERROR(VLOOKUP(D103,'Cronograma HIPO'!$C$35:$I$394,7,0),"") -> 2029-09-07 | G103: =+IFERROR(VLOOKUP(D103,'Cronograma HIPO'!$C$35:$K$394,9,0),"") -> 227563.8248 | H103: =+IFERROR(VLOOKUP(D103,'Cronograma HIPO'!$C$35:$Q$394,15,0),"") -> 516.9684663 | J103: =+IFERROR(VLOOKUP(D103,'Cronograma HIPO'!$C$35:$R$394,16,0),"") -> 1760.84184 | L103: =+IFERROR(VLOOKUP(D103,'Cronograma HIPO'!$C$35:$T$394,18,0),"") -> 65.84179997 | N103: =+IFERROR(VLOOKUP(D103,'Cronograma HIPO'!$C$35:$U$394,19,0),"") -> 85 | O103: =+IFERROR(VLOOKUP(D103,'Cronograma HIPO'!$C$35:$X$394,22,0),"") -> 2362.810307
D104: 54 | F104: =+IFERROR(VLOOKUP(D104,'Cronograma HIPO'!$C$35:$I$394,7,0),"") -> 2029-10-07 | G104: =+IFERROR(VLOOKUP(D104,'Cronograma HIPO'!$C$35:$K$394,9,0),"") -> 227046.8563 | H104: =+IFERROR(VLOOKUP(D104,'Cronograma HIPO'!$C$35:$Q$394,15,0),"") -> 577.8370854 | J104: =+IFERROR(VLOOKUP(D104,'Cronograma HIPO'!$C$35:$R$394,16,0),"") -> 1699.973221 | L104: =+IFERROR(VLOOKUP(D104,'Cronograma HIPO'!$C$35:$T$394,18,0),"") -> 63.57311977 | N104: =+IFERROR(VLOOKUP(D104,'Cronograma HIPO'!$C$35:$U$394,19,0),"") -> 85 | O104: =+IFERROR(VLOOKUP(D104,'Cronograma HIPO'!$C$35:$X$394,22,0),"") -> 2362.810307
D105: 55 | F105: =+IFERROR(VLOOKUP(D105,'Cronograma HIPO'!$C$35:$I$394,7,0),"") -> 2029-11-07 | G105: =+IFERROR(VLOOKUP(D105,'Cronograma HIPO'!$C$35:$K$394,9,0),"") -> 226469.0192 | H105: =+IFERROR(VLOOKUP(D105,'Cronograma HIPO'!$C$35:$Q$394,15,0),"") -> 525.4398454 | J105: =+IFERROR(VLOOKUP(D105,'Cronograma HIPO'!$C$35:$R$394,16,0),"") -> 1752.370461 | L105: =+IFERROR(VLOOKUP(D105,'Cronograma HIPO'!$C$35:$T$394,18,0),"") -> 65.52503623 | N105: =+IFERROR(VLOOKUP(D105,'Cronograma HIPO'!$C$35:$U$394,19,0),"") -> 85 | O105: =+IFERROR(VLOOKUP(D105,'Cronograma HIPO'!$C$35:$X$394,22,0),"") -> 2362.810307
D106: 56 | F106: =+IFERROR(VLOOKUP(D106,'Cronograma HIPO'!$C$35:$I$394,7,0),"") -> 2029-12-07 | G106: =+IFERROR(VLOOKUP(D106,'Cronograma HIPO'!$C$35:$K$394,9,0),"") -> 225943.5794 | H106: =+IFERROR(VLOOKUP(D106,'Cronograma HIPO'!$C$35:$Q$394,15,0),"") -> 586.0976765 | J106: =+IFERROR(VLOOKUP(D106,'Cronograma HIPO'!$C$35:$R$394,16,0),"") -> 1691.71263 | L106: =+IFERROR(VLOOKUP(D106,'Cronograma HIPO'!$C$35:$T$394,18,0),"") -> 63.26420222 | N106: =+IFERROR(VLOOKUP(D106,'Cronograma HIPO'!$C$35:$U$394,19,0),"") -> 85 | O106: =+IFERROR(VLOOKUP(D106,'Cronograma HIPO'!$C$35:$X$394,22,0),"") -> 2362.810307
D107: 57 | F107: =+IFERROR(VLOOKUP(D107,'Cronograma HIPO'!$C$35:$I$394,7,0),"") -> 2030-01-07 | G107: =+IFERROR(VLOOKUP(D107,'Cronograma HIPO'!$C$35:$K$394,9,0),"") -> 225357.4817 | H107: =+IFERROR(VLOOKUP(D107,'Cronograma HIPO'!$C$35:$Q$394,15,0),"") -> 534.040693 | J107: =+IFERROR(VLOOKUP(D107,'Cronograma HIPO'!$C$35:$R$394,16,0),"") -> 1743.769614 | L107: =+IFERROR(VLOOKUP(D107,'Cronograma HIPO'!$C$35:$T$394,18,0),"") -> 65.20343137 | N107: =+IFERROR(VLOOKUP(D107,'Cronograma HIPO'!$C$35:$U$394,19,0),"") -> 85 | O107: =+IFERROR(VLOOKUP(D107,'Cronograma HIPO'!$C$35:$X$394,22,0),"") -> 2362.810307
D108: 58 | F108: =+IFERROR(VLOOKUP(D108,'Cronograma HIPO'!$C$35:$I$394,7,0),"") -> 2030-02-07 | G108: =+IFERROR(VLOOKUP(D108,'Cronograma HIPO'!$C$35:$K$394,9,0),"") -> 224823.441 | H108: =+IFERROR(VLOOKUP(D108,'Cronograma HIPO'!$C$35:$Q$394,15,0),"") -> 538.1729895 | J108: =+IFERROR(VLOOKUP(D108,'Cronograma HIPO'!$C$35:$R$394,16,0),"") -> 1739.637317 | L108: =+IFERROR(VLOOKUP(D108,'Cronograma HIPO'!$C$35:$T$394,18,0),"") -> 65.0489156 | N108: =+IFERROR(VLOOKUP(D108,'Cronograma HIPO'!$C$35:$U$394,19,0),"") -> 85 | O108: =+IFERROR(VLOOKUP(D108,'Cronograma HIPO'!$C$35:$X$394,22,0),"") -> 2362.810307
D109: 59 | F109: =+IFERROR(VLOOKUP(D109,'Cronograma HIPO'!$C$35:$I$394,7,0),"") -> 2030-03-07 | G109: =+IFERROR(VLOOKUP(D109,'Cronograma HIPO'!$C$35:$K$394,9,0),"") -> 224285.268 | H109: =+IFERROR(VLOOKUP(D109,'Cronograma HIPO'!$C$35:$Q$394,15,0),"") -> 710.8286157 | J109: =+IFERROR(VLOOKUP(D109,'Cronograma HIPO'!$C$35:$R$394,16,0),"") -> 1566.981691 | L109: =+IFERROR(VLOOKUP(D109,'Cronograma HIPO'!$C$35:$T$394,18,0),"") -> 58.61321671 | N109: =+IFERROR(VLOOKUP(D109,'Cronograma HIPO'!$C$35:$U$394,19,0),"") -> 85 | O109: =+IFERROR(VLOOKUP(D109,'Cronograma HIPO'!$C$35:$X$394,22,0),"") -> 2362.810307
D110: 60 | F110: =+IFERROR(VLOOKUP(D110,'Cronograma HIPO'!$C$35:$I$394,7,0),"") -> 2030-04-07 | G110: =+IFERROR(VLOOKUP(D110,'Cronograma HIPO'!$C$35:$K$394,9,0),"") -> 223574.4394 | H110: =+IFERROR(VLOOKUP(D110,'Cronograma HIPO'!$C$35:$Q$394,15,0),"") -> 547.8375057 | J110: =+IFERROR(VLOOKUP(D110,'Cronograma HIPO'!$C$35:$R$394,16,0),"") -> 1729.972801 | L110: =+IFERROR(VLOOKUP(D110,'Cronograma HIPO'!$C$35:$T$394,18,0),"") -> 64.6875378 | N110: =+IFERROR(VLOOKUP(D110,'Cronograma HIPO'!$C$35:$U$394,19,0),"") -> 85 | O110: =+IFERROR(VLOOKUP(D110,'Cronograma HIPO'!$C$35:$X$394,22,0),"") -> 2362.810307
D111: 61 | F111: =+IFERROR(VLOOKUP(D111,'Cronograma HIPO'!$C$35:$I$394,7,0),"") -> 2030-05-07 | G111: =+IFERROR(VLOOKUP(D111,'Cronograma HIPO'!$C$35:$K$394,9,0),"") -> 223026.6019 | H111: =+IFERROR(VLOOKUP(D111,'Cronograma HIPO'!$C$35:$Q$394,15,0),"") -> 607.93803 | J111: =+IFERROR(VLOOKUP(D111,'Cronograma HIPO'!$C$35:$R$394,16,0),"") -> 1669.872277 | L111: =+IFERROR(VLOOKUP(D111,'Cronograma HIPO'!$C$35:$T$394,18,0),"") -> 62.44744853 | N111: =+IFERROR(VLOOKUP(D111,'Cronograma HIPO'!$C$35:$U$394,19,0),"") -> 85 | O111: =+IFERROR(VLOOKUP(D111,'Cronograma HIPO'!$C$35:$X$394,22,0),"") -> 2362.810307
D112: 62 | F112: =+IFERROR(VLOOKUP(D112,'Cronograma HIPO'!$C$35:$I$394,7,0),"") -> 2030-06-07 | G112: =+IFERROR(VLOOKUP(D112,'Cronograma HIPO'!$C$35:$K$394,9,0),"") -> 222418.6639 | H112: =+IFERROR(VLOOKUP(D112,'Cronograma HIPO'!$C$35:$Q$394,15,0),"") -> 556.7806579 | J112: =+IFERROR(VLOOKUP(D112,'Cronograma HIPO'!$C$35:$R$394,16,0),"") -> 1721.029649 | L112: =+IFERROR(VLOOKUP(D112,'Cronograma HIPO'!$C$35:$T$394,18,0),"") -> 64.35313341 | N112: =+IFERROR(VLOOKUP(D112,'Cronograma HIPO'!$C$35:$U$394,19,0),"") -> 85 | O112: =+IFERROR(VLOOKUP(D112,'Cronograma HIPO'!$C$35:$X$394,22,0),"") -> 2362.810307
D113: 63 | F113: =+IFERROR(VLOOKUP(D113,'Cronograma HIPO'!$C$35:$I$394,7,0),"") -> 2030-07-07 | G113: =+IFERROR(VLOOKUP(D113,'Cronograma HIPO'!$C$35:$K$394,9,0),"") -> 221861.8832 | H113: =+IFERROR(VLOOKUP(D113,'Cronograma HIPO'!$C$35:$Q$394,15,0),"") -> 616.6586554 | J113: =+IFERROR(VLOOKUP(D113,'Cronograma HIPO'!$C$35:$R$394,16,0),"") -> 1661.151651 | L113: =+IFERROR(VLOOKUP(D113,'Cronograma HIPO'!$C$35:$T$394,18,0),"") -> 62.1213273 | N113: =+IFERROR(VLOOKUP(D113,'Cronograma HIPO'!$C$35:$U$394,19,0),"") -> 85 | O113: =+IFERROR(VLOOKUP(D113,'Cronograma HIPO'!$C$35:$X$394,22,0),"") -> 2362.810307
D114: 64 | F114: =+IFERROR(VLOOKUP(D114,'Cronograma HIPO'!$C$35:$I$394,7,0),"") -> 2030-08-07 | G114: =+IFERROR(VLOOKUP(D114,'Cronograma HIPO'!$C$35:$K$394,9,0),"") -> 221245.2246 | H114: =+IFERROR(VLOOKUP(D114,'Cronograma HIPO'!$C$35:$Q$394,15,0),"") -> 565.8604888 | J114: =+IFERROR(VLOOKUP(D114,'Cronograma HIPO'!$C$35:$R$394,16,0),"") -> 1711.949818 | L114: =+IFERROR(VLOOKUP(D114,'Cronograma HIPO'!$C$35:$T$394,18,0),"") -> 64.0136183 | N114: =+IFERROR(VLOOKUP(D114,'Cronograma HIPO'!$C$35:$U$394,19,0),"") -> 85 | O114: =+IFERROR(VLOOKUP(D114,'Cronograma HIPO'!$C$35:$X$394,22,0),"") -> 2362.810307
D115: 65 | F115: =+IFERROR(VLOOKUP(D115,'Cronograma HIPO'!$C$35:$I$394,7,0),"") -> 2030-09-07 | G115: =+IFERROR(VLOOKUP(D115,'Cronograma HIPO'!$C$35:$K$394,9,0),"") -> 220679.3641 | H115: =+IFERROR(VLOOKUP(D115,'Cronograma HIPO'!$C$35:$Q$394,15,0),"") -> 570.2390003 | J115: =+IFERROR(VLOOKUP(D115,'Cronograma HIPO'!$C$35:$R$394,16,0),"") -> 1707.571306 | L115: =+IFERROR(VLOOKUP(D115,'Cronograma HIPO'!$C$35:$T$394,18,0),"") -> 63.849896 | N115: =+IFERROR(VLOOKUP(D115,'Cronograma HIPO'!$C$35:$U$394,19,0),"") -> 85 | O115: =+IFERROR(VLOOKUP(D115,'Cronograma HIPO'!$C$35:$X$394,22,0),"") -> 2362.810307
D116: 66 | F116: =+IFERROR(VLOOKUP(D116,'Cronograma HIPO'!$C$35:$I$394,7,0),"") -> 2030-10-07 | G116: =+IFERROR(VLOOKUP(D116,'Cronograma HIPO'!$C$35:$K$394,9,0),"") -> 220109.1251 | H116: =+IFERROR(VLOOKUP(D116,'Cronograma HIPO'!$C$35:$Q$394,15,0),"") -> 629.7821223 | J116: =+IFERROR(VLOOKUP(D116,'Cronograma HIPO'!$C$35:$R$394,16,0),"") -> 1648.028184 | L116: =+IFERROR(VLOOKUP(D116,'Cronograma HIPO'!$C$35:$T$394,18,0),"") -> 61.63055502 | N116: =+IFERROR(VLOOKUP(D116,'Cronograma HIPO'!$C$35:$U$394,19,0),"") -> 85 | O116: =+IFERROR(VLOOKUP(D116,'Cronograma HIPO'!$C$35:$X$394,22,0),"") -> 2362.810307
D117: =+IF(D116="", "", IF((D116+1)>$G$19,"", D116+1)) -> 67 | F117: =+IFERROR(VLOOKUP(D117,'Cronograma HIPO'!$C$35:$I$394,7,0),"") -> 2030-11-07 | G117: =+IFERROR(VLOOKUP(D117,'Cronograma HIPO'!$C$35:$K$394,9,0),"") -> 219479.3429 | H117: =+IFERROR(VLOOKUP(D117,'Cronograma HIPO'!$C$35:$Q$394,15,0),"") -> 579.5245157 | J117: =+IFERROR(VLOOKUP(D117,'Cronograma HIPO'!$C$35:$R$394,16,0),"") -> 1698.285791 | L117: =+IFERROR(VLOOKUP(D117,'Cronograma HIPO'!$C$35:$T$394,18,0),"") -> 63.50268989 | N117: =+IFERROR(VLOOKUP(D117,'Cronograma HIPO'!$C$35:$U$394,19,0),"") -> 85 | O117: =+IFERROR(VLOOKUP(D117,'Cronograma HIPO'!$C$35:$X$394,22,0),"") -> 2362.810307
D118: 68 | F118: =+IFERROR(VLOOKUP(D118,'Cronograma HIPO'!$C$35:$I$394,7,0),"") -> 2030-12-07 | G118: =+IFERROR(VLOOKUP(D118,'Cronograma HIPO'!$C$35:$K$394,9,0),"") -> 218899.8184 | H118: =+IFERROR(VLOOKUP(D118,'Cronograma HIPO'!$C$35:$Q$394,15,0),"") -> 638.8365921 | J118: =+IFERROR(VLOOKUP(D118,'Cronograma HIPO'!$C$35:$R$394,16,0),"") -> 1638.973714 | L118: =+IFERROR(VLOOKUP(D118,'Cronograma HIPO'!$C$35:$T$394,18,0),"") -> 61.29194916 | N118: =+IFERROR(VLOOKUP(D118,'Cronograma HIPO'!$C$35:$U$394,19,0),"") -> 85 | O118: =+IFERROR(VLOOKUP(D118,'Cronograma HIPO'!$C$35:$X$394,22,0),"") -> 2362.810307
D119: 69 | F119: =+IFERROR(VLOOKUP(D119,'Cronograma HIPO'!$C$35:$I$394,7,0),"") -> 2031-01-07 | G119: =+IFERROR(VLOOKUP(D119,'Cronograma HIPO'!$C$35:$K$394,9,0),"") -> 218260.9818 | H119: =+IFERROR(VLOOKUP(D119,'Cronograma HIPO'!$C$35:$Q$394,15,0),"") -> 588.9519421 | J119: =+IFERROR(VLOOKUP(D119,'Cronograma HIPO'!$C$35:$R$394,16,0),"") -> 1688.858364 | L119: =+IFERROR(VLOOKUP(D119,'Cronograma HIPO'!$C$35:$T$394,18,0),"") -> 63.15017741 | N119: =+IFERROR(VLOOKUP(D119,'Cronograma HIPO'!$C$35:$U$394,19,0),"") -> 85 | O119: =+IFERROR(VLOOKUP(D119,'Cronograma HIPO'!$C$35:$X$394,22,0),"") -> 2362.810307
D120: 70 | F120: =+IFERROR(VLOOKUP(D120,'Cronograma HIPO'!$C$35:$I$394,7,0),"") -> 2031-02-07 | G120: =+IFERROR(VLOOKUP(D120,'Cronograma HIPO'!$C$35:$K$394,9,0),"") -> 217672.0299 | H120: =+IFERROR(VLOOKUP(D120,'Cronograma HIPO'!$C$35:$Q$394,15,0),"") -> 593.5091305 | J120: =+IFERROR(VLOOKUP(D120,'Cronograma HIPO'!$C$35:$R$394,16,0),"") -> 1684.301176 | L120: =+IFERROR(VLOOKUP(D120,'Cronograma HIPO'!$C$35:$T$394,18,0),"") -> 62.97977398 | N120: =+IFERROR(VLOOKUP(D120,'Cronograma HIPO'!$C$35:$U$394,19,0),"") -> 85 | O120: =+IFERROR(VLOOKUP(D120,'Cronograma HIPO'!$C$35:$X$394,22,0),"") -> 2362.810307
D121: 71 | F121: =+IFERROR(VLOOKUP(D121,'Cronograma HIPO'!$C$35:$I$394,7,0),"") -> 2031-03-07 | G121: =+IFERROR(VLOOKUP(D121,'Cronograma HIPO'!$C$35:$K$394,9,0),"") -> 217078.5208 | H121: =+IFERROR(VLOOKUP(D121,'Cronograma HIPO'!$C$35:$Q$394,15,0),"") -> 761.1789624 | J121: =+IFERROR(VLOOKUP(D121,'Cronograma HIPO'!$C$35:$R$394,16,0),"") -> 1516.631344 | L121: =+IFERROR(VLOOKUP(D121,'Cronograma HIPO'!$C$35:$T$394,18,0),"") -> 56.72985343 | N121: =+IFERROR(VLOOKUP(D121,'Cronograma HIPO'!$C$35:$U$394,19,0),"") -> 85 | O121: =+IFERROR(VLOOKUP(D121,'Cronograma HIPO'!$C$35:$X$394,22,0),"") -> 2362.810307
D122: 72 | F122: =+IFERROR(VLOOKUP(D122,'Cronograma HIPO'!$C$35:$I$394,7,0),"") -> 2031-04-07 | G122: =+IFERROR(VLOOKUP(D122,'Cronograma HIPO'!$C$35:$K$394,9,0),"") -> 216317.3418 | H122: =+IFERROR(VLOOKUP(D122,'Cronograma HIPO'!$C$35:$Q$394,15,0),"") -> 603.991427 | J122: =+IFERROR(VLOOKUP(D122,'Cronograma HIPO'!$C$35:$R$394,16,0),"") -> 1673.81888 | L122: =+IFERROR(VLOOKUP(D122,'Cronograma HIPO'!$C$35:$T$394,18,0),"") -> 62.58781756 | N122: =+IFERROR(VLOOKUP(D122,'Cronograma HIPO'!$C$35:$U$394,19,0),"") -> 85 | O122: =+IFERROR(VLOOKUP(D122,'Cronograma HIPO'!$C$35:$X$394,22,0),"") -> 2362.810307
D123: 73 | F123: =+IFERROR(VLOOKUP(D123,'Cronograma HIPO'!$C$35:$I$394,7,0),"") -> 2031-05-07 | G123: =+IFERROR(VLOOKUP(D123,'Cronograma HIPO'!$C$35:$K$394,9,0),"") -> 215713.3504 | H123: =+IFERROR(VLOOKUP(D123,'Cronograma HIPO'!$C$35:$Q$394,15,0),"") -> 662.6947087 | J123: =+IFERROR(VLOOKUP(D123,'Cronograma HIPO'!$C$35:$R$394,16,0),"") -> 1615.115598 | L123: =+IFERROR(VLOOKUP(D123,'Cronograma HIPO'!$C$35:$T$394,18,0),"") -> 60.3997381 | N123: =+IFERROR(VLOOKUP(D123,'Cronograma HIPO'!$C$35:$U$394,19,0),"") -> 85 | O123: =+IFERROR(VLOOKUP(D123,'Cronograma HIPO'!$C$35:$X$394,22,0),"") -> 2362.810307
D124: 74 | F124: =+IFERROR(VLOOKUP(D124,'Cronograma HIPO'!$C$35:$I$394,7,0),"") -> 2031-06-07 | G124: =+IFERROR(VLOOKUP(D124,'Cronograma HIPO'!$C$35:$K$394,9,0),"") -> 215050.6557 | H124: =+IFERROR(VLOOKUP(D124,'Cronograma HIPO'!$C$35:$Q$394,15,0),"") -> 613.7927825 | J124: =+IFERROR(VLOOKUP(D124,'Cronograma HIPO'!$C$35:$R$394,16,0),"") -> 1664.017524 | L124: =+IFERROR(VLOOKUP(D124,'Cronograma HIPO'!$C$35:$T$394,18,0),"") -> 62.22132304 | N124: =+IFERROR(VLOOKUP(D124,'Cronograma HIPO'!$C$35:$U$394,19,0),"") -> 85 | O124: =+IFERROR(VLOOKUP(D124,'Cronograma HIPO'!$C$35:$X$394,22,0),"") -> 2362.810307
D125: 75 | F125: =+IFERROR(VLOOKUP(D125,'Cronograma HIPO'!$C$35:$I$394,7,0),"") -> 2031-07-07 | G125: =+IFERROR(VLOOKUP(D125,'Cronograma HIPO'!$C$35:$K$394,9,0),"") -> 214436.8629 | H125: =+IFERROR(VLOOKUP(D125,'Cronograma HIPO'!$C$35:$Q$394,15,0),"") -> 672.2521832 | J125: =+IFERROR(VLOOKUP(D125,'Cronograma HIPO'!$C$35:$R$394,16,0),"") -> 1605.558123 | L125: =+IFERROR(VLOOKUP(D125,'Cronograma HIPO'!$C$35:$T$394,18,0),"") -> 60.04232161 | N125: =+IFERROR(VLOOKUP(D125,'Cronograma HIPO'!$C$35:$U$394,19,0),"") -> 85 | O125: =+IFERROR(VLOOKUP(D125,'Cronograma HIPO'!$C$35:$X$394,22,0),"") -> 2362.810307
D126: 76 | F126: =+IFERROR(VLOOKUP(D126,'Cronograma HIPO'!$C$35:$I$394,7,0),"") -> 2031-08-07 | G126: =+IFERROR(VLOOKUP(D126,'Cronograma HIPO'!$C$35:$K$394,9,0),"") -> 213764.6107 | H126: =+IFERROR(VLOOKUP(D126,'Cronograma HIPO'!$C$35:$Q$394,15,0),"") -> 623.7439326 | J126: =+IFERROR(VLOOKUP(D126,'Cronograma HIPO'!$C$35:$R$394,16,0),"") -> 1654.066374 | L126: =+IFERROR(VLOOKUP(D126,'Cronograma HIPO'!$C$35:$T$394,18,0),"") -> 61.84922736 | N126: =+IFERROR(VLOOKUP(D126,'Cronograma HIPO'!$C$35:$U$394,19,0),"") -> 85 | O126: =+IFERROR(VLOOKUP(D126,'Cronograma HIPO'!$C$35:$X$394,22,0),"") -> 2362.810307
D127: 77 | F127: =+IFERROR(VLOOKUP(D127,'Cronograma HIPO'!$C$35:$I$394,7,0),"") -> 2031-09-07 | G127: =+IFERROR(VLOOKUP(D127,'Cronograma HIPO'!$C$35:$K$394,9,0),"") -> 213140.8668 | H127: =+IFERROR(VLOOKUP(D127,'Cronograma HIPO'!$C$35:$Q$394,15,0),"") -> 628.5703342 | J127: =+IFERROR(VLOOKUP(D127,'Cronograma HIPO'!$C$35:$R$394,16,0),"") -> 1649.239972 | L127: =+IFERROR(VLOOKUP(D127,'Cronograma HIPO'!$C$35:$T$394,18,0),"") -> 61.66875745 | N127: =+IFERROR(VLOOKUP(D127,'Cronograma HIPO'!$C$35:$U$394,19,0),"") -> 85 | O127: =+IFERROR(VLOOKUP(D127,'Cronograma HIPO'!$C$35:$X$394,22,0),"") -> 2362.810307
D128: 78 | F128: =+IFERROR(VLOOKUP(D128,'Cronograma HIPO'!$C$35:$I$394,7,0),"") -> 2031-10-07 | G128: =+IFERROR(VLOOKUP(D128,'Cronograma HIPO'!$C$35:$K$394,9,0),"") -> 212512.2964 | H128: =+IFERROR(VLOOKUP(D128,'Cronograma HIPO'!$C$35:$Q$394,15,0),"") -> 686.6620345 | J128: =+IFERROR(VLOOKUP(D128,'Cronograma HIPO'!$C$35:$R$394,16,0),"") -> 1591.148272 | L128: =+IFERROR(VLOOKUP(D128,'Cronograma HIPO'!$C$35:$T$394,18,0),"") -> 59.503443 | N128: =+IFERROR(VLOOKUP(D128,'Cronograma HIPO'!$C$35:$U$394,19,0),"") -> 85 | O128: =+IFERROR(VLOOKUP(D128,'Cronograma HIPO'!$C$35:$X$394,22,0),"") -> 2362.810307
D129: 79 | F129: =+IFERROR(VLOOKUP(D129,'Cronograma HIPO'!$C$35:$I$394,7,0),"") -> 2031-11-07 | G129: =+IFERROR(VLOOKUP(D129,'Cronograma HIPO'!$C$35:$K$394,9,0),"") -> 211825.6344 | H129: =+IFERROR(VLOOKUP(D129,'Cronograma HIPO'!$C$35:$Q$394,15,0),"") -> 638.7473305 | J129: =+IFERROR(VLOOKUP(D129,'Cronograma HIPO'!$C$35:$R$394,16,0),"") -> 1639.062976 | L129: =+IFERROR(VLOOKUP(D129,'Cronograma HIPO'!$C$35:$T$394,18,0),"") -> 61.28821688 | N129: =+IFERROR(VLOOKUP(D129,'Cronograma HIPO'!$C$35:$U$394,19,0),"") -> 85 | O129: =+IFERROR(VLOOKUP(D129,'Cronograma HIPO'!$C$35:$X$394,22,0),"") -> 2362.810307
D130: 80 | F130: =+IFERROR(VLOOKUP(D130,'Cronograma HIPO'!$C$35:$I$394,7,0),"") -> 2031-12-07 | G130: =+IFERROR(VLOOKUP(D130,'Cronograma HIPO'!$C$35:$K$394,9,0),"") -> 211186.8871 | H130: =+IFERROR(VLOOKUP(D130,'Cronograma HIPO'!$C$35:$Q$394,15,0),"") -> 696.5858029 | J130: =+IFERROR(VLOOKUP(D130,'Cronograma HIPO'!$C$35:$R$394,16,0),"") -> 1581.224504 | L130: =+IFERROR(VLOOKUP(D130,'Cronograma HIPO'!$C$35:$T$394,18,0),"") -> 59.13232838 | N130: =+IFERROR(VLOOKUP(D130,'Cronograma HIPO'!$C$35:$U$394,19,0),"") -> 85 | O130: =+IFERROR(VLOOKUP(D130,'Cronograma HIPO'!$C$35:$X$394,22,0),"") -> 2362.810307
D131: 81 | F131: =+IFERROR(VLOOKUP(D131,'Cronograma HIPO'!$C$35:$I$394,7,0),"") -> 2032-01-07 | G131: =+IFERROR(VLOOKUP(D131,'Cronograma HIPO'!$C$35:$K$394,9,0),"") -> 210490.3013 | H131: =+IFERROR(VLOOKUP(D131,'Cronograma HIPO'!$C$35:$Q$394,15,0),"") -> 649.0798622 | J131: =+IFERROR(VLOOKUP(D131,'Cronograma HIPO'!$C$35:$R$394,16,0),"") -> 1628.730444 | L131: =+IFERROR(VLOOKUP(D131,'Cronograma HIPO'!$C$35:$T$394,18,0),"") -> 60.9018605 | N131: =+IFERROR(VLOOKUP(D131,'Cronograma HIPO'!$C$35:$U$394,19,0),"") -> 85 | O131: =+IFERROR(VLOOKUP(D131,'Cronograma HIPO'!$C$35:$X$394,22,0),"") -> 2362.810307
D132: 82 | F132: =+IFERROR(VLOOKUP(D132,'Cronograma HIPO'!$C$35:$I$394,7,0),"") -> 2032-02-07 | G132: =+IFERROR(VLOOKUP(D132,'Cronograma HIPO'!$C$35:$K$394,9,0),"") -> 209841.2214 | H132: =+IFERROR(VLOOKUP(D132,'Cronograma HIPO'!$C$35:$Q$394,15,0),"") -> 654.1023081 | J132: =+IFERROR(VLOOKUP(D132,'Cronograma HIPO'!$C$35:$R$394,16,0),"") -> 1623.707998 | L132: =+IFERROR(VLOOKUP(D132,'Cronograma HIPO'!$C$35:$T$394,18,0),"") -> 60.71406006 | N132: =+IFERROR(VLOOKUP(D132,'Cronograma HIPO'!$C$35:$U$394,19,0),"") -> 85 | O132: =+IFERROR(VLOOKUP(D132,'Cronograma HIPO'!$C$35:$X$394,22,0),"") -> 2362.810307
D133: 83 | F133: =+IFERROR(VLOOKUP(D133,'Cronograma HIPO'!$C$35:$I$394,7,0),"") -> 2032-03-07 | G133: =+IFERROR(VLOOKUP(D133,'Cronograma HIPO'!$C$35:$K$394,9,0),"") -> 209187.1191 | H133: =+IFERROR(VLOOKUP(D133,'Cronograma HIPO'!$C$35:$Q$394,15,0),"") -> 763.9417344 | J133: =+IFERROR(VLOOKUP(D133,'Cronograma HIPO'!$C$35:$R$394,16,0),"") -> 1513.868572 | L133: =+IFERROR(VLOOKUP(D133,'Cronograma HIPO'!$C$35:$T$394,18,0),"") -> 56.61998023 | N133: =+IFERROR(VLOOKUP(D133,'Cronograma HIPO'!$C$35:$U$394,19,0),"") -> 85 | O133: =+IFERROR(VLOOKUP(D133,'Cronograma HIPO'!$C$35:$X$394,22,0),"") -> 2362.810307
D134: 84 | F134: =+IFERROR(VLOOKUP(D134,'Cronograma HIPO'!$C$35:$I$394,7,0),"") -> 2032-04-07 | G134: =+IFERROR(VLOOKUP(D134,'Cronograma HIPO'!$C$35:$K$394,9,0),"") -> 208423.1774 | H134: =+IFERROR(VLOOKUP(D134,'Cronograma HIPO'!$C$35:$Q$394,15,0),"") -> 665.0748398 | J134: =+IFERROR(VLOOKUP(D134,'Cronograma HIPO'!$C$35:$R$394,16,0),"") -> 1612.735467 | L134: =+IFERROR(VLOOKUP(D134,'Cronograma HIPO'!$C$35:$T$394,18,0),"") -> 60.30377265 | N134: =+IFERROR(VLOOKUP(D134,'Cronograma HIPO'!$C$35:$U$394,19,0),"") -> 85 | O134: =+IFERROR(VLOOKUP(D134,'Cronograma HIPO'!$C$35:$X$394,22,0),"") -> 2362.810307
D135: 85 | F135: =+IFERROR(VLOOKUP(D135,'Cronograma HIPO'!$C$35:$I$394,7,0),"") -> 2032-05-07 | G135: =+IFERROR(VLOOKUP(D135,'Cronograma HIPO'!$C$35:$K$394,9,0),"") -> 207758.1025 | H135: =+IFERROR(VLOOKUP(D135,'Cronograma HIPO'!$C$35:$Q$394,15,0),"") -> 722.2582214 | J135: =+IFERROR(VLOOKUP(D135,'Cronograma HIPO'!$C$35:$R$394,16,0),"") -> 1555.552085 | L135: =+IFERROR(VLOOKUP(D135,'Cronograma HIPO'!$C$35:$T$394,18,0),"") -> 58.1722687 | N135: =+IFERROR(VLOOKUP(D135,'Cronograma HIPO'!$C$35:$U$394,19,0),"") -> 85 | O135: =+IFERROR(VLOOKUP(D135,'Cronograma HIPO'!$C$35:$X$394,22,0),"") -> 2362.810307
D136: 86 | F136: =+IFERROR(VLOOKUP(D136,'Cronograma HIPO'!$C$35:$I$394,7,0),"") -> 2032-06-07 | G136: =+IFERROR(VLOOKUP(D136,'Cronograma HIPO'!$C$35:$K$394,9,0),"") -> 207035.8443 | H136: =+IFERROR(VLOOKUP(D136,'Cronograma HIPO'!$C$35:$Q$394,15,0),"") -> 675.8097362 | J136: =+IFERROR(VLOOKUP(D136,'Cronograma HIPO'!$C$35:$R$394,16,0),"") -> 1602.00057 | L136: =+IFERROR(VLOOKUP(D136,'Cronograma HIPO'!$C$35:$T$394,18,0),"") -> 59.90237095 | N136: =+IFERROR(VLOOKUP(D136,'Cronograma HIPO'!$C$35:$U$394,19,0),"") -> 85 | O136: =+IFERROR(VLOOKUP(D136,'Cronograma HIPO'!$C$35:$X$394,22,0),"") -> 2362.810307
D137: 87 | F137: =+IFERROR(VLOOKUP(D137,'Cronograma HIPO'!$C$35:$I$394,7,0),"") -> 2032-07-07 | G137: =+IFERROR(VLOOKUP(D137,'Cronograma HIPO'!$C$35:$K$394,9,0),"") -> 206360.0346 | H137: =+IFERROR(VLOOKUP(D137,'Cronograma HIPO'!$C$35:$Q$394,15,0),"") -> 732.7260082 | J137: =+IFERROR(VLOOKUP(D137,'Cronograma HIPO'!$C$35:$R$394,16,0),"") -> 1545.084298 | L137: =+IFERROR(VLOOKUP(D137,'Cronograma HIPO'!$C$35:$T$394,18,0),"") -> 57.78080968 | N137: =+IFERROR(VLOOKUP(D137,'Cronograma HIPO'!$C$35:$U$394,19,0),"") -> 85 | O137: =+IFERROR(VLOOKUP(D137,'Cronograma HIPO'!$C$35:$X$394,22,0),"") -> 2362.810307
D138: 88 | F138: =+IFERROR(VLOOKUP(D138,'Cronograma HIPO'!$C$35:$I$394,7,0),"") -> 2032-08-07 | G138: =+IFERROR(VLOOKUP(D138,'Cronograma HIPO'!$C$35:$K$394,9,0),"") -> 205627.3086 | H138: =+IFERROR(VLOOKUP(D138,'Cronograma HIPO'!$C$35:$Q$394,15,0),"") -> 686.7086947 | J138: =+IFERROR(VLOOKUP(D138,'Cronograma HIPO'!$C$35:$R$394,16,0),"") -> 1591.101612 | L138: =+IFERROR(VLOOKUP(D138,'Cronograma HIPO'!$C$35:$T$394,18,0),"") -> 59.49483461 | N138: =+IFERROR(VLOOKUP(D138,'Cronograma HIPO'!$C$35:$U$394,19,0),"") -> 85 | O138: =+IFERROR(VLOOKUP(D138,'Cronograma HIPO'!$C$35:$X$394,22,0),"") -> 2362.810307
D139: 89 | F139: =+IFERROR(VLOOKUP(D139,'Cronograma HIPO'!$C$35:$I$394,7,0),"") -> 2032-09-07 | G139: =+IFERROR(VLOOKUP(D139,'Cronograma HIPO'!$C$35:$K$394,9,0),"") -> 204940.5999 | H139: =+IFERROR(VLOOKUP(D139,'Cronograma HIPO'!$C$35:$Q$394,15,0),"") -> 692.0223046 | J139: =+IFERROR(VLOOKUP(D139,'Cronograma HIPO'!$C$35:$R$394,16,0),"") -> 1585.788002 | L139: =+IFERROR(VLOOKUP(D139,'Cronograma HIPO'!$C$35:$T$394,18,0),"") -> 59.29614689 | N139: =+IFERROR(VLOOKUP(D139,'Cronograma HIPO'!$C$35:$U$394,19,0),"") -> 85 | O139: =+IFERROR(VLOOKUP(D139,'Cronograma HIPO'!$C$35:$X$394,22,0),"") -> 2362.810307
D140: 90 | F140: =+IFERROR(VLOOKUP(D140,'Cronograma HIPO'!$C$35:$I$394,7,0),"") -> 2032-10-07 | G140: =+IFERROR(VLOOKUP(D140,'Cronograma HIPO'!$C$35:$K$394,9,0),"") -> 204248.5776 | H140: =+IFERROR(VLOOKUP(D140,'Cronograma HIPO'!$C$35:$Q$394,15,0),"") -> 748.5351695 | J140: =+IFERROR(VLOOKUP(D140,'Cronograma HIPO'!$C$35:$R$394,16,0),"") -> 1529.275137 | L140: =+IFERROR(VLOOKUP(D140,'Cronograma HIPO'!$C$35:$T$394,18,0),"") -> 57.18960171 | N140: =+IFERROR(VLOOKUP(D140,'Cronograma HIPO'!$C$35:$U$394,19,0),"") -> 85 | O140: =+IFERROR(VLOOKUP(D140,'Cronograma HIPO'!$C$35:$X$394,22,0),"") -> 2362.810307
D141: 91 | F141: =+IFERROR(VLOOKUP(D141,'Cronograma HIPO'!$C$35:$I$394,7,0),"") -> 2032-11-07 | G141: =+IFERROR(VLOOKUP(D141,'Cronograma HIPO'!$C$35:$K$394,9,0),"") -> 203500.0424 | H141: =+IFERROR(VLOOKUP(D141,'Cronograma HIPO'!$C$35:$Q$394,15,0),"") -> 703.1690406 | J141: =+IFERROR(VLOOKUP(D141,'Cronograma HIPO'!$C$35:$R$394,16,0),"") -> 1574.641266 | L141: =+IFERROR(VLOOKUP(D141,'Cronograma HIPO'!$C$35:$T$394,18,0),"") -> 58.8793456 | N141: =+IFERROR(VLOOKUP(D141,'Cronograma HIPO'!$C$35:$U$394,19,0),"") -> 85 | O141: =+IFERROR(VLOOKUP(D141,'Cronograma HIPO'!$C$35:$X$394,22,0),"") -> 2362.810307
D142: 92 | F142: =+IFERROR(VLOOKUP(D142,'Cronograma HIPO'!$C$35:$I$394,7,0),"") -> 2032-12-07 | G142: =+IFERROR(VLOOKUP(D142,'Cronograma HIPO'!$C$35:$K$394,9,0),"") -> 202796.8733 | H142: =+IFERROR(VLOOKUP(D142,'Cronograma HIPO'!$C$35:$Q$394,15,0),"") -> 759.4045483 | J142: =+IFERROR(VLOOKUP(D142,'Cronograma HIPO'!$C$35:$R$394,16,0),"") -> 1518.405758 | L142: =+IFERROR(VLOOKUP(D142,'Cronograma HIPO'!$C$35:$T$394,18,0),"") -> 56.78312454 | N142: =+IFERROR(VLOOKUP(D142,'Cronograma HIPO'!$C$35:$U$394,19,0),"") -> 85 | O142: =+IFERROR(VLOOKUP(D142,'Cronograma HIPO'!$C$35:$X$394,22,0),"") -> 2362.810307
D143: 93 | F143: =+IFERROR(VLOOKUP(D143,'Cronograma HIPO'!$C$35:$I$394,7,0),"") -> 2033-01-07 | G143: =+IFERROR(VLOOKUP(D143,'Cronograma HIPO'!$C$35:$K$394,9,0),"") -> 202037.4688 | H143: =+IFERROR(VLOOKUP(D143,'Cronograma HIPO'!$C$35:$Q$394,15,0),"") -> 714.4861327 | J143: =+IFERROR(VLOOKUP(D143,'Cronograma HIPO'!$C$35:$R$394,16,0),"") -> 1563.324174 | L143: =+IFERROR(VLOOKUP(D143,'Cronograma HIPO'!$C$35:$T$394,18,0),"") -> 58.4561743 | N143: =+IFERROR(VLOOKUP(D143,'Cronograma HIPO'!$C$35:$U$394,19,0),"") -> 85 | O143: =+IFERROR(VLOOKUP(D143,'Cronograma HIPO'!$C$35:$X$394,22,0),"") -> 2362.810307
D144: 94 | F144: =+IFERROR(VLOOKUP(D144,'Cronograma HIPO'!$C$35:$I$394,7,0),"") -> 2033-02-07 | G144: =+IFERROR(VLOOKUP(D144,'Cronograma HIPO'!$C$35:$K$394,9,0),"") -> 201322.9827 | H144: =+IFERROR(VLOOKUP(D144,'Cronograma HIPO'!$C$35:$Q$394,15,0),"") -> 720.0146788 | J144: =+IFERROR(VLOOKUP(D144,'Cronograma HIPO'!$C$35:$R$394,16,0),"") -> 1557.795628 | L144: =+IFERROR(VLOOKUP(D144,'Cronograma HIPO'!$C$35:$T$394,18,0),"") -> 58.24944965 | N144: =+IFERROR(VLOOKUP(D144,'Cronograma HIPO'!$C$35:$U$394,19,0),"") -> 85 | O144: =+IFERROR(VLOOKUP(D144,'Cronograma HIPO'!$C$35:$X$394,22,0),"") -> 2362.810307
D145: 95 | F145: =+IFERROR(VLOOKUP(D145,'Cronograma HIPO'!$C$35:$I$394,7,0),"") -> 2033-03-07 | G145: =+IFERROR(VLOOKUP(D145,'Cronograma HIPO'!$C$35:$K$394,9,0),"") -> 200602.968 | H145: =+IFERROR(VLOOKUP(D145,'Cronograma HIPO'!$C$35:$Q$394,15,0),"") -> 876.2863423 | J145: =+IFERROR(VLOOKUP(D145,'Cronograma HIPO'!$C$35:$R$394,16,0),"") -> 1401.523964 | L145: =+IFERROR(VLOOKUP(D145,'Cronograma HIPO'!$C$35:$T$394,18,0),"") -> 52.4242423 | N145: =+IFERROR(VLOOKUP(D145,'Cronograma HIPO'!$C$35:$U$394,19,0),"") -> 85 | O145: =+IFERROR(VLOOKUP(D145,'Cronograma HIPO'!$C$35:$X$394,22,0),"") -> 2362.810307
D146: 96 | F146: =+IFERROR(VLOOKUP(D146,'Cronograma HIPO'!$C$35:$I$394,7,0),"") -> 2033-04-07 | G146: =+IFERROR(VLOOKUP(D146,'Cronograma HIPO'!$C$35:$K$394,9,0),"") -> 199726.6816 | H146: =+IFERROR(VLOOKUP(D146,'Cronograma HIPO'!$C$35:$Q$394,15,0),"") -> 732.3665261 | J146: =+IFERROR(VLOOKUP(D146,'Cronograma HIPO'!$C$35:$R$394,16,0),"") -> 1545.44378 | L146: =+IFERROR(VLOOKUP(D146,'Cronograma HIPO'!$C$35:$T$394,18,0),"") -> 57.78758655 | N146: =+IFERROR(VLOOKUP(D146,'Cronograma HIPO'!$C$35:$U$394,19,0),"") -> 85 | O146: =+IFERROR(VLOOKUP(D146,'Cronograma HIPO'!$C$35:$X$394,22,0),"") -> 2362.810307
D147: 97 | F147: =+IFERROR(VLOOKUP(D147,'Cronograma HIPO'!$C$35:$I$394,7,0),"") -> 2033-05-07 | G147: =+IFERROR(VLOOKUP(D147,'Cronograma HIPO'!$C$35:$K$394,9,0),"") -> 198994.3151 | H147: =+IFERROR(VLOOKUP(D147,'Cronograma HIPO'!$C$35:$Q$394,15,0),"") -> 787.8755312 | J147: =+IFERROR(VLOOKUP(D147,'Cronograma HIPO'!$C$35:$R$394,16,0),"") -> 1489.934775 | L147: =+IFERROR(VLOOKUP(D147,'Cronograma HIPO'!$C$35:$T$394,18,0),"") -> 55.71840823 | N147: =+IFERROR(VLOOKUP(D147,'Cronograma HIPO'!$C$35:$U$394,19,0),"") -> 85 | O147: =+IFERROR(VLOOKUP(D147,'Cronograma HIPO'!$C$35:$X$394,22,0),"") -> 2362.810307
D148: 98 | F148: =+IFERROR(VLOOKUP(D148,'Cronograma HIPO'!$C$35:$I$394,7,0),"") -> 2033-06-07 | G148: =+IFERROR(VLOOKUP(D148,'Cronograma HIPO'!$C$35:$K$394,9,0),"") -> 198206.4396 | H148: =+IFERROR(VLOOKUP(D148,'Cronograma HIPO'!$C$35:$Q$394,15,0),"") -> 744.1298449 | J148: =+IFERROR(VLOOKUP(D148,'Cronograma HIPO'!$C$35:$R$394,16,0),"") -> 1533.680462 | L148: =+IFERROR(VLOOKUP(D148,'Cronograma HIPO'!$C$35:$T$394,18,0),"") -> 57.34772985 | N148: =+IFERROR(VLOOKUP(D148,'Cronograma HIPO'!$C$35:$U$394,19,0),"") -> 85 | O148: =+IFERROR(VLOOKUP(D148,'Cronograma HIPO'!$C$35:$X$394,22,0),"") -> 2362.810307
D149: 99 | F149: =+IFERROR(VLOOKUP(D149,'Cronograma HIPO'!$C$35:$I$394,7,0),"") -> 2033-07-07 | G149: =+IFERROR(VLOOKUP(D149,'Cronograma HIPO'!$C$35:$K$394,9,0),"") -> 197462.3097 | H149: =+IFERROR(VLOOKUP(D149,'Cronograma HIPO'!$C$35:$Q$394,15,0),"") -> 799.3461507 | J149: =+IFERROR(VLOOKUP(D149,'Cronograma HIPO'!$C$35:$R$394,16,0),"") -> 1478.464156 | L149: =+IFERROR(VLOOKUP(D149,'Cronograma HIPO'!$C$35:$T$394,18,0),"") -> 55.28944673 | N149: =+IFERROR(VLOOKUP(D149,'Cronograma HIPO'!$C$35:$U$394,19,0),"") -> 85 | O149: =+IFERROR(VLOOKUP(D149,'Cronograma HIPO'!$C$35:$X$394,22,0),"") -> 2362.810307
D150: 100 | F150: =+IFERROR(VLOOKUP(D150,'Cronograma HIPO'!$C$35:$I$394,7,0),"") -> 2033-08-07 | G150: =+IFERROR(VLOOKUP(D150,'Cronograma HIPO'!$C$35:$K$394,9,0),"") -> 196662.9636 | H150: =+IFERROR(VLOOKUP(D150,'Cronograma HIPO'!$C$35:$Q$394,15,0),"") -> 756.0729432 | J150: =+IFERROR(VLOOKUP(D150,'Cronograma HIPO'!$C$35:$R$394,16,0),"") -> 1521.737363 | L150: =+IFERROR(VLOOKUP(D150,'Cronograma HIPO'!$C$35:$T$394,18,0),"") -> 56.9011508 | N150: =+IFERROR(VLOOKUP(D150,'Cronograma HIPO'!$C$35:$U$394,19,0),"") -> 85 | O150: =+IFERROR(VLOOKUP(D150,'Cronograma HIPO'!$C$35:$X$394,22,0),"") -> 2362.810307
D151: 101 | F151: =+IFERROR(VLOOKUP(D151,'Cronograma HIPO'!$C$35:$I$394,7,0),"") -> 2033-09-07 | G151: =+IFERROR(VLOOKUP(D151,'Cronograma HIPO'!$C$35:$K$394,9,0),"") -> 195906.8906 | H151: =+IFERROR(VLOOKUP(D151,'Cronograma HIPO'!$C$35:$Q$394,15,0),"") -> 761.9232793 | J151: =+IFERROR(VLOOKUP(D151,'Cronograma HIPO'!$C$35:$R$394,16,0),"") -> 1515.887027 | L151: =+IFERROR(VLOOKUP(D151,'Cronograma HIPO'!$C$35:$T$394,18,0),"") -> 56.68239369 | N151: =+IFERROR(VLOOKUP(D151,'Cronograma HIPO'!$C$35:$U$394,19,0),"") -> 85 | O151: =+IFERROR(VLOOKUP(D151,'Cronograma HIPO'!$C$35:$X$394,22,0),"") -> 2362.810307
D152: 102 | F152: =+IFERROR(VLOOKUP(D152,'Cronograma HIPO'!$C$35:$I$394,7,0),"") -> 2033-10-07 | G152: =+IFERROR(VLOOKUP(D152,'Cronograma HIPO'!$C$35:$K$394,9,0),"") -> 195144.9674 | H152: =+IFERROR(VLOOKUP(D152,'Cronograma HIPO'!$C$35:$Q$394,15,0),"") -> 816.6968423 | J152: =+IFERROR(VLOOKUP(D152,'Cronograma HIPO'!$C$35:$R$394,16,0),"") -> 1461.113464 | L152: =+IFERROR(VLOOKUP(D152,'Cronograma HIPO'!$C$35:$T$394,18,0),"") -> 54.64059086 | N152: =+IFERROR(VLOOKUP(D152,'Cronograma HIPO'!$C$35:$U$394,19,0),"") -> 85 | O152: =+IFERROR(VLOOKUP(D152,'Cronograma HIPO'!$C$35:$X$394,22,0),"") -> 2362.810307
D153: 103 | F153: =+IFERROR(VLOOKUP(D153,'Cronograma HIPO'!$C$35:$I$394,7,0),"") -> 2033-11-07 | G153: =+IFERROR(VLOOKUP(D153,'Cronograma HIPO'!$C$35:$K$394,9,0),"") -> 194328.2705 | H153: =+IFERROR(VLOOKUP(D153,'Cronograma HIPO'!$C$35:$Q$394,15,0),"") -> 774.1383155 | J153: =+IFERROR(VLOOKUP(D153,'Cronograma HIPO'!$C$35:$R$394,16,0),"") -> 1503.671991 | L153: =+IFERROR(VLOOKUP(D153,'Cronograma HIPO'!$C$35:$T$394,18,0),"") -> 56.22564627 | N153: =+IFERROR(VLOOKUP(D153,'Cronograma HIPO'!$C$35:$U$394,19,0),"") -> 85 | O153: =+IFERROR(VLOOKUP(D153,'Cronograma HIPO'!$C$35:$X$394,22,0),"") -> 2362.810307
D154: 104 | F154: =+IFERROR(VLOOKUP(D154,'Cronograma HIPO'!$C$35:$I$394,7,0),"") -> 2033-12-07 | G154: =+IFERROR(VLOOKUP(D154,'Cronograma HIPO'!$C$35:$K$394,9,0),"") -> 193554.1322 | H154: =+IFERROR(VLOOKUP(D154,'Cronograma HIPO'!$C$35:$Q$394,15,0),"") -> 828.6079395 | J154: =+IFERROR(VLOOKUP(D154,'Cronograma HIPO'!$C$35:$R$394,16,0),"") -> 1449.202367 | L154: =+IFERROR(VLOOKUP(D154,'Cronograma HIPO'!$C$35:$T$394,18,0),"") -> 54.19515702 | N154: =+IFERROR(VLOOKUP(D154,'Cronograma HIPO'!$C$35:$U$394,19,0),"") -> 85 | O154: =+IFERROR(VLOOKUP(D154,'Cronograma HIPO'!$C$35:$X$394,22,0),"") -> 2362.810307
D155: 105 | F155: =+IFERROR(VLOOKUP(D155,'Cronograma HIPO'!$C$35:$I$394,7,0),"") -> 2034-01-07 | G155: =+IFERROR(VLOOKUP(D155,'Cronograma HIPO'!$C$35:$K$394,9,0),"") -> 192725.5243 | H155: =+IFERROR(VLOOKUP(D155,'Cronograma HIPO'!$C$35:$Q$394,15,0),"") -> 786.5400348 | J155: =+IFERROR(VLOOKUP(D155,'Cronograma HIPO'!$C$35:$R$394,16,0),"") -> 1491.270272 | L155: =+IFERROR(VLOOKUP(D155,'Cronograma HIPO'!$C$35:$T$394,18,0),"") -> 55.76191835 | N155: =+IFERROR(VLOOKUP(D155,'Cronograma HIPO'!$C$35:$U$394,19,0),"") -> 85 | O155: =+IFERROR(VLOOKUP(D155,'Cronograma HIPO'!$C$35:$X$394,22,0),"") -> 2362.810307
D156: 106 | F156: =+IFERROR(VLOOKUP(D156,'Cronograma HIPO'!$C$35:$I$394,7,0),"") -> 2034-02-07 | G156: =+IFERROR(VLOOKUP(D156,'Cronograma HIPO'!$C$35:$K$394,9,0),"") -> 191938.9842 | H156: =+IFERROR(VLOOKUP(D156,'Cronograma HIPO'!$C$35:$Q$394,15,0),"") -> 792.626119 | J156: =+IFERROR(VLOOKUP(D156,'Cronograma HIPO'!$C$35:$R$394,16,0),"") -> 1485.184188 | L156: =+IFERROR(VLOOKUP(D156,'Cronograma HIPO'!$C$35:$T$394,18,0),"") -> 55.5343461 | N156: =+IFERROR(VLOOKUP(D156,'Cronograma HIPO'!$C$35:$U$394,19,0),"") -> 85 | O156: =+IFERROR(VLOOKUP(D156,'Cronograma HIPO'!$C$35:$X$394,22,0),"") -> 2362.810307
D157: 107 | F157: =+IFERROR(VLOOKUP(D157,'Cronograma HIPO'!$C$35:$I$394,7,0),"") -> 2034-03-07 | G157: =+IFERROR(VLOOKUP(D157,'Cronograma HIPO'!$C$35:$K$394,9,0),"") -> 191146.3581 | H157: =+IFERROR(VLOOKUP(D157,'Cronograma HIPO'!$C$35:$Q$394,15,0),"") -> 942.3554811 | J157: =+IFERROR(VLOOKUP(D157,'Cronograma HIPO'!$C$35:$R$394,16,0),"") -> 1335.454825 | L157: =+IFERROR(VLOOKUP(D157,'Cronograma HIPO'!$C$35:$T$394,18,0),"") -> 49.95291492 | N157: =+IFERROR(VLOOKUP(D157,'Cronograma HIPO'!$C$35:$U$394,19,0),"") -> 85 | O157: =+IFERROR(VLOOKUP(D157,'Cronograma HIPO'!$C$35:$X$394,22,0),"") -> 2362.810307
D158: 108 | F158: =+IFERROR(VLOOKUP(D158,'Cronograma HIPO'!$C$35:$I$394,7,0),"") -> 2034-04-07 | G158: =+IFERROR(VLOOKUP(D158,'Cronograma HIPO'!$C$35:$K$394,9,0),"") -> 190204.0026 | H158: =+IFERROR(VLOOKUP(D158,'Cronograma HIPO'!$C$35:$Q$394,15,0),"") -> 806.051048 | J158: =+IFERROR(VLOOKUP(D158,'Cronograma HIPO'!$C$35:$R$394,16,0),"") -> 1471.759259 | L158: =+IFERROR(VLOOKUP(D158,'Cronograma HIPO'!$C$35:$T$394,18,0),"") -> 55.03235809 | N158: =+IFERROR(VLOOKUP(D158,'Cronograma HIPO'!$C$35:$U$394,19,0),"") -> 85 | O158: =+IFERROR(VLOOKUP(D158,'Cronograma HIPO'!$C$35:$X$394,22,0),"") -> 2362.810307
D159: 109 | F159: =+IFERROR(VLOOKUP(D159,'Cronograma HIPO'!$C$35:$I$394,7,0),"") -> 2034-05-07 | G159: =+IFERROR(VLOOKUP(D159,'Cronograma HIPO'!$C$35:$K$394,9,0),"") -> 189397.9516 | H159: =+IFERROR(VLOOKUP(D159,'Cronograma HIPO'!$C$35:$Q$394,15,0),"") -> 859.7266076 | J159: =+IFERROR(VLOOKUP(D159,'Cronograma HIPO'!$C$35:$R$394,16,0),"") -> 1418.083699 | L159: =+IFERROR(VLOOKUP(D159,'Cronograma HIPO'!$C$35:$T$394,18,0),"") -> 53.03142644 | N159: =+IFERROR(VLOOKUP(D159,'Cronograma HIPO'!$C$35:$U$394,19,0),"") -> 85 | O159: =+IFERROR(VLOOKUP(D159,'Cronograma HIPO'!$C$35:$X$394,22,0),"") -> 2362.810307
D160: 110 | F160: =+IFERROR(VLOOKUP(D160,'Cronograma HIPO'!$C$35:$I$394,7,0),"") -> 2034-06-07 | G160: =+IFERROR(VLOOKUP(D160,'Cronograma HIPO'!$C$35:$K$394,9,0),"") -> 188538.225 | H160: =+IFERROR(VLOOKUP(D160,'Cronograma HIPO'!$C$35:$Q$394,15,0),"") -> 818.9404912 | J160: =+IFERROR(VLOOKUP(D160,'Cronograma HIPO'!$C$35:$R$394,16,0),"") -> 1458.869815 | L160: =+IFERROR(VLOOKUP(D160,'Cronograma HIPO'!$C$35:$T$394,18,0),"") -> 54.55039309 | N160: =+IFERROR(VLOOKUP(D160,'Cronograma HIPO'!$C$35:$U$394,19,0),"") -> 85 | O160: =+IFERROR(VLOOKUP(D160,'Cronograma HIPO'!$C$35:$X$394,22,0),"") -> 2362.810307
D161: 111 | F161: =+IFERROR(VLOOKUP(D161,'Cronograma HIPO'!$C$35:$I$394,7,0),"") -> 2034-07-07 | G161: =+IFERROR(VLOOKUP(D161,'Cronograma HIPO'!$C$35:$K$394,9,0),"") -> 187719.2845 | H161: =+IFERROR(VLOOKUP(D161,'Cronograma HIPO'!$C$35:$Q$394,15,0),"") -> 872.2953309 | J161: =+IFERROR(VLOOKUP(D161,'Cronograma HIPO'!$C$35:$R$394,16,0),"") -> 1405.514976 | L161: =+IFERROR(VLOOKUP(D161,'Cronograma HIPO'!$C$35:$T$394,18,0),"") -> 52.56139966 | N161: =+IFERROR(VLOOKUP(D161,'Cronograma HIPO'!$C$35:$U$394,19,0),"") -> 85 | O161: =+IFERROR(VLOOKUP(D161,'Cronograma HIPO'!$C$35:$X$394,22,0),"") -> 2362.810307
D162: 112 | F162: =+IFERROR(VLOOKUP(D162,'Cronograma HIPO'!$C$35:$I$394,7,0),"") -> 2034-08-07 | G162: =+IFERROR(VLOOKUP(D162,'Cronograma HIPO'!$C$35:$K$394,9,0),"") -> 186846.9892 | H162: =+IFERROR(VLOOKUP(D162,'Cronograma HIPO'!$C$35:$Q$394,15,0),"") -> 832.0269244 | J162: =+IFERROR(VLOOKUP(D162,'Cronograma HIPO'!$C$35:$R$394,16,0),"") -> 1445.783382 | L162: =+IFERROR(VLOOKUP(D162,'Cronograma HIPO'!$C$35:$T$394,18,0),"") -> 54.0610622 | N162: =+IFERROR(VLOOKUP(D162,'Cronograma HIPO'!$C$35:$U$394,19,0),"") -> 85 | O162: =+IFERROR(VLOOKUP(D162,'Cronograma HIPO'!$C$35:$X$394,22,0),"") -> 2362.810307
D163: 113 | F163: =+IFERROR(VLOOKUP(D163,'Cronograma HIPO'!$C$35:$I$394,7,0),"") -> 2034-09-07 | G163: =+IFERROR(VLOOKUP(D163,'Cronograma HIPO'!$C$35:$K$394,9,0),"") -> 186014.9622 | H163: =+IFERROR(VLOOKUP(D163,'Cronograma HIPO'!$C$35:$Q$394,15,0),"") -> 838.4649768 | J163: =+IFERROR(VLOOKUP(D163,'Cronograma HIPO'!$C$35:$R$394,16,0),"") -> 1439.34533 | L163: =+IFERROR(VLOOKUP(D163,'Cronograma HIPO'!$C$35:$T$394,18,0),"") -> 53.82032907 | N163: =+IFERROR(VLOOKUP(D163,'Cronograma HIPO'!$C$35:$U$394,19,0),"") -> 85 | O163: =+IFERROR(VLOOKUP(D163,'Cronograma HIPO'!$C$35:$X$394,22,0),"") -> 2362.810307
D164: 114 | F164: =+IFERROR(VLOOKUP(D164,'Cronograma HIPO'!$C$35:$I$394,7,0),"") -> 2034-10-07 | G164: =+IFERROR(VLOOKUP(D164,'Cronograma HIPO'!$C$35:$K$394,9,0),"") -> 185176.4973 | H164: =+IFERROR(VLOOKUP(D164,'Cronograma HIPO'!$C$35:$Q$394,15,0),"") -> 891.334001 | J164: =+IFERROR(VLOOKUP(D164,'Cronograma HIPO'!$C$35:$R$394,16,0),"") -> 1386.476306 | L164: =+IFERROR(VLOOKUP(D164,'Cronograma HIPO'!$C$35:$T$394,18,0),"") -> 51.84941923 | N164: =+IFERROR(VLOOKUP(D164,'Cronograma HIPO'!$C$35:$U$394,19,0),"") -> 85 | O164: =+IFERROR(VLOOKUP(D164,'Cronograma HIPO'!$C$35:$X$394,22,0),"") -> 2362.810307
D165: 115 | F165: =+IFERROR(VLOOKUP(D165,'Cronograma HIPO'!$C$35:$I$394,7,0),"") -> 2034-11-07 | G165: =+IFERROR(VLOOKUP(D165,'Cronograma HIPO'!$C$35:$K$394,9,0),"") -> 184285.1633 | H165: =+IFERROR(VLOOKUP(D165,'Cronograma HIPO'!$C$35:$Q$394,15,0),"") -> 851.8498037 | J165: =+IFERROR(VLOOKUP(D165,'Cronograma HIPO'!$C$35:$R$394,16,0),"") -> 1425.960503 | L165: =+IFERROR(VLOOKUP(D165,'Cronograma HIPO'!$C$35:$T$394,18,0),"") -> 53.31984057 | N165: =+IFERROR(VLOOKUP(D165,'Cronograma HIPO'!$C$35:$U$394,19,0),"") -> 85 | O165: =+IFERROR(VLOOKUP(D165,'Cronograma HIPO'!$C$35:$X$394,22,0),"") -> 2362.810307
D166: 116 | F166: =+IFERROR(VLOOKUP(D166,'Cronograma HIPO'!$C$35:$I$394,7,0),"") -> 2034-12-07 | G166: =+IFERROR(VLOOKUP(D166,'Cronograma HIPO'!$C$35:$K$394,9,0),"") -> 183433.3135 | H166: =+IFERROR(VLOOKUP(D166,'Cronograma HIPO'!$C$35:$Q$394,15,0),"") -> 904.3857818 | J166: =+IFERROR(VLOOKUP(D166,'Cronograma HIPO'!$C$35:$R$394,16,0),"") -> 1373.424525 | L166: =+IFERROR(VLOOKUP(D166,'Cronograma HIPO'!$C$35:$T$394,18,0),"") -> 51.36132777 | N166: =+IFERROR(VLOOKUP(D166,'Cronograma HIPO'!$C$35:$U$394,19,0),"") -> 85 | O166: =+IFERROR(VLOOKUP(D166,'Cronograma HIPO'!$C$35:$X$394,22,0),"") -> 2362.810307
D167: 117 | F167: =+IFERROR(VLOOKUP(D167,'Cronograma HIPO'!$C$35:$I$394,7,0),"") -> 2035-01-07 | G167: =+IFERROR(VLOOKUP(D167,'Cronograma HIPO'!$C$35:$K$394,9,0),"") -> 182528.9277 | H167: =+IFERROR(VLOOKUP(D167,'Cronograma HIPO'!$C$35:$Q$394,15,0),"") -> 865.4391917 | J167: =+IFERROR(VLOOKUP(D167,'Cronograma HIPO'!$C$35:$R$394,16,0),"") -> 1412.371115 | L167: =+IFERROR(VLOOKUP(D167,'Cronograma HIPO'!$C$35:$T$394,18,0),"") -> 52.81170307 | N167: =+IFERROR(VLOOKUP(D167,'Cronograma HIPO'!$C$35:$U$394,19,0),"") -> 85 | O167: =+IFERROR(VLOOKUP(D167,'Cronograma HIPO'!$C$35:$X$394,22,0),"") -> 2362.810307
D168: 118 | F168: =+IFERROR(VLOOKUP(D168,'Cronograma HIPO'!$C$35:$I$394,7,0),"") -> 2035-02-07 | G168: =+IFERROR(VLOOKUP(D168,'Cronograma HIPO'!$C$35:$K$394,9,0),"") -> 181663.4885 | H168: =+IFERROR(VLOOKUP(D168,'Cronograma HIPO'!$C$35:$Q$394,15,0),"") -> 872.1357813 | J168: =+IFERROR(VLOOKUP(D168,'Cronograma HIPO'!$C$35:$R$394,16,0),"") -> 1405.674525 | L168: =+IFERROR(VLOOKUP(D168,'Cronograma HIPO'!$C$35:$T$394,18,0),"") -> 52.56130267 | N168: =+IFERROR(VLOOKUP(D168,'Cronograma HIPO'!$C$35:$U$394,19,0),"") -> 85 | O168: =+IFERROR(VLOOKUP(D168,'Cronograma HIPO'!$C$35:$X$394,22,0),"") -> 2362.810307
D169: 119 | F169: =+IFERROR(VLOOKUP(D169,'Cronograma HIPO'!$C$35:$I$394,7,0),"") -> 2035-03-07 | G169: =+IFERROR(VLOOKUP(D169,'Cronograma HIPO'!$C$35:$K$394,9,0),"") -> 180791.3527 | H169: =+IFERROR(VLOOKUP(D169,'Cronograma HIPO'!$C$35:$Q$394,15,0),"") -> 1014.701311 | J169: =+IFERROR(VLOOKUP(D169,'Cronograma HIPO'!$C$35:$R$394,16,0),"") -> 1263.108995 | L169: =+IFERROR(VLOOKUP(D169,'Cronograma HIPO'!$C$35:$T$394,18,0),"") -> 47.24680684 | N169: =+IFERROR(VLOOKUP(D169,'Cronograma HIPO'!$C$35:$U$394,19,0),"") -> 85 | O169: =+IFERROR(VLOOKUP(D169,'Cronograma HIPO'!$C$35:$X$394,22,0),"") -> 2362.810307
D170: 120 | F170: =+IFERROR(VLOOKUP(D170,'Cronograma HIPO'!$C$35:$I$394,7,0),"") -> 2035-04-07 | G170: =+IFERROR(VLOOKUP(D170,'Cronograma HIPO'!$C$35:$K$394,9,0),"") -> 179776.6514 | H170: =+IFERROR(VLOOKUP(D170,'Cronograma HIPO'!$C$35:$Q$394,15,0),"") -> 886.7357367 | J170: =+IFERROR(VLOOKUP(D170,'Cronograma HIPO'!$C$35:$R$394,16,0),"") -> 1391.07457 | L170: =+IFERROR(VLOOKUP(D170,'Cronograma HIPO'!$C$35:$T$394,18,0),"") -> 52.0153778 | N170: =+IFERROR(VLOOKUP(D170,'Cronograma HIPO'!$C$35:$U$394,19,0),"") -> 85 | O170: =+IFERROR(VLOOKUP(D170,'Cronograma HIPO'!$C$35:$X$394,22,0),"") -> 2362.810307
D171: 121 | F171: =+IFERROR(VLOOKUP(D171,'Cronograma HIPO'!$C$35:$I$394,7,0),"") -> 2035-05-07 | G171: =+IFERROR(VLOOKUP(D171,'Cronograma HIPO'!$C$35:$K$394,9,0),"") -> 178889.9156 | H171: =+IFERROR(VLOOKUP(D171,'Cronograma HIPO'!$C$35:$Q$394,15,0),"") -> 938.4036701 | J171: =+IFERROR(VLOOKUP(D171,'Cronograma HIPO'!$C$35:$R$394,16,0),"") -> 1339.406636 | L171: =+IFERROR(VLOOKUP(D171,'Cronograma HIPO'!$C$35:$T$394,18,0),"") -> 50.08917638 | N171: =+IFERROR(VLOOKUP(D171,'Cronograma HIPO'!$C$35:$U$394,19,0),"") -> 85 | O171: =+IFERROR(VLOOKUP(D171,'Cronograma HIPO'!$C$35:$X$394,22,0),"") -> 2362.810307
D172: 122 | F172: =+IFERROR(VLOOKUP(D172,'Cronograma HIPO'!$C$35:$I$394,7,0),"") -> 2035-06-07 | G172: =+IFERROR(VLOOKUP(D172,'Cronograma HIPO'!$C$35:$K$394,9,0),"") -> 177951.512 | H172: =+IFERROR(VLOOKUP(D172,'Cronograma HIPO'!$C$35:$Q$394,15,0),"") -> 900.8582882 | J172: =+IFERROR(VLOOKUP(D172,'Cronograma HIPO'!$C$35:$R$394,16,0),"") -> 1376.952018 | L172: =+IFERROR(VLOOKUP(D172,'Cronograma HIPO'!$C$35:$T$394,18,0),"") -> 51.48730413 | N172: =+IFERROR(VLOOKUP(D172,'Cronograma HIPO'!$C$35:$U$394,19,0),"") -> 85 | O172: =+IFERROR(VLOOKUP(D172,'Cronograma HIPO'!$C$35:$X$394,22,0),"") -> 2362.810307
D173: 123 | F173: =+IFERROR(VLOOKUP(D173,'Cronograma HIPO'!$C$35:$I$394,7,0),"") -> 2035-07-07 | G173: =+IFERROR(VLOOKUP(D173,'Cronograma HIPO'!$C$35:$K$394,9,0),"") -> 177050.6537 | H173: =+IFERROR(VLOOKUP(D173,'Cronograma HIPO'!$C$35:$Q$394,15,0),"") -> 952.174819 | J173: =+IFERROR(VLOOKUP(D173,'Cronograma HIPO'!$C$35:$R$394,16,0),"") -> 1325.635488 | L173: =+IFERROR(VLOOKUP(D173,'Cronograma HIPO'!$C$35:$T$394,18,0),"") -> 49.57418303 | N173: =+IFERROR(VLOOKUP(D173,'Cronograma HIPO'!$C$35:$U$394,19,0),"") -> 85 | O173: =+IFERROR(VLOOKUP(D173,'Cronograma HIPO'!$C$35:$X$394,22,0),"") -> 2362.810307
D174: 124 | F174: =+IFERROR(VLOOKUP(D174,'Cronograma HIPO'!$C$35:$I$394,7,0),"") -> 2035-08-07 | G174: =+IFERROR(VLOOKUP(D174,'Cronograma HIPO'!$C$35:$K$394,9,0),"") -> 176098.4789 | H174: =+IFERROR(VLOOKUP(D174,'Cronograma HIPO'!$C$35:$Q$394,15,0),"") -> 915.1966754 | J174: =+IFERROR(VLOOKUP(D174,'Cronograma HIPO'!$C$35:$R$394,16,0),"") -> 1362.613631 | L174: =+IFERROR(VLOOKUP(D174,'Cronograma HIPO'!$C$35:$T$394,18,0),"") -> 50.95115989 | N174: =+IFERROR(VLOOKUP(D174,'Cronograma HIPO'!$C$35:$U$394,19,0),"") -> 85 | O174: =+IFERROR(VLOOKUP(D174,'Cronograma HIPO'!$C$35:$X$394,22,0),"") -> 2362.810307
D175: 125 | F175: =+IFERROR(VLOOKUP(D175,'Cronograma HIPO'!$C$35:$I$394,7,0),"") -> 2035-09-07 | G175: =+IFERROR(VLOOKUP(D175,'Cronograma HIPO'!$C$35:$K$394,9,0),"") -> 175183.2822 | H175: =+IFERROR(VLOOKUP(D175,'Cronograma HIPO'!$C$35:$Q$394,15,0),"") -> 922.2782781 | J175: =+IFERROR(VLOOKUP(D175,'Cronograma HIPO'!$C$35:$R$394,16,0),"") -> 1355.532028 | L175: =+IFERROR(VLOOKUP(D175,'Cronograma HIPO'!$C$35:$T$394,18,0),"") -> 50.68636298 | N175: =+IFERROR(VLOOKUP(D175,'Cronograma HIPO'!$C$35:$U$394,19,0),"") -> 85 | O175: =+IFERROR(VLOOKUP(D175,'Cronograma HIPO'!$C$35:$X$394,22,0),"") -> 2362.810307
D176: 126 | F176: =+IFERROR(VLOOKUP(D176,'Cronograma HIPO'!$C$35:$I$394,7,0),"") -> 2035-10-07 | G176: =+IFERROR(VLOOKUP(D176,'Cronograma HIPO'!$C$35:$K$394,9,0),"") -> 174261.0039 | H176: =+IFERROR(VLOOKUP(D176,'Cronograma HIPO'!$C$35:$Q$394,15,0),"") -> 973.0618288 | J176: =+IFERROR(VLOOKUP(D176,'Cronograma HIPO'!$C$35:$R$394,16,0),"") -> 1304.748478 | L176: =+IFERROR(VLOOKUP(D176,'Cronograma HIPO'!$C$35:$T$394,18,0),"") -> 48.7930811 | N176: =+IFERROR(VLOOKUP(D176,'Cronograma HIPO'!$C$35:$U$394,19,0),"") -> 85 | O176: =+IFERROR(VLOOKUP(D176,'Cronograma HIPO'!$C$35:$X$394,22,0),"") -> 2362.810307
D177: 127 | F177: =+IFERROR(VLOOKUP(D177,'Cronograma HIPO'!$C$35:$I$394,7,0),"") -> 2035-11-07 | G177: =+IFERROR(VLOOKUP(D177,'Cronograma HIPO'!$C$35:$K$394,9,0),"") -> 173287.9421 | H177: =+IFERROR(VLOOKUP(D177,'Cronograma HIPO'!$C$35:$Q$394,15,0),"") -> 936.9440281 | J177: =+IFERROR(VLOOKUP(D177,'Cronograma HIPO'!$C$35:$R$394,16,0),"") -> 1340.866278 | L177: =+IFERROR(VLOOKUP(D177,'Cronograma HIPO'!$C$35:$T$394,18,0),"") -> 50.13797791 | N177: =+IFERROR(VLOOKUP(D177,'Cronograma HIPO'!$C$35:$U$394,19,0),"") -> 85 | O177: =+IFERROR(VLOOKUP(D177,'Cronograma HIPO'!$C$35:$X$394,22,0),"") -> 2362.810307
D178: 128 | F178: =+IFERROR(VLOOKUP(D178,'Cronograma HIPO'!$C$35:$I$394,7,0),"") -> 2035-12-07 | G178: =+IFERROR(VLOOKUP(D178,'Cronograma HIPO'!$C$35:$K$394,9,0),"") -> 172350.9981 | H178: =+IFERROR(VLOOKUP(D178,'Cronograma HIPO'!$C$35:$Q$394,15,0),"") -> 987.3626602 | J178: =+IFERROR(VLOOKUP(D178,'Cronograma HIPO'!$C$35:$R$394,16,0),"") -> 1290.447646 | L178: =+IFERROR(VLOOKUP(D178,'Cronograma HIPO'!$C$35:$T$394,18,0),"") -> 48.25827946 | N178: =+IFERROR(VLOOKUP(D178,'Cronograma HIPO'!$C$35:$U$394,19,0),"") -> 85 | O178: =+IFERROR(VLOOKUP(D178,'Cronograma HIPO'!$C$35:$X$394,22,0),"") -> 2362.810307
D179: 129 | F179: =+IFERROR(VLOOKUP(D179,'Cronograma HIPO'!$C$35:$I$394,7,0),"") -> 2036-01-07 | G179: =+IFERROR(VLOOKUP(D179,'Cronograma HIPO'!$C$35:$K$394,9,0),"") -> 171363.6354 | H179: =+IFERROR(VLOOKUP(D179,'Cronograma HIPO'!$C$35:$Q$394,15,0),"") -> 951.8339155 | J179: =+IFERROR(VLOOKUP(D179,'Cronograma HIPO'!$C$35:$R$394,16,0),"") -> 1325.976391 | L179: =+IFERROR(VLOOKUP(D179,'Cronograma HIPO'!$C$35:$T$394,18,0),"") -> 49.58121184 | N179: =+IFERROR(VLOOKUP(D179,'Cronograma HIPO'!$C$35:$U$394,19,0),"") -> 85 | O179: =+IFERROR(VLOOKUP(D179,'Cronograma HIPO'!$C$35:$X$394,22,0),"") -> 2362.810307
D180: 130 | F180: =+IFERROR(VLOOKUP(D180,'Cronograma HIPO'!$C$35:$I$394,7,0),"") -> 2036-02-07 | G180: =+IFERROR(VLOOKUP(D180,'Cronograma HIPO'!$C$35:$K$394,9,0),"") -> 170411.8015 | H180: =+IFERROR(VLOOKUP(D180,'Cronograma HIPO'!$C$35:$Q$394,15,0),"") -> 959.1990096 | J180: =+IFERROR(VLOOKUP(D180,'Cronograma HIPO'!$C$35:$R$394,16,0),"") -> 1318.611297 | L180: =+IFERROR(VLOOKUP(D180,'Cronograma HIPO'!$C$35:$T$394,18,0),"") -> 49.30581456 | N180: =+IFERROR(VLOOKUP(D180,'Cronograma HIPO'!$C$35:$U$394,19,0),"") -> 85 | O180: =+IFERROR(VLOOKUP(D180,'Cronograma HIPO'!$C$35:$X$394,22,0),"") -> 2362.810307
D181: =+IF(D180="", "", IF((D180+1)>$G$19,"", D180+1)) -> 131 | F181: =+IFERROR(VLOOKUP(D181,'Cronograma HIPO'!$C$35:$I$394,7,0),"") -> 2036-03-07 | G181: =+IFERROR(VLOOKUP(D181,'Cronograma HIPO'!$C$35:$K$394,9,0),"") -> 169452.6025 | H181: =+IFERROR(VLOOKUP(D181,'Cronograma HIPO'!$C$35:$Q$394,15,0),"") -> 1051.496896 | J181: =+IFERROR(VLOOKUP(D181,'Cronograma HIPO'!$C$35:$R$394,16,0),"") -> 1226.31341 | L181: =+IFERROR(VLOOKUP(D181,'Cronograma HIPO'!$C$35:$T$394,18,0),"") -> 45.86517107 | N181: =+IFERROR(VLOOKUP(D181,'Cronograma HIPO'!$C$35:$U$394,19,0),"") -> 85 | O181: =+IFERROR(VLOOKUP(D181,'Cronograma HIPO'!$C$35:$X$394,22,0),"") -> 2362.810307
D182: 132 | F182: =+IFERROR(VLOOKUP(D182,'Cronograma HIPO'!$C$35:$I$394,7,0),"") -> 2036-04-07 | G182: =+IFERROR(VLOOKUP(D182,'Cronograma HIPO'!$C$35:$K$394,9,0),"") -> 168401.1056 | H182: =+IFERROR(VLOOKUP(D182,'Cronograma HIPO'!$C$35:$Q$394,15,0),"") -> 974.7573589 | J182: =+IFERROR(VLOOKUP(D182,'Cronograma HIPO'!$C$35:$R$394,16,0),"") -> 1303.052948 | L182: =+IFERROR(VLOOKUP(D182,'Cronograma HIPO'!$C$35:$T$394,18,0),"") -> 48.72405321 | N182: =+IFERROR(VLOOKUP(D182,'Cronograma HIPO'!$C$35:$U$394,19,0),"") -> 85 | O182: =+IFERROR(VLOOKUP(D182,'Cronograma HIPO'!$C$35:$X$394,22,0),"") -> 2362.810307
D183: 133 | F183: =+IFERROR(VLOOKUP(D183,'Cronograma HIPO'!$C$35:$I$394,7,0),"") -> 2036-05-07 | G183: =+IFERROR(VLOOKUP(D183,'Cronograma HIPO'!$C$35:$K$394,9,0),"") -> 167426.3482 | H183: =+IFERROR(VLOOKUP(D183,'Cronograma HIPO'!$C$35:$Q$394,15,0),"") -> 1024.235106 | J183: =+IFERROR(VLOOKUP(D183,'Cronograma HIPO'!$C$35:$R$394,16,0),"") -> 1253.575201 | L183: =+IFERROR(VLOOKUP(D183,'Cronograma HIPO'!$C$35:$T$394,18,0),"") -> 46.8793775 | N183: =+IFERROR(VLOOKUP(D183,'Cronograma HIPO'!$C$35:$U$394,19,0),"") -> 85 | O183: =+IFERROR(VLOOKUP(D183,'Cronograma HIPO'!$C$35:$X$394,22,0),"") -> 2362.810307
D184: 134 | F184: =+IFERROR(VLOOKUP(D184,'Cronograma HIPO'!$C$35:$I$394,7,0),"") -> 2036-06-07 | G184: =+IFERROR(VLOOKUP(D184,'Cronograma HIPO'!$C$35:$K$394,9,0),"") -> 166402.1131 | H184: =+IFERROR(VLOOKUP(D184,'Cronograma HIPO'!$C$35:$Q$394,15,0),"") -> 990.2251494 | J184: =+IFERROR(VLOOKUP(D184,'Cronograma HIPO'!$C$35:$R$394,16,0),"") -> 1287.585157 | L184: =+IFERROR(VLOOKUP(D184,'Cronograma HIPO'!$C$35:$T$394,18,0),"") -> 48.14567806 | N184: =+IFERROR(VLOOKUP(D184,'Cronograma HIPO'!$C$35:$U$394,19,0),"") -> 85 | O184: =+IFERROR(VLOOKUP(D184,'Cronograma HIPO'!$C$35:$X$394,22,0),"") -> 2362.810307
D185: 135 | F185: =+IFERROR(VLOOKUP(D185,'Cronograma HIPO'!$C$35:$I$394,7,0),"") -> 2036-07-07 | G185: =+IFERROR(VLOOKUP(D185,'Cronograma HIPO'!$C$35:$K$394,9,0),"") -> 165411.888 | H185: =+IFERROR(VLOOKUP(D185,'Cronograma HIPO'!$C$35:$Q$394,15,0),"") -> 1039.318021 | J185: =+IFERROR(VLOOKUP(D185,'Cronograma HIPO'!$C$35:$R$394,16,0),"") -> 1238.492286 | L185: =+IFERROR(VLOOKUP(D185,'Cronograma HIPO'!$C$35:$T$394,18,0),"") -> 46.31532863 | N185: =+IFERROR(VLOOKUP(D185,'Cronograma HIPO'!$C$35:$U$394,19,0),"") -> 85 | O185: =+IFERROR(VLOOKUP(D185,'Cronograma HIPO'!$C$35:$X$394,22,0),"") -> 2362.810307
D186: 136 | F186: =+IFERROR(VLOOKUP(D186,'Cronograma HIPO'!$C$35:$I$394,7,0),"") -> 2036-08-07 | G186: =+IFERROR(VLOOKUP(D186,'Cronograma HIPO'!$C$35:$K$394,9,0),"") -> 164372.5699 | H186: =+IFERROR(VLOOKUP(D186,'Cronograma HIPO'!$C$35:$Q$394,15,0),"") -> 1005.929335 | J186: =+IFERROR(VLOOKUP(D186,'Cronograma HIPO'!$C$35:$R$394,16,0),"") -> 1271.880972 | L186: =+IFERROR(VLOOKUP(D186,'Cronograma HIPO'!$C$35:$T$394,18,0),"") -> 47.55846357 | N186: =+IFERROR(VLOOKUP(D186,'Cronograma HIPO'!$C$35:$U$394,19,0),"") -> 85 | O186: =+IFERROR(VLOOKUP(D186,'Cronograma HIPO'!$C$35:$X$394,22,0),"") -> 2362.810307
D187: 137 | F187: =+IFERROR(VLOOKUP(D187,'Cronograma HIPO'!$C$35:$I$394,7,0),"") -> 2036-09-07 | G187: =+IFERROR(VLOOKUP(D187,'Cronograma HIPO'!$C$35:$K$394,9,0),"") -> 163366.6406 | H187: =+IFERROR(VLOOKUP(D187,'Cronograma HIPO'!$C$35:$Q$394,15,0),"") -> 1013.713008 | J187: =+IFERROR(VLOOKUP(D187,'Cronograma HIPO'!$C$35:$R$394,16,0),"") -> 1264.097298 | L187: =+IFERROR(VLOOKUP(D187,'Cronograma HIPO'!$C$35:$T$394,18,0),"") -> 47.26741468 | N187: =+IFERROR(VLOOKUP(D187,'Cronograma HIPO'!$C$35:$U$394,19,0),"") -> 85 | O187: =+IFERROR(VLOOKUP(D187,'Cronograma HIPO'!$C$35:$X$394,22,0),"") -> 2362.810307
D188: 138 | F188: =+IFERROR(VLOOKUP(D188,'Cronograma HIPO'!$C$35:$I$394,7,0),"") -> 2036-10-07 | G188: =+IFERROR(VLOOKUP(D188,'Cronograma HIPO'!$C$35:$K$394,9,0),"") -> 162352.9276 | H188: =+IFERROR(VLOOKUP(D188,'Cronograma HIPO'!$C$35:$Q$394,15,0),"") -> 1062.221446 | J188: =+IFERROR(VLOOKUP(D188,'Cronograma HIPO'!$C$35:$R$394,16,0),"") -> 1215.58886 | L188: =+IFERROR(VLOOKUP(D188,'Cronograma HIPO'!$C$35:$T$394,18,0),"") -> 45.45881973 | N188: =+IFERROR(VLOOKUP(D188,'Cronograma HIPO'!$C$35:$U$394,19,0),"") -> 85 | O188: =+IFERROR(VLOOKUP(D188,'Cronograma HIPO'!$C$35:$X$394,22,0),"") -> 2362.810307
D189: 139 | F189: =+IFERROR(VLOOKUP(D189,'Cronograma HIPO'!$C$35:$I$394,7,0),"") -> 2036-11-07 | G189: =+IFERROR(VLOOKUP(D189,'Cronograma HIPO'!$C$35:$K$394,9,0),"") -> 161290.7062 | H189: =+IFERROR(VLOOKUP(D189,'Cronograma HIPO'!$C$35:$Q$394,15,0),"") -> 1029.77616 | J189: =+IFERROR(VLOOKUP(D189,'Cronograma HIPO'!$C$35:$R$394,16,0),"") -> 1248.034147 | L189: =+IFERROR(VLOOKUP(D189,'Cronograma HIPO'!$C$35:$T$394,18,0),"") -> 46.66677765 | N189: =+IFERROR(VLOOKUP(D189,'Cronograma HIPO'!$C$35:$U$394,19,0),"") -> 85 | O189: =+IFERROR(VLOOKUP(D189,'Cronograma HIPO'!$C$35:$X$394,22,0),"") -> 2362.810307
D190: 140 | F190: =+IFERROR(VLOOKUP(D190,'Cronograma HIPO'!$C$35:$I$394,7,0),"") -> 2036-12-07 | G190: =+IFERROR(VLOOKUP(D190,'Cronograma HIPO'!$C$35:$K$394,9,0),"") -> 160260.93 | H190: =+IFERROR(VLOOKUP(D190,'Cronograma HIPO'!$C$35:$Q$394,15,0),"") -> 1077.884909 | J190: =+IFERROR(VLOOKUP(D190,'Cronograma HIPO'!$C$35:$R$394,16,0),"") -> 1199.925398 | L190: =+IFERROR(VLOOKUP(D190,'Cronograma HIPO'!$C$35:$T$394,18,0),"") -> 44.8730604 | N190: =+IFERROR(VLOOKUP(D190,'Cronograma HIPO'!$C$35:$U$394,19,0),"") -> 85 | O190: =+IFERROR(VLOOKUP(D190,'Cronograma HIPO'!$C$35:$X$394,22,0),"") -> 2362.810307
D191: 141 | F191: =+IFERROR(VLOOKUP(D191,'Cronograma HIPO'!$C$35:$I$394,7,0),"") -> 2037-01-07 | G191: =+IFERROR(VLOOKUP(D191,'Cronograma HIPO'!$C$35:$K$394,9,0),"") -> 159183.0451 | H191: =+IFERROR(VLOOKUP(D191,'Cronograma HIPO'!$C$35:$Q$394,15,0),"") -> 1046.084806 | J191: =+IFERROR(VLOOKUP(D191,'Cronograma HIPO'!$C$35:$R$394,16,0),"") -> 1231.725501 | L191: =+IFERROR(VLOOKUP(D191,'Cronograma HIPO'!$C$35:$T$394,18,0),"") -> 46.05696104 | N191: =+IFERROR(VLOOKUP(D191,'Cronograma HIPO'!$C$35:$U$394,19,0),"") -> 85 | O191: =+IFERROR(VLOOKUP(D191,'Cronograma HIPO'!$C$35:$X$394,22,0),"") -> 2362.810307
D192: 142 | F192: =+IFERROR(VLOOKUP(D192,'Cronograma HIPO'!$C$35:$I$394,7,0),"") -> 2037-02-07 | G192: =+IFERROR(VLOOKUP(D192,'Cronograma HIPO'!$C$35:$K$394,9,0),"") -> 158136.9603 | H192: =+IFERROR(VLOOKUP(D192,'Cronograma HIPO'!$C$35:$Q$394,15,0),"") -> 1054.179194 | J192: =+IFERROR(VLOOKUP(D192,'Cronograma HIPO'!$C$35:$R$394,16,0),"") -> 1223.631113 | L192: =+IFERROR(VLOOKUP(D192,'Cronograma HIPO'!$C$35:$T$394,18,0),"") -> 45.75429384 | N192: =+IFERROR(VLOOKUP(D192,'Cronograma HIPO'!$C$35:$U$394,19,0),"") -> 85 | O192: =+IFERROR(VLOOKUP(D192,'Cronograma HIPO'!$C$35:$X$394,22,0),"") -> 2362.810307
D193: 143 | F193: =+IFERROR(VLOOKUP(D193,'Cronograma HIPO'!$C$35:$I$394,7,0),"") -> 2037-03-07 | G193: =+IFERROR(VLOOKUP(D193,'Cronograma HIPO'!$C$35:$K$394,9,0),"") -> 157082.7811 | H193: =+IFERROR(VLOOKUP(D193,'Cronograma HIPO'!$C$35:$Q$394,15,0),"") -> 1180.342586 | J193: =+IFERROR(VLOOKUP(D193,'Cronograma HIPO'!$C$35:$R$394,16,0),"") -> 1097.467721 | L193: =+IFERROR(VLOOKUP(D193,'Cronograma HIPO'!$C$35:$T$394,18,0),"") -> 41.05096679 | N193: =+IFERROR(VLOOKUP(D193,'Cronograma HIPO'!$C$35:$U$394,19,0),"") -> 85 | O193: =+IFERROR(VLOOKUP(D193,'Cronograma HIPO'!$C$35:$X$394,22,0),"") -> 2362.810307
D194: 144 | F194: =+IFERROR(VLOOKUP(D194,'Cronograma HIPO'!$C$35:$I$394,7,0),"") -> 2037-04-07 | G194: =+IFERROR(VLOOKUP(D194,'Cronograma HIPO'!$C$35:$K$394,9,0),"") -> 155902.4385 | H194: =+IFERROR(VLOOKUP(D194,'Cronograma HIPO'!$C$35:$Q$394,15,0),"") -> 1071.469461 | J194: =+IFERROR(VLOOKUP(D194,'Cronograma HIPO'!$C$35:$R$394,16,0),"") -> 1206.340845 | L194: =+IFERROR(VLOOKUP(D194,'Cronograma HIPO'!$C$35:$T$394,18,0),"") -> 45.10777221 | N194: =+IFERROR(VLOOKUP(D194,'Cronograma HIPO'!$C$35:$U$394,19,0),"") -> 85 | O194: =+IFERROR(VLOOKUP(D194,'Cronograma HIPO'!$C$35:$X$394,22,0),"") -> 2362.810307
D195: 145 | F195: =+IFERROR(VLOOKUP(D195,'Cronograma HIPO'!$C$35:$I$394,7,0),"") -> 2037-05-07 | G195: =+IFERROR(VLOOKUP(D195,'Cronograma HIPO'!$C$35:$K$394,9,0),"") -> 154830.969 | H195: =+IFERROR(VLOOKUP(D195,'Cronograma HIPO'!$C$35:$Q$394,15,0),"") -> 1118.540782 | J195: =+IFERROR(VLOOKUP(D195,'Cronograma HIPO'!$C$35:$R$394,16,0),"") -> 1159.269525 | L195: =+IFERROR(VLOOKUP(D195,'Cronograma HIPO'!$C$35:$T$394,18,0),"") -> 43.35267133 | N195: =+IFERROR(VLOOKUP(D195,'Cronograma HIPO'!$C$35:$U$394,19,0),"") -> 85 | O195: =+IFERROR(VLOOKUP(D195,'Cronograma HIPO'!$C$35:$X$394,22,0),"") -> 2362.810307
D196: 146 | F196: =+IFERROR(VLOOKUP(D196,'Cronograma HIPO'!$C$35:$I$394,7,0),"") -> 2037-06-07 | G196: =+IFERROR(VLOOKUP(D196,'Cronograma HIPO'!$C$35:$K$394,9,0),"") -> 153712.4283 | H196: =+IFERROR(VLOOKUP(D196,'Cronograma HIPO'!$C$35:$Q$394,15,0),"") -> 1088.415308 | J196: =+IFERROR(VLOOKUP(D196,'Cronograma HIPO'!$C$35:$R$394,16,0),"") -> 1189.394999 | L196: =+IFERROR(VLOOKUP(D196,'Cronograma HIPO'!$C$35:$T$394,18,0),"") -> 44.47412924 | N196: =+IFERROR(VLOOKUP(D196,'Cronograma HIPO'!$C$35:$U$394,19,0),"") -> 85 | O196: =+IFERROR(VLOOKUP(D196,'Cronograma HIPO'!$C$35:$X$394,22,0),"") -> 2362.810307
D197: 147 | F197: =+IFERROR(VLOOKUP(D197,'Cronograma HIPO'!$C$35:$I$394,7,0),"") -> 2037-07-07 | G197: =+IFERROR(VLOOKUP(D197,'Cronograma HIPO'!$C$35:$K$394,9,0),"") -> 152624.0129 | H197: =+IFERROR(VLOOKUP(D197,'Cronograma HIPO'!$C$35:$Q$394,15,0),"") -> 1135.064976 | J197: =+IFERROR(VLOOKUP(D197,'Cronograma HIPO'!$C$35:$R$394,16,0),"") -> 1142.745331 | L197: =+IFERROR(VLOOKUP(D197,'Cronograma HIPO'!$C$35:$T$394,18,0),"") -> 42.73472363 | N197: =+IFERROR(VLOOKUP(D197,'Cronograma HIPO'!$C$35:$U$394,19,0),"") -> 85 | O197: =+IFERROR(VLOOKUP(D197,'Cronograma HIPO'!$C$35:$X$394,22,0),"") -> 2362.810307
D198: 148 | F198: =+IFERROR(VLOOKUP(D198,'Cronograma HIPO'!$C$35:$I$394,7,0),"") -> 2037-08-07 | G198: =+IFERROR(VLOOKUP(D198,'Cronograma HIPO'!$C$35:$K$394,9,0),"") -> 151488.948 | H198: =+IFERROR(VLOOKUP(D198,'Cronograma HIPO'!$C$35:$Q$394,15,0),"") -> 1105.620139 | J198: =+IFERROR(VLOOKUP(D198,'Cronograma HIPO'!$C$35:$R$394,16,0),"") -> 1172.190168 | L198: =+IFERROR(VLOOKUP(D198,'Cronograma HIPO'!$C$35:$T$394,18,0),"") -> 43.83080228 | N198: =+IFERROR(VLOOKUP(D198,'Cronograma HIPO'!$C$35:$U$394,19,0),"") -> 85 | O198: =+IFERROR(VLOOKUP(D198,'Cronograma HIPO'!$C$35:$X$394,22,0),"") -> 2362.810307
D199: 149 | F199: =+IFERROR(VLOOKUP(D199,'Cronograma HIPO'!$C$35:$I$394,7,0),"") -> 2037-09-07 | G199: =+IFERROR(VLOOKUP(D199,'Cronograma HIPO'!$C$35:$K$394,9,0),"") -> 150383.3278 | H199: =+IFERROR(VLOOKUP(D199,'Cronograma HIPO'!$C$35:$Q$394,15,0),"") -> 1114.175199 | J199: =+IFERROR(VLOOKUP(D199,'Cronograma HIPO'!$C$35:$R$394,16,0),"") -> 1163.635108 | L199: =+IFERROR(VLOOKUP(D199,'Cronograma HIPO'!$C$35:$T$394,18,0),"") -> 43.51090952 | N199: =+IFERROR(VLOOKUP(D199,'Cronograma HIPO'!$C$35:$U$394,19,0),"") -> 85 | O199: =+IFERROR(VLOOKUP(D199,'Cronograma HIPO'!$C$35:$X$394,22,0),"") -> 2362.810307
D200: 150 | F200: =+IFERROR(VLOOKUP(D200,'Cronograma HIPO'!$C$35:$I$394,7,0),"") -> 2037-10-07 | G200: =+IFERROR(VLOOKUP(D200,'Cronograma HIPO'!$C$35:$K$394,9,0),"") -> 149269.1526 | H200: =+IFERROR(VLOOKUP(D200,'Cronograma HIPO'!$C$35:$Q$394,15,0),"") -> 1160.1839 | J200: =+IFERROR(VLOOKUP(D200,'Cronograma HIPO'!$C$35:$R$394,16,0),"") -> 1117.626407 | L200: =+IFERROR(VLOOKUP(D200,'Cronograma HIPO'!$C$35:$T$394,18,0),"") -> 41.79536274 | N200: =+IFERROR(VLOOKUP(D200,'Cronograma HIPO'!$C$35:$U$394,19,0),"") -> 85 | O200: =+IFERROR(VLOOKUP(D200,'Cronograma HIPO'!$C$35:$X$394,22,0),"") -> 2362.810307
D201: 151 | F201: =+IFERROR(VLOOKUP(D201,'Cronograma HIPO'!$C$35:$I$394,7,0),"") -> 2037-11-07 | G201: =+IFERROR(VLOOKUP(D201,'Cronograma HIPO'!$C$35:$K$394,9,0),"") -> 148108.9687 | H201: =+IFERROR(VLOOKUP(D201,'Cronograma HIPO'!$C$35:$Q$394,15,0),"") -> 1131.77372 | J201: =+IFERROR(VLOOKUP(D201,'Cronograma HIPO'!$C$35:$R$394,16,0),"") -> 1146.036587 | L201: =+IFERROR(VLOOKUP(D201,'Cronograma HIPO'!$C$35:$T$394,18,0),"") -> 42.85286162 | N201: =+IFERROR(VLOOKUP(D201,'Cronograma HIPO'!$C$35:$U$394,19,0),"") -> 85 | O201: =+IFERROR(VLOOKUP(D201,'Cronograma HIPO'!$C$35:$X$394,22,0),"") -> 2362.810307
D202: 152 | F202: =+IFERROR(VLOOKUP(D202,'Cronograma HIPO'!$C$35:$I$394,7,0),"") -> 2037-12-07 | G202: =+IFERROR(VLOOKUP(D202,'Cronograma HIPO'!$C$35:$K$394,9,0),"") -> 146977.195 | H202: =+IFERROR(VLOOKUP(D202,'Cronograma HIPO'!$C$35:$Q$394,15,0),"") -> 1177.344527 | J202: =+IFERROR(VLOOKUP(D202,'Cronograma HIPO'!$C$35:$R$394,16,0),"") -> 1100.465779 | L202: =+IFERROR(VLOOKUP(D202,'Cronograma HIPO'!$C$35:$T$394,18,0),"") -> 41.1536146 | N202: =+IFERROR(VLOOKUP(D202,'Cronograma HIPO'!$C$35:$U$394,19,0),"") -> 85 | O202: =+IFERROR(VLOOKUP(D202,'Cronograma HIPO'!$C$35:$X$394,22,0),"") -> 2362.810307
D203: 153 | F203: =+IFERROR(VLOOKUP(D203,'Cronograma HIPO'!$C$35:$I$394,7,0),"") -> 2038-01-07 | G203: =+IFERROR(VLOOKUP(D203,'Cronograma HIPO'!$C$35:$K$394,9,0),"") -> 145799.8505 | H203: =+IFERROR(VLOOKUP(D203,'Cronograma HIPO'!$C$35:$Q$394,15,0),"") -> 1149.641199 | J203: =+IFERROR(VLOOKUP(D203,'Cronograma HIPO'!$C$35:$R$394,16,0),"") -> 1128.169107 | L203: =+IFERROR(VLOOKUP(D203,'Cronograma HIPO'!$C$35:$T$394,18,0),"") -> 42.18475674 | N203: =+IFERROR(VLOOKUP(D203,'Cronograma HIPO'!$C$35:$U$394,19,0),"") -> 85 | O203: =+IFERROR(VLOOKUP(D203,'Cronograma HIPO'!$C$35:$X$394,22,0),"") -> 2362.810307
D204: 154 | F204: =+IFERROR(VLOOKUP(D204,'Cronograma HIPO'!$C$35:$I$394,7,0),"") -> 2038-02-07 | G204: =+IFERROR(VLOOKUP(D204,'Cronograma HIPO'!$C$35:$K$394,9,0),"") -> 144650.2093 | H204: =+IFERROR(VLOOKUP(D204,'Cronograma HIPO'!$C$35:$Q$394,15,0),"") -> 1158.536885 | J204: =+IFERROR(VLOOKUP(D204,'Cronograma HIPO'!$C$35:$R$394,16,0),"") -> 1119.273421 | L204: =+IFERROR(VLOOKUP(D204,'Cronograma HIPO'!$C$35:$T$394,18,0),"") -> 41.85212722 | N204: =+IFERROR(VLOOKUP(D204,'Cronograma HIPO'!$C$35:$U$394,19,0),"") -> 85 | O204: =+IFERROR(VLOOKUP(D204,'Cronograma HIPO'!$C$35:$X$394,22,0),"") -> 2362.810307
D205: 155 | F205: =+IFERROR(VLOOKUP(D205,'Cronograma HIPO'!$C$35:$I$394,7,0),"") -> 2038-03-07 | G205: =+IFERROR(VLOOKUP(D205,'Cronograma HIPO'!$C$35:$K$394,9,0),"") -> 143491.6724 | H205: =+IFERROR(VLOOKUP(D205,'Cronograma HIPO'!$C$35:$Q$394,15,0),"") -> 1275.297634 | J205: =+IFERROR(VLOOKUP(D205,'Cronograma HIPO'!$C$35:$R$394,16,0),"") -> 1002.512673 | L205: =+IFERROR(VLOOKUP(D205,'Cronograma HIPO'!$C$35:$T$394,18,0),"") -> 37.49915705 | N205: =+IFERROR(VLOOKUP(D205,'Cronograma HIPO'!$C$35:$U$394,19,0),"") -> 85 | O205: =+IFERROR(VLOOKUP(D205,'Cronograma HIPO'!$C$35:$X$394,22,0),"") -> 2362.810307
D206: 156 | F206: =+IFERROR(VLOOKUP(D206,'Cronograma HIPO'!$C$35:$I$394,7,0),"") -> 2038-04-07 | G206: =+IFERROR(VLOOKUP(D206,'Cronograma HIPO'!$C$35:$K$394,9,0),"") -> 142216.3748 | H206: =+IFERROR(VLOOKUP(D206,'Cronograma HIPO'!$C$35:$Q$394,15,0),"") -> 1177.369394 | J206: =+IFERROR(VLOOKUP(D206,'Cronograma HIPO'!$C$35:$R$394,16,0),"") -> 1100.440913 | L206: =+IFERROR(VLOOKUP(D206,'Cronograma HIPO'!$C$35:$T$394,18,0),"") -> 41.14793777 | N206: =+IFERROR(VLOOKUP(D206,'Cronograma HIPO'!$C$35:$U$394,19,0),"") -> 85 | O206: =+IFERROR(VLOOKUP(D206,'Cronograma HIPO'!$C$35:$X$394,22,0),"") -> 2362.810307
D207: 157 | F207: =+IFERROR(VLOOKUP(D207,'Cronograma HIPO'!$C$35:$I$394,7,0),"") -> 2038-05-07 | G207: =+IFERROR(VLOOKUP(D207,'Cronograma HIPO'!$C$35:$K$394,9,0),"") -> 141039.0054 | H207: =+IFERROR(VLOOKUP(D207,'Cronograma HIPO'!$C$35:$Q$394,15,0),"") -> 1221.805673 | J207: =+IFERROR(VLOOKUP(D207,'Cronograma HIPO'!$C$35:$R$394,16,0),"") -> 1056.004633 | L207: =+IFERROR(VLOOKUP(D207,'Cronograma HIPO'!$C$35:$T$394,18,0),"") -> 39.4909215 | N207: =+IFERROR(VLOOKUP(D207,'Cronograma HIPO'!$C$35:$U$394,19,0),"") -> 85 | O207: =+IFERROR(VLOOKUP(D207,'Cronograma HIPO'!$C$35:$X$394,22,0),"") -> 2362.810307
D208: 158 | F208: =+IFERROR(VLOOKUP(D208,'Cronograma HIPO'!$C$35:$I$394,7,0),"") -> 2038-06-07 | G208: =+IFERROR(VLOOKUP(D208,'Cronograma HIPO'!$C$35:$K$394,9,0),"") -> 139817.1997 | H208: =+IFERROR(VLOOKUP(D208,'Cronograma HIPO'!$C$35:$Q$394,15,0),"") -> 1195.933714 | J208: =+IFERROR(VLOOKUP(D208,'Cronograma HIPO'!$C$35:$R$394,16,0),"") -> 1081.876592 | L208: =+IFERROR(VLOOKUP(D208,'Cronograma HIPO'!$C$35:$T$394,18,0),"") -> 40.45377645 | N208: =+IFERROR(VLOOKUP(D208,'Cronograma HIPO'!$C$35:$U$394,19,0),"") -> 85 | O208: =+IFERROR(VLOOKUP(D208,'Cronograma HIPO'!$C$35:$X$394,22,0),"") -> 2362.810307
D209: 159 | F209: =+IFERROR(VLOOKUP(D209,'Cronograma HIPO'!$C$35:$I$394,7,0),"") -> 2038-07-07 | G209: =+IFERROR(VLOOKUP(D209,'Cronograma HIPO'!$C$35:$K$394,9,0),"") -> 138621.266 | H209: =+IFERROR(VLOOKUP(D209,'Cronograma HIPO'!$C$35:$Q$394,15,0),"") -> 1239.90807 | J209: =+IFERROR(VLOOKUP(D209,'Cronograma HIPO'!$C$35:$R$394,16,0),"") -> 1037.902237 | L209: =+IFERROR(VLOOKUP(D209,'Cronograma HIPO'!$C$35:$T$394,18,0),"") -> 38.81395448 | N209: =+IFERROR(VLOOKUP(D209,'Cronograma HIPO'!$C$35:$U$394,19,0),"") -> 85 | O209: =+IFERROR(VLOOKUP(D209,'Cronograma HIPO'!$C$35:$X$394,22,0),"") -> 2362.810307
D210: 160 | F210: =+IFERROR(VLOOKUP(D210,'Cronograma HIPO'!$C$35:$I$394,7,0),"") -> 2038-08-07 | G210: =+IFERROR(VLOOKUP(D210,'Cronograma HIPO'!$C$35:$K$394,9,0),"") -> 137381.3579 | H210: =+IFERROR(VLOOKUP(D210,'Cronograma HIPO'!$C$35:$Q$394,15,0),"") -> 1214.781755 | J210: =+IFERROR(VLOOKUP(D210,'Cronograma HIPO'!$C$35:$R$394,16,0),"") -> 1063.028552 | L210: =+IFERROR(VLOOKUP(D210,'Cronograma HIPO'!$C$35:$T$394,18,0),"") -> 39.74900622 | N210: =+IFERROR(VLOOKUP(D210,'Cronograma HIPO'!$C$35:$U$394,19,0),"") -> 85 | O210: =+IFERROR(VLOOKUP(D210,'Cronograma HIPO'!$C$35:$X$394,22,0),"") -> 2362.810307
D211: 161 | F211: =+IFERROR(VLOOKUP(D211,'Cronograma HIPO'!$C$35:$I$394,7,0),"") -> 2038-09-07 | G211: =+IFERROR(VLOOKUP(D211,'Cronograma HIPO'!$C$35:$K$394,9,0),"") -> 136166.5762 | H211: =+IFERROR(VLOOKUP(D211,'Cronograma HIPO'!$C$35:$Q$394,15,0),"") -> 1224.181485 | J211: =+IFERROR(VLOOKUP(D211,'Cronograma HIPO'!$C$35:$R$394,16,0),"") -> 1053.628822 | L211: =+IFERROR(VLOOKUP(D211,'Cronograma HIPO'!$C$35:$T$394,18,0),"") -> 39.39752937 | N211: =+IFERROR(VLOOKUP(D211,'Cronograma HIPO'!$C$35:$U$394,19,0),"") -> 85 | O211: =+IFERROR(VLOOKUP(D211,'Cronograma HIPO'!$C$35:$X$394,22,0),"") -> 2362.810307
D212: 162 | F212: =+IFERROR(VLOOKUP(D212,'Cronograma HIPO'!$C$35:$I$394,7,0),"") -> 2038-10-07 | G212: =+IFERROR(VLOOKUP(D212,'Cronograma HIPO'!$C$35:$K$394,9,0),"") -> 134942.3947 | H212: =+IFERROR(VLOOKUP(D212,'Cronograma HIPO'!$C$35:$Q$394,15,0),"") -> 1267.452968 | J212: =+IFERROR(VLOOKUP(D212,'Cronograma HIPO'!$C$35:$R$394,16,0),"") -> 1010.357338 | L212: =+IFERROR(VLOOKUP(D212,'Cronograma HIPO'!$C$35:$T$394,18,0),"") -> 37.78387051 | N212: =+IFERROR(VLOOKUP(D212,'Cronograma HIPO'!$C$35:$U$394,19,0),"") -> 85 | O212: =+IFERROR(VLOOKUP(D212,'Cronograma HIPO'!$C$35:$X$394,22,0),"") -> 2362.810307
D213: 163 | F213: =+IFERROR(VLOOKUP(D213,'Cronograma HIPO'!$C$35:$I$394,7,0),"") -> 2038-11-07 | G213: =+IFERROR(VLOOKUP(D213,'Cronograma HIPO'!$C$35:$K$394,9,0),"") -> 133674.9417 | H213: =+IFERROR(VLOOKUP(D213,'Cronograma HIPO'!$C$35:$Q$394,15,0),"") -> 1243.461237 | J213: =+IFERROR(VLOOKUP(D213,'Cronograma HIPO'!$C$35:$R$394,16,0),"") -> 1034.349069 | L213: =+IFERROR(VLOOKUP(D213,'Cronograma HIPO'!$C$35:$T$394,18,0),"") -> 38.67661647 | N213: =+IFERROR(VLOOKUP(D213,'Cronograma HIPO'!$C$35:$U$394,19,0),"") -> 85 | O213: =+IFERROR(VLOOKUP(D213,'Cronograma HIPO'!$C$35:$X$394,22,0),"") -> 2362.810307
D214: 164 | F214: =+IFERROR(VLOOKUP(D214,'Cronograma HIPO'!$C$35:$I$394,7,0),"") -> 2038-12-07 | G214: =+IFERROR(VLOOKUP(D214,'Cronograma HIPO'!$C$35:$K$394,9,0),"") -> 132431.4805 | H214: =+IFERROR(VLOOKUP(D214,'Cronograma HIPO'!$C$35:$Q$394,15,0),"") -> 1286.252995 | J214: =+IFERROR(VLOOKUP(D214,'Cronograma HIPO'!$C$35:$R$394,16,0),"") -> 991.5573115 | L214: =+IFERROR(VLOOKUP(D214,'Cronograma HIPO'!$C$35:$T$394,18,0),"") -> 37.08081453 | N214: =+IFERROR(VLOOKUP(D214,'Cronograma HIPO'!$C$35:$U$394,19,0),"") -> 85 | O214: =+IFERROR(VLOOKUP(D214,'Cronograma HIPO'!$C$35:$X$394,22,0),"") -> 2362.810307
D215: 165 | F215: =+IFERROR(VLOOKUP(D215,'Cronograma HIPO'!$C$35:$I$394,7,0),"") -> 2039-01-07 | G215: =+IFERROR(VLOOKUP(D215,'Cronograma HIPO'!$C$35:$K$394,9,0),"") -> 131145.2275 | H215: =+IFERROR(VLOOKUP(D215,'Cronograma HIPO'!$C$35:$Q$394,15,0),"") -> 1263.035643 | J215: =+IFERROR(VLOOKUP(D215,'Cronograma HIPO'!$C$35:$R$394,16,0),"") -> 1014.774663 | L215: =+IFERROR(VLOOKUP(D215,'Cronograma HIPO'!$C$35:$T$394,18,0),"") -> 37.94468582 | N215: =+IFERROR(VLOOKUP(D215,'Cronograma HIPO'!$C$35:$U$394,19,0),"") -> 85 | O215: =+IFERROR(VLOOKUP(D215,'Cronograma HIPO'!$C$35:$X$394,22,0),"") -> 2362.810307
D216: 166 | F216: =+IFERROR(VLOOKUP(D216,'Cronograma HIPO'!$C$35:$I$394,7,0),"") -> 2039-02-07 | G216: =+IFERROR(VLOOKUP(D216,'Cronograma HIPO'!$C$35:$K$394,9,0),"") -> 129882.1918 | H216: =+IFERROR(VLOOKUP(D216,'Cronograma HIPO'!$C$35:$Q$394,15,0),"") -> 1272.808752 | J216: =+IFERROR(VLOOKUP(D216,'Cronograma HIPO'!$C$35:$R$394,16,0),"") -> 1005.001555 | L216: =+IFERROR(VLOOKUP(D216,'Cronograma HIPO'!$C$35:$T$394,18,0),"") -> 37.5792475 | N216: =+IFERROR(VLOOKUP(D216,'Cronograma HIPO'!$C$35:$U$394,19,0),"") -> 85 | O216: =+IFERROR(VLOOKUP(D216,'Cronograma HIPO'!$C$35:$X$394,22,0),"") -> 2362.810307
D217: 167 | F217: =+IFERROR(VLOOKUP(D217,'Cronograma HIPO'!$C$35:$I$394,7,0),"") -> 2039-03-07 | G217: =+IFERROR(VLOOKUP(D217,'Cronograma HIPO'!$C$35:$K$394,9,0),"") -> 128609.3831 | H217: =+IFERROR(VLOOKUP(D217,'Cronograma HIPO'!$C$35:$Q$394,15,0),"") -> 1379.273589 | J217: =+IFERROR(VLOOKUP(D217,'Cronograma HIPO'!$C$35:$R$394,16,0),"") -> 898.5367177 | L217: =+IFERROR(VLOOKUP(D217,'Cronograma HIPO'!$C$35:$T$394,18,0),"") -> 33.60991878 | N217: =+IFERROR(VLOOKUP(D217,'Cronograma HIPO'!$C$35:$U$394,19,0),"") -> 85 | O217: =+IFERROR(VLOOKUP(D217,'Cronograma HIPO'!$C$35:$X$394,22,0),"") -> 2362.810307
D218: 168 | F218: =+IFERROR(VLOOKUP(D218,'Cronograma HIPO'!$C$35:$I$394,7,0),"") -> 2039-04-07 | G218: =+IFERROR(VLOOKUP(D218,'Cronograma HIPO'!$C$35:$K$394,9,0),"") -> 127230.1095 | H218: =+IFERROR(VLOOKUP(D218,'Cronograma HIPO'!$C$35:$Q$394,15,0),"") -> 1293.330017 | J218: =+IFERROR(VLOOKUP(D218,'Cronograma HIPO'!$C$35:$R$394,16,0),"") -> 984.4802897 | L218: =+IFERROR(VLOOKUP(D218,'Cronograma HIPO'!$C$35:$T$394,18,0),"") -> 36.81191168 | N218: =+IFERROR(VLOOKUP(D218,'Cronograma HIPO'!$C$35:$U$394,19,0),"") -> 85 | O218: =+IFERROR(VLOOKUP(D218,'Cronograma HIPO'!$C$35:$X$394,22,0),"") -> 2362.810307
D219: 169 | F219: =+IFERROR(VLOOKUP(D219,'Cronograma HIPO'!$C$35:$I$394,7,0),"") -> 2039-05-07 | G219: =+IFERROR(VLOOKUP(D219,'Cronograma HIPO'!$C$35:$K$394,9,0),"") -> 125936.7795 | H219: =+IFERROR(VLOOKUP(D219,'Cronograma HIPO'!$C$35:$Q$394,15,0),"") -> 1334.880921 | J219: =+IFERROR(VLOOKUP(D219,'Cronograma HIPO'!$C$35:$R$394,16,0),"") -> 942.9293853 | L219: =+IFERROR(VLOOKUP(D219,'Cronograma HIPO'!$C$35:$T$394,18,0),"") -> 35.26229825 | N219: =+IFERROR(VLOOKUP(D219,'Cronograma HIPO'!$C$35:$U$394,19,0),"") -> 85 | O219: =+IFERROR(VLOOKUP(D219,'Cronograma HIPO'!$C$35:$X$394,22,0),"") -> 2362.810307
D220: 170 | F220: =+IFERROR(VLOOKUP(D220,'Cronograma HIPO'!$C$35:$I$394,7,0),"") -> 2039-06-07 | G220: =+IFERROR(VLOOKUP(D220,'Cronograma HIPO'!$C$35:$K$394,9,0),"") -> 124601.8986 | H220: =+IFERROR(VLOOKUP(D220,'Cronograma HIPO'!$C$35:$Q$394,15,0),"") -> 1313.66657 | J220: =+IFERROR(VLOOKUP(D220,'Cronograma HIPO'!$C$35:$R$394,16,0),"") -> 964.1437367 | L220: =+IFERROR(VLOOKUP(D220,'Cronograma HIPO'!$C$35:$T$394,18,0),"") -> 36.05148265 | N220: =+IFERROR(VLOOKUP(D220,'Cronograma HIPO'!$C$35:$U$394,19,0),"") -> 85 | O220: =+IFERROR(VLOOKUP(D220,'Cronograma HIPO'!$C$35:$X$394,22,0),"") -> 2362.810307
D221: 171 | F221: =+IFERROR(VLOOKUP(D221,'Cronograma HIPO'!$C$35:$I$394,7,0),"") -> 2039-07-07 | G221: =+IFERROR(VLOOKUP(D221,'Cronograma HIPO'!$C$35:$K$394,9,0),"") -> 123288.232 | H221: =+IFERROR(VLOOKUP(D221,'Cronograma HIPO'!$C$35:$Q$394,15,0),"") -> 1354.711453 | J221: =+IFERROR(VLOOKUP(D221,'Cronograma HIPO'!$C$35:$R$394,16,0),"") -> 923.098854 | L221: =+IFERROR(VLOOKUP(D221,'Cronograma HIPO'!$C$35:$T$394,18,0),"") -> 34.52070496 | N221: =+IFERROR(VLOOKUP(D221,'Cronograma HIPO'!$C$35:$U$394,19,0),"") -> 85 | O221: =+IFERROR(VLOOKUP(D221,'Cronograma HIPO'!$C$35:$X$394,22,0),"") -> 2362.810307
... 131 more rows

Sheet Resolucion (hidden)
B2: =CONCATENATE(Principal!E4," - ",Principal!E5) -> Hipotecario - Tradicional | D2: Titular: | E2: =Ingreso_Titular!D4 -> 0 | G2: =Principal!C11 -> RENTA ALTA | H2: Mancomuno: | I2: =Ingreso_Cony!D4 -> 0 | L2: Interbank Booster CHIP | R2: MATRIZ ZONA | AA2: CY DY
D3: DNI: | E3: =Ingreso_Titular!D5 -> 46046330 | F3: =CONCATENATE("Edad: ",Deudas!E12) ->  | H3: DNI: | I3: =Ingreso_Cony!D5 -> 0 | P3: Soles
E4: =CONCATENATE("Buro: ",Principal!C13) -> Buro: ALTO | F4: =CONCATENATE("Color: ",Principal!C14) -> Color: VERDE CLARO | G4: =IFERROR(VLOOKUP(Principal!C14,$R$4:$S$9,2,FALSE),"") -> ZONA 1 | I4: =IF(Principal!C9="Soltero(a)",CONCATENATE("Buro: ",Principal!C24),CONCATENATE("Buro: ",Principal!I13)) -> Buro: | P4: Dólares | R4: VERDE CLARO | S4: ZONA 1 | AA4: RatioSobreendeudamientoMáximo (Máx D/Y) | AB4: =IFERROR(Deudas_fx!J66,"") -> 0.59
E5: =Principal!H5 -> Zona de Recorte: | F5: =Principal!I5 -> ATENCIÓN | R5: VERDE | S5: ZONA 1 | AA5: MaxRatioEndeudamHipotecario | AB5: =IF(J21="Ahorro Casa",0.4,IF(AND(J20="Hipotecario",J21="Tradicional"),$AA$16,Deudas_fx!F54)) -> 0.5
B6: =IF(AND(OR(J20="MiVivienda",J20="TechoPropio"),OR(C9="Dólares",C10="Dólares")),"Este producto se entrega en Soles","") ->  | P6: Integrador | R6: AMARILLO | S6: ZONA 1 | AA6: MaxRatioEndeudamientoPersonal | AB6: =IF(K15=0,"",Deudas_fx!J66-K11/K15) -> 0.3793683274
P7: TP | R7: GRIS | S7: ZONA 2 | AA7: Ratio EndeudamientoHip Útil (Max C/Y) | AB7: =IF(K15=0,"",MIN(AB6,AB5)) -> 0.3793683274
B8: Condiciones del Crédito | H8: Resumen Deudas e Ingresos | P8: Verde | R8: ROJO | S8: ZONA 3 | AA8: Capac. Endeudamiento Máximo - CEM | AB8: =IF(K15=0,"",Deudas_fx!K78) -> 3411.28 | AC8: CEM ($) | AD8: =IF(K15=0,"",IF($C$10="Dólares",AB8/$C$11,0)) -> 0
B9: Valor del Inmueble | C9: Soles | D9: 300000 | E9: =IF(D9="","",IF(OR(D14="N/A",D14="#N/A"),"Valor del Inmueble fuera del rango de Producto "&J20&" (Ver Cuadros)","")) ->  | H9: Deudas | L9: =C17 -> Soles | R9: NO DATA | S9: NO BANC | AA9: CEM Ajustado (****) | AB9: =IF(K15=0,"",Deudas_fx!L78) -> 3411.28 | AC9: CEM Ajustado ($) | AD9: =IF(K15=0,"",IF($C$10="Dólares",AB9/$C$11,0)) -> 0
B10: Elegir moneda del crédito | C10: Soles | H10: Saldo Total en el SSFF | J10: =P3 -> Soles | K10: =Deudas!C41 -> 178522.37 | L10: =IF(C10=P4,Deudas!C41/$C$11,0) -> 0 | P10: IB | AB10: =IF(K15=0,"",Deudas_fx!L78) -> 3411.28
B11: Tipo de Cambio | C11: 3.85 | H11: Cuota SBS | J11: =P3 -> Soles | K11: =Deudas!C42 -> 1894 | L11: =IF(C10=P4,Deudas!C42/$C$11,0) -> 0 | P11: Externo
B12: Cuota Inicial (sin bonos MV/TP) | C12: =C9 -> Soles | E12: 0.2 | F12: =IF(D12="","",IF(J20<>"MiVivienda","",IF(J21="Ahorro Casa","INICIAL MINIMA 10%",IF(AND(J21="Tradicional",D9<=Cuadros!C27),"INICIAL MINIMA 7.5%","INICIAL MINIMA 10%")))) ->  | H12: Ingresos neto | L12: =C17 -> Soles | R12: AHORRO CASA | S12: Dependiente | T12: Profesional Independiente | U12: Microempresario | V12: Informal
B13: Para MV: Cuota inicial a colocar en ADQ | D13: =IFERROR(D12+D14+D15+D16,0) -> 0 | H13: YN Titular | J13: =C17 -> Soles | K13: =Ingreso_Titular!D8 -> 8992 | L13: =IF(C10=P4,Ingreso_Titular!D8/$C$11,0) -> 0 | P13: Normal | Q13: 0.0034 | R13: Verde Claro | S13: 4M / CI 10% | T13: 4M / CI 20% 6M / CI 10% | U13: 4M / CI 20% 6M / CI 10% | V13: 6M / CI 20% 9M / CI 15% | AA13: Matriz CY Hipotecario Tradicional | AB13: =_xlfn.IFS( OR(G2="no data",G2=0),"consumo inicial", G2="estado","masivo dependiente", TRUE,G2) -> RENTA ALTA | AC13: provisional por segmento ESTADO y SIN SEGMENTO
B14: =_xlfn.IFS(J20="MiVivienda","Bono MV",J20="TechoPropio","Bono TechoPropio",TRUE,"") ->  | D14: =IF(J20="TechoPropio",IF(D9<Cuadros!B34,"N/A",IF(D9<=Cuadros!B35,Cuadros!D34,IF(D9<=Cuadros!C35,Cuadros!D35,"N/A"))),IF(J20="MiVivienda",IF(D9<Cuadros!B24,"N/A",IF(D9<=Cuadros!C24,Cuadros!D24,IF(D9<=Cuadros!C25,Cuadros!D25,IF(D9<=Cuadros!C26,Cuadros!D26,IF(D9<=Cuadros!C27,Cuadros!D27,IF(D9>Cuadros!C28,"N/A",0)))))),0)) -> 0 | E14: =IF(D14>0,"Soles","") ->  | H14: YN Mancomuno | J14: =J13 -> Soles | K14: =Ingreso_Cony!D8 -> 0 | L14: =IF(C10=P4,Ingreso_Cony!D8/$C$11,0) -> 0 | P14: Mixto | Q14: 0.005 | R14: Verde | S14: 4M / CI 10% | T14: 4M / CI 20% 6M / CI 10% | U14: 4M / CI 20% 6M / CI 10% | V14: 6M / CI 20% 9M / CI 15% | AA14: =MATCH($AB$13,$S$21:$V$21,0) -> 1 | AB14: Indice Segmento
B15: =IF(J20="Mivivienda","Bono Integrador","") ->  | D15: =IF(AND(D9<=Cuadros!C27,D9>=Cuadros!B24),IF(AND(C15<>"No",AND(C15<>"",C15<>"sin bono integrador"),D9<=Cuadros!C27,J20="MiVivienda"),3400,0),0) -> 0 | E15: =IF(D14>0,"Soles","") ->  | H15: Ingreso Neto Mensual Total | J15: =J14 -> Soles | K15: =K13+K14 -> 8992 | L15: =L13+L14 -> 0 | P15: Preferente | Q15: 0.0022 | R15: Amarillo | S15: 4M / CI 10% | T15: 4M / CI 20% 6M / CI 10% | U15: 4M / CI 20% 6M / CI 10% | V15: 6M / CI 20% 9M / CI 15% | AA15: =MATCH(Principal!$C$14,$R$22:$R$27,0) -> 1 | AB15: Indice Color
B16: =IF(J20="Mivivienda","Bono Verde","") ->  | D16: =IF(AND(D9<=355100,D9>=67400,J20="MiVivienda"),_xlfn.IFNA(VLOOKUP(C16,Cuadros!$B$59:$C$60,2,FALSE),0),0) -> 0 | E16: =IF(D14>0,"Soles","") ->  | P16: Dorado | Q16: 0.0024 | R16: Gris | S16: APAGADA | T16: APAGADA | U16: APAGADA | V16: APAGADA | AA16: =INDEX(S22:V27,AA15,AA14) -> 0.5 | AB16: CY correspondiente
B17: Importe del Préstamo | C17: =C10 -> Soles | D17: =IFERROR(IF(AND(C10=P3,C9=P4),(D9-(D9*E12)-D14-D15-D16)*C11,(D9-(D9*E12)-D14-D15-D16)),0) -> 240000 | E17: =_xlfn.IFNA(IF(AB22=0,"",AB31),"") -> 364000 | F17: =IF(E17<>"","Oferta CEM Máxima referencial","") -> Oferta CEM Máxima referencial | R17: Rojo | S17: ZONA RESTRINGIDA | T17: ZONA RESTRINGIDA | U17: ZONA RESTRINGIDA | V17: ZONA RESTRINGIDA
B18: Tasa Interes | C18: TEA | D18: 0.08 | E18: =(1 + D18)^(1/12) - 1 -> 0.00643403011 | H18: Endeudamiento, Zona Geográfica, Producto y Situación Laboral | P18: Ordinaria | R18: NO DATA | S18: 6M / CI 20% 9M / CI 15% | T18: APAGADA | U18: APAGADA | V18: APAGADA | AA18: Monto maximo sugerido
B19: Plazo | D19: 240 | E19: Meses | F19: =IF(D19="","",IFERROR(IF(AND('Cronograma HIPO'!V9+D19/12>86,Deudas!E12<0),"Titular o Cónyuge excede el límite de edad de permanencia (86 años), reducir el plazo del Crédito",IF(AND(J20=P30,OR(D19<60,D19>300)),"El rango de Plazo MV es de 5 a 25 años",IF(AND(J20=P32,D19>60),"El Plazo Máximo de PPGH es hasta 5 años. Solicitar excepción máxima hasta 10 años",""))),"")) ->  | H19: Departamento Geográfico | J19: Lima | K19: =VLOOKUP(J19,Cuadros!$AA$2:$AB$26,2,0) -> Zona1 | P19: Extraordinaria | AA19: Tasa de Costo Efectiva Mensual | AB19: =(1+D31)^(1/12)-1 -> 0.0080819886
B20: Tipo de Crédito | D20: Individual | F20: =IF(Deudas!E12>0,IFERROR(IF(OR(J20=P30,J20=P31),IF(VLOOKUP(75,'Cronograma HIPO'!Z:AC,4,1)>IF(C10="Soles",15000*HIPO!J25,15000),"Titular o Cónyuge excede el Saldo Capital MiVivienda Máximo (15,000 USD) al cumplir los 75 años, reducir el Plazo del Crédito",""),IF(VLOOKUP(75,'Cronograma HIPO'!Z:AC,4,1)>IF(C10="Soles",30000*HIPO!J25,30000),"Titular o Cónyuge excede el Saldo Capital Máximo (30,000 USD) al cumplir los 75 años, reducir el Plazo del Crédito","")),""),"") ->  | H20: Producto | J20: =Principal!E4 -> Hipotecario | AA20: Valor presente | AB20: =PV(AB19,D19,-J28,0) -> 360934.603
B21: Tasa Seguro Desgravamen | D21: =IF(D20="Individual",Cuadros!$D$39,IF(D20="Individual/Devolución",Cuadros!$D$43,IF(D20="Mancomunado/Devolución",Cuadros!$D$44,Cuadros!$D$40))) -> 0.00028 | E21: TEM | H21: Tipo de Evaluación | J21: =Principal!E5 -> Tradicional | P21: HPC | S21: Renta Alta | T21: Masivo Dependiente | U21: Masivo Independiente | V21: Consumo Inicial | AA21: Simulacion 1
B22: Tasa Seguro Inmueble | C22: Normal | D22: =VLOOKUP(C22,P13:Q16,2,0) -> 0.0034 | E22: TNA | H22: Situación Laboral | J22: =Principal!F9 -> Dependiente | P22: ADQ | R22: Verde Claro | S22: 0.5 | T22: 0.5 | U22: 0.5 | V22: 0.4 | AA22: VI1 | AB22: =AB20 -> 360934.603
B23: Comisión Administrativa | D23: =VLOOKUP(E23,Deudas_fx!H114:J115,3,FALSE) -> 0 | E23: =IF(Deudas_fx!$I$13=1,"Soles","Dólares") -> Soles | R23: Verde | S23: 0.5 | T23: 0.5 | U23: 0.5 | V23: 0.4 | AA23: TCEA1 | AB23: ='Cronograma HIPO (2)'!AA15 -> 0.1001212154
B24: Tipo de Cuota | D24: Ordinaria | P24: Individual | R24: Amarillo | S24: 0.5 | T24: 0.5 | U24: 0.4 | V24: 0.4 | AA24: TCEM1 | AB24: =(1+AB23)^(1/12)-1 -> 0.007983396176
B25: Factor Cuota Extraordinaria | D25: 2 | F25: =IF(J20=P29," ",IF(COUNTIF('Cronograma HIPO'!$Q$35:$Q$394,"<-0.01")>=1,"ERROR: Existen amortizaciones negativas, reducir progresivamente el Factor de Cuota Extaordinaria o el Plazo","")) ->  | H25: Ratios | J25: Calculado | K25: Máximo | P25: Mancomunado | R25: Gris | S25: 0.5 | T25: 0.4 | U25: 0.4 | V25: 0.4 | AA25: VA1 | AB25: =PV(AB24,D19,-J28,0) -> 363921.7117
B26: Fecha de Desembolso | D26: =TODAY() -> 2025-04-15 | H26: YN: | I26: =C10 -> Soles | J26: =IF(I26=P4,L15,K15) -> 8992 | K26: =IF(K14>0,CONCATENATE("TIT S/ ",K13," MANC S/ ",K14),"") ->  | P26: Individual/Devolución | R26: Rojo | S26: ZONA RESTRINGIDA | AA26: Simulacion 2
B27: Fecha 1er pago | D27: =DATE(YEAR(D26),MONTH(D26)+1,DAY(D26)-1) -> 2025-05-14 | H27: Cuota SBS: | I27: =C10 -> Soles | J27: =IF(I27=P4,L11,K11) -> 1894 | P27: Mancomunado/Devolución | R27: NO DATA | S27: 0.5 | T27: 0.5 | U27: 0.4 | V27: 0.4 | AA27: VI2 | AB27: =AB25 -> 363921.7117
B28: Periodo de Gracia (*****) | D28: 0 | E28: Meses | H28: CEM: | I28: =C10 -> Soles | J28: =IF(I28=P4,AD9,IF(K15=0,0,Deudas_fx!K78)) -> 3411.28 | K28: =AD8 -> 0 | AA28: TCEA2 | AB28: ='Cronograma HIPO (3)'!AA15 -> 0.1000887013
H29: Cuota Final: | I29: =C10 -> Soles | J29: =IF(D32="ADQ",D33,E33) -> 2362.810307 | P29: Hipotecario | AA29: TCEM2 | AB29: =(1+AB28)^(1/12)-1 -> 0.007980913557
B30: Simulación Cuota | H30: C/Y: | I30: =IF(K15=0,"",IF(J30<=K30,"CALIFICA","SOBREENDEUDADO")) -> CALIFICA | J30: =IFERROR(J29/J26,) -> 0.2627680501 | K30: =_xlfn.IFNA(AB5,"") -> 0.5 | P30: MiVivienda | T30: Score Buró | AA30: VA2 | AB30: =PV(AB29,D19,-J28,0) -> 363997.4323
B31: Tasa de Costo Efectiva Anual | C31: TCEA | D31: =IF(OR(D33=0,D17=0),0,+'Cronograma HIPO'!AA32) -> 0.1014131651 | E31: =IF(D32="HPC","Utilizar solo la Cuota HPC","Cuota ADQ sólo es para Riesgos") -> Utilizar solo la Cuota HPC | H31: D/Y: | I31: =IFERROR(Deudas_fx!G92,"") -> CALIFICA | J31: =IFERROR((J27+J29)/J26,) -> 0.4733997227 | K31: =IFERROR(Deudas_fx!J66,"") -> 0.59 | P31: TechoPropio | T31: Alto | U31: Medio | V31: Bajo | W31: Muy Bajo | X31: Rechazo | Y31: Null | AA31: Maximo referencial | AB31: =ROUND(AB30,-3) -> 364000
B32: Tipo de simulación | D32: HPC | E32: HPC | P32: Personal con Garantía | R32: Score CHIP | S32: Muy Alto
B33: Cuota mensual | C33: =C10 -> Soles | D33: =IF(D32="HPC",E33,0) -> 2362.810307 | E33: =IF(OR(D9=0,D17=0,D18=0,D26=0),0,+VLOOKUP(1,'Cronograma HIPO'!E35:X52,20,FALSE)) -> 2362.810307 | S33: Alto
B34: Cuota Extraordinaria | C34: =C10 -> Soles | D34: =IF(D32="HPC",E34,0) -> 0 | E34: =IF(OR(D9=0,D17=0,D18=0,D26=0),0,IF(Deudas_fx!I24=1,0,VLOOKUP($D$25,'Cronograma HIPO'!E41:X52,20,FALSE))) -> 0 | H34: Plan de Ahorros | P34: CALIFICA | S34: Medio
H35: Plan correspondiente | J35: =_xlfn.IFNA(IF(J21="TRADICIONAL","",Ah_casa!C15),"") ->  | P35: SOBREENDEUDADO | S35: Bajo
J36: Debe ser aprobado por riesgos para iniciar con el plan de ahorros | S36: Rechazo
B37: Condiciones del credito | S37: Null
B38: =IF(AND(I30=P34,I31=P34), IF(K14=0, "YN S/ " & J26 & " DEUDA S/ " & J27 & " CY " & J30 & " DY " & J31 & " CEM S/ " & J28 & " CON / SIN CONDICIONES ", "TIT S/ " & K13 & IF(Principal!C19="", " CONY S/ ", " COD S/ ") & K14 & " YN S/ " & J26 & " DEUDA S/ " & J27 & " CY " & J30 & " DY " & J31 & " CEM S/ " & J28 & " CON / SIN CONDICIONES " ), "" ) -> YN S/ 8992 DEUDA S/ 1894 CY 0.262768050102285 DY 0.47339972270015 CEM S/ 3411.28 CON / SIN CONDICIONES
H39: Oferta Visión Cliente
H40: Oferta PPE | J40: =Vision_Cliente!D20 -> 
H41: Oferta TC | J41: =Vision_Cliente!M20 -> 35968
H42: Revisar condiciones en Pestaña Vision Cliente
P46: Por YN
P47: Por edad
P48: Discapacidad
P49: Desplazo de terrorismo
P50: Migrante retornado
P51: Sin Bono Integrador
P53: Con Bono Verde
P54: Sin Bono Verde

Sheet Cronograma HIPO (hidden)
D1: =DATE(YEAR('VISTA CLIENTE'!G11),MONTH('VISTA CLIENTE'!G11)+1,'VISTA CLIENTE'!G23) -> 2025-05-07 | N1: Fecha vencimiento + PG | O1: =DATE(H35,G35+I4,F35) -> 2025-05-07
B2: Fechadefault | D2: =DATE(YEAR('VISTA CLIENTE'!G11),MONTH('VISTA CLIENTE'!G11)+1,'VISTA CLIENTE'!G23) -> 2025-05-07 | G2: Fecha Desembolso | I2: ='VISTA CLIENTE'!G11 -> 2025-04-14 | N2: Dias de PG natural | O2: =+I35-I2-IF(I35-I2<30,0,30) -> 23 | AD2: DESGRAVAMEN | AF2: SEGURO BIEN | AH2: MONEDA | AI2: CUOTA
B3: FechaPersonalizada | D3: =IF(Deudas_fx!O89="","",IF(DAY(TODAY())>Deudas_fx!O89,DATE(YEAR(TODAY()),MONTH(TODAY())+2,Deudas_fx!O89),DATE(YEAR(TODAY()),MONTH(TODAY())+1,Deudas_fx!O89))) ->  | G3: Fechas de pago | I3: =VALUE(DAY(Deudas_fx!O89)) -> 0 | N3: int.+s.d. PG | O3: =+(($I$8+1)^O2-1)*I5 -> 1433.820581 | AD3: EXTERNO | AF3: EXTERNO | AG3: EXTERNO | AH3: SOLES | AI3: ORDINARIA
B4: Usuario: Tom Davye Agurto Alban | G4: Periodo de Gracia (meses) | I4: ='VISTA CLIENTE'!G28 -> 0 | N4: s.inm. PG | O4: =+$I$12/30*O2 -> 65.16666667 | AD4: INDIVIDUAL | AF4: NORMAL | AH4: DOLARES | AI4: EXTRAORDINARIA
G5: Saldo Capital | I5: ='VISTA CLIENTE'!G17 -> 250000 | AD5: MANCOMUNADO
G6: Tasa Interés Capital | I6: =Deudas_fx!I124 -> 0.0002394111438 | N6: =((1+I6)^30-1)*100000 -> 720.7323316 | R6: =+(1+I6)^30-1 -> 0.007207323316 | S6: =+(1+R6)^12-1 -> 0.09 | T6: =+(1+S6)^(1/360)-1 -> 0.0002394111438 | U6: tit | V6: =IF(W6<>"",YEAR(TODAY())-IF(YEAR(W6)>0,YEAR(W6),0),"") ->  | W6: =Deudas!C12 -> 27/07/1989 | AD6: INDIVIDUAL/DEVOLUCIÓN
G7: Seg. Desg | I7: =Deudas_fx!I125 -> 9.332070454e-06 | N7: =((1+I7)^30-1)*100000 -> 28 | R7: =+(1+I7)^30-1 -> 0.00028 | U7: cony | V7: =IF(W7<>"",YEAR(TODAY())-IF(YEAR(W7)>0,YEAR(W7),0),"") ->  | W7: =IF(Deudas!F12<>"",Deudas!F12,"") ->  | AD7: MANCOMUNADO/DEVOLUCIÓN
G8: Tasa Diaria Total | I8: =(1+N8)^(1/30)-1 -> 0.0002486786635 | N8: =Deudas_fx!J131 -> 0.007487323316 | R8: =+R6+R7 -> 0.007487323316 | U8: cod | V8: =IF(W8<>"",YEAR(TODAY())-IF(YEAR(W8)>0,YEAR(W8),0),"") ->  | W8: =IF(Deudas!I12<>"",Deudas!I12,"") -> 
G9: Plazo | I9: ='VISTA CLIENTE'!G19 -> 240 | N9: =SUM(P35:P394) -> 110.4126127 | R9: =+(1+R8)^12-1 -> 0.0936417576 | V9: =MAX(V6:V8) -> 
G10: Saldo Capitalizado | I10: =VLOOKUP(J10,D35:K394,8,FALSE) -> 251498.9872 | J10: PP | N10: =+$I$10/N9 -> 2277.810307 | R10: =+(1+R9)^(0.00277777777777778)-1 -> 0.0002486786635 | AN10: 100000.00 | AO10: 133005.55 | AQ10: 7944.62 | AR10: 6000.00
G11: Com.Adm. | I11: 0 | N11: =+$K$35-Q395 -> -3.653611903
G12: Seguro Inmueble | I12: =Deudas_fx!I128 -> 85 | N12: =+N11/(1+N8)^I9 -> -0.6098467727 | Y12: =SUM(P47:P394) -> 98.96575059 | AN12: =+AO14/AO34 -> 2085.998382
G13: T.C | I13: 3.7
Y14: =AX45/Y12 -> 2477.27766 | AO14: =+AO31/(1+AM35)^240 -> 230320.5315 | AP14: 1003.993995 | AQ14: 1003.994938 | AR14: 1003.994789
B31: Simulación de Cronograma de Préstamo Hipotecario | AA31: Costo Efectivo | AO31: =+AW274 -> 863387.2333 | AP31: 133010.9044 | AQ31: 7944.868371 | AR31: 6000 | AS31: 0 | AT31: 240959.9889 | AU31: 246959.9889
C32: Los importes son referenciales, podrán variar dependiendo de la fecha de desembolso y debido a cambios en el Tarifario del Banco | AA32: =+(AA33+1)^12-1 -> 0.1014131651 | AO32: =SUM(AQ35:AQ274) -> -611888.2461 | AP32: =SUM(AR35:AR274) -> 820955.1097 | AQ32: =SUM(AS35:AS274) -> 31891.8857 | AR32: =SUM(AU35:AU274) -> 20400 | AT32: =SUM(AT35:AT274) -> 240958.7493 | AU32: =SUM(AV35:AV274) -> 261358.7493
B33: Periodo | C33: No. Cuota | D33: Periodo | E33: Cuota Ext. | F33: Dia | G33: Mes | H33: Año | I33: Vcto. | K33: Saldo Inicial | L33: Int.+SG PG | M33: Interés PG | N33: Seg. Desg PG | O33: Seg. Inm PG | P33: Factor | Q33: Amortización | R33: Interés Total | S33: Interés | T33: Seg. Desgrav. | U33: Seg. Inmueb. | V33: Comis. Admin. | W33: Cuota_Int | X33: Cuota | Y33: Saldo Final | AA33: =IRR(AA34:AA394,0.01) -> 0.0080819886 | AO33: =+K35/AO34 -> 2277.810307
Z34: =VLOOKUP(V9,$V$6:$W$8,2,FALSE) ->  | AA34: =-I5 -> -250000 | AB34: FECHA VCTO. | AC34: SALDO | AD34: AMORTIZ. | AE34: INTERES | AF34: SEG.DESG. | AG34: SEG.BIEN | AH34: COMISION | AI34: IMP.CUOTA | AO34: =SUM(AO35:AO274) -> 110.4126127
B35: =IF(D35="PG","Periodo de Gracia","") ->  | C35: 1 | D35: =IF(C35<=$I$4,"PG",IF(AND(C35>$I$4,C35<=$I$9),"PP","PG")) -> PP | E35: =IF(Deudas_fx!$I$24=2,IF(OR(G35=8,G35=1),Deudas_fx!$I$24,IF(D35="Pg",0,1)),IF(D35="PG",0,1)) -> 1 | F35: =DAY(I35) -> 7 | G35: =MONTH(I35) -> 5 | H35: =YEAR(I35) -> 2025 | I35: =IF(Deudas_fx!O89="",D2,D3) -> 2025-05-07 | J35: =+I35-I2 -> 23 | K35: =IF(O2>=0,+I5+O3+O4,I5) -> 251498.9872 | L35: =IF(D35="PG",((($I$8+1)^J35-1)*K35),0) -> 0 | M35: =IF(D35="PG",((($I$6+1)^J35-1)*K35),0) -> 0 | N35: =IF(D35="PG",((($I$7+1)^J35-1)*K35),0) -> 0 | O35: =IF(D35="PG",(+$I$12),0) -> 0 | P35: =IF(OR(D35="PG",D35=0),0,E35*((1+$I$8)^-SUMIF(D$35:D35,"PP",J$35:J35))) -> 0.9942974236 | Q35: =+IF(D35="PG",0,X35-SUM(R35,U35,V35)) -> 835.3004714 | R35: =S35+T35 -> 1442.509835 | S35: =IF(OR(D35="PG",D35=0),0,IF(O2>=0,K35*((1+$I$6)^J35-1),K35*((1+$I$6)^(J35+O2)-1))) -> 1388.521386 | T35: =IF(OR(D35="PG",D35=0),0,IF(O2>=0,K35*((1+$I$7)^30-1)*J35/30,K35*((1+$I$7)^(30+O2)-1)*J35/30)) -> 53.98844926 | U35: =IF(OR(D35="PG",D35=0),0,$I$12) -> 85 | V35: =IF(OR(D35="PG",D35=0),0,$I$11) -> 0 | W35: =IF(OR(D35="PG",D35=0),0,E35*$N$10) -> 2277.810307 | X35: =IF(OR(D35="PG",D35=0),0,W35+U35+V35) -> 2362.810307 | Y35: =+K35+N35+O35+M35-Q35 -> 250663.6868 | Z35: =YEAR(I35-$Z$34)-1900 ->  | AA35: =+X35 -> 2362.810307 | AB35: =+I35 -> 2025-05-07 | AC35: =+K35 -> 251498.9872 | AD35: =+Q35 -> 835.3004714 | AE35: =+IF(D35="PG",M35,S35) -> 1388.521386 | AF35: =+IF(D35="PG",N35,T35) -> 53.98844926 | AG35: =+IF(D35="PG",O35,U35) -> 85 | AH35: 0 | AI35: =+X35 -> 2362.810307 | AL35: =+J35 -> 23 | AM35: =+(1+$S$6)^(AL35/360)-1 -> 0.005520982017 | AN35: =+$R$7*AL35/30 -> 0.0002146666667 | AO35: =1/(1+$R$10)^SUM($AL$35:AL35) -> 0.9942974236 | AP35: =+K35 -> 251498.9872 | AQ35: =+$AR$14-AR35-AS35 -> -438.5150464 | AR35: =+AP35*AM35 -> 1388.521386 | AS35: =+AP35*AN35 -> 53.98844926 | AT35: =+AQ35+AR35+AS35 -> 1003.994789 | AU35: =+U35 -> 85 | AV35: =+AT35+AU35 -> 1088.994789 | AW35: =+AP35-AQ35 -> 251937.5023
C36: =+C35+1 -> 2 | D36: =IF(C36<=$I$4,"PG",IF(AND(C36>$I$4,C36<=$I$9),"PP","PG")) -> PP | E36: =IF(Deudas_fx!$I$24=2,IF(OR(G36=8,G36=1),Deudas_fx!$I$24,IF(D36="Pg",0,1)),IF(D36="PG",0,1)) -> 1 | F36: =F35 -> 7 | G36: =IF(G35=12,1,G35+1) -> 6 | H36: =IF(G35=12,H35+1,H35) -> 2025 | I36: =DATE(H36,G36,F36) -> 2025-06-07 | J36: =+I36-I35 -> 31 | K36: =+Y35 -> 250663.6868 | L36: 0 | M36: 0 | N36: 0 | O36: 0 | P36: =IF(OR(D36="PG",D36=0),0,E36*((1+$I$8)^-SUMIF(D$35:D36,"PP",J$35:J36))) -> 0.9866627614 | Q36: 338.2265087 | R36: 1939.583798 | S36: 1867.058438 | T36: 72.52536004 | U36: 85 | V36: 0 | W36: 2277.810307 | X36: 2362.810307 | Y36: 250325.4603 | Z36: =YEAR(I36-$Z$34)-1900 ->  | AA36: 2362.810307 | AB36: 2025-06-07 | AC36: 250663.6868 | AD36: 338.2265087 | AE36: 1867.058438 | AF36: 72.52536004 | AG36: 85 | AH36: 0 | AI36: 2362.810307 | AL36: 31 | AM36: 0.007448459973 | AN36: 0.0002893333333 | AO36: =1/(1+$R$10)^SUM($AL$35:AL36) -> 0.9866627614 | AP36: =+AW35 -> 251937.5023 | AQ36: -945.4455302 | AR36: 1876.546402 | AS36: 72.89391733 | AT36: 1003.994789 | AU36: 85 | AV36: 1088.994789 | AW36: 252882.9478
C37: 3 | D37: PP | E37: =IF(Deudas_fx!$I$24=2,IF(OR(G37=8,G37=1),Deudas_fx!$I$24,IF(D37="Pg",0,1)),IF(D37="PG",0,1)) -> 1 | F37: 7 | G37: 7 | H37: 2025 | I37: 2025-07-07 | J37: 30 | K37: 250325.4603 | L37: 0 | M37: 0 | N37: 0 | O37: 0 | P37: =IF(OR(D37="PG",D37=0),0,E37*((1+$I$8)^-SUMIF(D$35:D37,"PP",J$35:J37))) -> 0.9793301995 | Q37: 403.5426512 | R37: 1874.267655 | S37: 1804.176526 | T37: 70.09112887 | U37: 85 | V37: 0 | W37: 2277.810307 | X37: 2362.810307 | Y37: 249921.9176 | AA37: 2362.810307 | AB37: 2025-07-07 | AC37: 250325.4603 | AD37: 403.5426512 | AE37: 1804.176526 | AF37: 70.09112887 | AG37: 85 | AH37: 0 | AI37: 2362.810307 | AK37: 76929.10334 | AL37: 30 | AM37: 0.007207323316 | AN37: 0.00028 | AO37: =1/(1+$R$10)^SUM($AL$35:AL37) -> 0.9793301995 | AP37: 252882.9478 | AQ37: -889.4216027 | AR37: 1822.609166 | AS37: 70.80722539 | AT37: 1003.994789 | AU37: 85 | AV37: 1088.994789 | AW37: 253772.3694
C38: 4 | D38: PP | E38: =IF(Deudas_fx!$I$24=2,IF(OR(G38=8,G38=1),Deudas_fx!$I$24,IF(D38="Pg",0,1)),IF(D38="PG",0,1)) -> 1 | F38: 7 | G38: 8 | H38: 2025 | I38: 2025-08-07 | J38: 31 | K38: 249921.9176 | L38: 0 | M38: 0 | N38: 0 | O38: 0 | P38: =IF(OR(D38="PG",D38=0),0,E38*((1+$I$8)^-SUMIF(D$35:D38,"PP",J$35:J38))) -> 0.9718104624 | Q38: 343.9661652 | R38: 1933.844141 | S38: 1861.5334 | T38: 72.3107415 | U38: 85 | V38: 0 | W38: 2277.810307 | X38: 2362.810307 | Y38: 249577.9515 | AA38: 2362.810307 | AB38: 2025-08-07 | AC38: 249921.9176 | AD38: 343.9661652 | AE38: 1861.5334 | AF38: 72.3107415 | AG38: 85 | AH38: 0 | AI38: 2362.810307 | AL38: 31 | AM38: 0.007448459973 | AN38: 0.0002893333333 | AO38: =1/(1+$R$10)^SUM($AL$35:AL38) -> 0.9718104624 | AP38: 253772.3694 | AQ38: -959.6433529 | AR38: 1890.213336 | AS38: 73.42480555 | AT38: 1003.994789 | AU38: 85 | AV38: 1088.994789 | AW38: 254732.0128
C39: 5 | D39: PP | E39: =IF(Deudas_fx!$I$24=2,IF(OR(G39=8,G39=1),Deudas_fx!$I$24,IF(D39="Pg",0,1)),IF(D39="PG",0,1)) -> 1 | F39: 7 | G39: 9 | H39: 2025 | I39: 2025-09-07 | J39: 31 | K39: 249577.9515 | L39: 0 | M39: 0 | N39: 0 | O39: 0 | P39: =IF(OR(D39="PG",D39=0),0,E39*((1+$I$8)^-SUMIF(D$35:D39,"PP",J$35:J39))) -> 0.9643484652 | Q39: =+IF(D39="PG",0,X39-SUM(R39,U39,V39)) -> 346.6277043 | R39: 1931.182602 | S39: 1858.971382 | T39: 72.21122062 | U39: 85 | V39: 0 | W39: 2277.810307 | X39: 2362.810307 | Y39: 249231.3237 | AA39: 2362.810307 | AB39: 2025-09-07 | AC39: 249577.9515 | AD39: 346.6277043 | AE39: 1858.971382 | AF39: 72.21122062 | AG39: 85 | AH39: 0 | AI39: 2362.810307 | AL39: 31 | AM39: 0.007448459973 | AN39: 0.0002893333333 | AO39: =1/(1+$R$10)^SUM($AL$35:AL39) -> 0.9643484652 | AP39: 254732.0128 | AQ39: -967.0688748 | AR39: 1897.361201 | AS39: 73.70246236 | AT39: 1003.994789 | AU39: 85 | AV39: 1088.994789 | AW39: 255699.0817
C40: 6 | D40: PP | E40: =IF(Deudas_fx!$I$24=2,IF(OR(G40=8,G40=1),Deudas_fx!$I$24,IF(D40="Pg",0,1)),IF(D40="PG",0,1)) -> 1 | F40: 7 | G40: 10 | H40: 2025 | I40: 2025-10-07 | J40: 30 | K40: 249231.3237 | L40: 0 | M40: 0 | N40: 0 | O40: 0 | P40: =IF(OR(D40="PG",D40=0),0,E40*((1+$I$8)^-SUMIF(D$35:D40,"PP",J$35:J40))) -> 0.9571817361 | Q40: 411.7348051 | R40: 1866.075501 | S40: 1796.290731 | T40: 69.78477065 | U40: 85 | V40: 0 | W40: 2277.810307 | X40: 2362.810307 | Y40: 248819.5889 | AA40: 2362.810307 | AB40: 2025-10-07 | AC40: 249231.3237 | AD40: 411.7348051 | AE40: 1796.290731 | AF40: 69.78477065 | AG40: 85 | AH40: 0 | AI40: 2362.810307 | AL40: 30 | AM40: 0.007207323316 | AN40: 0.00028 | AO40: =1/(1+$R$10)^SUM($AL$35:AL40) -> 0.9571817361 | AP40: 255699.0817 | AQ40: -910.5069072 | AR40: 1842.905953 | AS40: 71.59574286 | AT40: 1003.994789 | AU40: 85 | AV40: 1088.994789 | AW40: 256609.5886
C41: 7 | D41: =IF(C41<=$I$4,"PG",IF(AND(C41>$I$4,C41<=$I$9),"PP",0)) -> PP | E41: =IF(Deudas_fx!$I$24=2,IF(OR(G41=8,G41=1),Deudas_fx!$I$24,IF(D41="Pg",0,1)),IF(D41="PG",0,1)) -> 1 | F41: 7 | G41: 11 | H41: 2025 | I41: 2025-11-07 | J41: 31 | K41: 248819.5889 | L41: 0 | M41: 0 | N41: 0 | O41: 0 | P41: =IF(OR(D41="PG",D41=0),0,E41*((1+$I$8)^-SUMIF(D$35:D41,"PP",J$35:J41))) -> 0.9498320648 | Q41: 352.4957566 | R41: 1925.31455 | S41: 1853.322749 | T41: 71.99180107 | U41: 85 | V41: 0 | W41: 2277.810307 | X41: 2362.810307 | Y41: 248467.0932 | AA41: 2362.810307 | AB41: 2025-11-07 | AC41: 248819.5889 | AD41: 352.4957566 | AE41: 1853.322749 | AF41: 71.99180107 | AG41: 85 | AH41: 0 | AI41: 2362.810307 | AL41: 31 | AM41: 0.007448459973 | AN41: 0.0002893333333 | AO41: =1/(1+$R$10)^SUM($AL$35:AL41) -> 0.9498320648 | AP41: 256609.5886 | AQ41: -981.5971681 | AR41: 1911.346249 | AS41: 74.24570762 | AT41: 1003.994789 | AU41: 85 | AV41: 1088.994789 | AW41: 257591.1857
C42: 8 | D42: PP | E42: =IF(Deudas_fx!$I$24=2,IF(OR(G42=8,G42=1),Deudas_fx!$I$24,IF(D42="Pg",0,1)),IF(D42="PG",0,1)) -> 1 | F42: 7 | G42: 12 | H42: 2025 | I42: 2025-12-07 | J42: 30 | K42: 248467.0932 | L42: 0 | M42: 0 | N42: 0 | O42: 0 | P42: =IF(OR(D42="PG",D42=0),0,E42*((1+$I$8)^-SUMIF(D$35:D42,"PP",J$35:J42))) -> 0.942773217 | Q42: 417.4568464 | R42: 1860.35346 | S42: 1790.782674 | T42: 69.57078609 | U42: 85 | V42: 0 | W42: 2277.810307 | X42: 2362.810307 | Y42: 248049.6363 | AA42: 2362.810307 | AB42: 2025-12-07 | AC42: 248467.0932 | AD42: 417.4568464 | AE42: 1790.782674 | AF42: 69.57078609 | AG42: 85 | AH42: 0 | AI42: 2362.810307 | AL42: 30 | AM42: 0.007207323316 | AN42: 0.00028 | AO42: =1/(1+$R$10)^SUM($AL$35:AL42) -> 0.942773217 | AP42: 257591.1857 | AQ42: -924.6737022 | AR42: 1856.542959 | AS42: 72.125532 | AT42: 1003.994789 | AU42: 85 | AV42: 1088.994789 | AW42: 258515.8594
C43: 9 | D43: PP | E43: =IF(Deudas_fx!$I$24=2,IF(OR(G43=8,G43=1),Deudas_fx!$I$24,IF(D43="Pg",0,1)),IF(D43="PG",0,1)) -> 1 | F43: 7 | G43: 1 | H43: 2026 | I43: 2026-01-07 | J43: 31 | K43: 248049.6363 | L43: 0 | M43: 0 | N43: 0 | O43: 0 | P43: =IF(OR(D43="PG",D43=0),0,E43*((1+$I$8)^-SUMIF(D$35:D43,"PP",J$35:J43))) -> 0.9355341808 | Q43: 358.4534907 | R43: 1919.356816 | S43: 1847.587788 | T43: 71.76902811 | U43: 85 | V43: 0 | W43: 2277.810307 | X43: 2362.810307 | Y43: 247691.1828 | AA43: 2362.810307 | AB43: 2026-01-07 | AC43: 248049.6363 | AD43: 358.4534907 | AE43: 1847.587788 | AF43: 71.76902811 | AG43: 85 | AH43: 0 | AI43: 2362.810307 | AL43: 31 | AM43: 0.007448459973 | AN43: 0.0002893333333 | AO43: =1/(1+$R$10)^SUM($AL$35:AL43) -> 0.9355341808 | AP43: 258515.8594 | AQ43: -996.3474981 | AR43: 1925.545031 | AS43: 74.79725533 | AT43: 1003.994789 | AU43: 85 | AV43: 1088.994789 | AW43: 259512.2069
C44: 10 | D44: PP | E44: =IF(Deudas_fx!$I$24=2,IF(OR(G44=8,G44=1),Deudas_fx!$I$24,IF(D44="Pg",0,1)),IF(D44="PG",0,1)) -> 1 | F44: 7 | G44: 2 | H44: 2026 | I44: 2026-02-07 | J44: 31 | K44: 247691.1828 | L44: 0 | M44: 0 | N44: 0 | O44: 0 | P44: =IF(OR(D44="PG",D44=0),0,E44*((1+$I$8)^-SUMIF(D$35:D44,"PP",J$35:J44))) -> 0.9283507292 | Q44: 361.2271297 | R44: 1916.583177 | S44: 1844.917861 | T44: 71.66531557 | U44: 85 | V44: 0 | W44: 2277.810307 | X44: 2362.810307 | Y44: 247329.9557 | AA44: 2362.810307 | AB44: 2026-02-07 | AC44: 247691.1828 | AD44: 361.2271297 | AE44: 1844.917861 | AF44: 71.66531557 | AG44: 85 | AH44: 0 | AI44: 2362.810307 | AL44: 31 | AM44: 0.007448459973 | AN44: 0.0002893333333 | AO44: =1/(1+$R$10)^SUM($AL$35:AL44) -> 0.9283507292 | AP44: 259512.2069 | AQ44: -1004.057029 | AR44: 1932.966286 | AS44: 75.08553187 | AT44: 1003.994789 | AU44: 85 | AV44: 1088.994789 | AW44: 260516.264
C45: 11 | D45: PP | E45: =IF(Deudas_fx!$I$24=2,IF(OR(G45=8,G45=1),Deudas_fx!$I$24,IF(D45="Pg",0,1)),IF(D45="PG",0,1)) -> 1 | F45: 7 | G45: 3 | H45: 2026 | I45: 2026-03-07 | J45: 28 | K45: 247329.9557 | L45: 0 | M45: 0 | N45: 0 | O45: 0 | P45: =IF(OR(D45="PG",D45=0),0,E45*((1+$I$8)^-SUMIF(D$35:D45,"PP",J$35:J45))) -> 0.9219098713 | Q45: 549.8256037 | R45: 1727.984703 | S45: 1663.349141 | T45: 64.63556176 | U45: 85 | V45: 0 | W45: 2277.810307 | X45: 2362.810307 | Y45: 246780.1301 | AA45: 2362.810307 | AB45: 2026-03-07 | AC45: 247329.9557 | AD45: 549.8256037 | AE45: 1663.349141 | AF45: 64.63556176 | AG45: 85 | AH45: 0 | AI45: 2362.810307 | AK45: =SUM(AK50:AK154) -> 72.15517306 | AL45: 28 | AM45: 0.006725223139 | AN45: 0.0002613333333 | AO45: =1/(1+$R$10)^SUM($AL$35:AL45) -> 0.9219098713 | AP45: 260516.264 | AQ45: -816.1168012 | AR45: 1752.030006 | AS45: 68.08158365 | AT45: 1003.994789 | AU45: 85 | AV45: 1088.994789 | AW45: 261332.3808 | AX45: =K50 -> 245165.643 | AY45: =AX45/AK45 -> 3397.755596
C46: 12 | D46: PP | E46: =IF(Deudas_fx!$I$24=2,IF(OR(G46=8,G46=1),Deudas_fx!$I$24,IF(D46="Pg",0,1)),IF(D46="PG",0,1)) -> 1 | F46: 7 | G46: 4 | H46: 2026 | I46: 2026-04-07 | J46: 31 | K46: 246780.1301 | L46: 0 | M46: 0 | N46: 0 | O46: 0 | P46: =IF(OR(D46="PG",D46=0),0,E46*((1+$I$8)^-SUMIF(D$35:D46,"PP",J$35:J46))) -> 0.9148310333 | Q46: 368.2766675 | R46: 1909.533639 | S46: =IF(OR(D46="PG",D46=0),0,IF(O14>=0,K46*((1+$I$6)^J46-1),K46*((1+$I$6)^(J46+O14)-1))) -> 1838.131921 | T46: =IF(OR(D46="PG",D46=0),0,IF(O14>=0,K46*((1+$I$7)^30-1)*J46/30,K46*((1+$I$7)^(30+O14)-1)*J46/30)) -> 71.40171765 | U46: 85 | V46: 0 | W46: 2277.810307 | X46: 2362.810307 | Y46: 246411.8534 | AA46: 2362.810307 | AB46: 2026-04-07 | AC46: 246780.1301 | AD46: 368.2766675 | AE46: 1838.131921 | AF46: 71.40171765 | AG46: 85 | AH46: 0 | AI46: 2362.810307 | AL46: 31 | AM46: 0.007448459973 | AN46: 0.0002893333333 | AO46: =1/(1+$R$10)^SUM($AL$35:AL46) -> 0.9148310333 | AP46: 261332.3808 | AQ46: -1018.141158 | AR46: 1946.523778 | AS46: 75.61216883 | AT46: 1003.994789 | AU46: 85 | AV46: 1088.994789 | AW46: 262350.5219
C47: 13 | D47: PP | E47: =IF(Deudas_fx!$I$24=2,IF(OR(G47=8,G47=1),Deudas_fx!$I$24,IF(D47="Pg",0,1)),IF(D47="PG",0,1)) -> 1 | F47: 7 | G47: 5 | H47: 2026 | I47: 2026-05-07 | J47: 30 | K47: 246411.8534 | L47: 0 | M47: 0 | N47: 0 | O47: 0 | P47: =IF(OR(D47="PG",D47=0),0,E47*((1+$I$8)^-SUMIF(D$35:D47,"PP",J$35:J47))) -> 0.9080323019 | Q47: 432.8450908 | R47: 1844.965216 | S47: =IF(OR(D47="PG",D47=0),0,IF(O31>=0,K47*((1+$I$6)^J47-1),K47*((1+$I$6)^(J47+O31)-1))) -> 1775.969897 | T47: =IF(OR(D47="PG",D47=0),0,IF(O31>=0,K47*((1+$I$7)^30-1)*J47/30,K47*((1+$I$7)^(30+O31)-1)*J47/30)) -> 68.99531896 | U47: 85 | V47: 0 | W47: 2277.810307 | X47: 2362.810307 | Y47: 245979.0084 | AA47: 2362.810307 | AB47: 2026-05-07 | AC47: 246411.8534 | AD47: 432.8450908 | AE47: 1775.969897 | AF47: 68.99531896 | AG47: 85 | AH47: 0 | AI47: 2362.810307 | AL47: 30 | AM47: 0.007207323316 | AN47: 0.00028 | AO47: =1/(1+$R$10)^SUM($AL$35:AL47) -> 0.9080323019 | AP47: 262350.5219 | AQ47: -960.308391 | AR47: 1890.845034 | AS47: 73.45814614 | AT47: 1003.994789 | AU47: 85 | AV47: 1088.994789 | AW47: 263310.8303
C48: 14 | D48: PP | E48: =IF(Deudas_fx!$I$24=2,IF(OR(G48=8,G48=1),Deudas_fx!$I$24,IF(D48="Pg",0,1)),IF(D48="PG",0,1)) -> 1 | F48: 7 | G48: 6 | H48: 2026 | I48: 2026-06-07 | J48: 31 | K48: 245979.0084 | L48: 0 | M48: 0 | N48: 0 | O48: 0 | P48: =IF(OR(D48="PG",D48=0),0,E48*((1+$I$8)^-SUMIF(D$35:D48,"PP",J$35:J48))) -> 0.901060022 | Q48: 374.475582 | R48: 1903.334724 | S48: =IF(OR(D48="PG",D48=0),0,IF(O32>=0,K48*((1+$I$6)^J48-1),K48*((1+$I$6)^(J48+O32)-1))) -> 1832.164798 | T48: 71.16992642 | U48: 85 | V48: 0 | W48: 2277.810307 | X48: 2362.810307 | Y48: 245604.5328 | AA48: 2362.810307 | AB48: 2026-06-07 | AC48: 245979.0084 | AD48: 374.475582 | AE48: 1832.164798 | AF48: 71.16992642 | AG48: 85 | AH48: 0 | AI48: 2362.810307 | AL48: 31 | AM48: 0.007448459973 | AN48: 0.0002893333333 | AO48: =1/(1+$R$10)^SUM($AL$35:AL48) -> 0.901060022 | AP48: 263310.8303 | AQ48: -1033.449992 | AR48: 1961.26018 | AS48: 76.18460023 | AT48: 1003.994789 | AU48: 85 | AV48: 1088.994789 | AW48: 264344.2803
C49: 15 | D49: PP | E49: =IF(Deudas_fx!$I$24=2,IF(OR(G49=8,G49=1),Deudas_fx!$I$24,IF(D49="Pg",0,1)),IF(D49="PG",0,1)) -> 1 | F49: 7 | G49: 7 | H49: 2026 | I49: 2026-07-07 | J49: 30 | K49: 245604.5328 | L49: 0 | M49: 0 | N49: 0 | O49: 0 | P49: =IF(OR(D49="PG",D49=0),0,E49*((1+$I$8)^-SUMIF(D$35:D49,"PP",J$35:J49))) -> 0.8943636324 | Q49: 438.8897617 | R49: 1838.920545 | S49: 1770.151276 | T49: 68.76926918 | U49: 85 | V49: 0 | W49: 2277.810307 | X49: 2362.810307 | Y49: 245165.643 | AA49: 2362.810307 | AB49: 2026-07-07 | AC49: 245604.5328 | AD49: 438.8897617 | AE49: 1770.151276 | AF49: 68.76926918 | AG49: 85 | AH49: 0 | AI49: 2362.810307 | AL49: 30 | AM49: 0.007207323316 | AN49: 0.00028 | AO49: =1/(1+$R$10)^SUM($AL$35:AL49) -> 0.8943636324 | AP49: 264344.2803 | AQ49: -975.2363046 | AR49: 1905.214695 | AS49: 74.01639848 | AT49: 1003.994789 | AU49: 85 | AV49: 1088.994789 | AW49: 265319.5166
C50: 16 | D50: PP | E50: =IF(Deudas_fx!$I$24=2,IF(OR(G50=8,G50=1),Deudas_fx!$I$24,IF(D50="Pg",0,1)),IF(D50="PG",0,1)) -> 1 | F50: 7 | G50: 8 | H50: 2026 | I50: 2026-08-07 | J50: 31 | K50: 245165.643 | L50: 0 | M50: 0 | N50: 0 | O50: 0 | P50: =IF(OR(D50="PG",D50=0),0,E50*((1+$I$8)^-SUMIF(D$35:D50,"PP",J$35:J50))) -> 0.8874963067 | Q50: 380.769235 | R50: 1897.041072 | S50: 1826.106479 | T50: 70.93459271 | U50: 85 | V50: 0 | W50: 2277.810307 | X50: 2362.810307 | Y50: 244784.8738 | AA50: 2362.810307 | AB50: 2026-08-07 | AC50: 245165.643 | AD50: 380.769235 | AE50: 1826.106479 | AF50: 70.93459271 | AG50: 85 | AH50: 0 | AI50: 2362.810307 | AK50: =IF(OR(D50="PG",D50=0),0,E50*((1+$I$8)^-SUMIF(D$50:D50,"PP",J$50:J50))) -> 0.9923215509 | AL50: 31 | AM50: 0.007448459973 | AN50: 0.0002893333333 | AO50: =1/(1+$R$10)^SUM($AL$35:AL50) -> 0.8874963067 | AP50: 265319.5166 | AQ50: -1048.992791 | AR50: 1976.2218 | AS50: 76.76578014 | AT50: 1003.994789 | AU50: 85 | AV50: 1088.994789 | AW50: 266368.5094
C51: 17 | D51: PP | E51: =IF(Deudas_fx!$I$24=2,IF(OR(G51=8,G51=1),Deudas_fx!$I$24,IF(D51="Pg",0,1)),IF(D51="PG",0,1)) -> 1 | F51: 7 | G51: 9 | H51: 2026 | I51: 2026-09-07 | J51: 31 | K51: 244784.8738 | L51: 0 | M51: 0 | N51: 0 | O51: 0 | P51: =IF(OR(D51="PG",D51=0),0,E51*((1+$I$8)^-SUMIF(D$35:D51,"PP",J$35:J51))) -> 0.8806817115 | Q51: 383.7155486 | R51: 1894.094758 | S51: 1823.270334 | T51: 70.82442348 | U51: 85 | V51: 0 | W51: 2277.810307 | X51: 2362.810307 | Y51: 244401.1582 | AA51: 2362.810307 | AB51: 2026-09-07 | AC51: 244784.8738 | AD51: 383.7155486 | AE51: 1823.270334 | AF51: 70.82442348 | AG51: 85 | AH51: 0 | AI51: 2362.810307 | AK51: =IF(OR(D51="PG",D51=0),0,E51*((1+$I$8)^-SUMIF(D$50:D51,"PP",J$50:J51))) -> 0.9847020603 | AL51: 31 | AM51: 0.007448459973 | AN51: 0.0002893333333 | AO51: =1/(1+$R$10)^SUM($AL$35:AL51) -> 0.8806817115 | AP51: 266368.5094 | AQ51: -1057.10968 | AR51: 1984.03518 | AS51: 77.06928872 | AT51: 1003.994789 | AU51: 85 | AV51: 1088.994789 | AW51: 267425.6191
C52: 18 | D52: PP | E52: =IF(Deudas_fx!$I$24=2,IF(OR(G52=8,G52=1),Deudas_fx!$I$24,IF(D52="Pg",0,1)),IF(D52="PG",0,1)) -> 1 | F52: 7 | G52: 10 | H52: 2026 | I52: 2026-10-07 | J52: 30 | K52: 244401.1582 | L52: 0 | M52: 0 | N52: 0 | O52: 0 | P52: =IF(OR(D52="PG",D52=0),0,E52*((1+$I$8)^-SUMIF(D$35:D52,"PP",J$35:J52))) -> 0.8741367669 | Q52: 447.899816 | R52: 1829.91049 | S52: 1761.478166 | T52: 68.4323243 | U52: 85 | V52: 0 | W52: 2277.810307 | X52: 2362.810307 | Y52: 243953.2584 | AA52: 2362.810307 | AB52: 2026-10-07 | AC52: 244401.1582 | AD52: 447.899816 | AE52: 1761.478166 | AF52: 68.4323243 | AG52: 85 | AH52: 0 | AI52: 2362.810307 | AK52: =IF(OR(D52="PG",D52=0),0,E52*((1+$I$8)^-SUMIF(D$50:D52,"PP",J$50:J52))) -> 0.9773840698 | AL52: 30 | AM52: 0.007207323316 | AN52: 0.00028 | AO52: =1/(1+$R$10)^SUM($AL$35:AL52) -> 0.8741367669 | AP52: 267425.6191 | AQ52: -998.3072843 | AR52: 1927.4229 | AS52: 74.87917334 | AT52: 1003.994789 | AU52: 85 | AV52: 1088.994789 | AW52: 268423.9264
C53: 19 | D53: PP | E53: =IF(Deudas_fx!$I$24=2,IF(OR(G53=8,G53=1),Deudas_fx!$I$24,IF(D53="Pg",0,1)),IF(D53="PG",0,1)) -> 1 | F53: 7 | G53: 11 | H53: 2026 | I53: 2026-11-07 | J53: 31 | K53: 243953.2584 | L53: 0 | M53: 0 | N53: 0 | O53: 0 | P53: =IF(OR(D53="PG",D53=0),0,E53*((1+$I$8)^-SUMIF(D$35:D53,"PP",J$35:J53))) -> 0.8674247522 | Q53: 390.1504164 | R53: 1887.65989 | S53: 1817.076081 | T53: 70.58380943 | U53: 85 | V53: 0 | W53: 2277.810307 | X53: 2362.810307 | Y53: 243563.108 | AA53: 2362.810307 | AB53: 2026-11-07 | AC53: 243953.2584 | AD53: 390.1504164 | AE53: 1817.076081 | AF53: 70.58380943 | AG53: 85 | AH53: 0 | AI53: 2362.810307 | AK53: =IF(OR(D53="PG",D53=0),0,E53*((1+$I$8)^-SUMIF(D$50:D53,"PP",J$50:J53))) -> 0.9698792759 | AL53: 31 | AM53: 0.007448459973 | AN53: 0.0002893333333 | AO53: =1/(1+$R$10)^SUM($AL$35:AL53) -> 0.8674247522 | AP53: 268423.9264 | AQ53: -1073.014072 | AR53: 1999.344871 | AS53: 77.66398936 | AT53: 1003.994789 | AU53: 85 | AV53: 1088.994789 | AW53: 269496.9404
C54: 20 | D54: PP | E54: =IF(Deudas_fx!$I$24=2,IF(OR(G54=8,G54=1),Deudas_fx!$I$24,IF(D54="Pg",0,1)),IF(D54="PG",0,1)) -> 1 | F54: 7 | G54: 12 | H54: 2026 | I54: 2026-12-07 | J54: 30 | K54: 243563.108 | L54: 0 | M54: 0 | N54: 0 | O54: 0 | P54: =IF(OR(D54="PG",D54=0),0,E54*((1+$I$8)^-SUMIF(D$35:D54,"PP",J$35:J54))) -> 0.8609783291 | Q54: 454.1745691 | R54: 1823.635737 | S54: 1755.438067 | T54: 68.19767024 | U54: 85 | V54: 0 | W54: 2277.810307 | X54: 2362.810307 | Y54: 243108.9334 | AA54: 2362.810307 | AB54: 2026-12-07 | AC54: 243563.108 | AD54: 454.1745691 | AE54: 1755.438067 | AF54: 68.19767024 | AG54: 85 | AH54: 0 | AI54: 2362.810307 | AK54: =IF(OR(D54="PG",D54=0),0,E54*((1+$I$8)^-SUMIF(D$50:D54,"PP",J$50:J54))) -> 0.9626714436 | AL54: 30 | AM54: 0.007207323316 | AN54: 0.00028 | AO54: =1/(1+$R$10)^SUM($AL$35:AL54) -> 0.8609783291 | AP54: 269496.9404 | AQ54: -1013.815937 | AR54: 1942.351582 | AS54: 75.45914332 | AT54: 1003.994789 | AU54: 85 | AV54: 1088.994789 | AW54: 270510.7564
C55: 21 | D55: PP | E55: =IF(Deudas_fx!$I$24=2,IF(OR(G55=8,G55=1),Deudas_fx!$I$24,IF(D55="Pg",0,1)),IF(D55="PG",0,1)) -> 1 | F55: 7 | G55: 1 | H55: 2027 | I55: 2027-01-07 | J55: 31 | K55: 243108.9334 | L55: 0 | M55: 0 | N55: 0 | O55: 0 | P55: =IF(OR(D55="PG",D55=0),0,E55*((1+$I$8)^-SUMIF(D$35:D55,"PP",J$35:J55))) -> 0.8543673508 | Q55: 396.6836286 | R55: 1881.126678 | S55: 1810.78716 | T55: 70.33951807 | U55: 85 | V55: 0 | W55: 2277.810307 | X55: 2362.810307 | Y55: 242712.2498 | AA55: 2362.810307 | AB55: 2027-01-07 | AC55: 243108.9334 | AD55: 396.6836286 | AE55: 1810.78716 | AF55: 70.33951807 | AG55: 85 | AH55: 0 | AI55: 2362.810307 | AK55: =IF(OR(D55="PG",D55=0),0,E55*((1+$I$8)^-SUMIF(D$50:D55,"PP",J$50:J55))) -> 0.9552796199 | AL55: 31 | AM55: 0.007448459973 | AN55: 0.0002893333333 | AO55: =1/(1+$R$10)^SUM($AL$35:AL55) -> 0.8543673508 | AP55: 270510.7564 | AQ55: -1089.161531 | AR55: 2014.888541 | AS55: 78.26777884 | AT55: 1003.994789 | AU55: 85 | AV55: 1088.994789 | AW55: 271599.9179
C56: 22 | D56: PP | E56: =IF(Deudas_fx!$I$24=2,IF(OR(G56=8,G56=1),Deudas_fx!$I$24,IF(D56="Pg",0,1)),IF(D56="PG",0,1)) -> 1 | F56: 7 | G56: 2 | H56: 2027 | I56: 2027-02-07 | J56: 31 | K56: 242712.2498 | L56: 0 | M56: 0 | N56: 0 | O56: 0 | P56: =IF(OR(D56="PG",D56=0),0,E56*((1+$I$8)^-SUMIF(D$35:D56,"PP",J$35:J56))) -> 0.8478071345 | Q56: 399.7530845 | R56: 1878.057222 | S56: 1807.832478 | T56: 70.22474427 | U56: 85 | V56: 0 | W56: 2277.810307 | X56: 2362.810307 | Y56: 242312.4967 | AA56: 2362.810307 | AB56: 2027-02-07 | AC56: 242712.2498 | AD56: 399.7530845 | AE56: 1807.832478 | AF56: 70.22474427 | AG56: 85 | AH56: 0 | AI56: 2362.810307 | AK56: =IF(OR(D56="PG",D56=0),0,E56*((1+$I$8)^-SUMIF(D$50:D56,"PP",J$50:J56))) -> 0.9479445539 | AL56: 31 | AM56: 0.007448459973 | AN56: 0.0002893333333 | AO56: =1/(1+$R$10)^SUM($AL$35:AL56) -> 0.8478071345 | AP56: 271599.9179 | AQ56: -1097.589238 | AR56: 2023.001117 | AS56: 78.58290958 | AT56: 1003.994789 | AU56: 85 | AV56: 1088.994789 | AW56: 272697.5071
C57: 23 | D57: PP | E57: =IF(Deudas_fx!$I$24=2,IF(OR(G57=8,G57=1),Deudas_fx!$I$24,IF(D57="Pg",0,1)),IF(D57="PG",0,1)) -> 1 | F57: 7 | G57: 3 | H57: 2027 | I57: 2027-03-07 | J57: 28 | K57: 242312.4967 | L57: 0 | M57: 0 | N57: 0 | O57: 0 | P57: =IF(OR(D57="PG",D57=0),0,E57*((1+$I$8)^-SUMIF(D$35:D57,"PP",J$35:J57))) -> 0.8419250847 | Q57: 584.8803644 | R57: 1692.929942 | S57: 1629.60561 | T57: 63.32433247 | U57: 85 | V57: 0 | W57: 2277.810307 | X57: 2362.810307 | Y57: 241727.6163 | AA57: 2362.810307 | AB57: 2027-03-07 | AC57: 242312.4967 | AD57: 584.8803644 | AE57: 1629.60561 | AF57: 63.32433247 | AG57: 85 | AH57: 0 | AI57: 2362.810307 | AK57: =IF(OR(D57="PG",D57=0),0,E57*((1+$I$8)^-SUMIF(D$50:D57,"PP",J$50:J57))) -> 0.941367755 | AL57: 28 | AM57: 0.006725223139 | AN57: 0.0002613333333 | AO57: =1/(1+$R$10)^SUM($AL$35:AL57) -> 0.8419250847 | AP57: 272697.5071 | AQ57: -901.2217446 | AR57: 1833.951585 | AS57: 71.26494853 | AT57: 1003.994789 | AU57: 85 | AV57: 1088.994789 | AW57: 273598.7289
C58: 24 | D58: PP | E58: =IF(Deudas_fx!$I$24=2,IF(OR(G58=8,G58=1),Deudas_fx!$I$24,IF(D58="Pg",0,1)),IF(D58="PG",0,1)) -> 1 | F58: 7 | G58: 4 | H58: 2027 | I58: 2027-04-07 | J58: 31 | K58: 241727.6163 | L58: 0 | M58: 0 | N58: 0 | O58: 0 | P58: =IF(OR(D58="PG",D58=0),0,E58*((1+$I$8)^-SUMIF(D$35:D58,"PP",J$35:J58))) -> 0.8354604058 | Q58: 407.3719747 | R58: 1870.438332 | S58: 1800.498475 | T58: 69.939857 | U58: 85 | V58: 0 | W58: 2277.810307 | X58: 2362.810307 | Y58: 241320.2444 | AA58: 2362.810307 | AB58: 2027-04-07 | AC58: 241727.6163 | AD58: 407.3719747 | AE58: 1800.498475 | AF58: 69.939857 | AG58: 85 | AH58: 0 | AI58: 2362.810307 | AK58: =IF(OR(D58="PG",D58=0),0,E58*((1+$I$8)^-SUMIF(D$50:D58,"PP",J$50:J58))) -> 0.9341395106 | AL58: 31 | AM58: 0.007448459973 | AN58: 0.0002893333333 | AO58: =1/(1+$R$10)^SUM($AL$35:AL58) -> 0.8354604058 | AP58: 273598.7289 | AQ58: -1113.055624 | AR58: 2037.889181 | AS58: 79.16123222 | AT58: 1003.994789 | AU58: 85 | AV58: 1088.994789 | AW58: 274711.7845
C59: 25 | D59: PP | E59: =IF(Deudas_fx!$I$24=2,IF(OR(G59=8,G59=1),Deudas_fx!$I$24,IF(D59="Pg",0,1)),IF(D59="PG",0,1)) -> 1 | F59: 7 | G59: 5 | H59: 2027 | I59: 2027-05-07 | J59: 30 | K59: 241320.2444 | L59: 0 | M59: 0 | N59: 0 | O59: 0 | P59: =IF(OR(D59="PG",D59=0),0,E59*((1+$I$8)^-SUMIF(D$35:D59,"PP",J$35:J59))) -> 0.8292515315 | Q59: 470.9676142 | R59: 1806.842692 | S59: 1739.273024 | T59: 67.56966842 | U59: 85 | V59: 0 | W59: 2277.810307 | X59: 2362.810307 | Y59: 240849.2768 | AA59: 2362.810307 | AB59: 2027-05-07 | AC59: 241320.2444 | AD59: 470.9676142 | AE59: 1739.273024 | AF59: 67.56966842 | AG59: 85 | AH59: 0 | AI59: 2362.810307 | AK59: =IF(OR(D59="PG",D59=0),0,E59*((1+$I$8)^-SUMIF(D$50:D59,"PP",J$50:J59))) -> 0.9271972847 | AL59: 30 | AM59: 0.007207323316 | AN59: 0.00028 | AO59: =1/(1+$R$10)^SUM($AL$35:AL59) -> 0.8292515315 | AP59: 274711.7845 | AQ59: -1052.861161 | AR59: 1979.93665 | AS59: 76.91929966 | AT59: 1003.994789 | AU59: 85 | AV59: 1088.994789 | AW59: 275764.6457
C60: 26 | D60: PP | E60: =IF(Deudas_fx!$I$24=2,IF(OR(G60=8,G60=1),Deudas_fx!$I$24,IF(D60="Pg",0,1)),IF(D60="PG",0,1)) -> 1 | F60: 7 | G60: 6 | H60: 2027 | I60: 2027-06-07 | J60: 31 | K60: 240849.2768 | L60: 0 | M60: 0 | N60: 0 | O60: 0 | P60: =IF(OR(D60="PG",D60=0),0,E60*((1+$I$8)^-SUMIF(D$35:D60,"PP",J$35:J60))) -> 0.8228841658 | Q60: 414.1683848 | R60: 1863.641922 | S60: 1793.956198 | T60: 69.68572408 | U60: 85 | V60: 0 | W60: 2277.810307 | X60: 2362.810307 | Y60: 240435.1084 | AA60: 2362.810307 | AB60: 2027-06-07 | AC60: 240849.2768 | AD60: 414.1683848 | AE60: 1793.956198 | AF60: 69.68572408 | AG60: 85 | AH60: 0 | AI60: 2362.810307 | AK60: =IF(OR(D60="PG",D60=0),0,E60*((1+$I$8)^-SUMIF(D$50:D60,"PP",J$50:J60))) -> 0.9200778476 | AL60: 31 | AM60: 0.007448459973 | AN60: 0.0002893333333 | AO60: =1/(1+$R$10)^SUM($AL$35:AL60) -> 0.8228841658 | AP60: 275764.6457 | AQ60: -1129.815041 | AR60: 2054.021925 | AS60: 79.78790415 | AT60: 1003.994789 | AU60: 85 | AV60: 1088.994789 | AW60: 276894.4607
C61: 27 | D61: PP | E61: =IF(Deudas_fx!$I$24=2,IF(OR(G61=8,G61=1),Deudas_fx!$I$24,IF(D61="Pg",0,1)),IF(D61="PG",0,1)) -> 1 | F61: 7 | G61: 7 | H61: 2027 | I61: 2027-07-07 | J61: 30 | K61: 240435.1084 | L61: 0 | M61: 0 | N61: 0 | O61: 0 | P61: =IF(OR(D61="PG",D61=0),0,E61*((1+$I$8)^-SUMIF(D$35:D61,"PP",J$35:J61))) -> 0.8167687541 | Q61: 477.5949136 | R61: 1800.215393 | S61: 1732.893563 | T61: 67.32183034 | U61: 85 | V61: 0 | W61: 2277.810307 | X61: 2362.810307 | Y61: 239957.5135 | AA61: 2362.810307 | AB61: 2027-07-07 | AC61: 240435.1084 | AD61: 477.5949136 | AE61: 1732.893563 | AF61: 67.32183034 | AG61: 85 | AH61: 0 | AI61: 2362.810307 | AK61: =IF(OR(D61="PG",D61=0),0,E61*((1+$I$8)^-SUMIF(D$50:D61,"PP",J$50:J61))) -> 0.9132401235 | AL61: 30 | AM61: 0.007207323316 | AN61: 0.00028 | AO61: =1/(1+$R$10)^SUM($AL$35:AL61) -> 0.8167687541 | AP61: 276894.4607 | AQ61: -1069.203563 | AR61: 1995.667903 | AS61: 77.530449 | AT61: 1003.994789 | AU61: 85 | AV61: 1088.994789 | AW61: 277963.6643
C62: 28 | D62: PP | E62: =IF(Deudas_fx!$I$24=2,IF(OR(G62=8,G62=1),Deudas_fx!$I$24,IF(D62="Pg",0,1)),IF(D62="PG",0,1)) -> 1 | F62: 7 | G62: 8 | H62: 2027 | I62: 2027-08-07 | J62: 31 | K62: 239957.5135 | L62: 0 | M62: 0 | N62: 0 | O62: 0 | P62: =IF(OR(D62="PG",D62=0),0,E62*((1+$I$8)^-SUMIF(D$35:D62,"PP",J$35:J62))) -> 0.8104972367 | Q62: 421.0686649 | R62: 1856.741642 | S62: 1787.313934 | T62: 69.42770723 | U62: 85 | V62: 0 | W62: 2277.810307 | X62: 2362.810307 | Y62: 239536.4448 | AA62: 2362.810307 | AB62: 2027-08-07 | AC62: 239957.5135 | AD62: 421.0686649 | AE62: 1787.313934 | AF62: 69.42770723 | AG62: 85 | AH62: 0 | AI62: 2362.810307 | AK62: =IF(OR(D62="PG",D62=0),0,E62*((1+$I$8)^-SUMIF(D$50:D62,"PP",J$50:J62))) -> 0.9062278557 | AL62: 31 | AM62: 0.007448459973 | AN62: 0.0002893333333 | AO62: =1/(1+$R$10)^SUM($AL$35:AL62) -> 0.8104972367 | AP62: 277963.6643 | AQ62: -1146.830592 | AR62: 2070.401227 | AS62: 80.42415353 | AT62: 1003.994789 | AU62: 85 | AV62: 1088.994789 | AW62: 279110.4949
C63: 29 | D63: PP | E63: =IF(Deudas_fx!$I$24=2,IF(OR(G63=8,G63=1),Deudas_fx!$I$24,IF(D63="Pg",0,1)),IF(D63="PG",0,1)) -> 1 | F63: 7 | G63: 9 | H63: 2027 | I63: 2027-09-07 | J63: 31 | K63: 239536.4448 | L63: 0 | M63: 0 | N63: 0 | O63: 0 | P63: =IF(OR(D63="PG",D63=0),0,E63*((1+$I$8)^-SUMIF(D$35:D63,"PP",J$35:J63))) -> 0.8042738749 | Q63: 424.3268072 | R63: 1853.483499 | S63: 1784.177621 | T63: 69.30587803 | U63: 85 | V63: 0 | W63: 2277.810307 | X63: 2362.810307 | Y63: 239112.118 | AA63: 2362.810307 | AB63: 2027-09-07 | AC63: 239536.4448 | AD63: 424.3268072 | AE63: 1784.177621 | AF63: 69.30587803 | AG63: 85 | AH63: 0 | AI63: 2362.810307 | AK63: =IF(OR(D63="PG",D63=0),0,E63*((1+$I$8)^-SUMIF(D$50:D63,"PP",J$50:J63))) -> 0.8992694312 | AL63: 31 | AM63: 0.007448459973 | AN63: 0.0002893333333 | AO63: =1/(1+$R$10)^SUM($AL$35:AL63) -> 0.8042738749 | AP63: 279110.4949 | AQ63: -1155.70453 | AR63: 2078.943349 | AS63: 80.75596985 | AT63: 1003.994789 | AU63: 85 | AV63: 1088.994789 | AW63: 280266.1994
C64: 30 | D64: PP | E64: =IF(Deudas_fx!$I$24=2,IF(OR(G64=8,G64=1),Deudas_fx!$I$24,IF(D64="Pg",0,1)),IF(D64="PG",0,1)) -> 1 | F64: 7 | G64: 10 | H64: 2027 | I64: 2027-10-07 | J64: 30 | K64: 239112.118 | L64: 0 | M64: 0 | N64: 0 | O64: 0 | P64: =IF(OR(D64="PG",D64=0),0,E64*((1+$I$8)^-SUMIF(D$35:D64,"PP",J$35:J64))) -> 0.7982967689 | Q64: 487.5005703 | R64: 1790.309736 | S64: 1723.358343 | T64: 66.95139304 | U64: 85 | V64: 0 | W64: 2277.810307 | X64: 2362.810307 | Y64: 238624.6174 | AA64: 2362.810307 | AB64: 2027-10-07 | AC64: 239112.118 | AD64: 487.5005703 | AE64: 1723.358343 | AF64: 66.95139304 | AG64: 85 | AH64: 0 | AI64: 2362.810307 | AK64: =IF(OR(D64="PG",D64=0),0,E64*((1+$I$8)^-SUMIF(D$50:D64,"PP",J$50:J64))) -> 0.8925863486 | AL64: 30 | AM64: 0.007207323316 | AN64: 0.00028 | AO64: =1/(1+$R$10)^SUM($AL$35:AL64) -> 0.7982967689 | AP64: 280266.1994 | AQ64: -1094.448861 | AR64: 2019.969114 | AS64: 78.47453583 | AT64: 1003.994789 | AU64: 85 | AV64: 1088.994789 | AW64: 281360.6483
C65: 31 | D65: PP | E65: =IF(Deudas_fx!$I$24=2,IF(OR(G65=8,G65=1),Deudas_fx!$I$24,IF(D65="Pg",0,1)),IF(D65="PG",0,1)) -> 1 | F65: 7 | G65: 11 | H65: 2027 | I65: 2027-11-07 | J65: 31 | K65: 238624.6174 | L65: 0 | M65: 0 | N65: 0 | O65: 0 | P65: =IF(OR(D65="PG",D65=0),0,E65*((1+$I$8)^-SUMIF(D$35:D65,"PP",J$35:J65))) -> 0.7921670878 | Q65: 431.382339 | R65: 1846.427968 | S65: 1777.385912 | T65: 69.04205597 | U65: 85 | V65: 0 | W65: 2277.810307 | X65: 2362.810307 | Y65: 238193.2351 | AA65: 2362.810307 | AB65: 2027-11-07 | AC65: 238624.6174 | AD65: 431.382339 | AE65: 1777.385912 | AF65: 69.04205597 | AG65: 85 | AH65: 0 | AI65: 2362.810307 | AK65: =IF(OR(D65="PG",D65=0),0,E65*((1+$I$8)^-SUMIF(D$50:D65,"PP",J$50:J65))) -> 0.8857326697 | AL65: 31 | AM65: 0.007448459973 | AN65: 0.0002893333333 | AO65: =1/(1+$R$10)^SUM($AL$35:AL65) -> 0.7921670878 | AP65: 281360.6483 | AQ65: -1173.115752 | AR65: 2095.703527 | AS65: 81.40701423 | AT65: 1003.994789 | AU65: 85 | AV65: 1088.994789 | AW65: 282533.764
C66: 32 | D66: PP | E66: =IF(Deudas_fx!$I$24=2,IF(OR(G66=8,G66=1),Deudas_fx!$I$24,IF(D66="Pg",0,1)),IF(D66="PG",0,1)) -> 1 | F66: 7 | G66: 12 | H66: 2027 | I66: 2027-12-07 | J66: 30 | K66: 238193.2351 | L66: 0 | M66: 0 | N66: 0 | O66: 0 | P66: =IF(OR(D66="PG",D66=0),0,E66*((1+$I$8)^-SUMIF(D$35:D66,"PP",J$35:J66))) -> 0.7862799556 | Q66: 494.3805438 | R66: 1783.429763 | S66: 1716.735657 | T66: 66.69410582 | U66: 85 | V66: 0 | W66: 2277.810307 | X66: 2362.810307 | Y66: 237698.8545 | AA66: 2362.810307 | AB66: 2027-12-07 | AC66: 238193.2351 | AD66: 494.3805438 | AE66: 1716.735657 | AF66: 66.69410582 | AG66: 85 | AH66: 0 | AI66: 2362.810307 | AK66: =IF(OR(D66="PG",D66=0),0,E66*((1+$I$8)^-SUMIF(D$50:D66,"PP",J$50:J66))) -> 0.879150188 | AL66: 30 | AM66: 0.007207323316 | AN66: 0.00028 | AO66: =1/(1+$R$10)^SUM($AL$35:AL66) -> 0.7862799556 | AP66: 282533.764 | AQ66: -1111.42685 | AR66: 2036.312185 | AS66: 79.10945392 | AT66: 1003.994789 | AU66: 85 | AV66: 1088.994789 | AW66: 283645.1909
C67: 33 | D67: PP | E67: =IF(Deudas_fx!$I$24=2,IF(OR(G67=8,G67=1),Deudas_fx!$I$24,IF(D67="Pg",0,1)),IF(D67="PG",0,1)) -> 1 | F67: 7 | G67: 1 | H67: 2028 | I67: =DATE(H67,G67,F67) -> 2028-01-07 | J67: 31 | K67: 237698.8545 | L67: 0 | M67: 0 | N67: 0 | O67: 0 | P67: =IF(OR(D67="PG",D67=0),0,E67*((1+$I$8)^-SUMIF(D$35:D67,"PP",J$35:J67))) -> 0.7802425449 | Q67: 438.5457008 | R67: 1839.264606 | S67: 1770.490404 | T67: 68.77420191 | U67: 85 | V67: 0 | W67: 2277.810307 | X67: 2362.810307 | Y67: 237260.3088 | AA67: 2362.810307 | AB67: 2028-01-07 | AC67: 237698.8545 | AD67: 438.5457008 | AE67: 1770.490404 | AF67: 68.77420191 | AG67: 85 | AH67: 0 | AI67: 2362.810307 | AK67: =IF(OR(D67="PG",D67=0),0,E67*((1+$I$8)^-SUMIF(D$50:D67,"PP",J$50:J67))) -> 0.872399678 | AL67: 31 | AM67: 0.007448459973 | AN67: 0.0002893333333 | AO67: =1/(1+$R$10)^SUM($AL$35:AL67) -> 0.7802425449 | AP67: 283645.1909 | AQ67: -1190.793071 | AR67: 2112.719851 | AS67: 82.06800855 | AT67: 1003.994789 | AU67: 85 | AV67: 1088.994789 | AW67: 284835.9839
C68: 34 | D68: PP | E68: =IF(Deudas_fx!$I$24=2,IF(OR(G68=8,G68=1),Deudas_fx!$I$24,IF(D68="Pg",0,1)),IF(D68="PG",0,1)) -> 1 | F68: 7 | G68: 2 | H68: 2028 | I68: 2028-02-07 | J68: 31 | K68: 237260.3088 | L68: 0 | M68: 0 | N68: 0 | O68: 0 | P68: =IF(OR(D68="PG",D68=0),0,E68*((1+$I$8)^-SUMIF(D$35:D68,"PP",J$35:J68))) -> 0.7742514922 | Q68: 441.9390768 | R68: 1835.87123 | S68: 1767.223914 | T68: 68.64731602 | U68: 85 | V68: 0 | W68: 2277.810307 | X68: 2362.810307 | Y68: 236818.3698 | AA68: 2362.810307 | AB68: 2028-02-07 | AC68: 237260.3088 | AD68: 441.9390768 | AE68: 1767.223914 | AF68: 68.64731602 | AG68: 85 | AH68: 0 | AI68: 2362.810307 | AK68: =IF(OR(D68="PG",D68=0),0,E68*((1+$I$8)^-SUMIF(D$50:D68,"PP",J$50:J68))) -> 0.8657010015 | AL68: 31 | AM68: 0.007448459973 | AN68: 0.0002893333333 | AO68: =1/(1+$R$10)^SUM($AL$35:AL68) -> 0.7742514922 | AP68: 284835.9839 | AQ68: -1200.007181 | AR68: 2121.589425 | AS68: 82.41254468 | AT68: 1003.994789 | AU68: 85 | AV68: 1088.994789 | AW68: 286035.9911
C69: 35 | D69: PP | E69: =IF(Deudas_fx!$I$24=2,IF(OR(G69=8,G69=1),Deudas_fx!$I$24,IF(D69="Pg",0,1)),IF(D69="PG",0,1)) -> 1 | F69: 7 | G69: 3 | H69: 2028 | I69: 2028-03-07 | J69: 29 | K69: 236818.3698 | L69: 0 | M69: 0 | N69: 0 | O69: 0 | P69: =IF(OR(D69="PG",D69=0),0,E69*((1+$I$8)^-SUMIF(D$35:D69,"PP",J$35:J69))) -> 0.7686886119 | Q69: 563.9768314 | R69: 1713.833475 | S69: 1649.734636 | T69: 64.09883875 | U69: 85 | V69: 0 | W69: 2277.810307 | X69: 2362.810307 | Y69: 236254.3929 | AA69: 2362.810307 | AB69: 2028-03-07 | AC69: 236818.3698 | AD69: 563.9768314 | AE69: 1649.734636 | AF69: 64.09883875 | AG69: 85 | AH69: 0 | AI69: 2362.810307 | AK69: =IF(OR(D69="PG",D69=0),0,E69*((1+$I$8)^-SUMIF(D$50:D69,"PP",J$50:J69))) -> 0.8594810702 | AL69: 29 | AM69: 0.006966244376 | AN69: 0.0002706666667 | AO69: =1/(1+$R$10)^SUM($AL$35:AL69) -> 0.7686886119 | AP69: 286035.9911 | AQ69: -1066.022234 | AR69: 1992.596614 | AS69: 77.42040826 | AT69: 1003.994789 | AU69: 85 | AV69: 1088.994789 | AW69: 287102.0133
C70: 36 | D70: PP | E70: =IF(Deudas_fx!$I$24=2,IF(OR(G70=8,G70=1),Deudas_fx!$I$24,IF(D70="Pg",0,1)),IF(D70="PG",0,1)) -> 1 | F70: 7 | G70: 4 | H70: 2028 | I70: 2028-04-07 | J70: 31 | K70: 236254.3929 | L70: 0 | M70: 0 | N70: 0 | O70: 0 | P70: =IF(OR(D70="PG",D70=0),0,E70*((1+$I$8)^-SUMIF(D$35:D70,"PP",J$35:J70))) -> 0.7627862755 | Q70: 449.7226462 | R70: 1828.08766 | S70: 1759.731389 | T70: 68.35627102 | U70: 85 | V70: 0 | W70: 2277.810307 | X70: 2362.810307 | Y70: 235804.6703 | AA70: 2362.810307 | AB70: 2028-04-07 | AC70: 236254.3929 | AD70: 449.7226462 | AE70: 1759.731389 | AF70: 68.35627102 | AG70: 85 | AH70: 0 | AI70: 2362.810307 | AK70: =IF(OR(D70="PG",D70=0),0,E70*((1+$I$8)^-SUMIF(D$50:D70,"PP",J$50:J70))) -> 0.8528815885 | AL70: 31 | AM70: 0.007448459973 | AN70: 0.0002893333333 | AO70: =1/(1+$R$10)^SUM($AL$35:AL70) -> 0.7627862755 | AP70: 287102.0133 | AQ70: -1217.541248 | AR70: 2138.467855 | AS70: 83.06818253 | AT70: 1003.994789 | AU70: 85 | AV70: 1088.994789 | AW70: 288319.5546
C71: 37 | D71: PP | E71: =IF(Deudas_fx!$I$24=2,IF(OR(G71=8,G71=1),Deudas_fx!$I$24,IF(D71="Pg",0,1)),IF(D71="PG",0,1)) -> 1 | F71: 7 | G71: 5 | H71: 2028 | I71: 2028-05-07 | J71: 30 | K71: 235804.6703 | L71: 0 | M71: 0 | N71: 0 | O71: 0 | P71: =IF(OR(D71="PG",D71=0),0,E71*((1+$I$8)^-SUMIF(D$35:D71,"PP",J$35:J71))) -> 0.757117492 | Q71: 512.2645007 | R71: 1765.545806 | S71: 1699.520498 | T71: 66.02530768 | U71: 85 | V71: 0 | W71: 2277.810307 | X71: 2362.810307 | Y71: 235292.4058 | AA71: 2362.810307 | AB71: 2028-05-07 | AC71: 235804.6703 | AD71: 512.2645007 | AE71: 1699.520498 | AF71: 66.02530768 | AG71: 85 | AH71: 0 | AI71: 2362.810307 | AK71: =IF(OR(D71="PG",D71=0),0,E71*((1+$I$8)^-SUMIF(D$50:D71,"PP",J$50:J71))) -> 0.8465432456 | AL71: 30 | AM71: 0.007207323316 | AN71: 0.00028 | AO71: =1/(1+$R$10)^SUM($AL$35:AL71) -> 0.757117492 | AP71: 288319.5546 | AQ71: -1154.746935 | AR71: 2078.012248 | AS71: 80.72947528 | AT71: 1003.994789 | AU71: 85 | AV71: 1088.994789 | AW71: 289474.3015
C72: 38 | D72: PP | E72: =IF(Deudas_fx!$I$24=2,IF(OR(G72=8,G72=1),Deudas_fx!$I$24,IF(D72="Pg",0,1)),IF(D72="PG",0,1)) -> 1 | F72: 7 | G72: 6 | H72: 2028 | I72: 2028-06-07 | J72: 31 | K72: 235292.4058 | L72: 0 | M72: 0 | N72: 0 | O72: 0 | P72: =IF(OR(D72="PG",D72=0),0,E72*((1+$I$8)^-SUMIF(D$35:D72,"PP",J$35:J72))) -> 0.7513040039 | Q72: 457.1663039 | R72: 1820.644003 | S72: 1752.566067 | T72: 68.07793607 | U72: 85 | V72: 0 | W72: 2277.810307 | X72: 2362.810307 | Y72: 234835.2395 | AA72: 2362.810307 | AB72: 2028-06-07 | AC72: 235292.4058 | AD72: 457.1663039 | AE72: 1752.566067 | AF72: 68.07793607 | AG72: 85 | AH72: 0 | AI72: 2362.810307 | AK72: =IF(OR(D72="PG",D72=0),0,E72*((1+$I$8)^-SUMIF(D$50:D72,"PP",J$50:J72))) -> 0.8400431063 | AL72: 31 | AM72: 0.007448459973 | AN72: 0.0002893333333 | AO72: =1/(1+$R$10)^SUM($AL$35:AL72) -> 0.7513040039 | AP72: 289474.3015 | AQ72: -1235.897524 | AR72: 2156.137748 | AS72: 83.75456457 | AT72: 1003.994789 | AU72: 85 | AV72: 1088.994789 | AW72: 290710.1991
C73: 39 | D73: PP | E73: =IF(Deudas_fx!$I$24=2,IF(OR(G73=8,G73=1),Deudas_fx!$I$24,IF(D73="Pg",0,1)),IF(D73="PG",0,1)) -> 1 | F73: 7 | G73: 7 | H73: 2028 | I73: 2028-07-07 | J73: 30 | K73: 234835.2395 | L73: 0 | M73: 0 | N73: 0 | O73: 0 | P73: =IF(OR(D73="PG",D73=0),0,E73*((1+$I$8)^-SUMIF(D$35:D73,"PP",J$35:J73))) -> 0.745720553 | Q73: 519.5229425 | R73: 1758.287364 | S73: 1692.533497 | T73: 65.75386705 | U73: 85 | V73: 0 | W73: 2277.810307 | X73: 2362.810307 | Y73: 234315.7165 | AA73: 2362.810307 | AB73: 2028-07-07 | AC73: 234835.2395 | AD73: 519.5229425 | AE73: 1692.533497 | AF73: 65.75386705 | AG73: 85 | AH73: 0 | AI73: 2362.810307 | AK73: =IF(OR(D73="PG",D73=0),0,E73*((1+$I$8)^-SUMIF(D$50:D73,"PP",J$50:J73))) -> 0.8338001748 | AL73: 30 | AM73: 0.007207323316 | AN73: 0.00028 | AO73: =1/(1+$R$10)^SUM($AL$35:AL73) -> 0.745720553 | AP73: 290710.1991 | AQ73: -1172.646463 | AR73: 2095.242396 | AS73: 81.39885573 | AT73: 1003.994789 | AU73: 85 | AV73: 1088.994789 | AW73: 291882.8455
C74: 40 | D74: PP | E74: =IF(Deudas_fx!$I$24=2,IF(OR(G74=8,G74=1),Deudas_fx!$I$24,IF(D74="Pg",0,1)),IF(D74="PG",0,1)) -> 1 | F74: 7 | G74: 8 | H74: 2028 | I74: 2028-08-07 | J74: 31 | K74: 234315.7165 | L74: 0 | M74: 0 | N74: 0 | O74: 0 | P74: =IF(OR(D74="PG",D74=0),0,E74*((1+$I$8)^-SUMIF(D$35:D74,"PP",J$35:J74))) -> 0.7399945757 | Q74: 464.7237234 | R74: 1813.086583 | S74: 1745.291236 | T74: 67.79534732 | U74: 85 | V74: 0 | W74: 2277.810307 | X74: 2362.810307 | Y74: 233850.9928 | AA74: 2362.810307 | AB74: 2028-08-07 | AC74: 234315.7165 | AD74: 464.7237234 | AE74: 1745.291236 | AF74: 67.79534732 | AG74: 85 | AH74: 0 | AI74: 2362.810307 | AK74: =IF(OR(D74="PG",D74=0),0,E74*((1+$I$8)^-SUMIF(D$50:D74,"PP",J$50:J74))) -> 0.8273978826 | AL74: 31 | AM74: 0.007448459973 | AN74: 0.0002893333333 | AO74: =1/(1+$R$10)^SUM($AL$35:AL74) -> 0.7399945757 | AP74: 291882.8455 | AQ74: -1254.53434 | AR74: 2174.077692 | AS74: 84.45143663 | AT74: 1003.994789 | AU74: 85 | AV74: 1088.994789 | AW74: 293137.3799
C75: 41 | D75: PP | E75: =IF(Deudas_fx!$I$24=2,IF(OR(G75=8,G75=1),Deudas_fx!$I$24,IF(D75="Pg",0,1)),IF(D75="PG",0,1)) -> 1 | F75: 7 | G75: 9 | H75: 2028 | I75: 2028-09-07 | J75: 31 | K75: 233850.9928 | L75: 0 | M75: 0 | N75: 0 | O75: 0 | P75: =IF(OR(D75="PG",D75=0),0,E75*((1+$I$8)^-SUMIF(D$35:D75,"PP",J$35:J75))) -> 0.734312565 | Q75: 468.3196596 | R75: 1809.490647 | S75: 1741.82976 | T75: 67.66088725 | U75: 85 | V75: 0 | W75: 2277.810307 | X75: 2362.810307 | Y75: 233382.6732 | AA75: 2362.810307 | AB75: 2028-09-07 | AC75: 233850.9928 | AD75: 468.3196596 | AE75: 1741.82976 | AF75: 67.66088725 | AG75: 85 | AH75: 0 | AI75: 2362.810307 | AK75: =IF(OR(D75="PG",D75=0),0,E75*((1+$I$8)^-SUMIF(D$50:D75,"PP",J$50:J75))) -> 0.8210447501 | AL75: 31 | AM75: 0.007448459973 | AN75: 0.0002893333333 | AO75: =1/(1+$R$10)^SUM($AL$35:AL75) -> 0.734312565 | AP75: 293137.3799 | AQ75: -1264.241667 | AR75: 2183.422041 | AS75: 84.81441524 | AT75: 1003.994789 | AU75: 85 | AV75: 1088.994789 | AW75: 294401.6215
C76: 42 | D76: PP | E76: =IF(Deudas_fx!$I$24=2,IF(OR(G76=8,G76=1),Deudas_fx!$I$24,IF(D76="Pg",0,1)),IF(D76="PG",0,1)) -> 1 | F76: 7 | G76: 10 | H76: 2028 | I76: 2028-10-07 | J76: 30 | K76: 233382.6732 | L76: 0 | M76: 0 | N76: 0 | O76: 0 | P76: =IF(OR(D76="PG",D76=0),0,E76*((1+$I$8)^-SUMIF(D$35:D76,"PP",J$35:J76))) -> 0.728855389 | Q76: 530.3987762 | R76: 1747.41153 | S76: 1682.064382 | T76: 65.34714848 | U76: 85 | V76: 0 | W76: 2277.810307 | X76: 2362.810307 | Y76: 232852.2744 | AA76: 2362.810307 | AB76: 2028-10-07 | AC76: 233382.6732 | AD76: 530.3987762 | AE76: 1682.064382 | AF76: 65.34714848 | AG76: 85 | AH76: 0 | AI76: 2362.810307 | AK76: =IF(OR(D76="PG",D76=0),0,E76*((1+$I$8)^-SUMIF(D$50:D76,"PP",J$50:J76))) -> 0.8149430083 | AL76: 30 | AM76: 0.007207323316 | AN76: 0.00028 | AO76: =1/(1+$R$10)^SUM($AL$35:AL76) -> 0.728855389 | AP76: 294401.6215 | AQ76: -1200.285336 | AR76: 2121.847671 | AS76: 82.43245402 | AT76: 1003.994789 | AU76: 85 | AV76: 1088.994789 | AW76: 295601.9069
C77: 43 | D77: PP | E77: =IF(Deudas_fx!$I$24=2,IF(OR(G77=8,G77=1),Deudas_fx!$I$24,IF(D77="Pg",0,1)),IF(D77="PG",0,1)) -> 1 | F77: 7 | G77: 11 | H77: 2028 | I77: 2028-11-07 | J77: 31 | K77: 232852.2744 | L77: 0 | M77: 0 | N77: 0 | O77: 0 | P77: =IF(OR(D77="PG",D77=0),0,E77*((1+$I$8)^-SUMIF(D$35:D77,"PP",J$35:J77))) -> 0.72325891 | Q77: 476.0475364 | R77: 1801.76277 | S77: 1734.390845 | T77: 67.37192472 | U77: 85 | V77: 0 | W77: 2277.810307 | X77: 2362.810307 | Y77: 232376.2268 | AA77: 2362.810307 | AB77: 2028-11-07 | AC77: 232852.2744 | AD77: 476.0475364 | AE77: 1734.390845 | AF77: 67.37192472 | AG77: 85 | AH77: 0 | AI77: 2362.810307 | AK77: =IF(OR(D77="PG",D77=0),0,E77*((1+$I$8)^-SUMIF(D$50:D77,"PP",J$50:J77))) -> 0.8086855098 | AL77: 31 | AM77: 0.007448459973 | AN77: 0.0002893333333 | AO77: =1/(1+$R$10)^SUM($AL$35:AL77) -> 0.72325891 | AP77: 295601.9069 | AQ77: -1283.311668 | AR77: 2201.778971 | AS77: 85.52748505 | AT77: 1003.994789 | AU77: 85 | AV77: 1088.994789 | AW77: 296885.2185
C78: 44 | D78: PP | E78: =IF(Deudas_fx!$I$24=2,IF(OR(G78=8,G78=1),Deudas_fx!$I$24,IF(D78="Pg",0,1)),IF(D78="PG",0,1)) -> 1 | F78: 7 | G78: 12 | H78: 2028 | I78: 2028-12-07 | J78: 30 | K78: 232376.2268 | L78: 0 | M78: 0 | N78: 0 | O78: 0 | P78: =IF(OR(D78="PG",D78=0),0,E78*((1+$I$8)^-SUMIF(D$35:D78,"PP",J$35:J78))) -> 0.7178838813 | Q78: 537.9343652 | R78: 1739.875941 | S78: 1674.810598 | T78: 65.06534351 | U78: 85 | V78: 0 | W78: 2277.810307 | X78: 2362.810307 | Y78: 231838.2925 | AA78: 2362.810307 | AB78: 2028-12-07 | AC78: 232376.2268 | AD78: 537.9343652 | AE78: 1674.810598 | AF78: 65.06534351 | AG78: 85 | AH78: 0 | AI78: 2362.810307 | AK78: =IF(OR(D78="PG",D78=0),0,E78*((1+$I$8)^-SUMIF(D$50:D78,"PP",J$50:J78))) -> 0.802675618 | AL78: 30 | AM78: 0.007207323316 | AN78: 0.00028 | AO78: =1/(1+$R$10)^SUM($AL$35:AL78) -> 0.7178838813 | AP78: 296885.2185 | AQ78: -1218.88083 | AR78: 2139.747758 | AS78: 83.12786119 | AT78: 1003.994789 | AU78: 85 | AV78: 1088.994789 | AW78: 298104.0994
C79: 45 | D79: PP | E79: =IF(Deudas_fx!$I$24=2,IF(OR(G79=8,G79=1),Deudas_fx!$I$24,IF(D79="Pg",0,1)),IF(D79="PG",0,1)) -> 1 | F79: 7 | G79: 1 | H79: 2029 | I79: 2029-01-07 | J79: 31 | K79: 231838.2925 | L79: 0 | M79: 0 | N79: 0 | O79: 0 | P79: =IF(OR(D79="PG",D79=0),0,E79*((1+$I$8)^-SUMIF(D$35:D79,"PP",J$35:J79))) -> 0.7123716464 | Q79: 483.8935188 | R79: 1793.916788 | S79: 1726.838242 | T79: 67.07854595 | U79: 85 | V79: 0 | W79: 2277.810307 | X79: 2362.810307 | Y79: 231354.399 | AA79: 2362.810307 | AB79: 2029-01-07 | AC79: 231838.2925 | AD79: 483.8935188 | AE79: 1726.838242 | AF79: 67.07854595 | AG79: 85 | AH79: 0 | AI79: 2362.810307 | AK79: =IF(OR(D79="PG",D79=0),0,E79*((1+$I$8)^-SUMIF(D$50:D79,"PP",J$50:J79))) -> 0.7965123141 | AL79: 31 | AM79: 0.007448459973 | AN79: 0.0002893333333 | AO79: =1/(1+$R$10)^SUM($AL$35:AL79) -> 0.7123716464 | AP79: 298104.0994 | AQ79: -1302.673116 | AR79: 2220.416452 | AS79: 86.25145275 | AT79: 1003.994789 | AU79: 85 | AV79: 1088.994789 | AW79: 299406.7725
C80: 46 | D80: PP | E80: =IF(Deudas_fx!$I$24=2,IF(OR(G80=8,G80=1),Deudas_fx!$I$24,IF(D80="Pg",0,1)),IF(D80="PG",0,1)) -> 1 | F80: 7 | G80: 2 | H80: 2029 | I80: 2029-02-07 | J80: 31 | K80: 231354.399 | L80: 0 | M80: 0 | N80: 0 | O80: 0 | P80: =IF(OR(D80="PG",D80=0),0,E80*((1+$I$8)^-SUMIF(D$35:D80,"PP",J$35:J80))) -> 0.706901737 | Q80: 487.6377868 | R80: 1790.17252 | S80: 1723.23398 | T80: 66.93853943 | U80: 85 | V80: 0 | W80: 2277.810307 | X80: 2362.810307 | Y80: 230866.7612 | AA80: 2362.810307 | AB80: 2029-02-07 | AC80: 231354.399 | AD80: 487.6377868 | AE80: 1723.23398 | AF80: 66.93853943 | AG80: 85 | AH80: 0 | AI80: 2362.810307 | AK80: =IF(OR(D80="PG",D80=0),0,E80*((1+$I$8)^-SUMIF(D$50:D80,"PP",J$50:J80))) -> 0.7903963348 | AL80: 31 | AM80: 0.007448459973 | AN80: 0.0002893333333 | AO80: =1/(1+$R$10)^SUM($AL$35:AL80) -> 0.706901737 | AP80: 299406.7725 | AQ80: -1312.752931 | AR80: 2230.119361 | AS80: 86.6283595 | AT80: 1003.994789 | AU80: 85 | AV80: 1088.994789 | AW80: 300719.5254
C81: 47 | D81: PP | E81: =IF(Deudas_fx!$I$24=2,IF(OR(G81=8,G81=1),Deudas_fx!$I$24,IF(D81="Pg",0,1)),IF(D81="PG",0,1)) -> 1 | F81: 7 | G81: 3 | H81: 2029 | I81: 2029-03-07 | J81: 28 | K81: 230866.7612 | L81: 0 | M81: 0 | N81: 0 | O81: 0 | P81: =IF(OR(D81="PG",D81=0),0,E81*((1+$I$8)^-SUMIF(D$35:D81,"PP",J$35:J81))) -> 0.7019972828 | Q81: 664.8466421 | R81: 1612.963664 | S81: 1552.630484 | T81: 60.33318025 | U81: 85 | V81: 0 | W81: 2277.810307 | X81: 2362.810307 | Y81: 230201.9145 | AA81: 2362.810307 | AB81: 2029-03-07 | AC81: 230866.7612 | AD81: 664.8466421 | AE81: 1552.630484 | AF81: 60.33318025 | AG81: 85 | AH81: 0 | AI81: 2362.810307 | AK81: =IF(OR(D81="PG",D81=0),0,E81*((1+$I$8)^-SUMIF(D$50:D81,"PP",J$50:J81))) -> 0.7849125987 | AL81: 28 | AM81: 0.006725223139 | AN81: 0.0002613333333 | AO81: =1/(1+$R$10)^SUM($AL$35:AL81) -> 0.7019972828 | AP81: 300719.5254 | AQ81: -1096.999158 | AR81: 2022.40591 | AS81: 78.58803597 | AT81: 1003.994789 | AU81: 85 | AV81: 1088.994789 | AW81: 301816.5246
C82: 48 | D82: PP | E82: =IF(Deudas_fx!$I$24=2,IF(OR(G82=8,G82=1),Deudas_fx!$I$24,IF(D82="Pg",0,1)),IF(D82="PG",0,1)) -> 1 | F82: 7 | G82: 4 | H82: 2029 | I82: 2029-04-07 | J82: 31 | K82: 230201.9145 | L82: 0 | M82: 0 | N82: 0 | O82: 0 | P82: =IF(OR(D82="PG",D82=0),0,E82*((1+$I$8)^-SUMIF(D$35:D82,"PP",J$35:J82))) -> 0.6966070324 | Q82: 496.5554731 | R82: 1781.254833 | S82: 1714.649746 | T82: 66.60508727 | U82: 85 | V82: 0 | W82: 2277.810307 | X82: 2362.810307 | Y82: 229705.3591 | AA82: 2362.810307 | AB82: 2029-04-07 | AC82: 230201.9145 | AD82: 496.5554731 | AE82: 1714.649746 | AF82: 66.60508727 | AG82: 85 | AH82: 0 | AI82: 2362.810307 | AK82: =IF(OR(D82="PG",D82=0),0,E82*((1+$I$8)^-SUMIF(D$50:D82,"PP",J$50:J82))) -> 0.7788856872 | AL82: 31 | AM82: 0.007448459973 | AN82: 0.0002893333333 | AO82: =1/(1+$R$10)^SUM($AL$35:AL82) -> 0.6966070324 | AP82: 301816.5246 | AQ82: -1331.399095 | AR82: 2248.068303 | AS82: 87.3255811 | AT82: 1003.994789 | AU82: 85 | AV82: 1088.994789 | AW82: 303147.9237
C83: 49 | D83: PP | E83: =IF(Deudas_fx!$I$24=2,IF(OR(G83=8,G83=1),Deudas_fx!$I$24,IF(D83="Pg",0,1)),IF(D83="PG",0,1)) -> 1 | F83: 7 | G83: 5 | H83: 2029 | I83: 2029-05-07 | J83: 30 | K83: 229705.3591 | L83: 0 | M83: 0 | N83: 0 | O83: 0 | P83: =IF(OR(D83="PG",D83=0),0,E83*((1+$I$8)^-SUMIF(D$35:D83,"PP",J$35:J83))) -> 0.6914300719 | Q83: 557.9320158 | R83: 1719.878291 | S83: 1655.56079 | T83: 64.31750053 | U83: 85 | V83: 0 | W83: 2277.810307 | X83: 2362.810307 | Y83: 229147.427 | AA83: 2362.810307 | AB83: 2029-05-07 | AC83: 229705.3591 | AD83: 557.9320158 | AE83: 1655.56079 | AF83: 64.31750053 | AG83: 85 | AH83: 0 | AI83: 2362.810307 | AK83: =IF(OR(D83="PG",D83=0),0,E83*((1+$I$8)^-SUMIF(D$50:D83,"PP",J$50:J83))) -> 0.7730972581 | AL83: 30 | AM83: 0.007207323316 | AN83: 0.00028 | AO83: =1/(1+$R$10)^SUM($AL$35:AL83) -> 0.6914300719 | AP83: 303147.9237 | AQ83: -1265.771728 | AR83: 2184.885098 | AS83: 84.88141862 | AT83: 1003.994789 | AU83: 85 | AV83: 1088.994789 | AW83: 304413.6954
C84: 50 | D84: PP | E84: =IF(Deudas_fx!$I$24=2,IF(OR(G84=8,G84=1),Deudas_fx!$I$24,IF(D84="Pg",0,1)),IF(D84="PG",0,1)) -> 1 | F84: 7 | G84: 6 | H84: 2029 | I84: 2029-06-07 | J84: 31 | K84: 229147.427 | L84: 0 | M84: 0 | N84: 0 | O84: 0 | P84: =IF(OR(D84="PG",D84=0),0,E84*((1+$I$8)^-SUMIF(D$35:D84,"PP",J$35:J84))) -> 0.6861209613 | Q84: 504.7148793 | R84: 1773.095427 | S84: 1706.795438 | T84: 66.29998889 | U84: 85 | V84: 0 | W84: 2277.810307 | X84: 2362.810307 | Y84: 228642.7122 | AA84: 2362.810307 | AB84: 2029-06-07 | AC84: 229147.427 | AD84: 504.7148793 | AE84: 1706.795438 | AF84: 66.29998889 | AG84: 85 | AH84: 0 | AI84: 2362.810307 | AK84: =IF(OR(D84="PG",D84=0),0,E84*((1+$I$8)^-SUMIF(D$50:D84,"PP",J$50:J84))) -> 0.7671610701 | AL84: 31 | AM84: 0.007448459973 | AN84: 0.0002893333333 | AO84: =1/(1+$R$10)^SUM($AL$35:AL84) -> 0.6861209613 | AP84: 304413.6954 | AQ84: -1351.495466 | AR84: 2267.413225 | AS84: 88.0770292 | AT84: 1003.994789 | AU84: 85 | AV84: 1088.994789 | AW84: 305765.1908
C85: 51 | D85: PP | E85: =IF(Deudas_fx!$I$24=2,IF(OR(G85=8,G85=1),Deudas_fx!$I$24,IF(D85="Pg",0,1)),IF(D85="PG",0,1)) -> 1 | F85: 7 | G85: 7 | H85: 2029 | I85: 2029-07-07 | J85: 30 | K85: 228642.7122 | L85: 0 | M85: 0 | N85: 0 | O85: 0 | P85: =IF(OR(D85="PG",D85=0),0,E85*((1+$I$8)^-SUMIF(D$35:D85,"PP",J$35:J85))) -> 0.6810219299 | Q85: 565.8883967 | R85: 1711.92191 | S85: 1647.90195 | T85: 64.0199594 | U85: 85 | V85: 0 | W85: 2277.810307 | X85: 2362.810307 | Y85: 228076.8238 | AA85: 2362.810307 | AB85: 2029-07-07 | AC85: 228642.7122 | AD85: 565.8883967 | AE85: 1647.90195 | AF85: 64.0199594 | AG85: 85 | AH85: 0 | AI85: 2362.810307 | AK85: =IF(OR(D85="PG",D85=0),0,E85*((1+$I$8)^-SUMIF(D$50:D85,"PP",J$50:J85))) -> 0.7614597746 | AL85: 30 | AM85: 0.007207323316 | AN85: 0.00028 | AO85: =1/(1+$R$10)^SUM($AL$35:AL85) -> 0.6810219299 | AP85: 305765.1908 | AQ85: -1285.368054 | AR85: 2203.748589 | AS85: 85.61425344 | AT85: 1003.994789 | AU85: 85 | AV85: 1088.994789 | AW85: 307050.5589
C86: 52 | D86: PP | E86: =IF(Deudas_fx!$I$24=2,IF(OR(G86=8,G86=1),Deudas_fx!$I$24,IF(D86="Pg",0,1)),IF(D86="PG",0,1)) -> 1 | F86: 7 | G86: 8 | H86: 2029 | I86: 2029-08-07 | J86: 31 | K86: 228076.8238 | L86: 0 | M86: 0 | N86: 0 | O86: 0 | P86: =IF(OR(D86="PG",D86=0),0,E86*((1+$I$8)^-SUMIF(D$35:D86,"PP",J$35:J86))) -> 0.6757927377 | Q86: 512.9989862 | R86: 1764.81132 | S86: 1698.821093 | T86: 65.99022767 | U86: 85 | V86: 0 | W86: 2277.810307 | X86: 2362.810307 | Y86: 227563.8248 | AA86: 2362.810307 | AB86: 2029-08-07 | AC86: 228076.8238 | AD86: 512.9989862 | AE86: 1698.821093 | AF86: 65.99022767 | AG86: 85 | AH86: 0 | AI86: 2362.810307 | AK86: =IF(OR(D86="PG",D86=0),0,E86*((1+$I$8)^-SUMIF(D$50:D86,"PP",J$50:J86))) -> 0.7556129445 | AL86: 31 | AM86: 0.007448459973 | AN86: 0.0002893333333 | AO86: =1/(1+$R$10)^SUM($AL$35:AL86) -> 0.6757927377 | AP86: 307050.5589 | AQ86: -1371.898971 | AR86: 2287.053798 | AS86: 88.83996171 | AT86: 1003.994789 | AU86: 85 | AV86: 1088.994789 | AW86: 308422.4579
C87: 53 | D87: PP | E87: =IF(Deudas_fx!$I$24=2,IF(OR(G87=8,G87=1),Deudas_fx!$I$24,IF(D87="Pg",0,1)),IF(D87="PG",0,1)) -> 1 | F87: 7 | G87: 9 | H87: 2029 | I87: 2029-09-07 | J87: 31 | K87: 227563.8248 | L87: 0 | M87: 0 | N87: 0 | O87: 0 | P87: =IF(OR(D87="PG",D87=0),0,E87*((1+$I$8)^-SUMIF(D$35:D87,"PP",J$35:J87))) -> 0.6706036975 | Q87: 516.9684663 | R87: 1760.84184 | S87: 1695.00004 | T87: 65.84179997 | U87: 85 | V87: 0 | W87: 2277.810307 | X87: 2362.810307 | Y87: 227046.8563 | AA87: 2362.810307 | AB87: 2029-09-07 | AC87: 227563.8248 | AD87: 516.9684663 | AE87: 1695.00004 | AF87: 65.84179997 | AG87: 85 | AH87: 0 | AI87: 2362.810307 | AK87: =IF(OR(D87="PG",D87=0),0,E87*((1+$I$8)^-SUMIF(D$50:D87,"PP",J$50:J87))) -> 0.7498110089 | AL87: 31 | AM87: 0.007448459973 | AN87: 0.0002893333333 | AO87: =1/(1+$R$10)^SUM($AL$35:AL87) -> 0.6706036975 | AP87: 308422.4579 | AQ87: -1382.514441 | AR87: 2297.272332 | AS87: 89.23689781 | AT87: 1003.994789 | AU87: 85 | AV87: 1088.994789 | AW87: 309804.9723
C88: 54 | D88: PP | E88: =IF(Deudas_fx!$I$24=2,IF(OR(G88=8,G88=1),Deudas_fx!$I$24,IF(D88="Pg",0,1)),IF(D88="PG",0,1)) -> 1 | F88: 7 | G88: 10 | H88: 2029 | I88: 2029-10-07 | J88: 30 | K88: 227046.8563 | L88: 0 | M88: 0 | N88: 0 | O88: 0 | P88: =IF(OR(D88="PG",D88=0),0,E88*((1+$I$8)^-SUMIF(D$35:D88,"PP",J$35:J88))) -> 0.6656199855 | Q88: 577.8370854 | R88: 1699.973221 | S88: 1636.400101 | T88: 63.57311977 | U88: 85 | V88: 0 | W88: 2277.810307 | X88: 2362.810307 | Y88: 226469.0192 | AA88: 2362.810307 | AB88: 2029-10-07 | AC88: 227046.8563 | AD88: 577.8370854 | AE88: 1636.400101 | AF88: 63.57311977 | AG88: 85 | AH88: 0 | AI88: 2362.810307 | AK88: =IF(OR(D88="PG",D88=0),0,E88*((1+$I$8)^-SUMIF(D$50:D88,"PP",J$50:J88))) -> 0.7442386535 | AL88: 30 | AM88: 0.007207323316 | AN88: 0.00028 | AO88: =1/(1+$R$10)^SUM($AL$35:AL88) -> 0.6656199855 | AP88: 309804.9723 | AQ88: -1315.615204 | AR88: 2232.8646 | AS88: 86.74539225 | AT88: 1003.994789 | AU88: 85 | AV88: 1088.994789 | AW88: 311120.5875
C89: 55 | D89: PP | E89: =IF(Deudas_fx!$I$24=2,IF(OR(G89=8,G89=1),Deudas_fx!$I$24,IF(D89="Pg",0,1)),IF(D89="PG",0,1)) -> 1 | F89: 7 | G89: 11 | H89: 2029 | I89: 2029-11-07 | J89: 31 | K89: 226469.0192 | L89: 0 | M89: 0 | N89: 0 | O89: 0 | P89: =IF(OR(D89="PG",D89=0),0,E89*((1+$I$8)^-SUMIF(D$35:D89,"PP",J$35:J89))) -> 0.6605090563 | Q89: 525.4398454 | R89: 1752.370461 | S89: 1686.845425 | T89: 65.52503623 | U89: 85 | V89: 0 | W89: 2277.810307 | X89: 2362.810307 | Y89: 225943.5794 | AA89: 2362.810307 | AB89: 2029-11-07 | AC89: 226469.0192 | AD89: 525.4398454 | AE89: 1686.845425 | AF89: 65.52503623 | AG89: 85 | AH89: 0 | AI89: 2362.810307 | AK89: =IF(OR(D89="PG",D89=0),0,E89*((1+$I$8)^-SUMIF(D$50:D89,"PP",J$50:J89))) -> 0.7385240549 | AL89: 31 | AM89: 0.007448459973 | AN89: 0.0002893333333 | AO89: =1/(1+$R$10)^SUM($AL$35:AL89) -> 0.6605090563 | AP89: 311120.5875 | AQ89: -1403.392011 | AR89: 2317.369243 | AS89: 90.01755665 | AT89: 1003.994789 | AU89: 85 | AV89: 1088.994789 | AW89: 312523.9795
C90: 56 | D90: PP | E90: =IF(Deudas_fx!$I$24=2,IF(OR(G90=8,G90=1),Deudas_fx!$I$24,IF(D90="Pg",0,1)),IF(D90="PG",0,1)) -> 1 | F90: 7 | G90: 12 | H90: 2029 | I90: 2029-12-07 | J90: 30 | K90: 225943.5794 | L90: 0 | M90: 0 | N90: 0 | O90: 0 | P90: =IF(OR(D90="PG",D90=0),0,E90*((1+$I$8)^-SUMIF(D$35:D90,"PP",J$35:J90))) -> 0.6556003644 | Q90: 586.0976765 | R90: 1691.71263 | S90: 1628.448428 | T90: 63.26420222 | U90: 85 | V90: 0 | W90: 2277.810307 | X90: 2362.810307 | Y90: 225357.4817 | AA90: 2362.810307 | AB90: 2029-12-07 | AC90: 225943.5794 | AD90: 586.0976765 | AE90: 1628.448428 | AF90: 63.26420222 | AG90: 85 | AH90: 0 | AI90: 2362.810307 | AK90: =IF(OR(D90="PG",D90=0),0,E90*((1+$I$8)^-SUMIF(D$50:D90,"PP",J$50:J90))) -> 0.7330355805 | AL90: 30 | AM90: 0.007207323316 | AN90: 0.00028 | AO90: =1/(1+$R$10)^SUM($AL$35:AL90) -> 0.6556003644 | AP90: 312523.9795 | AQ90: -1335.97329 | AR90: 2252.461365 | AS90: 87.50671427 | AT90: 1003.994789 | AU90: 85 | AV90: 1088.994789 | AW90: 313859.9528
C91: 57 | D91: PP | E91: =IF(Deudas_fx!$I$24=2,IF(OR(G91=8,G91=1),Deudas_fx!$I$24,IF(D91="Pg",0,1)),IF(D91="PG",0,1)) -> 1 | F91: 7 | G91: 1 | H91: 2030 | I91: 2030-01-07 | J91: 31 | K91: 225357.4817 | L91: 0 | M91: 0 | N91: 0 | O91: 0 | P91: =IF(OR(D91="PG",D91=0),0,E91*((1+$I$8)^-SUMIF(D$35:D91,"PP",J$35:J91))) -> 0.6505663704 | Q91: 534.040693 | R91: 1743.769614 | S91: 1678.566182 | T91: 65.20343137 | U91: 85 | V91: 0 | W91: 2277.810307 | X91: 2362.810307 | Y91: 224823.441 | AA91: 2362.810307 | AB91: 2030-01-07 | AC91: 225357.4817 | AD91: 534.040693 | AE91: 1678.566182 | AF91: 65.20343137 | AG91: 85 | AH91: 0 | AI91: 2362.810307 | AK91: =IF(OR(D91="PG",D91=0),0,E91*((1+$I$8)^-SUMIF(D$50:D91,"PP",J$50:J91))) -> 0.7274070041 | AL91: 31 | AM91: 0.007448459973 | AN91: 0.0002893333333 | AO91: =1/(1+$R$10)^SUM($AL$35:AL91) -> 0.6505663704 | AP91: 313859.9528 | AQ91: -1424.588653 | AR91: 2337.773296 | AS91: 90.81014635 | AT91: 1003.994789 | AU91: 85 | AV91: 1088.994789 | AW91: 315284.5415
C92: 58 | D92: PP | E92: =IF(Deudas_fx!$I$24=2,IF(OR(G92=8,G92=1),Deudas_fx!$I$24,IF(D92="Pg",0,1)),IF(D92="PG",0,1)) -> 1 | F92: 7 | G92: 2 | H92: 2030 | I92: 2030-02-07 | J92: 31 | K92: 224823.441 | L92: 0 | M92: 0 | N92: 0 | O92: 0 | P92: =IF(OR(D92="PG",D92=0),0,E92*((1+$I$8)^-SUMIF(D$35:D92,"PP",J$35:J92))) -> 0.6455710296 | Q92: 538.1729895 | R92: 1739.637317 | S92: 1674.588401 | T92: 65.0489156 | U92: 85 | V92: 0 | W92: 2277.810307 | X92: 2362.810307 | Y92: 224285.268 | AA92: 2362.810307 | AB92: 2030-02-07 | AC92: 224823.441 | AD92: 538.1729895 | AE92: 1674.588401 | AF92: 65.0489156 | AG92: 85 | AH92: 0 | AI92: 2362.810307 | AK92: =IF(OR(D92="PG",D92=0),0,E92*((1+$I$8)^-SUMIF(D$50:D92,"PP",J$50:J92))) -> 0.7218216464 | AL92: 31 | AM92: 0.007448459973 | AN92: 0.0002893333333 | AO92: =1/(1+$R$10)^SUM($AL$35:AL92) -> 0.6455710296 | AP92: 315284.5415 | AQ92: -1435.611826 | AR92: 2348.384287 | AS92: 91.22232733 | AT92: 1003.994789 | AU92: 85 | AV92: 1088.994789 | AW92: 316720.1533
C93: 59 | D93: PP | E93: =IF(Deudas_fx!$I$24=2,IF(OR(G93=8,G93=1),Deudas_fx!$I$24,IF(D93="Pg",0,1)),IF(D93="PG",0,1)) -> 1 | F93: 7 | G93: 3 | H93: 2030 | I93: 2030-03-07 | J93: 28 | K93: 224285.268 | L93: 0 | M93: 0 | N93: 0 | O93: 0 | P93: =IF(OR(D93="PG",D93=0),0,E93*((1+$I$8)^-SUMIF(D$35:D93,"PP",J$35:J93))) -> 0.6410920853 | Q93: 710.8286157 | R93: 1566.981691 | S93: 1508.368474 | T93: 58.61321671 | U93: 85 | V93: 0 | W93: 2277.810307 | X93: 2362.810307 | Y93: 223574.4394 | AA93: 2362.810307 | AB93: 2030-03-07 | AC93: 224285.268 | AD93: 710.8286157 | AE93: 1508.368474 | AF93: 58.61321671 | AG93: 85 | AH93: 0 | AI93: 2362.810307 | AK93: =IF(OR(D93="PG",D93=0),0,E93*((1+$I$8)^-SUMIF(D$50:D93,"PP",J$50:J93))) -> 0.7168136785 | AL93: 28 | AM93: 0.006725223139 | AN93: 0.0002613333333 | AO93: =1/(1+$R$10)^SUM($AL$35:AL93) -> 0.6410920853 | AP93: 316720.1533 | AQ93: -1208.788448 | AR93: 2130.013703 | AS93: 82.76953339 | AT93: 1003.994789 | AU93: 85 | AV93: 1088.994789 | AW93: 317928.9417
C94: 60 | D94: PP | E94: =IF(Deudas_fx!$I$24=2,IF(OR(G94=8,G94=1),Deudas_fx!$I$24,IF(D94="Pg",0,1)),IF(D94="PG",0,1)) -> 1 | F94: 7 | G94: 4 | H94: 2030 | I94: 2030-04-07 | J94: 31 | K94: 223574.4394 | L94: 0 | M94: 0 | N94: 0 | O94: 0 | P94: =IF(OR(D94="PG",D94=0),0,E94*((1+$I$8)^-SUMIF(D$35:D94,"PP",J$35:J94))) -> 0.6361694923 | Q94: 547.8375057 | R94: 1729.972801 | S94: 1665.285263 | T94: 64.6875378 | U94: 85 | V94: 0 | W94: 2277.810307 | X94: 2362.810307 | Y94: 223026.6019 | AA94: 2362.810307 | AB94: 2030-04-07 | AC94: 223574.4394 | AD94: 547.8375057 | AE94: 1665.285263 | AF94: 64.6875378 | AG94: 85 | AH94: 0 | AI94: 2362.810307 | AK94: =IF(OR(D94="PG",D94=0),0,E94*((1+$I$8)^-SUMIF(D$50:D94,"PP",J$50:J94))) -> 0.7113096612 | AL94: 31 | AM94: 0.007448459973 | AN94: 0.0002893333333 | AO94: =1/(1+$R$10)^SUM($AL$35:AL94) -> 0.6361694923 | AP94: 317928.9417 | AQ94: -1456.073649 | AR94: 2368.080997 | AS94: 91.98744048 | AT94: 1003.994789 | AU94: 85 | AV94: 1088.994789 | AW94: 319385.0154
C95: 61 | D95: PP | E95: =IF(Deudas_fx!$I$24=2,IF(OR(G95=8,G95=1),Deudas_fx!$I$24,IF(D95="Pg",0,1)),IF(D95="PG",0,1)) -> 1 | F95: 7 | G95: 5 | H95: 2030 | I95: 2030-05-07 | J95: 30 | K95: 223026.6019 | L95: 0 | M95: 0 | N95: 0 | O95: 0 | P95: =IF(OR(D95="PG",D95=0),0,E95*((1+$I$8)^-SUMIF(D$35:D95,"PP",J$35:J95))) -> 0.6314416843 | Q95: 607.93803 | R95: 1669.872277 | S95: 1607.424828 | T95: 62.44744853 | U95: 85 | V95: 0 | W95: 2277.810307 | X95: 2362.810307 | Y95: 222418.6639 | AA95: 2362.810307 | AB95: 2030-05-07 | AC95: 223026.6019 | AD95: 607.93803 | AE95: 1607.424828 | AF95: 62.44744853 | AG95: 85 | AH95: 0 | AI95: 2362.810307 | AK95: =IF(OR(D95="PG",D95=0),0,E95*((1+$I$8)^-SUMIF(D$50:D95,"PP",J$50:J95))) -> 0.7060234355 | AL95: 30 | AM95: 0.007207323316 | AN95: 0.00028 | AO95: =1/(1+$R$10)^SUM($AL$35:AL95) -> 0.6314416843 | AP95: 319385.0154 | AQ95: -1387.344084 | AR95: 2301.911068 | AS95: 89.42780431 | AT95: 1003.994789 | AU95: 85 | AV95: 1088.994789 | AW95: 320772.3595
C96: 62 | D96: PP | E96: =IF(Deudas_fx!$I$24=2,IF(OR(G96=8,G96=1),Deudas_fx!$I$24,IF(D96="Pg",0,1)),IF(D96="PG",0,1)) -> 1 | F96: 7 | G96: 6 | H96: 2030 | I96: 2030-06-07 | J96: 31 | K96: 222418.6639 | L96: 0 | M96: 0 | N96: 0 | O96: 0 | P96: =IF(OR(D96="PG",D96=0),0,E96*((1+$I$8)^-SUMIF(D$35:D96,"PP",J$35:J96))) -> 0.6265931914 | Q96: 556.7806579 | R96: 1721.029649 | S96: 1656.676515 | T96: 64.35313341 | U96: 85 | V96: 0 | W96: 2277.810307 | X96: 2362.810307 | Y96: 221861.8832 | AA96: 2362.810307 | AB96: 2030-06-07 | AC96: 222418.6639 | AD96: 556.7806579 | AE96: 1656.676515 | AF96: 64.35313341 | AG96: 85 | AH96: 0 | AI96: 2362.810307 | AK96: =IF(OR(D96="PG",D96=0),0,E96*((1+$I$8)^-SUMIF(D$50:D96,"PP",J$50:J96))) -> 0.7006022704 | AL96: 31 | AM96: 0.007448459973 | AN96: 0.0002893333333 | AO96: =1/(1+$R$10)^SUM($AL$35:AL96) -> 0.6265931914 | AP96: 320772.3595 | AQ96: -1478.075427 | AR96: 2389.26008 | AS96: 92.81013601 | AT96: 1003.994789 | AU96: 85 | AV96: 1088.994789 | AW96: 322250.4349
C97: 63 | D97: PP | E97: =IF(Deudas_fx!$I$24=2,IF(OR(G97=8,G97=1),Deudas_fx!$I$24,IF(D97="Pg",0,1)),IF(D97="PG",0,1)) -> 1 | F97: 7 | G97: 7 | H97: 2030 | I97: 2030-07-07 | J97: 30 | K97: 221861.8832 | L97: 0 | M97: 0 | N97: 0 | O97: 0 | P97: =IF(OR(D97="PG",D97=0),0,E97*((1+$I$8)^-SUMIF(D$35:D97,"PP",J$35:J97))) -> 0.6219365514 | Q97: 616.6586554 | R97: 1661.151651 | S97: 1599.030324 | T97: 62.1213273 | U97: 85 | V97: 0 | W97: 2277.810307 | X97: 2362.810307 | Y97: 221245.2246 | AA97: 2362.810307 | AB97: 2030-07-07 | AC97: 221861.8832 | AD97: 616.6586554 | AE97: 1599.030324 | AF97: 62.1213273 | AG97: 85 | AH97: 0 | AI97: 2362.810307 | AK97: =IF(OR(D97="PG",D97=0),0,E97*((1+$I$8)^-SUMIF(D$50:D97,"PP",J$50:J97))) -> 0.6953956186 | AL97: 30 | AM97: 0.007207323316 | AN97: 0.00028 | AO97: =1/(1+$R$10)^SUM($AL$35:AL97) -> 0.6219365514 | AP97: 322250.4349 | AQ97: -1408.798406 | AR97: 2322.563073 | AS97: 90.23012177 | AT97: 1003.994789 | AU97: 85 | AV97: 1088.994789 | AW97: 323659.2333
C98: 64 | D98: PP | E98: =IF(Deudas_fx!$I$24=2,IF(OR(G98=8,G98=1),Deudas_fx!$I$24,IF(D98="Pg",0,1)),IF(D98="PG",0,1)) -> 1 | F98: 7 | G98: 8 | H98: 2030 | I98: 2030-08-07 | J98: 31 | K98: 221245.2246 | L98: 0 | M98: 0 | N98: 0 | O98: 0 | P98: =IF(OR(D98="PG",D98=0),0,E98*((1+$I$8)^-SUMIF(D$35:D98,"PP",J$35:J98))) -> 0.6171610432 | Q98: 565.8604888 | R98: 1711.949818 | S98: 1647.936199 | T98: 64.0136183 | U98: 85 | V98: 0 | W98: 2277.810307 | X98: 2362.810307 | Y98: 220679.3641 | AA98: 2362.810307 | AB98: 2030-08-07 | AC98: 221245.2246 | AD98: 565.8604888 | AE98: 1647.936199 | AF98: 64.0136183 | AG98: 85 | AH98: 0 | AI98: 2362.810307 | AK98: =IF(OR(D98="PG",D98=0),0,E98*((1+$I$8)^-SUMIF(D$50:D98,"PP",J$50:J98))) -> 0.6900560587 | AL98: 31 | AM98: 0.007448459973 | AN98: 0.0002893333333 | AO98: =1/(1+$R$10)^SUM($AL$35:AL98) -> 0.6171610432 | AP98: 323659.2333 | AQ98: -1500.41346 | AR98: 2410.762844 | AS98: 93.64540484 | AT98: 1003.994789 | AU98: 85 | AV98: 1088.994789 | AW98: 325159.6468
B99: =IF(D99="PG","Periodo de Gracia","") ->  | C99: 65 | D99: PP | E99: =IF(Deudas_fx!$I$24=2,IF(OR(G99=8,G99=1),Deudas_fx!$I$24,IF(D99="Pg",0,1)),IF(D99="PG",0,1)) -> 1 | F99: 7 | G99: 9 | H99: 2030 | I99: 2030-09-07 | J99: 31 | K99: 220679.3641 | L99: =IF(D99="PG",((($I$8+1)^J99-1)*K99),0) -> 0 | M99: =IF(D99="PG",((($I$6+1)^J99-1)*K99),0) -> 0 | N99: =IF(D99="PG",((($I$7+1)^J99-1)*K99),0) -> 0 | O99: =IF(D99="PG",(+$I$12),0) -> 0 | P99: =IF(OR(D99="PG",D99=0),0,E99*((1+$I$8)^-SUMIF(D$35:D99,"PP",J$35:J99))) -> 0.6124222035 | Q99: =+IF(D99="PG",0,X99-SUM(R99,U99,V99)) -> 570.2390003 | R99: =S99+T99 -> 1707.571306 | S99: =IF(OR(D99="PG",D99=0),0,IF(O83>=0,K99*((1+$I$6)^J99-1),K99*((1+$I$6)^(J99+O83)-1))) -> 1643.72141 | T99: =IF(OR(D99="PG",D99=0),0,IF(O83>=0,K99*((1+$I$7)^30-1)*J99/30,K99*((1+$I$7)^(30+O83)-1)*J99/30)) -> 63.849896 | U99: =IF(OR(D99="PG",D99=0),0,$I$12) -> 85 | V99: =IF(OR(D99="PG",D99=0),0,$I$11) -> 0 | W99: =IF(OR(D99="PG",D99=0),0,E99*$N$10) -> 2277.810307 | X99: =IF(OR(D99="PG",D99=0),0,W99+U99+V99) -> 2362.810307 | Y99: =+K99+N99+O99+M99-Q99 -> 220109.1251 | AA99: =+X99 -> 2362.810307 | AB99: =+I99 -> 2030-09-07 | AC99: =+K99 -> 220679.3641 | AD99: =+Q99 -> 570.2390003 | AE99: =+IF(D99="PG",M99,S99) -> 1643.72141 | AF99: =+IF(D99="PG",N99,T99) -> 63.849896 | AG99: =+IF(D99="PG",O99,U99) -> 85 | AH99: 0 | AI99: =+X99 -> 2362.810307 | AK99: =IF(OR(D99="PG",D99=0),0,E99*((1+$I$8)^-SUMIF(D$50:D99,"PP",J$50:J99))) -> 0.6847574984 | AL99: =+J99 -> 31 | AM99: =+(1+$S$6)^(AL99/360)-1 -> 0.007448459973 | AN99: =+$R$7*AL99/30 -> 0.0002893333333 | AO99: =1/(1+$R$10)^SUM($AL$35:AL99) -> 0.6124222035 | AP99: 325159.6468 | AQ99: =+$AR$14-AR99-AS99 -> -1512.02335 | AR99: =+AP99*AM99 -> 2421.938614 | AS99: =+AP99*AN99 -> 94.07952447 | AT99: =+AQ99+AR99+AS99 -> 1003.994789 | AU99: =+U99 -> 85 | AV99: =+AT99+AU99 -> 1088.994789 | AW99: =+AP99-AQ99 -> 326671.6701
C100: =+C99+1 -> 66 | D100: PP | E100: =IF(Deudas_fx!$I$24=2,IF(OR(G100=8,G100=1),Deudas_fx!$I$24,IF(D100="Pg",0,1)),IF(D100="PG",0,1)) -> 1 | F100: =F99 -> 7 | G100: =IF(G99=12,1,G99+1) -> 10 | H100: =IF(G99=12,H99+1,H99) -> 2030 | I100: =DATE(H100,G100,F100) -> 2030-10-07 | J100: =+I100-I99 -> 30 | K100: =+Y99 -> 220109.1251 | L100: 0 | M100: 0 | N100: 0 | O100: 0 | P100: =IF(OR(D100="PG",D100=0),0,E100*((1+$I$8)^-SUMIF(D$35:D100,"PP",J$35:J100))) -> 0.6078708777 | Q100: 629.7821223 | R100: 1648.028184 | S100: 1586.397629 | T100: 61.63055502 | U100: 85 | V100: 0 | W100: 2277.810307 | X100: 2362.810307 | Y100: 219479.3429 | Z100: =YEAR(I100-$Z$34)-1900 ->  | AA100: 2362.810307 | AB100: 2030-10-07 | AC100: 220109.1251 | AD100: 629.7821223 | AE100: 1586.397629 | AF100: 61.63055502 | AG100: 85 | AH100: 0 | AI100: 2362.810307 | AK100: =IF(OR(D100="PG",D100=0),0,E100*((1+$I$8)^-SUMIF(D$50:D100,"PP",J$50:J100))) -> 0.6796685998 | AL100: 30 | AM100: 0.007207323316 | AN100: 0.00028 | AO100: =1/(1+$R$10)^SUM($AL$35:AL100) -> 0.6078708777 | AP100: =+AW99 -> 326671.6701 | AQ100: -1441.901624 | AR100: 2354.428345 | AS100: 91.46806763 | AT100: 1003.994789 | AU100: 85 | AV100: 1088.994789 | AW100: 328113.5717
C101: 67 | D101: PP | E101: =IF(Deudas_fx!$I$24=2,IF(OR(G101=8,G101=1),Deudas_fx!$I$24,IF(D101="Pg",0,1)),IF(D101="PG",0,1)) -> 1 | F101: 7 | G101: 11 | H101: 2030 | I101: 2030-11-07 | J101: 31 | K101: 219479.3429 | L101: 0 | M101: 0 | N101: 0 | O101: 0 | P101: =IF(OR(D101="PG",D101=0),0,E101*((1+$I$8)^-SUMIF(D$35:D101,"PP",J$35:J101))) -> 0.6032033721 | Q101: 579.5245157 | R101: 1698.285791 | S101: 1634.783101 | T101: 63.50268989 | U101: 85 | V101: 0 | W101: 2277.810307 | X101: 2362.810307 | Y101: 218899.8184 | AA101: 2362.810307 | AB101: 2030-11-07 | AC101: 219479.3429 | AD101: 579.5245157 | AE101: 1634.783101 | AF101: 63.50268989 | AG101: 85 | AH101: 0 | AI101: 2362.810307 | AK101: =IF(OR(D101="PG",D101=0),0,E101*((1+$I$8)^-SUMIF(D$50:D101,"PP",J$50:J101))) -> 0.6744497991 | AL101: 31 | AM101: 0.007448459973 | AN101: 0.0002893333333 | AO101: =1/(1+$R$10)^SUM($AL$35:AL101) -> 0.6032033721 | AP101: 328113.5717 | AQ101: -1534.880211 | AR101: 2443.940806 | AS101: 94.93419342 | AT101: 1003.994789 | AU101: 85 | AV101: 1088.994789 | AW101: 329648.452
C102: 68 | D102: PP | E102: =IF(Deudas_fx!$I$24=2,IF(OR(G102=8,G102=1),Deudas_fx!$I$24,IF(D102="Pg",0,1)),IF(D102="PG",0,1)) -> 1 | F102: 7 | G102: 12 | H102: 2030 | I102: 2030-12-07 | J102: 30 | K102: 218899.8184 | L102: 0 | M102: 0 | N102: 0 | O102: 0 | P102: =IF(OR(D102="PG",D102=0),0,E102*((1+$I$8)^-SUMIF(D$35:D102,"PP",J$35:J102))) -> 0.5987205577 | Q102: 638.8365921 | R102: 1638.973714 | S102: 1577.681765 | T102: 61.29194916 | U102: 85 | V102: 0 | W102: 2277.810307 | X102: 2362.810307 | Y102: 218260.9818 | AA102: 2362.810307 | AB102: 2030-12-07 | AC102: 218899.8184 | AD102: 638.8365921 | AE102: 1577.681765 | AF102: 61.29194916 | AG102: 85 | AH102: 0 | AI102: 2362.810307 | AK102: =IF(OR(D102="PG",D102=0),0,E102*((1+$I$8)^-SUMIF(D$50:D102,"PP",J$50:J102))) -> 0.669437504 | AL102: 30 | AM102: 0.007207323316 | AN102: 0.00028 | AO102: =1/(1+$R$10)^SUM($AL$35:AL102) -> 0.5987205577 | AP102: 329648.452 | AQ102: -1464.189752 | AR102: 2375.882974 | AS102: 92.30156655 | AT102: 1003.994789 | AU102: 85 | AV102: 1088.994789 | AW102: 331112.6417
C103: 69 | D103: PP | E103: =IF(Deudas_fx!$I$24=2,IF(OR(G103=8,G103=1),Deudas_fx!$I$24,IF(D103="Pg",0,1)),IF(D103="PG",0,1)) -> 1 | F103: 7 | G103: 1 | H103: 2031 | I103: 2031-01-07 | J103: 31 | K103: 218260.9818 | L103: 0 | M103: 0 | N103: 0 | O103: 0 | P103: =IF(OR(D103="PG",D103=0),0,E103*((1+$I$8)^-SUMIF(D$35:D103,"PP",J$35:J103))) -> 0.5941233124 | Q103: 588.9519421 | R103: 1688.858364 | S103: 1625.708187 | T103: 63.15017741 | U103: 85 | V103: 0 | W103: 2277.810307 | X103: 2362.810307 | Y103: 217672.0299 | AA103: 2362.810307 | AB103: 2031-01-07 | AC103: 218260.9818 | AD103: 588.9519421 | AE103: 1625.708187 | AF103: 63.15017741 | AG103: 85 | AH103: 0 | AI103: 2362.810307 | AK103: =IF(OR(D103="PG",D103=0),0,E103*((1+$I$8)^-SUMIF(D$50:D103,"PP",J$50:J103))) -> 0.6642972622 | AL103: 31 | AM103: 0.007448459973 | AN103: 0.0002893333333 | AO103: =1/(1+$R$10)^SUM($AL$35:AL103) -> 0.5941233124 | AP103: 331112.6417 | AQ103: -1558.086394 | AR103: 2466.279258 | AS103: 95.80192433 | AT103: 1003.994789 | AU103: 85 | AV103: 1088.994789 | AW103: 332670.7281
C104: 70 | D104: PP | E104: =IF(Deudas_fx!$I$24=2,IF(OR(G104=8,G104=1),Deudas_fx!$I$24,IF(D104="Pg",0,1)),IF(D104="PG",0,1)) -> 1 | F104: 7 | G104: 2 | H104: 2031 | I104: 2031-02-07 | J104: 31 | K104: 217672.0299 | L104: 0 | M104: 0 | N104: 0 | O104: 0 | P104: =IF(OR(D104="PG",D104=0),0,E104*((1+$I$8)^-SUMIF(D$35:D104,"PP",J$35:J104))) -> 0.5895613668 | Q104: 593.5091305 | R104: 1684.301176 | S104: 1621.321402 | T104: 62.97977398 | U104: 85 | V104: 0 | W104: 2277.810307 | X104: 2362.810307 | Y104: 217078.5208 | AA104: 2362.810307 | AB104: 2031-02-07 | AC104: 217672.0299 | AD104: 593.5091305 | AE104: 1621.321402 | AF104: 62.97977398 | AG104: 85 | AH104: 0 | AI104: 2362.810307 | AK104: =IF(OR(D104="PG",D104=0),0,E104*((1+$I$8)^-SUMIF(D$50:D104,"PP",J$50:J104))) -> 0.6591964895 | AL104: 31 | AM104: 0.007448459973 | AN104: 0.0002893333333 | AO104: =1/(1+$R$10)^SUM($AL$35:AL104) -> 0.5895613668 | AP104: 332670.7281 | AQ104: -1570.142545 | AR104: 2477.884603 | AS104: 96.25273066 | AT104: 1003.994789 | AU104: 85 | AV104: 1088.994789 | AW104: 334240.8706
C105: 71 | D105: =IF(C105<=$I$4,"PG",IF(AND(C105>$I$4,C105<=$I$9),"PP",0)) -> PP | E105: =IF(Deudas_fx!$I$24=2,IF(OR(G105=8,G105=1),Deudas_fx!$I$24,IF(D105="Pg",0,1)),IF(D105="PG",0,1)) -> 1 | F105: 7 | G105: 3 | H105: 2031 | I105: 2031-03-07 | J105: 28 | K105: 217078.5208 | L105: 0 | M105: 0 | N105: 0 | O105: 0 | P105: =IF(OR(D105="PG",D105=0),0,E105*((1+$I$8)^-SUMIF(D$35:D105,"PP",J$35:J105))) -> 0.5854710151 | Q105: 761.1789624 | R105: 1516.631344 | S105: 1459.901491 | T105: 56.72985343 | U105: 85 | V105: 0 | W105: 2277.810307 | X105: 2362.810307 | Y105: 216317.3418 | AA105: 2362.810307 | AB105: 2031-03-07 | AC105: 217078.5208 | AD105: 761.1789624 | AE105: 1459.901491 | AF105: 56.72985343 | AG105: 85 | AH105: 0 | AI105: 2362.810307 | AK105: =IF(OR(D105="PG",D105=0),0,E105*((1+$I$8)^-SUMIF(D$50:D105,"PP",J$50:J105))) -> 0.6546230123 | AL105: 28 | AM105: 0.006725223139 | AN105: 0.0002613333333 | AO105: =1/(1+$R$10)^SUM($AL$35:AL105) -> 0.5854710151 | AP105: 334240.8706 | AQ105: -1331.197929 | AR105: 2247.844437 | AS105: 87.34828086 | AT105: 1003.994789 | AU105: 85 | AV105: 1088.994789 | AW105: 335572.0686
C106: 72 | D106: PP | E106: =IF(Deudas_fx!$I$24=2,IF(OR(G106=8,G106=1),Deudas_fx!$I$24,IF(D106="Pg",0,1)),IF(D106="PG",0,1)) -> 1 | F106: 7 | G106: 4 | H106: 2031 | I106: 2031-04-07 | J106: 31 | K106: 216317.3418 | L106: 0 | M106: 0 | N106: 0 | O106: 0 | P106: =IF(OR(D106="PG",D106=0),0,E106*((1+$I$8)^-SUMIF(D$35:D106,"PP",J$35:J106))) -> 0.5809755057 | Q106: 603.991427 | R106: 1673.81888 | S106: 1611.231062 | T106: 62.58781756 | U106: 85 | V106: 0 | W106: 2277.810307 | X106: 2362.810307 | Y106: 215713.3504 | AA106: 2362.810307 | AB106: 2031-04-07 | AC106: 216317.3418 | AD106: 603.991427 | AE106: 1611.231062 | AF106: 62.58781756 | AG106: 85 | AH106: 0 | AI106: 2362.810307 | AK106: =IF(OR(D106="PG",D106=0),0,E106*((1+$I$8)^-SUMIF(D$50:D106,"PP",J$50:J106))) -> 0.6495965228 | AL106: 31 | AM106: 0.007448459973 | AN106: 0.0002893333333 | AO106: =1/(1+$R$10)^SUM($AL$35:AL106) -> 0.5809755057 | AP106: 335572.0686 | AQ106: -1592.592517 | AR106: 2499.495121 | AS106: 97.09218517 | AT106: 1003.994789 | AU106: 85 | AV106: 1088.994789 | AW106: 337164.6611
C107: 73 | D107: PP | E107: =IF(Deudas_fx!$I$24=2,IF(OR(G107=8,G107=1),Deudas_fx!$I$24,IF(D107="Pg",0,1)),IF(D107="PG",0,1)) -> 1 | F107: 7 | G107: 5 | H107: 2031 | I107: 2031-05-07 | J107: 30 | K107: 215713.3504 | L107: 0 | M107: 0 | N107: 0 | O107: 0 | P107: =IF(OR(D107="PG",D107=0),0,E107*((1+$I$8)^-SUMIF(D$35:D107,"PP",J$35:J107))) -> 0.5766578817 | Q107: 662.6947087 | R107: 1615.115598 | S107: 1554.71586 | T107: 60.3997381 | U107: 85 | V107: 0 | W107: 2277.810307 | X107: 2362.810307 | Y107: 215050.6557 | AA107: 2362.810307 | AB107: 2031-05-07 | AC107: 215713.3504 | AD107: 662.6947087 | AE107: 1554.71586 | AF107: 60.3997381 | AG107: 85 | AH107: 0 | AI107: 2362.810307 | AK107: =IF(OR(D107="PG",D107=0),0,E107*((1+$I$8)^-SUMIF(D$50:D107,"PP",J$50:J107))) -> 0.6447689294 | AL107: 30 | AM107: 0.007207323316 | AN107: 0.00028 | AO107: =1/(1+$R$10)^SUM($AL$35:AL107) -> 0.5766578817 | AP107: 337164.6611 | AQ107: -1520.46604 | AR107: 2430.054723 | AS107: 94.40610511 | AT107: 1003.994789 | AU107: 85 | AV107: 1088.994789 | AW107: 338685.1271
C108: 74 | D108: PP | E108: =IF(Deudas_fx!$I$24=2,IF(OR(G108=8,G108=1),Deudas_fx!$I$24,IF(D108="Pg",0,1)),IF(D108="PG",0,1)) -> 1 | F108: 7 | G108: 6 | H108: 2031 | I108: 2031-06-07 | J108: 31 | K108: 215050.6557 | L108: 0 | M108: 0 | N108: 0 | O108: 0 | P108: =IF(OR(D108="PG",D108=0),0,E108*((1+$I$8)^-SUMIF(D$35:D108,"PP",J$35:J108))) -> 0.5722300435 | Q108: 613.7927825 | R108: 1664.017524 | S108: 1601.796201 | T108: 62.22132304 | U108: 85 | V108: 0 | W108: 2277.810307 | X108: 2362.810307 | Y108: 214436.8629 | AA108: 2362.810307 | AB108: 2031-06-07 | AC108: 215050.6557 | AD108: 613.7927825 | AE108: 1601.796201 | AF108: 62.22132304 | AG108: 85 | AH108: 0 | AI108: 2362.810307 | AK108: =IF(OR(D108="PG",D108=0),0,E108*((1+$I$8)^-SUMIF(D$50:D108,"PP",J$50:J108))) -> 0.639818104 | AL108: 31 | AM108: 0.007448459973 | AN108: 0.0002893333333 | AO108: =1/(1+$R$10)^SUM($AL$35:AL108) -> 0.5722300435 | AP108: 338685.1271 | AQ108: -1616.680721 | AR108: 2522.682613 | AS108: 97.99289678 | AT108: 1003.994789 | AU108: 85 | AV108: 1088.994789 | AW108: 340301.8079
C109: 75 | D109: PP | E109: =IF(Deudas_fx!$I$24=2,IF(OR(G109=8,G109=1),Deudas_fx!$I$24,IF(D109="Pg",0,1)),IF(D109="PG",0,1)) -> 1 | F109: 7 | G109: 7 | H109: 2031 | I109: 2031-07-07 | J109: 30 | K109: 214436.8629 | L109: 0 | M109: 0 | N109: 0 | O109: 0 | P109: =IF(OR(D109="PG",D109=0),0,E109*((1+$I$8)^-SUMIF(D$35:D109,"PP",J$35:J109))) -> 0.567977413 | Q109: 672.2521832 | R109: 1605.558123 | S109: 1545.515802 | T109: 60.04232161 | U109: 85 | V109: 0 | W109: 2277.810307 | X109: 2362.810307 | Y109: 213764.6107 | AA109: 2362.810307 | AB109: 2031-07-07 | AC109: 214436.8629 | AD109: 672.2521832 | AE109: 1545.515802 | AF109: 60.04232161 | AG109: 85 | AH109: 0 | AI109: 2362.810307 | AK109: =IF(OR(D109="PG",D109=0),0,E109*((1+$I$8)^-SUMIF(D$50:D109,"PP",J$50:J109))) -> 0.6350631806 | AL109: 30 | AM109: 0.007207323316 | AN109: 0.00028 | AO109: =1/(1+$R$10)^SUM($AL$35:AL109) -> 0.567977413 | AP109: 340301.8079 | AQ109: -1543.954872 | AR109: 2452.665154 | AS109: 95.2845062 | AT109: 1003.994789 | AU109: 85 | AV109: 1088.994789 | AW109: 341845.7627
C110: 76 | D110: PP | E110: =IF(Deudas_fx!$I$24=2,IF(OR(G110=8,G110=1),Deudas_fx!$I$24,IF(D110="Pg",0,1)),IF(D110="PG",0,1)) -> 1 | F110: 7 | G110: 8 | H110: 2031 | I110: 2031-08-07 | J110: 31 | K110: 213764.6107 | L110: 0 | M110: 0 | N110: 0 | O110: 0 | P110: =IF(OR(D110="PG",D110=0),0,E110*((1+$I$8)^-SUMIF(D$35:D110,"PP",J$35:J110))) -> 0.5636162273 | Q110: 623.7439326 | R110: 1654.066374 | S110: 1592.217147 | T110: 61.84922736 | U110: 85 | V110: 0 | W110: 2277.810307 | X110: 2362.810307 | Y110: 213140.8668 | AA110: 2362.810307 | AB110: 2031-08-07 | AC110: 213764.6107 | AD110: 623.7439326 | AE110: 1592.217147 | AF110: 61.84922736 | AG110: 85 | AH110: 0 | AI110: 2362.810307 | AK110: =IF(OR(D110="PG",D110=0),0,E110*((1+$I$8)^-SUMIF(D$50:D110,"PP",J$50:J110))) -> 0.6301868803 | AL110: 31 | AM110: 0.007448459973 | AN110: 0.0002893333333 | AO110: =1/(1+$R$10)^SUM($AL$35:AL110) -> 0.5636162273 | AP110: 341845.7627 | AQ110: -1641.137066 | AR110: 2546.224481 | AS110: 98.90737401 | AT110: 1003.994789 | AU110: 85 | AV110: 1088.994789 | AW110: 343486.8998
C111: 77 | D111: PP | E111: =IF(Deudas_fx!$I$24=2,IF(OR(G111=8,G111=1),Deudas_fx!$I$24,IF(D111="Pg",0,1)),IF(D111="PG",0,1)) -> 1 | F111: 7 | G111: 9 | H111: 2031 | I111: 2031-09-07 | J111: 31 | K111: 213140.8668 | L111: 0 | M111: 0 | N111: 0 | O111: 0 | P111: =IF(OR(D111="PG",D111=0),0,E111*((1+$I$8)^-SUMIF(D$35:D111,"PP",J$35:J111))) -> 0.5592885288 | Q111: 628.5703342 | R111: 1649.239972 | S111: 1587.571215 | T111: 61.66875745 | U111: 85 | V111: 0 | W111: 2277.810307 | X111: 2362.810307 | Y111: 212512.2964 | AA111: 2362.810307 | AB111: 2031-09-07 | AC111: 213140.8668 | AD111: 628.5703342 | AE111: 1587.571215 | AF111: 61.66875745 | AG111: 85 | AH111: 0 | AI111: 2362.810307 | AK111: =IF(OR(D111="PG",D111=0),0,E111*((1+$I$8)^-SUMIF(D$50:D111,"PP",J$50:J111))) -> 0.6253480224 | AL111: 31 | AM111: 0.007448459973 | AN111: 0.0002893333333 | AO111: =1/(1+$R$10)^SUM($AL$35:AL111) -> 0.5592885288 | AP111: 343486.8998 | AQ111: -1653.835845 | AR111: 2558.448425 | AS111: 99.38220967 | AT111: 1003.994789 | AU111: 85 | AV111: 1088.994789 | AW111: 345140.7356
C112: 78 | D112: PP | E112: =IF(Deudas_fx!$I$24=2,IF(OR(G112=8,G112=1),Deudas_fx!$I$24,IF(D112="Pg",0,1)),IF(D112="PG",0,1)) -> 1 | F112: 7 | G112: 10 | H112: 2031 | I112: 2031-10-07 | J112: 30 | K112: 212512.2964 | L112: 0 | M112: 0 | N112: 0 | O112: 0 | P112: =IF(OR(D112="PG",D112=0),0,E112*((1+$I$8)^-SUMIF(D$35:D112,"PP",J$35:J112))) -> 0.5551320755 | Q112: 686.6620345 | R112: 1591.148272 | S112: 1531.644829 | T112: 59.503443 | U112: 85 | V112: 0 | W112: 2277.810307 | X112: 2362.810307 | Y112: 211825.6344 | AA112: 2362.810307 | AB112: 2031-10-07 | AC112: 212512.2964 | AD112: 686.6620345 | AE112: 1531.644829 | AF112: 59.503443 | AG112: 85 | AH112: 0 | AI112: 2362.810307 | AK112: =IF(OR(D112="PG",D112=0),0,E112*((1+$I$8)^-SUMIF(D$50:D112,"PP",J$50:J112))) -> 0.620700636 | AL112: 30 | AM112: 0.007207323316 | AN112: 0.00028 | AO112: =1/(1+$R$10)^SUM($AL$35:AL112) -> 0.5551320755 | AP112: 345140.7356 | AQ112: -1580.185489 | AR112: 2487.540871 | AS112: 96.63940598 | AT112: 1003.994789 | AU112: 85 | AV112: 1088.994789 | AW112: 346720.9211
C113: 79 | D113: PP | E113: =IF(Deudas_fx!$I$24=2,IF(OR(G113=8,G113=1),Deudas_fx!$I$24,IF(D113="Pg",0,1)),IF(D113="PG",0,1)) -> 1 | F113: 7 | G113: 11 | H113: 2031 | I113: 2031-11-07 | J113: 31 | K113: 211825.6344 | L113: 0 | M113: 0 | N113: 0 | O113: 0 | P113: =IF(OR(D113="PG",D113=0),0,E113*((1+$I$8)^-SUMIF(D$35:D113,"PP",J$35:J113))) -> 0.5508695221 | Q113: 638.7473305 | R113: 1639.062976 | S113: 1577.774759 | T113: 61.28821688 | U113: 85 | V113: 0 | W113: 2277.810307 | X113: 2362.810307 | Y113: 211186.8871 | AA113: 2362.810307 | AB113: 2031-11-07 | AC113: 211825.6344 | AD113: 638.7473305 | AE113: 1577.774759 | AF113: 61.28821688 | AG113: 85 | AH113: 0 | AI113: 2362.810307 | AK113: =IF(OR(D113="PG",D113=0),0,E113*((1+$I$8)^-SUMIF(D$50:D113,"PP",J$50:J113))) -> 0.6159346178 | AL113: 31 | AM113: 0.007448459973 | AN113: 0.0002893333333 | AO113: =1/(1+$R$10)^SUM($AL$35:AL113) -> 0.5508695221 | AP113: 346720.9211 | AQ113: -1678.860034 | AR113: 2582.536903 | AS113: 100.3179198 | AT113: 1003.994789 | AU113: 85 | AV113: 1088.994789 | AW113: 348399.7812
C114: 80 | D114: PP | E114: =IF(Deudas_fx!$I$24=2,IF(OR(G114=8,G114=1),Deudas_fx!$I$24,IF(D114="Pg",0,1)),IF(D114="PG",0,1)) -> 1 | F114: 7 | G114: 12 | H114: 2031 | I114: 2031-12-07 | J114: 30 | K114: 211186.8871 | L114: 0 | M114: 0 | N114: 0 | O114: 0 | P114: =IF(OR(D114="PG",D114=0),0,E114*((1+$I$8)^-SUMIF(D$35:D114,"PP",J$35:J114))) -> 0.5467756361 | Q114: 696.5858029 | R114: 1581.224504 | S114: 1522.092175 | T114: 59.13232838 | U114: 85 | V114: 0 | W114: 2277.810307 | X114: 2362.810307 | Y114: 210490.3013 | AA114: 2362.810307 | AB114: 2031-12-07 | AC114: 211186.8871 | AD114: 696.5858029 | AE114: 1522.092175 | AF114: 59.13232838 | AG114: 85 | AH114: 0 | AI114: 2362.810307 | AK114: =IF(OR(D114="PG",D114=0),0,E114*((1+$I$8)^-SUMIF(D$50:D114,"PP",J$50:J114))) -> 0.6113571888 | AL114: 30 | AM114: 0.007207323316 | AN114: 0.00028 | AO114: =1/(1+$R$10)^SUM($AL$35:AL114) -> 0.5467756361 | AP114: 348399.7812 | AQ114: -1604.587016 | AR114: 2511.029866 | AS114: 97.55193872 | AT114: 1003.994789 | AU114: 85 | AV114: 1088.994789 | AW114: 350004.3682
C115: 81 | D115: PP | E115: =IF(Deudas_fx!$I$24=2,IF(OR(G115=8,G115=1),Deudas_fx!$I$24,IF(D115="Pg",0,1)),IF(D115="PG",0,1)) -> 1 | F115: 7 | G115: 1 | H115: 2032 | I115: 2032-01-07 | J115: 31 | K115: 210490.3013 | L115: 0 | M115: 0 | N115: 0 | O115: 0 | P115: =IF(OR(D115="PG",D115=0),0,E115*((1+$I$8)^-SUMIF(D$35:D115,"PP",J$35:J115))) -> 0.5425772472 | Q115: 649.0798622 | R115: 1628.730444 | S115: 1567.828584 | T115: 60.9018605 | U115: 85 | V115: 0 | W115: 2277.810307 | X115: 2362.810307 | Y115: 209841.2214 | AA115: 2362.810307 | AB115: 2032-01-07 | AC115: 210490.3013 | AD115: 649.0798622 | AE115: 1567.828584 | AF115: 60.9018605 | AG115: 85 | AH115: 0 | AI115: 2362.810307 | AK115: =IF(OR(D115="PG",D115=0),0,E115*((1+$I$8)^-SUMIF(D$50:D115,"PP",J$50:J115))) -> 0.6066629138 | AL115: 31 | AM115: 0.007448459973 | AN115: 0.0002893333333 | AO115: =1/(1+$R$10)^SUM($AL$35:AL115) -> 0.5425772472 | AP115: 350004.3682 | AQ115: -1704.266669 | AR115: 2606.993527 | AS115: 101.2679305 | AT115: 1003.994789 | AU115: 85 | AV115: 1088.994789 | AW115: 351708.6348
C116: 82 | D116: PP | E116: =IF(Deudas_fx!$I$24=2,IF(OR(G116=8,G116=1),Deudas_fx!$I$24,IF(D116="Pg",0,1)),IF(D116="PG",0,1)) -> 1 | F116: 7 | G116: 2 | H116: 2032 | I116: 2032-02-07 | J116: 31 | K116: 209841.2214 | L116: 0 | M116: 0 | N116: 0 | O116: 0 | P116: =IF(OR(D116="PG",D116=0),0,E116*((1+$I$8)^-SUMIF(D$35:D116,"PP",J$35:J116))) -> 0.5384110954 | Q116: 654.1023081 | R116: 1623.707998 | S116: 1562.993938 | T116: 60.71406006 | U116: 85 | V116: 0 | W116: 2277.810307 | X116: 2362.810307 | Y116: 209187.1191 | AA116: 2362.810307 | AB116: 2032-02-07 | AC116: 209841.2214 | AD116: 654.1023081 | AE116: 1562.993938 | AF116: 60.71406006 | AG116: 85 | AH116: 0 | AI116: 2362.810307 | AK116: =IF(OR(D116="PG",D116=0),0,E116*((1+$I$8)^-SUMIF(D$50:D116,"PP",J$50:J116))) -> 0.6020046835 | AL116: 31 | AM116: 0.007448459973 | AN116: 0.0002893333333 | AO116: =1/(1+$R$10)^SUM($AL$35:AL116) -> 0.5384110954 | AP116: 351708.6348 | AQ116: -1717.453932 | AR116: 2619.687689 | AS116: 101.7610317 | AT116: 1003.994789 | AU116: 85 | AV116: 1088.994789 | AW116: 353426.0888
C117: 83 | D117: PP | E117: =IF(Deudas_fx!$I$24=2,IF(OR(G117=8,G117=1),Deudas_fx!$I$24,IF(D117="Pg",0,1)),IF(D117="PG",0,1)) -> 1 | F117: 7 | G117: 3 | H117: 2032 | I117: 2032-03-07 | J117: 29 | K117: 209187.1191 | L117: 0 | M117: 0 | N117: 0 | O117: 0 | P117: =IF(OR(D117="PG",D117=0),0,E117*((1+$I$8)^-SUMIF(D$35:D117,"PP",J$35:J117))) -> 0.5345426928 | Q117: 763.9417344 | R117: 1513.868572 | S117: 1457.248592 | T117: 56.61998023 | U117: 85 | V117: 0 | W117: 2277.810307 | X117: 2362.810307 | Y117: 208423.1774 | AA117: 2362.810307 | AB117: 2032-03-07 | AC117: 209187.1191 | AD117: 763.9417344 | AE117: 1457.248592 | AF117: 56.61998023 | AG117: 85 | AH117: 0 | AI117: 2362.810307 | AK117: =IF(OR(D117="PG",D117=0),0,E117*((1+$I$8)^-SUMIF(D$50:D117,"PP",J$50:J117))) -> 0.5976793705 | AL117: 29 | AM117: 0.006966244376 | AN117: 0.0002706666667 | AO117: =1/(1+$R$10)^SUM($AL$35:AL117) -> 0.5345426928 | AP117: 353426.0888 | AQ117: -1553.718376 | AR117: 2462.052503 | AS117: 95.66066136 | AT117: 1003.994789 | AU117: 85 | AV117: 1088.994789 | AW117: 354979.8072
C118: 84 | D118: PP | E118: =IF(Deudas_fx!$I$24=2,IF(OR(G118=8,G118=1),Deudas_fx!$I$24,IF(D118="Pg",0,1)),IF(D118="PG",0,1)) -> 1 | F118: 7 | G118: 4 | H118: 2032 | I118: 2032-04-07 | J118: 31 | K118: 208423.1774 | L118: 0 | M118: 0 | N118: 0 | O118: 0 | P118: =IF(OR(D118="PG",D118=0),0,E118*((1+$I$8)^-SUMIF(D$35:D118,"PP",J$35:J118))) -> 0.5304382339 | Q118: 665.0748398 | R118: 1612.735467 | S118: 1552.431694 | T118: 60.30377265 | U118: 85 | V118: 0 | W118: 2277.810307 | X118: 2362.810307 | Y118: 207758.1025 | AA118: 2362.810307 | AB118: 2032-04-07 | AC118: 208423.1774 | AD118: 665.0748398 | AE118: 1552.431694 | AF118: 60.30377265 | AG118: 85 | AH118: 0 | AI118: 2362.810307 | AK118: =IF(OR(D118="PG",D118=0),0,E118*((1+$I$8)^-SUMIF(D$50:D118,"PP",J$50:J118))) -> 0.5930901199 | AL118: 31 | AM118: 0.007448459973 | AN118: 0.0002893333333 | AO118: =1/(1+$R$10)^SUM($AL$35:AL118) -> 0.5304382339 | AP118: 354979.8072 | AQ118: -1742.765587 | AR118: 2644.052885 | AS118: 102.7074909 | AT118: 1003.994789 | AU118: 85 | AV118: 1088.994789 | AW118: 356722.5727
C119: 85 | D119: PP | E119: =IF(Deudas_fx!$I$24=2,IF(OR(G119=8,G119=1),Deudas_fx!$I$24,IF(D119="Pg",0,1)),IF(D119="PG",0,1)) -> 1 | F119: 7 | G119: 5 | H119: 2032 | I119: 2032-05-07 | J119: 30 | K119: 207758.1025 | L119: 0 | M119: 0 | N119: 0 | O119: 0 | P119: =IF(OR(D119="PG",D119=0),0,E119*((1+$I$8)^-SUMIF(D$35:D119,"PP",J$35:J119))) -> 0.5264961867 | Q119: 722.2582214 | R119: 1555.552085 | S119: 1497.379816 | T119: 58.1722687 | U119: 85 | V119: 0 | W119: 2277.810307 | X119: 2362.810307 | Y119: 207035.8443 | AA119: 2362.810307 | AB119: 2032-05-07 | AC119: 207758.1025 | AD119: 722.2582214 | AE119: 1497.379816 | AF119: 58.1722687 | AG119: 85 | AH119: 0 | AI119: 2362.810307 | AK119: =IF(OR(D119="PG",D119=0),0,E119*((1+$I$8)^-SUMIF(D$50:D119,"PP",J$50:J119))) -> 0.5886824639 | AL119: 30 | AM119: 0.007207323316 | AN119: 0.00028 | AO119: =1/(1+$R$10)^SUM($AL$35:AL119) -> 0.5264961867 | AP119: 356722.5727 | AQ119: -1666.902448 | AR119: 2571.014916 | AS119: 99.88232037 | AT119: 1003.994789 | AU119: 85 | AV119: 1088.994789 | AW119: 358389.4752
C120: 86 | D120: PP | E120: =IF(Deudas_fx!$I$24=2,IF(OR(G120=8,G120=1),Deudas_fx!$I$24,IF(D120="Pg",0,1)),IF(D120="PG",0,1)) -> 1 | F120: 7 | G120: 6 | H120: 2032 | I120: 2032-06-07 | J120: 31 | K120: 207035.8443 | L120: 0 | M120: 0 | N120: 0 | O120: 0 | P120: =IF(OR(D120="PG",D120=0),0,E120*((1+$I$8)^-SUMIF(D$35:D120,"PP",J$35:J120))) -> 0.5224535126 | Q120: 675.8097362 | R120: 1602.00057 | S120: 1542.098199 | T120: 59.90237095 | U120: 85 | V120: 0 | W120: 2277.810307 | X120: 2362.810307 | Y120: 206360.0346 | AA120: 2362.810307 | AB120: 2032-06-07 | AC120: 207035.8443 | AD120: 675.8097362 | AE120: 1542.098199 | AF120: 59.90237095 | AG120: 85 | AH120: 0 | AI120: 2362.810307 | AK120: =IF(OR(D120="PG",D120=0),0,E120*((1+$I$8)^-SUMIF(D$50:D120,"PP",J$50:J120))) -> 0.5841622956 | AL120: 31 | AM120: 0.007448459973 | AN120: 0.0002893333333 | AO120: =1/(1+$R$10)^SUM($AL$35:AL120) -> 0.5224535126 | AP120: 358389.4752 | AQ120: -1769.148894 | AR120: 2669.449661 | AS120: 103.6940215 | AT120: 1003.994789 | AU120: 85 | AV120: 1088.994789 | AW120: 360158.6241
C121: 87 | D121: PP | E121: =IF(Deudas_fx!$I$24=2,IF(OR(G121=8,G121=1),Deudas_fx!$I$24,IF(D121="Pg",0,1)),IF(D121="PG",0,1)) -> 1 | F121: 7 | G121: 7 | H121: 2032 | I121: 2032-07-07 | J121: 30 | K121: 206360.0346 | L121: 0 | M121: 0 | N121: 0 | O121: 0 | P121: =IF(OR(D121="PG",D121=0),0,E121*((1+$I$8)^-SUMIF(D$35:D121,"PP",J$35:J121))) -> 0.5185708053 | Q121: 732.7260082 | R121: 1545.084298 | S121: 1487.303489 | T121: 57.78080968 | U121: 85 | V121: 0 | W121: 2277.810307 | X121: 2362.810307 | Y121: 205627.3086 | AA121: 2362.810307 | AB121: 2032-07-07 | AC121: 206360.0346 | AD121: 732.7260082 | AE121: 1487.303489 | AF121: 57.78080968 | AG121: 85 | AH121: 0 | AI121: 2362.810307 | AK121: =IF(OR(D121="PG",D121=0),0,E121*((1+$I$8)^-SUMIF(D$50:D121,"PP",J$50:J121))) -> 0.5798209884 | AL121: 30 | AM121: 0.007207323316 | AN121: 0.00028 | AO121: =1/(1+$R$10)^SUM($AL$35:AL121) -> 0.5185708053 | AP121: 360158.6241 | AQ121: -1692.629275 | AR121: 2595.779649 | AS121: 100.8444147 | AT121: 1003.994789 | AU121: 85 | AV121: 1088.994789 | AW121: 361851.2534
C122: 88 | D122: PP | E122: =IF(Deudas_fx!$I$24=2,IF(OR(G122=8,G122=1),Deudas_fx!$I$24,IF(D122="Pg",0,1)),IF(D122="PG",0,1)) -> 1 | F122: 7 | G122: 8 | H122: 2032 | I122: 2032-08-07 | J122: 31 | K122: 205627.3086 | L122: 0 | M122: 0 | N122: 0 | O122: 0 | P122: =IF(OR(D122="PG",D122=0),0,E122*((1+$I$8)^-SUMIF(D$35:D122,"PP",J$35:J122))) -> 0.5145889857 | Q122: 686.7086947 | R122: 1591.101612 | S122: 1531.606777 | T122: 59.49483461 | U122: 85 | V122: 0 | W122: 2277.810307 | X122: 2362.810307 | Y122: 204940.5999 | AA122: 2362.810307 | AB122: 2032-08-07 | AC122: 205627.3086 | AD122: 686.7086947 | AE122: 1531.606777 | AF122: 59.49483461 | AG122: 85 | AH122: 0 | AI122: 2362.810307 | AK122: =IF(OR(D122="PG",D122=0),0,E122*((1+$I$8)^-SUMIF(D$50:D122,"PP",J$50:J122))) -> 0.5753688624 | AL122: 31 | AM122: 0.007448459973 | AN122: 0.0002893333333 | AO122: =1/(1+$R$10)^SUM($AL$35:AL122) -> 0.5145889857 | AP122: 361851.2534 | AQ122: -1795.935418 | AR122: 2695.234577 | AS122: 104.6956293 | AT122: 1003.994789 | AU122: 85 | AV122: 1088.994789 | AW122: 363647.1888
C123: 89 | D123: PP | E123: =IF(Deudas_fx!$I$24=2,IF(OR(G123=8,G123=1),Deudas_fx!$I$24,IF(D123="Pg",0,1)),IF(D123="PG",0,1)) -> 1 | F123: 7 | G123: 9 | H123: 2032 | I123: 2032-09-07 | J123: 31 | K123: 204940.5999 | L123: 0 | M123: 0 | N123: 0 | O123: 0 | P123: =IF(OR(D123="PG",D123=0),0,E123*((1+$I$8)^-SUMIF(D$35:D123,"PP",J$35:J123))) -> 0.5106377404 | Q123: 692.0223046 | R123: 1585.788002 | S123: 1526.491855 | T123: 59.29614689 | U123: 85 | V123: 0 | W123: 2277.810307 | X123: 2362.810307 | Y123: 204248.5776 | AA123: 2362.810307 | AB123: 2032-09-07 | AC123: 204940.5999 | AD123: 692.0223046 | AE123: 1526.491855 | AF123: 59.29614689 | AG123: 85 | AH123: 0 | AI123: 2362.810307 | AK123: =IF(OR(D123="PG",D123=0),0,E123*((1+$I$8)^-SUMIF(D$50:D123,"PP",J$50:J123))) -> 0.5709509219 | AL123: 31 | AM123: 0.007448459973 | AN123: 0.0002893333333 | AO123: =1/(1+$R$10)^SUM($AL$35:AL123) -> 0.5106377404 | AP123: 363647.1888 | AQ123: -1809.831995 | AR123: 2708.61153 | AS123: 105.2152533 | AT123: 1003.994789 | AU123: 85 | AV123: 1088.994789 | AW123: 365457.0208
C124: 90 | D124: PP | E124: =IF(Deudas_fx!$I$24=2,IF(OR(G124=8,G124=1),Deudas_fx!$I$24,IF(D124="Pg",0,1)),IF(D124="PG",0,1)) -> 1 | F124: 7 | G124: 10 | H124: 2032 | I124: 2032-10-07 | J124: 30 | K124: 204248.5776 | L124: 0 | M124: 0 | N124: 0 | O124: 0 | P124: =IF(OR(D124="PG",D124=0),0,E124*((1+$I$8)^-SUMIF(D$35:D124,"PP",J$35:J124))) -> 0.5068428441 | Q124: 748.5351695 | R124: 1529.275137 | S124: 1472.085535 | T124: 57.18960171 | U124: 85 | V124: 0 | W124: 2277.810307 | X124: 2362.810307 | Y124: 203500.0424 | AA124: 2362.810307 | AB124: 2032-10-07 | AC124: 204248.5776 | AD124: 748.5351695 | AE124: 1472.085535 | AF124: 57.18960171 | AG124: 85 | AH124: 0 | AI124: 2362.810307 | AK124: =IF(OR(D124="PG",D124=0),0,E124*((1+$I$8)^-SUMIF(D$50:D124,"PP",J$50:J124))) -> 0.5667077974 | AL124: 30 | AM124: 0.007207323316 | AN124: 0.00028 | AO124: =1/(1+$R$10)^SUM($AL$35:AL124) -> 0.5068428441 | AP124: 365457.0208 | AQ124: -1732.300084 | AR124: 2633.966907 | AS124: 102.3279658 | AT124: 1003.994789 | AU124: 85 | AV124: 1088.994789 | AW124: 367189.3209
C125: 91 | D125: PP | E125: =IF(Deudas_fx!$I$24=2,IF(OR(G125=8,G125=1),Deudas_fx!$I$24,IF(D125="Pg",0,1)),IF(D125="PG",0,1)) -> 1 | F125: 7 | G125: 11 | H125: 2032 | I125: 2032-11-07 | J125: 31 | K125: 203500.0424 | L125: 0 | M125: 0 | N125: 0 | O125: 0 | P125: =IF(OR(D125="PG",D125=0),0,E125*((1+$I$8)^-SUMIF(D$35:D125,"PP",J$35:J125))) -> 0.5029510771 | Q125: 703.1690406 | R125: 1574.641266 | S125: 1515.76192 | T125: 58.8793456 | U125: 85 | V125: 0 | W125: 2277.810307 | X125: 2362.810307 | Y125: 202796.8733 | AA125: 2362.810307 | AB125: 2032-11-07 | AC125: 203500.0424 | AD125: 703.1690406 | AE125: 1515.76192 | AF125: 58.8793456 | AG125: 85 | AH125: 0 | AI125: 2362.810307 | AK125: =IF(OR(D125="PG",D125=0),0,E125*((1+$I$8)^-SUMIF(D$50:D125,"PP",J$50:J125))) -> 0.5623563604 | AL125: 31 | AM125: 0.007448459973 | AN125: 0.0002893333333 | AO125: =1/(1+$R$10)^SUM($AL$35:AL125) -> 0.5029510771 | AP125: 367189.3209 | AQ125: -1837.24028 | AR125: 2734.994959 | AS125: 106.2401102 | AT125: 1003.994789 | AU125: 85 | AV125: 1088.994789 | AW125: 369026.5611
C126: 92 | D126: PP | E126: =IF(Deudas_fx!$I$24=2,IF(OR(G126=8,G126=1),Deudas_fx!$I$24,IF(D126="Pg",0,1)),IF(D126="PG",0,1)) -> 1 | F126: 7 | G126: 12 | H126: 2032 | I126: 2032-12-07 | J126: 30 | K126: 202796.8733 | L126: 0 | M126: 0 | N126: 0 | O126: 0 | P126: =IF(OR(D126="PG",D126=0),0,E126*((1+$I$8)^-SUMIF(D$35:D126,"PP",J$35:J126))) -> 0.4992133057 | Q126: 759.4045483 | R126: 1518.405758 | S126: 1461.622634 | T126: 56.78312454 | U126: 85 | V126: 0 | W126: 2277.810307 | X126: 2362.810307 | Y126: 202037.4688 | AA126: 2362.810307 | AB126: 2032-12-07 | AC126: 202796.8733 | AD126: 759.4045483 | AE126: 1461.622634 | AF126: 56.78312454 | AG126: 85 | AH126: 0 | AI126: 2362.810307 | AK126: =IF(OR(D126="PG",D126=0),0,E126*((1+$I$8)^-SUMIF(D$50:D126,"PP",J$50:J126))) -> 0.5581771079 | AL126: 30 | AM126: 0.007207323316 | AN126: 0.00028 | AO126: =1/(1+$R$10)^SUM($AL$35:AL126) -> 0.4992133057 | AP126: 369026.5611 | AQ126: -1759.026387 | AR126: 2659.693738 | AS126: 103.3274371 | AT126: 1003.994789 | AU126: 85 | AV126: 1088.994789 | AW126: 370785.5875
C127: 93 | D127: PP | E127: =IF(Deudas_fx!$I$24=2,IF(OR(G127=8,G127=1),Deudas_fx!$I$24,IF(D127="Pg",0,1)),IF(D127="PG",0,1)) -> 1 | F127: 7 | G127: 1 | H127: 2033 | I127: 2033-01-07 | J127: 31 | K127: 202037.4688 | L127: 0 | M127: 0 | N127: 0 | O127: 0 | P127: =IF(OR(D127="PG",D127=0),0,E127*((1+$I$8)^-SUMIF(D$35:D127,"PP",J$35:J127))) -> 0.4953801218 | Q127: 714.4861327 | R127: 1563.324174 | S127: 1504.867999 | T127: 58.4561743 | U127: 85 | V127: 0 | W127: 2277.810307 | X127: 2362.810307 | Y127: 201322.9827 | AA127: 2362.810307 | AB127: 2033-01-07 | AC127: 202037.4688 | AD127: 714.4861327 | AE127: 1504.867999 | AF127: 58.4561743 | AG127: 85 | AH127: 0 | AI127: 2362.810307 | AK127: =IF(OR(D127="PG",D127=0),0,E127*((1+$I$8)^-SUMIF(D$50:D127,"PP",J$50:J127))) -> 0.5538911734 | AL127: 31 | AM127: 0.007448459973 | AN127: 0.0002893333333 | AO127: =1/(1+$R$10)^SUM($AL$35:AL127) -> 0.4953801218 | AP127: 370785.5875 | AQ127: -1865.067449 | AR127: 2761.781607 | AS127: 107.28063 | AT127: 1003.994789 | AU127: 85 | AV127: 1088.994789 | AW127: 372650.655
C128: 94 | D128: PP | E128: =IF(Deudas_fx!$I$24=2,IF(OR(G128=8,G128=1),Deudas_fx!$I$24,IF(D128="Pg",0,1)),IF(D128="PG",0,1)) -> 1 | F128: 7 | G128: 2 | H128: 2033 | I128: 2033-02-07 | J128: 31 | K128: 201322.9827 | L128: 0 | M128: 0 | N128: 0 | O128: 0 | P128: =IF(OR(D128="PG",D128=0),0,E128*((1+$I$8)^-SUMIF(D$35:D128,"PP",J$35:J128))) -> 0.4915763707 | Q128: 720.0146788 | R128: 1557.795628 | S128: 1499.546178 | T128: 58.24944965 | U128: 85 | V128: 0 | W128: 2277.810307 | X128: 2362.810307 | Y128: 200602.968 | AA128: 2362.810307 | AB128: 2033-02-07 | AC128: 201322.9827 | AD128: 720.0146788 | AE128: 1499.546178 | AF128: 58.24944965 | AG128: 85 | AH128: 0 | AI128: 2362.810307 | AK128: =IF(OR(D128="PG",D128=0),0,E128*((1+$I$8)^-SUMIF(D$50:D128,"PP",J$50:J128))) -> 0.5496381482 | AL128: 31 | AM128: 0.007448459973 | AN128: 0.0002893333333 | AO128: =1/(1+$R$10)^SUM($AL$35:AL128) -> 0.4915763707 | AP128: 372650.655 | AQ128: -1879.498955 | AR128: 2775.673488 | AS128: 107.8202562 | AT128: 1003.994789 | AU128: 85 | AV128: 1088.994789 | AW128: 374530.1539
C129: 95 | D129: PP | E129: =IF(Deudas_fx!$I$24=2,IF(OR(G129=8,G129=1),Deudas_fx!$I$24,IF(D129="Pg",0,1)),IF(D129="PG",0,1)) -> 1 | F129: 7 | G129: 3 | H129: 2033 | I129: 2033-03-07 | J129: 28 | K129: 200602.968 | L129: 0 | M129: 0 | N129: 0 | O129: 0 | P129: =IF(OR(D129="PG",D129=0),0,E129*((1+$I$8)^-SUMIF(D$35:D129,"PP",J$35:J129))) -> 0.4881658348 | Q129: 876.2863423 | R129: 1401.523964 | S129: 1349.099722 | T129: 52.4242423 | U129: 85 | V129: 0 | W129: 2277.810307 | X129: 2362.810307 | Y129: 199726.6816 | AA129: 2362.810307 | AB129: 2033-03-07 | AC129: 200602.968 | AD129: 876.2863423 | AE129: 1349.099722 | AF129: 52.4242423 | AG129: 85 | AH129: 0 | AI129: 2362.810307 | AK129: =IF(OR(D129="PG",D129=0),0,E129*((1+$I$8)^-SUMIF(D$50:D129,"PP",J$50:J129))) -> 0.5458247821 | AL129: 28 | AM129: 0.006725223139 | AN129: 0.0002613333333 | AO129: =1/(1+$R$10)^SUM($AL$35:AL129) -> 0.4881658348 | AP129: 374530.1539 | AQ129: -1612.681282 | AR129: 2518.798857 | AS129: 97.87721356 | AT129: 1003.994789 | AU129: 85 | AV129: 1088.994789 | AW129: 376142.8352
C130: 96 | D130: PP | E130: =IF(Deudas_fx!$I$24=2,IF(OR(G130=8,G130=1),Deudas_fx!$I$24,IF(D130="Pg",0,1)),IF(D130="PG",0,1)) -> 1 | F130: 7 | G130: 4 | H130: 2033 | I130: 2033-04-07 | J130: 31 | K130: 199726.6816 | L130: 0 | M130: 0 | N130: 0 | O130: 0 | P130: =IF(OR(D130="PG",D130=0),0,E130*((1+$I$8)^-SUMIF(D$35:D130,"PP",J$35:J130))) -> 0.4844174782 | Q130: 732.3665261 | R130: 1545.44378 | S130: 1487.656194 | T130: 57.78758655 | U130: 85 | V130: 0 | W130: 2277.810307 | X130: 2362.810307 | Y130: 198994.3151 | AA130: 2362.810307 | AB130: 2033-04-07 | AC130: 199726.6816 | AD130: 732.3665261 | AE130: 1487.656194 | AF130: 57.78758655 | AG130: 85 | AH130: 0 | AI130: 2362.810307 | AK130: =IF(OR(D130="PG",D130=0),0,E130*((1+$I$8)^-SUMIF(D$50:D130,"PP",J$50:J130))) -> 0.5416336943 | AL130: 31 | AM130: 0.007448459973 | AN130: 0.0002893333333 | AO130: =1/(1+$R$10)^SUM($AL$35:AL130) -> 0.4844174782 | AP130: 376142.8352 | AQ130: -1906.520724 | AR130: 2801.684852 | AS130: 108.8306603 | AT130: 1003.994789 | AU130: 85 | AV130: 1088.994789 | AW130: 378049.3559
C131: 97 | D131: PP | E131: =IF(Deudas_fx!$I$24=2,IF(OR(G131=8,G131=1),Deudas_fx!$I$24,IF(D131="Pg",0,1)),IF(D131="PG",0,1)) -> 1 | F131: 7 | G131: 5 | H131: 2033 | I131: 2033-05-07 | J131: 30 | K131: 198994.3151 | L131: 0 | M131: 0 | N131: 0 | O131: 0 | P131: =IF(OR(D131="PG",D131=0),0,E131*((1+$I$8)^-SUMIF(D$35:D131,"PP",J$35:J131))) -> 0.4808174426 | Q131: 787.8755312 | R131: 1489.934775 | S131: 1434.216367 | T131: 55.71840823 | U131: 85 | V131: 0 | W131: 2277.810307 | X131: 2362.810307 | Y131: 198206.4396 | AA131: 2362.810307 | AB131: 2033-05-07 | AC131: 198994.3151 | AD131: 787.8755312 | AE131: 1434.216367 | AF131: 55.71840823 | AG131: 85 | AH131: 0 | AI131: 2362.810307 | AK131: =IF(OR(D131="PG",D131=0),0,E131*((1+$I$8)^-SUMIF(D$50:D131,"PP",J$50:J131))) -> 0.537608446 | AL131: 30 | AM131: 0.007207323316 | AN131: 0.00028 | AO131: =1/(1+$R$10)^SUM($AL$35:AL131) -> 0.4808174426 | AP131: 378049.3559 | AQ131: -1826.582969 | AR131: 2724.723938 | AS131: 105.8538197 | AT131: 1003.994789 | AU131: 85 | AV131: 1088.994789 | AW131: 379875.9389
C132: 98 | D132: PP | E132: =IF(Deudas_fx!$I$24=2,IF(OR(G132=8,G132=1),Deudas_fx!$I$24,IF(D132="Pg",0,1)),IF(D132="PG",0,1)) -> 1 | F132: 7 | G132: 6 | H132: 2033 | I132: 2033-06-07 | J132: 31 | K132: 198206.4396 | L132: 0 | M132: 0 | N132: 0 | O132: 0 | P132: =IF(OR(D132="PG",D132=0),0,E132*((1+$I$8)^-SUMIF(D$35:D132,"PP",J$35:J132))) -> 0.4771255103 | Q132: 744.1298449 | R132: 1533.680462 | S132: 1476.332732 | T132: 57.34772985 | U132: 85 | V132: 0 | W132: 2277.810307 | X132: 2362.810307 | Y132: 197462.3097 | AA132: 2362.810307 | AB132: 2033-06-07 | AC132: 198206.4396 | AD132: 744.1298449 | AE132: 1476.332732 | AF132: 57.34772985 | AG132: 85 | AH132: 0 | AI132: 2362.810307 | AK132: =IF(OR(D132="PG",D132=0),0,E132*((1+$I$8)^-SUMIF(D$50:D132,"PP",J$50:J132))) -> 0.5334804469 | AL132: 31 | AM132: 0.007448459973 | AN132: 0.0002893333333 | AO132: =1/(1+$R$10)^SUM($AL$35:AL132) -> 0.4771255103 | AP132: 379875.9389 | AQ132: -1935.406709 | AR132: 2829.490726 | AS132: 109.9107717 | AT132: 1003.994789 | AU132: 85 | AV132: 1088.994789 | AW132: 381811.3456
C133: 99 | D133: PP | E133: =IF(Deudas_fx!$I$24=2,IF(OR(G133=8,G133=1),Deudas_fx!$I$24,IF(D133="Pg",0,1)),IF(D133="PG",0,1)) -> 1 | F133: 7 | G133: 7 | H133: 2033 | I133: 2033-07-07 | J133: 30 | K133: 197462.3097 | L133: 0 | M133: 0 | N133: 0 | O133: 0 | P133: =IF(OR(D133="PG",D133=0),0,E133*((1+$I$8)^-SUMIF(D$35:D133,"PP",J$35:J133))) -> 0.4735796662 | Q133: 799.3461507 | R133: 1478.464156 | S133: 1423.174709 | T133: 55.28944673 | U133: 85 | V133: 0 | W133: 2277.810307 | X133: 2362.810307 | Y133: 196662.9636 | AA133: 2362.810307 | AB133: 2033-07-07 | AC133: 197462.3097 | AD133: 799.3461507 | AE133: 1423.174709 | AF133: 55.28944673 | AG133: 85 | AH133: 0 | AI133: 2362.810307 | AK133: =IF(OR(D133="PG",D133=0),0,E133*((1+$I$8)^-SUMIF(D$50:D133,"PP",J$50:J133))) -> 0.529515791 | AL133: 30 | AM133: 0.007207323316 | AN133: 0.00028 | AO133: =1/(1+$R$10)^SUM($AL$35:AL133) -> 0.4735796662 | AP133: 381811.3456 | AQ133: -1854.750202 | AR133: 2751.837814 | AS133: 106.9071768 | AT133: 1003.994789 | AU133: 85 | AV133: 1088.994789 | AW133: 383666.0958
C134: 100 | D134: PP | E134: =IF(Deudas_fx!$I$24=2,IF(OR(G134=8,G134=1),Deudas_fx!$I$24,IF(D134="Pg",0,1)),IF(D134="PG",0,1)) -> 1 | F134: 7 | G134: 8 | H134: 2033 | I134: 2033-08-07 | J134: 31 | K134: 196662.9636 | L134: 0 | M134: 0 | N134: 0 | O134: 0 | P134: =IF(OR(D134="PG",D134=0),0,E134*((1+$I$8)^-SUMIF(D$35:D134,"PP",J$35:J134))) -> 0.4699433089 | Q134: 756.0729432 | R134: 1521.737363 | S134: 1464.836213 | T134: 56.9011508 | U134: 85 | V134: 0 | W134: 2277.810307 | X134: 2362.810307 | Y134: 195906.8906 | AA134: 2362.810307 | AB134: 2033-08-07 | AC134: 196662.9636 | AD134: 756.0729432 | AE134: 1464.836213 | AF134: 56.9011508 | AG134: 85 | AH134: 0 | AI134: 2362.810307 | AK134: =IF(OR(D134="PG",D134=0),0,E134*((1+$I$8)^-SUMIF(D$50:D134,"PP",J$50:J134))) -> 0.5254499309 | AL134: 31 | AM134: 0.007448459973 | AN134: 0.0002893333333 | AO134: =1/(1+$R$10)^SUM($AL$35:AL134) -> 0.4699433089 | AP134: 383666.0958 | AQ134: -1964.734159 | AR134: 2857.721558 | AS134: 111.0073904 | AT134: 1003.994789 | AU134: 85 | AV134: 1088.994789 | AW134: 385630.83
